{"text_format":"1","workbook":"xlsx","n_sheets":2,"sheets":["data","Liste"],"not_rendered":{"charts":0,"images":0,"macros":1,"external_links":3,"defined_names":83,"comments":0,"pivot_tables":0},"unopened":[],"bounds":{"document_bytes":16777216,"sheet_cells":100000,"rows_first":2000,"rows_last":500,"rows_between":2000,"halvings":0,"cell_chars":16384,"cell_head_chars":4096},"cells_cut":0,"cells_raw":0,"read":"whole","date_system":"1900"}

{"sheet":"data","index":0,"n_rows":2501,"n_cols":23,"rows_kept":2501,"cut":false,"hidden":false,"merged":[]}
["رقم ","رقم التعريف","اللقب","الاسم","الجنس","تاريخ الميلاد","مكان الميلاد","القسم مختصر","السنة","الشعبة","القسم","رقم القيد ","الصفة",null,"اسم الولي","العنوان ","تاريخ الخروج",null,"تاريخ الدخول","دخول","خروج","Nom & Prénom","الاسم و اللقب كاملا "]
[1,1000210000000000,"سامري","يوسف","ذكر","2002-10-09","مغنية","3ت ر/هك","ثالثة","تقني رياضي",1,1,"D1",null,"سامري محمد","منطقة البخاتة - الشيخ محمد  مغنية ","إلى يومنا هذا ",null,null,null,null,"SAMRI YOUCEF",{"$f":"C2 & \" \" & D2","v":"سامري يوسف"}]
[2,1100110000000000,"شارف","نور الهدى","أنثى","2001-03-08","مغنية","3ت ر/هم","ثالثة","تقني رياضي",1,2,"D2",null,"شارف عبد الله","قرية اولاد الشارف مغنية ","إلى يومنا هذا ",null,null,null,null,null,{"$f":"C3 & \" \" & D3","v":"شارف نور الهدى"}]
[3,1100210000000000,"عثماني","أسماء","أنثى","2002-07-25","مغنية","3ت ر/هم","ثالثة","تقني رياضي",1,3,"D2",null,null,"أولاد الشارف مغنية ","إلى يومنا هذا ",null,null,null,null,null,"عثماني أسماء"]
[4,1000010000000000,"عريشي","إسماعيل","ذكر","2000-12-29","مغنية","3ت ر/هم","ثالثة","تقني رياضي",1,4,"D1",null,null,"أولاد الشارف مغنية ","إلى يومنا هذا ",null,null,null,null,null,"عريشي إسماعيل"]
[5,1100210000000000,"كريم","وسام","أنثى","2002-11-20","مغنية","3ت ر/هم","ثالثة","تقني رياضي",1,5,"D2",null,null,"قرية العقيد عباس مغنية تلمسان ","إلى يومنا هذا ",null,null,null,null,null,"كريم وسام"]
[6,1000210000000000,"سبوح","عبد الصمد","ذكر","2002-06-13","الغزوات","3ت ر/هم","ثالثة","تقني رياضي",1,6,"E1",null,null,"قرية الشبيكية  ","إلى يومنا هذا ",null,null,null,null,null,"سبوح عبد الصمد"]
[7,1000210000000000,"طالب","انيس شرف الدين","ذكر","2002-05-08","مغنية","3ت ر/هم","ثالثة","تقني رياضي",1,7,"E1",null,null,"ثانوية الخوارزمي ص ب 503 مغنية ","إلى يومنا هذا ",null,null,null,null,null,"طالب انيس شرف الدين"]
[8,1000230000000000,"نيار","سيدي محمد ريان","ذكر","2002-08-02","مستغانم","3ت ر/هم","ثالثة","تقني رياضي",1,8,"E1",null,null,"حي الشهداء مغنية ","إلى يومنا هذا ",null,null,null,null,null,"نيار سيدي محمد ريان"]
[9,1000210000000000,"العباس","بومدين","ذكر","2002-06-13","مغنية","3ت ر/هك","ثالثة","تقني رياضي",1,9,"D1",null,null,"حي الشهداء مغنية ","إلى يومنا هذا ",null,null,null,null,null,"العباس بومدين"]
[10,1000210000000000,"بلعجل","محمد","ذكر","2002-03-09","مغنية","3ت ر/هك","ثالثة","تقني رياضي",1,10,"D1",null,null,"أولاد الشارف مغنية ","إلى يومنا هذا ",null,null,null,null,null,"بلعجل محمد"]
[11,1100210000000000,"بن عبد الله","فريال","ذكر","2002-09-25","مغنية","3ت ر/هك","ثالثة","تقني رياضي",1,11,"D2",null,null,"اولاد قدور الكبار مغنية ","إلى يومنا هذا ",null,null,null,null,null,"بن عبد الله فريال"]
[12,1000310000000000,"بن عبد الله","مصطفى","ذكر","2003-07-30","مغنية","3ت ر/هك","ثالثة","تقني رياضي",1,12,"D1",null,null,"قرية اولاد الشارف مغنية ","إلى يومنا هذا ",null,null,null,null,null,"بن عبد الله مصطفى"]
[13,1000210000000000,"بوعزة","حسام","ذكر","2002-02-24","مغنية","3ت ر/هك","ثالثة","تقني رياضي",1,13,"D1",null,null,"قرية المصامدة مغنية ","إلى يومنا هذا ",null,null,null,null,null,"بوعزة حسام"]
[14,1100310000000000,"راجعي","وسام","أنثى","2003-01-16","مغنية","3ت ر/هك","ثالثة","تقني رياضي",1,14,"D2",null,null,"قرية المصامدة مغنية ","إلى يومنا هذا ",null,null,null,null,null,"راجعي وسام"]
[15,1000210000000000,"لحلاح","أسامة","ذكر","2002-06-01","مغنية","3ت ر/هك","ثالثة","تقني رياضي",1,15,"D1",null,null,"أولاد الشارف لكفاف مغنية ","إلى يومنا هذا ",null,null,null,null,null,"لحلاح أسامة"]
[16,1100250000000000,"بن عمار","شيماء","أنثى","2002-08-16","عين تموشنت","3ت ر/هك","ثالثة","تقني رياضي",1,16,"E2",null,null,"قرية البطيم ","إلى يومنا هذا ",null,null,null,null,null,"بن عمار شيماء"]
[17,1000210000000000,"بن هدي","سيدي محمد","أنثى","2002-10-31","تلمسان","3ت ر/هك","ثالثة","تقني رياضي",1,17,"E1",null,null,"السكن الوظيفي رقم03مقاطعة الغابات مغنية ","إلى يومنا هذا ",null,null,null,null,null,"بن هدي سيدي محمد"]
[18,1100210000000000,"حمادي","فاطنة نجوى","أنثى","2002-05-12","مغنية","3ت ر/هك","ثالثة","تقني رياضي",1,18,"E2",null,null,"حي الشهداء مغنية ","إلى يومنا هذا ",null,null,null,null,null,"حمادي فاطنة نجوى"]
[19,1000210000000000,"صباحي","ابراهيم","ذكر","2002-10-16","مغنية","3ت ر/هك","ثالثة","تقني رياضي",1,19,"E1",null,null,"حي الشهداء ","إلى يومنا هذا ",null,null,null,null,null,"صباحي ابراهيم"]
[20,1000310000000000,"محلة","عبدالرحمن","ذكر","2003-02-14","مغنية","3ت ر/هك","ثالثة","تقني رياضي",1,20,"E1",null,null,"14 شارع شعبان حمدون مغنية ","إلى يومنا هذا ",null,null,null,null,null,"محلة عبدالرحمن"]
[21,1000110000000000,"أحمودي","أيمن","ذكر","2001-03-24","مغنية","3ت إ01","ثالثة","تسيير واقتصاد",1,21,"D1",null,null,"ثانوية الخوارزمي ص ب 503 مغنية ","إلى يومنا هذا ",null,null,null,null,null,"أحمودي أيمن"]
[22,1100210000000000,"امبارك","شيماء","أنثى","2002-07-31","مغنية","3ت إ01","ثالثة","تسيير واقتصاد",1,22,"D2",null,null,"قرية المصامدة مغنية ","إلى يومنا هذا ",null,null,null,null,null,"امبارك شيماء"]
[23,1000210000000000,"بلعباسي","بلال","ذكر","2002-03-09","مغنية","3ت إ01","ثالثة","تسيير واقتصاد",1,23,"D2",null,null,"قرية العقيد عباس مغنية ","إلى يومنا هذا ",null,null,null,null,null,"بلعباسي بلال"]
[24,1000110000000000,"بن زمرة","شيماء","أنثى","2001-01-22","مغنية","3ت إ01","ثالثة","تسيير واقتصاد",1,24,"D1",null,null,"اولاد الشارف ","إلى يومنا هذا ",null,null,null,null,null,"بن زمرة شيماء"]
[25,1100110000000000,"بن علي","هاجر","أنثى","2001-01-03","مغنية","3ت إ01","ثالثة","تسيير واقتصاد",1,25,"D2",null,null,"قرية المصامدة ","إلى يومنا هذا ",null,null,null,null,null,"بن علي هاجر"]
[26,1000010000000000,"بن يوبي","بلال","ذكر","2000-09-29","سبدو","3ت إ01","ثالثة","تسيير واقتصاد",1,26,"E1",null,null,"حي الشهداء مغنية ","إلى يومنا هذا ",null,null,null,null,null,"بن يوبي بلال"]
[27,1000210000000000,"بوطاقة","بلال","ذكر","2002-03-11","مغنية","3ت إ01","ثالثة","تسيير واقتصاد",1,27,"E1",null,null,"أولاد الشارف مغنية ","إلى يومنا هذا ",null,null,null,null,null,"بوطاقة بلال"]
[28,1100210000000000,"بوطاقة","مريم","أنثى","2002-07-21","مغنية","3ت إ01","ثالثة","تسيير واقتصاد",1,28,"E1",null,null,"أولاد الشارف مغنية ","إلى يومنا هذا ",null,null,null,null,null,"بوطاقة مريم"]
[29,1000110000000000,"تومي","محمد","ذكر","2001-12-05","وهران","3ت إ01","ثالثة","تسيير واقتصاد",1,29,"D1",null,null,"حي عمر مغنية  ","إلى يومنا هذا ",null,null,null,null,null,"تومي محمد"]
[30,1099910000000000,"حمادي","حسن","ذكر","1999-07-13","مغنية","3ت إ01","ثالثة","تسيير واقتصاد",1,30,"D1",null,null,"طريق صبرة مغنية ","إلى يومنا هذا ",null,null,null,null,null,"حمادي حسن"]
[31,1000110000000000,"حمزة","بلال","ذكر","2001-06-25","مغنية","3ت إ01","ثالثة","تسيير واقتصاد",1,31,"D2",null,null,"محطة القطار العقيد عباس    مغنية ","إلى يومنا هذا ",null,null,null,null,null,"حمزة بلال"]
[32,1100110000000000,"خضراوي","أسماء","أنثى","2001-07-30","مغنية","3ت إ01","ثالثة","تسيير واقتصاد",1,32,"D1",null,null,"البخاتة بوسدرة ","إلى يومنا هذا ",null,null,null,null,null,"خضراوي أسماء"]
[33,1199910000000000,"دياب","جهان","أنثى","1999-02-09","مغنية","3ت إ01","ثالثة","تسيير واقتصاد",1,33,"D1",null,null,"منزل 5 أولاد الشارف مغنية ","إلى يومنا هذا ",null,null,null,null,null,"دياب جهان"]
[34,1100040000000000,"ديلم","أشواق","أنثى","2000-09-09","خميستي","3ت إ01","ثالثة","تسيير واقتصاد",1,34,"D2",null,null,"أولاد الشارف ","إلى يومنا هذا ",null,null,null,null,null,"ديلم أشواق"]
[35,1100210000000000,"ساولي","بديعة","أنثى","2002-06-10","مغنية","3ت إ01","ثالثة","تسيير واقتصاد",1,35,"D1",null,null,"حي الشهداء ","إلى يومنا هذا ",null,null,null,null,null,"ساولي بديعة"]
[36,1099910000000000,"سفرجلي","يونس","ذكر","1999-11-19","مغنية","3ت إ01","ثالثة","تسيير واقتصاد",1,36,"E2",null,null,"قرية البطيم ","إلى يومنا هذا ",null,null,null,null,null,"سفرجلي يونس"]
[37,1100110000000000,"سلطاني","نادية","أنثى","2001-12-15","مغنية","3ت إ01","ثالثة","تسيير واقتصاد",1,37,"E1",null,null,"حي عمر المختار مغنية ","إلى يومنا هذا ",null,null,null,null,null,"سلطاني نادية"]
[38,1000210000000000,"سلومي","اسماعيل","ذكر","2002-06-02","تلمسان","3ت إ01","ثالثة","تسيير واقتصاد",1,38,"E2",null,null,"23 شارعمرادديدوش  مراد ","إلى يومنا هذا ",null,null,null,null,null,"سلومي اسماعيل"]
[39,1000210000000000,"صوالح","ياسين","ذكر","2002-10-05","مغنية","3ت إ01","ثالثة","تسيير واقتصاد",1,39,"E1",null,null,"قرية العقيد لطفي مغنية ","إلى يومنا هذا ",null,null,null,null,null,"صوالح ياسين"]
[40,1100210000000000,"صوفي","رحمة إكرام","أنثى","2002-02-10","مغنية","3ت إ01","ثالثة","تسيير واقتصاد",1,40,"E1",null,null,"قرية اولاد قدور الكبار ","إلى يومنا هذا ",null,null,null,null,null,"صوفي رحمة إكرام"]
[41,1000110000000000,"طيبي","محمد رضا","ذكر","2001-05-07","مغنية","3ت إ01","ثالثة","تسيير واقتصاد",1,41,"D1",null,null,"مزعة شرقاوي العيد  مغنية ","إلى يومنا هذا ",null,null,null,null,null,"طيبي محمد رضا"]
[42,1099810000000000,"كبير","عبد الرحيم","ذكر","1998-01-28","مغنية","3ت إ01","ثالثة","تسيير واقتصاد",1,42,"D2",null,null,"قرية الكفاف مغنية ","إلى يومنا هذا ",null,null,null,null,null,"كبير عبد الرحيم"]
[43,1100210000000000,"مخلوفي","ياسين","ذكر","2002-11-06","دبدابة","3ت إ01","ثالثة","تسيير واقتصاد",1,43,"D2",null,null,"قرية  البخاتة  مغنية ","إلى يومنا هذا ",null,null,null,null,null,"مخلوفي ياسين"]
[44,1000110000000000,"مداني","زكرياء","ذكر","2001-08-15","مغنية","3ت إ01","ثالثة","تسيير واقتصاد",1,44,"D1",null,null,"قرية البخاتة بوسدرة مغنية ","إلى يومنا هذا ",null,null,null,null,null,"مداني زكرياء"]
[45,1100010000000000,"مزاري","فاطنة","أنثى","2000-04-10","مغنية","3ت إ01","ثالثة","تسيير واقتصاد",1,45,"D2",null,null,"حي السكني مغنية ","إلى يومنا هذا ",null,null,null,null,null,"مزاري فاطنة"]
[46,1100210000000000,"مفتاح","أمينة منال","أنثى","2002-07-09","مغنية","3ت إ01","ثالثة","تسيير واقتصاد",1,46,"E1",null,null,"لكفاف - مغنية ","إلى يومنا هذا ",null,null,null,null,null,"مفتاح أمينة منال"]
[47,1000110000000000,"مقدم","لخضر عصام","ذكر","2001-09-29","مغنية","3ت إ01","ثالثة","تسيير واقتصاد",1,47,"E1",null,null,"مزرعة شعبان حمدون ص.ب64مغنية ","إلى يومنا هذا ",null,null,null,null,null,"مقدم لخضر عصام"]
[48,1100210000000000,"وازني","رميسة","أنثى","2002-03-01","مغنية","3ت إ01","ثالثة","تسيير واقتصاد",1,48,"E1",null,null,"أولاد قدور الكبار مغنية ","إلى يومنا هذا ",null,null,null,null,null,"وازني رميسة"]
[49,1000210000000000,"بوزيان","محمد الأمين","ذكر","2002-11-30","مغنية","3ت إ01","ثالثة","تسيير واقتصاد",1,49,"D1",null,null,"قرية البخاتة مغنية ","إلى يومنا هذا ",null,null,null,null,null,"بوزيان محمد الأمين"]
[50,1000210000000000,"زوهيري","يوسف","ذكر","2002-08-11","مغنية","3ت إ01","ثالثة","تسيير واقتصاد",1,50,"D1",null,null,"حي الشهداء مغنية ","إلى يومنا هذا ",null,null,null,null,null,"زوهيري يوسف"]
[51,1000110000000000,"زياني الأول","سيف الدين","ذكر","2001-06-15","مغنية","3ت إ01","ثالثة","تسيير واقتصاد",1,51,"D2",null,null,"حي الشهداء مغنية ","إلى يومنا هذا ",null,null,null,null,null,"زياني الأول سيف الدين"]
[52,1000010000000000,"قناد","ياسين","ذكر","2000-09-18","مغنية","3ت إ01","ثالثة","تسيير واقتصاد",1,52,"D1",null,null,"شارع 06 حي المذبحة  ","إلى يومنا هذا ",null,null,null,null,null,"قناد ياسين"]
[53,1100210000000000,"بصغير","مريم","أنثى","2002-09-26","مغنية","3ع ت01","ثالثة","علوم تجريبية",1,53,"D1",null,null,"حي  الشهداء مغنية ","إلى يومنا هذا ",null,null,null,null,null,"بصغير مريم"]
[54,1100310000000000,"بن عبد الله","فاطمة الزهراء","أنثى","2003-03-09","مغنية","3ع ت01","ثالثة","علوم تجريبية",1,54,"D2",null,null,"قرية اولاد الشارف مغنية ","إلى يومنا هذا ",null,null,null,null,null,"بن عبد الله فاطمة الزهراء"]
[55,1000210000000000,"بن عراج","أيوب","ذكر","2002-06-12","مغنية","3ع ت01","ثالثة","علوم تجريبية",1,55,"D1",null,null,"قرية المصامدة ","إلى يومنا هذا ",null,null,null,null,null,"بن عراج أيوب"]
[56,1100210000000000,"بن مغني","سهيلة","أنثى","2002-01-13","مغنية","3ع ت01","ثالثة","علوم تجريبية",1,56,"E2",null,null,"السكن الوظيفي للإدارة حي الشهداء مغنية ","إلى يومنا هذا ",null,null,null,null,null,"بن مغني سهيلة"]
[57,1000210000000000,"بن منصور","إلياس","ذكر","2002-12-25","مغنية","3ع ت01","ثالثة","علوم تجريبية",1,57,"E1",null,null,"قرية العقيد لطفي مغنية ","إلى يومنا هذا ",null,null,null,null,null,"بن منصور إلياس"]
[58,1000110000000000,"حساني","إسلام عبد القادر","ذكر","2001-01-24","مغنية","3ع ت01","ثالثة","علوم تجريبية",1,58,"E2",null,null,"قرية البطيم ","إلى يومنا هذا ",null,null,null,null,null,"حساني إسلام عبد القادر"]
[59,1100210000000000,"حقاوي","اكرام","أنثى","2002-08-10","مغنية","3ع ت01","ثالثة","علوم تجريبية",1,59,"E1",null,null,"قرية المصامدة مغنية ","إلى يومنا هذا ",null,null,null,null,null,"حقاوي اكرام"]
[60,1100210000000000,"زيني","مغنية","أنثى","2002-04-26","مغنية","3ع ت01","ثالثة","علوم تجريبية",1,60,"E1",null,null,"قرية البخاتة مغنية ","إلى يومنا هذا ",null,null,null,null,null,"زيني مغنية"]
[61,1100310000000000,"شارف","مريم العذراء","أنثى","2003-02-21","مغنية","3ع ت01","ثالثة","علوم تجريبية",1,61,"D1",null,null,"أولاد الشارف مغنية ","إلى يومنا هذا ",null,null,null,null,null,"شارف مريم العذراء"]
[62,1000210000000000,"علواني","محمد ياسر","ذكر","2002-03-27","وهران","3ع ت01","ثالثة","علوم تجريبية",1,62,"D2",null,null,"قرية اولاد الشارف مغنية ","إلى يومنا هذا ",null,null,null,null,null,"علواني محمد ياسر"]
[63,1100210000000000,"فريجة","وسيلة","أنثى","2002-03-08","مغنية","3ع ت01","ثالثة","علوم تجريبية",1,63,"D2",null,null,"أولاد الشارف - مغنية ","إلى يومنا هذا ",null,null,null,null,null,"فريجة وسيلة"]
[64,1000210000000000,"قديم","سهيلة","أنثى","2002-07-08","مغنية","3ع ت01","ثالثة","علوم تجريبية",1,64,"D1",null,null,"قرية البخاتة ","إلى يومنا هذا ",null,null,null,null,null,"قديم سهيلة"]
[65,1100210000000000,"قديم","نعيمة","أنثى","2002-01-12","مغنية","3ع ت01","ثالثة","علوم تجريبية",1,65,"D2",null,null,"قرية اولاد الشارف مغنية ","إلى يومنا هذا ",null,null,null,null,null,{"$f":"C66 & \" \" & D66","v":"قديم نعيمة"}]
[66,1100210000000000,"كبيب","حليمة","أنثى","2002-11-20","مغنية","3ع ت01","ثالثة","علوم تجريبية",1,66,"E1",null,null,"قرية اولاد الشارف مغنية ","إلى يومنا هذا ",null,null,null,null,null,"كبيب حليمة"]
[67,1000210000000000,"لعروسي","سيد أحمد","ذكر","2002-05-23","مغنية","3ع ت01","ثالثة","علوم تجريبية",1,67,"E1",null,null,"اولاد الشارف ","إلى يومنا هذا ",null,null,null,null,null,"لعروسي سيد أحمد"]
[68,1000210000000000,"مقدم","أيوب","ذكر","2002-10-22","مغنية","3ع ت01","ثالثة","علوم تجريبية",1,68,"E1",null,null,"قرية البطيم ","إلى يومنا هذا ",null,null,null,null,null,"مقدم أيوب"]
[69,1100210000000000,"بلخير","زينب رحمة","أنثى","2002-11-25","مغنية","3ع ت01","ثالثة","علوم تجريبية",1,70,"D1",null,null,"اولاد الشارف ","2019-11-04",null,null,null,"ن د1",null,"بلخير زينب رحمة"]
[70,1100110000000000,"بن قطاي","فتيحة","أنثى","2001-09-08","مغنية","3ع ت01","ثالثة","علوم تجريبية",1,71,"D1",null,null,"مزرعة شرقاوي العيد طريق أولاد قدور مغنية ","إلى يومنا هذا ",null,null,null,null,null,"بن قطاي فتيحة"]
[71,1100210000000000,"حود","اسماء","أنثى","2002-04-25","مغنية","3ع ت01","ثالثة","علوم تجريبية",1,72,"D2",null,null,"55 حي الشهداء مغنية ","إلى يومنا هذا ",null,null,null,null,null,"حود اسماء"]
[72,1000210000000000,"دار رمضان","عبد الحفيظ نزيم","ذكر","2002-05-19","تيارت","3ع ت01","ثالثة","علوم تجريبية",1,73,"D1",null,null,"حي الشهداء مغنية ","إلى يومنا هذا ",null,null,null,null,null,"دار رمضان عبد الحفيظ نزيم"]
[73,1100210000000000,"دكالي","نادية","أنثى","2002-09-14","مغنية","3ع ت01","ثالثة","علوم تجريبية",1,74,"D1",null,null,"تعاونية الحواس  حي الشهداء مغنية ","إلى يومنا هذا ",null,null,null,null,null,"دكالي نادية"]
[74,1100210000000000,"زجاوي","مريم","أنثى","2002-11-06","مغنية","3ع ت01","ثالثة","علوم تجريبية",1,75,"D2",null,null,"حي القاضي مغنية ","إلى يومنا هذا ",null,null,null,null,null,"زجاوي مريم"]
[75,1100110000000000,"سبو","شيماء","أنثى","2001-03-21","مغنية","3ع ت01","ثالثة","علوم تجريبية",1,76,"D1",null,null,"حي الشهداء مغنية ","إلى يومنا هذا ",null,null,null,null,null,"سبو شيماء"]
[76,1000210000000000,"شهبي","عبد الرحمن","ذكر","2002-08-06","مغنية","3ع ت01","ثالثة","علوم تجريبية",1,77,"E2",null,null,"ص.ب47مغنية13300 ","إلى يومنا هذا ",null,null,null,null,null,"شهبي عبد الرحمن"]
[77,1000010000000000,"محلة","سيدي أحمد","ذكر","2000-08-07","مغنية","3ع ت01","ثالثة","علوم تجريبية",1,78,"E1",null,null,"حي الشهداء مغنية ","إلى يومنا هذا ",null,null,null,null,null,"محلة سيدي أحمد"]
[78,1100210000000000,"العربي","سارة","أنثى","2002-11-06","مغنية","3ع ت02","ثالثة","علوم تجريبية",2,79,"E2",null,null,"حي الشهداء مغنية ","إلى يومنا هذا ",null,null,null,null,null,"العربي سارة"]
[79,1000210000000000,"بلحسين","أمين","ذكر","2002-06-01","مغنية","3ع ت02","ثالثة","علوم تجريبية",2,80,"E1",null,null,"ثانوية الخوارزمي مغنية ","إلى يومنا هذا ",null,null,null,null,null,"بلحسين أمين"]
[80,1100210000000000,"بن عامر","وفاء","أنثى","2002-03-15","مغنية","3ع ت02","ثالثة","علوم تجريبية",2,81,"E1",null,null,"دوار المخاليف مغنية أولاد قدور الصغار ","إلى يومنا هذا ",null,null,null,null,null,"بن عامر وفاء"]
[81,1100210000000000,"بن عبد الواحد","عتيقة","أنثى","2002-08-06","ندرومة","3ع ت02","ثالثة","علوم تجريبية",2,82,"D1",null,null,"قرية البطيم مغنية ","إلى يومنا هذا ",null,null,null,null,null,"بن عبد الواحد عتيقة"]
[82,1000010000000000,"بن عيش","ياسين","ذكر","2000-03-02","مغنية","3ع ت02","ثالثة","علوم تجريبية",2,83,"D2",null,null,"دوار المخاليف مغنية أولاد قدور الصغار ","إلى يومنا هذا ",null,null,null,null,null,"بن عيش ياسين"]
[83,1100210000000000,"بوعزة","رانيا","أنثى","2002-11-16","مغنية","3ع ت02","ثالثة","علوم تجريبية",2,84,"D2",null,null,"قرية البطيم ","إلى يومنا هذا ",null,null,null,null,null,"بوعزة رانيا"]
[84,1000210000000000,"حداج","سيدي محمد","ذكر","2002-06-26","مغنية","3ع ت02","ثالثة","علوم تجريبية",2,85,"D1",null,null,"اولاد الشارف مغنية ","إلى يومنا هذا ",null,null,null,null,null,"حداج سيدي محمد"]
[85,1100210000000000,"حمادي","فاطمة","أنثى","2002-06-01","مغنية","3ع ت02","ثالثة","علوم تجريبية",2,86,"D2",null,null,"قرية المصامدة مغنية ","إلى يومنا هذا ",null,null,null,null,null,"حمادي فاطمة"]
[86,1100210000000000,"حمادي","هاجر","أنثى","2002-06-01","مغنية","3ع ت02","ثالثة","علوم تجريبية",2,87,"E1",null,null,"قرية العقيد لطفي مغنية ","إلى يومنا هذا ",null,null,null,null,null,"حمادي هاجر"]
[87,1100010000000000,"دكالي","شيماء","أنثى","2000-04-10","مغنية","3ع ت02","ثالثة","علوم تجريبية",2,88,"E1",null,null,"قرية العقيد عباس مغنية ","إلى يومنا هذا ",null,null,null,null,null,"دكالي شيماء"]
[88,1100210000000000,"زياني الأول","بشرى","أنثى","2002-03-13","مغنية","3ع ت02","ثالثة","علوم تجريبية",2,89,"E1",null,null,"قرية العقيد عباس مغنية ","إلى يومنا هذا ",null,null,null,null,null,"زياني الأول بشرى"]
[89,1100210000000000,"زيني","نورية","أنثى","2002-03-01","مغنية","3ع ت02","ثالثة","علوم تجريبية",2,90,"D1",null,null,"قرية المصامدة مغنية ","إلى يومنا هذا ",null,null,null,null,null,"زيني نورية"]
[90,1100210000000000,"كاري","مروة","أنثى","2002-11-11","مغنية","3ع ت02","ثالثة","علوم تجريبية",2,91,"D1",null,null,"قرية العقيد لطفي مغنية ","إلى يومنا هذا ",null,null,null,null,null,"كاري مروة"]
[91,1000230000000000,"كلتومي","ايمن","ذكر","2002-08-11","وهران","3ع ت02","ثالثة","علوم تجريبية",2,92,"D2",null,null,"قرية اولاد الشارف مغنية ","إلى يومنا هذا ",null,null,null,null,null,"كلتومي ايمن"]
[92,1100210000000000,"معطى الله","خديجة زهيرة","أنثى","2002-02-12","مغنية","3ع ت02","ثالثة","علوم تجريبية",2,93,"D1",null,null,"قرية العقيد لطفي مغنية ","إلى يومنا هذا ",null,null,null,null,null,"معطى الله خديجة زهيرة"]
[93,1100210000000000,"منصوري","شيماء","أنثى","2002-09-03","مغنية","3ع ت02","ثالثة","علوم تجريبية",2,94,"D1",null,null,"حي عمر المختار 600/200سكن مغنية ","إلى يومنا هذا ",null,null,null,null,null,"منصوري شيماء"]
[94,1000110000000000,"أوشريف","أيمن عبد الرزاق","ذكر","2001-11-03","مغنية","3ع ت02","ثالثة","علوم تجريبية",2,95,"D2",null,null,"قرية البطيم  ","إلى يومنا هذا ",null,null,null,null,null,"أوشريف أيمن عبد الرزاق"]
[95,1100210000000000,"بن دحو","سارة","أنثى","2002-07-02","مغنية","3ع ت02","ثالثة","علوم تجريبية",2,96,"D1",null,null,"منصوري عبد الحميد ص.ب61 بخاتة مغنية ","إلى يومنا هذا ",null,null,null,null,null,"بن دحو سارة"]
[96,1100110000000000,"بوجمعة","سمية","أنثى","2001-03-30","مغنية","3ع ت02","ثالثة","علوم تجريبية",2,97,"E2",null,null,"منزل27 شارع17حي المقراني-البطوار- مغنية ","إلى يومنا هذا ",null,null,null,null,null,"بوجمعة سمية"]
[97,1000210000000000,"حاج محمد","إسماعيل","ذكر","2002-10-15","مغنية","3ع ت02","ثالثة","علوم تجريبية",2,98,"E1",null,null,"مسجد الامام البخاري حي الشهداء ","إلى يومنا هذا ",null,null,null,null,null,"حاج محمد إسماعيل"]
[98,1100310000000000,"دفافني","يسري","أنثى","2003-01-01","مغنية","3ع ت02","ثالثة","علوم تجريبية",2,99,"E2",null,null,"حي الشهداء مغنية ","إلى يومنا هذا ",null,null,null,null,null,"دفافني يسري"]
[99,1000210000000000,"دوجي","خالد","ذكر","2002-01-31","مغنية","3ع ت02","ثالثة","علوم تجريبية",2,100,"E1",null,null,"حي بلال شارع 2 رقم 4 مغنية ","إلى يومنا هذا ",null,null,null,null,null,"دوجي خالد"]
[100,1100310000000000,"صباحي","صفية نضيرة","أنثى","2003-01-02","تلمسان","3ع ت02","ثالثة","علوم تجريبية",2,101,"E1",null,null,"حي الشهداء مغنية ","إلى يومنا هذا ",null,null,null,null,null,"صباحي صفية نضيرة"]
[101,1100230000000000,"عويسة","شروق","أنثى","2002-12-24","تيغنيف","3ع ت02","ثالثة","علوم تجريبية",2,102,"D1",null,null,"حي الشهداء رقم 17 مغنية ","إلى يومنا هذا ",null,null,null,null,null,"عويسة شروق"]
[102,1000210000000000,"عويسي","الياس","ذكر","2002-11-25","مغنية","3ع ت02","ثالثة","علوم تجريبية",2,103,"D2",null,null,"رقم02حي الشهداء مغنية ","إلى يومنا هذا ",null,null,null,null,null,"عويسي الياس"]
[103,1000310000000000,"قنطاري","حمزة","ذكر","2003-01-08","سبدو","3ع ت02","ثالثة","علوم تجريبية",2,104,"D2",null,null,"حي الشهداء مغنية ","إلى يومنا هذا ",null,null,null,null,null,"قنطاري حمزة"]
[104,1100010000000000,"أمحمدي","بشرى","أنثى","2000-07-27","مغنية","3ع ت03","ثالثة","علوم تجريبية",3,105,"D1",null,null,"شارع 03 المنزل 20 حي الشهداء مغنية  ","إلى يومنا هذا ",null,null,null,null,null,"أمحمدي بشرى"]
[105,1100210000000000,"بن زمرة","سارة","أنثى","2002-07-20","مغنية","3ع ت03","ثالثة","علوم تجريبية",3,106,"D2",null,null,"حي الشهداء مغنية ","إلى يومنا هذا ",null,null,null,null,null,"بن زمرة سارة"]
[106,1100210000000000,"بن عبد الله","أميرة","أنثى","2002-09-27","مغنية","3ع ت03","ثالثة","علوم تجريبية",3,107,"E1",null,null,"قرية أولاد قدور   مغنية ","إلى يومنا هذا ",null,null,null,null,null,"بن عبد الله أميرة"]
[107,1100210000000000,"بن عمارة","فاطمة الزهراء","أنثى","2002-08-19","مغنية","3ع ت03","ثالثة","علوم تجريبية",3,108,"E1",null,null,"قرية مصامدة ","إلى يومنا هذا ",null,null,null,null,null,"بن عمارة فاطمة الزهراء"]
[108,1100010000000000,"بن موسى","نبية","أنثى","2000-10-31","مغنية","3ع ت03","ثالثة","علوم تجريبية",3,109,"E1",null,null,"قرية المصادة ","إلى يومنا هذا ",null,null,null,null,null,"بن موسى نبية"]
[109,1100110000000000,"حميدي","صفية","أنثى","2001-12-04","مغنية","3ع ت03","ثالثة","علوم تجريبية",3,110,"D1",null,null,"قريةالبطيم ","إلى يومنا هذا ",null,null,null,null,null,"حميدي صفية"]
[110,1000210000000000,"دحماني","بلال","ذكر","2002-12-22","مغنية","3ع ت03","ثالثة","علوم تجريبية",3,111,"D1",null,null,"مجمع 14 رقم 23 بلدية عين فتاح ","إلى يومنا هذا ",null,null,null,null,null,"دحماني بلال"]
[111,1100210000000000,"رمضاني","سكينة","أنثى","2002-06-18","مغنية","3ع ت03","ثالثة","علوم تجريبية",3,112,"D2",null,null,"درب 17 رقم 06 حي المقراني ","إلى يومنا هذا ",null,null,null,null,null,"رمضاني سكينة"]
[112,1100210000000000,"رمضاني","وصال","أنثى","2002-02-10","مغنية","3ع ت03","ثالثة","علوم تجريبية",3,113,"D1",null,null,"قرية البطيم مغنية ","إلى يومنا هذا ",null,null,null,null,null,"رمضاني وصال"]
[113,1100110000000000,"زحزوح","شيماء","أنثى","2001-07-16","مغنية","3ع ت03","ثالثة","علوم تجريبية",3,114,"D1",null,null,"قرية راس العصفور المصامدة  مغنية ","إلى يومنا هذا ",null,null,null,null,null,"زحزوح شيماء"]
[114,1100310000000000,"زيني","نفيسة","أنثى","2003-02-17","مغنية","3ع ت03","ثالثة","علوم تجريبية",3,115,"D2",null,null,"قرية البطيم ","إلى يومنا هذا ",null,null,null,null,null,"زيني نفيسة"]
[115,1000210000000000,"صايم","فارس","ذكر","2002-12-21","الرمشي","3ع ت03","ثالثة","علوم تجريبية",3,116,"D1",null,null,"دوار المزايدة مغنية ","إلى يومنا هذا ",null,null,null,null,null,"صايم فارس"]
[116,1100110000000000,"طواع","شيماء","أنثى","2001-02-28","مغنية","3ع ت03","ثالثة","علوم تجريبية",3,117,"E2",null,null,"أولاد الشارف  ","إلى يومنا هذا ",null,null,null,null,null,"طواع شيماء"]
[117,1100210000000000,"غربي","سناء","أنثى","2002-10-20","مغنية","3ع ت03","ثالثة","علوم تجريبية",3,118,"E1",null,null,"بني بويعسد - محمد صالح - تلمسان ","إلى يومنا هذا ",null,null,null,null,null,"غربي سناء"]
[118,1100210000000000,"مزاري","سلوة","أنثى","2002-06-27","تلمسان","3ع ت03","ثالثة","علوم تجريبية",3,119,"E2",null,null,"أولاد الشارف مغنية ","إلى يومنا هذا ",null,null,null,null,null,"مزاري سلوة"]
[119,1199910000000000,"موساتي","فتيحة","أنثى","1999-03-02","مغنية","3ع ت04","ثالثة","علوم تجريبية",3,120,"E1",null,null,"قرية البطيم ","إلى يومنا هذا ",null,null,null,null,null,"موساتي فتيحة"]
[120,1100210000000000,"بوزيان","حنان","أنثى","2002-11-30","مغنية","3ع ت04","ثالثة","علوم تجريبية",3,121,"E1",null,null,"قرية البخاتة مغنية ","إلى يومنا هذا ",null,null,null,null,null,"بوزيان حنان"]
[121,1100200000000000,"بوغالية","صافة ايات","أنثى","2002-04-21","مغنية","3ع ت04","ثالثة","علوم تجريبية",3,122,"D1",null,null,"قرية المصامدة مغنية ","إلى يومنا هذا ",null,null,null,null,null,"بوغالية صافة ايات"]
[122,1100210000000000,"حدار","فاطمة الزهراء","أنثى","2002-12-20","مغنية","3ع ت04","ثالثة","علوم تجريبية",3,123,"D2",null,null,"حي الشهداء مغنية ","إلى يومنا هذا ",null,null,null,null,null,"حدار فاطمة الزهراء"]
[123,1000210000000000,"رايس","محمد علي","ذكر","2002-12-11","مغنية","3ع ت04","ثالثة","علوم تجريبية",3,124,"D2",null,null,"حي الشهداء مغنية ","إلى يومنا هذا ",null,null,null,null,null,"رايس محمد علي"]
[124,1099930000000000,"طماشة","صهيب","ذكر","1999-12-16","وهران","3ع ت04","ثالثة","علوم تجريبية",3,125,"D1",null,null,"رقم 5 حي الشهداء مغنية  ","إلى يومنا هذا ",null,null,null,null,null,"طماشة صهيب"]
[125,1100310000000000,"طيب","إناس","أنثى","2003-03-16","مغنية","3ع ت04","ثالثة","علوم تجريبية",3,126,"D2",null,null,"حي الشهداء مغنية ","إلى يومنا هذا ",null,null,null,null,null,"طيب إناس"]
[126,1000210000000000,"قليلة","سليم","ذكر","2002-03-03","مغنية","3ع ت04","ثالثة","علوم تجريبية",3,127,"E1",null,null,"رقم 18 حي الشهداء مغنية ","إلى يومنا هذا ",null,null,null,null,null,"قليلة سليم"]
[127,1099910000000000,"نجاري","بلال","ذكر","1999-06-06","الغزوات","3ع ت04","ثالثة","علوم تجريبية",3,128,"E1",null,null,"حي 150 مسكن عمارة أ الرمشي ","إلى يومنا هذا ",null,null,null,null,null,"نجاري بلال"]
[128,1100210000000000,"وادفل","مروة","أنثى","2002-04-28","مغنية","3ع ت04","ثالثة","علوم تجريبية",3,129,"E1",null,null,"شارع 06 رقم 28 حي الشهداء مغنية ","إلى يومنا هذا ",null,null,null,null,null,"وادفل مروة"]
[129,1100010000000000,"أولاجي","إكرام","أنثى","2000-09-10","تلمسان","3أ ف01","ثالثة","آداب وفلسفة",1,130,"D1",null,null,"قرية الكفاف مغنية ","إلى يومنا هذا ",null,null,null,null,null,{"$f":"C130 & \" \" & D130","v":"أولاجي إكرام"}]
[130,1100210000000000,"الحمليلي","أنفال","أنثى","2002-06-03","مغنية","3أ ف01","ثالثة","آداب وفلسفة",1,131,"D1",null,null,"درب 06 منزل 10 حي الشهداء ","إلى يومنا هذا ",null,null,null,null,null,"الحمليلي أنفال"]
[131,1100210000000000,"الشيخ","احلام","أنثى","2002-06-06","مغنية","3أ ف01","ثالثة","آداب وفلسفة",1,132,"D2",null,null,"قرية المصامدة مغنية ","إلى يومنا هذا ",null,null,null,null,null,"الشيخ احلام"]
[132,1199810000000000,"بسويعة","إيمان","أنثى","1998-09-19","مغنية","3أ ف01","ثالثة","آداب وفلسفة",1,133,"D1",null,null,"قرية دوار المرازقة ","إلى يومنا هذا ",null,null,null,null,null,"بسويعة إيمان"]
[133,1099910000000000,"بلعمري","بلال","ذكر","1999-08-09","تلمسان","3أ ف01","ثالثة","آداب وفلسفة",1,134,"D1",null,null,"اولاد قدور الكبار ","إلى يومنا هذا ",null,null,null,null,null,"بلعمري بلال"]
[134,1100030000000000,"بلمختار","خيرة","أنثى","2000-12-06","بوقيراط","3أ ف01","ثالثة","آداب وفلسفة",1,135,"D2",null,null,"قرية بوسدرة البخاتة  مغنية ","إلى يومنا هذا ",null,null,null,null,null,"بلمختار خيرة"]
[135,1100110000000000,"بن عبد الله","منال","أنثى","2001-11-23","مغنية","3أ ف01","ثالثة","آداب وفلسفة",1,136,"D1",null,null,"قرية اولاد الشارف مغنية ","إلى يومنا هذا ",null,null,null,null,null,"بن عبد الله منال"]
[136,1000110000000000,"بن هدي","جمال الدين","ذكر","2001-05-16","مغنية","3أ ف01","ثالثة","آداب وفلسفة",1,137,"E2",null,null,"تافنة مغنية ","إلى يومنا هذا ",null,null,null,null,null,"بن هدي جمال الدين"]
[137,1100110000000000,"بوجمعة","زواوية","أنثى","2001-02-13","مغنية","3أ ف01","ثالثة","آداب وفلسفة",1,138,"E1",null,null,"قرية المصامدة ","إلى يومنا هذا ",null,null,null,null,null,"بوجمعة زواوية"]
[138,1100010000000000,"بوحسون","حياة","أنثى","2000-07-21","مغنية","3أ ف01","ثالثة","آداب وفلسفة",1,139,"E2",null,null,"قرية البخاتة مغنية ","إلى يومنا هذا ",null,null,null,null,null,"بوحسون حياة"]
[139,1100210000000000,"تادلي","سناء","أنثى","2002-02-23","مغنية","3أ ف01","ثالثة","آداب وفلسفة",1,140,"E1",null,null,"أولاد الشارف مغنية ","إلى يومنا هذا ",null,null,null,null,null,"تادلي سناء"]
[140,1100110000000000,"جزيري","جهان أسماء","أنثى","2001-04-22","مغنية","3أ ف01","ثالثة","آداب وفلسفة",1,141,"E1",null,null,"قرية العقيد لطفي مغنية ","إلى يومنا هذا ",null,null,null,null,null,"جزيري جهان أسماء"]
[141,1000010000000000,"جزيري","وليد","ذكر","2000-09-20","مغنية","3أ ف01","ثالثة","آداب وفلسفة",1,142,"D1",null,null,"مزعة شرقاوي العيد ","إلى يومنا هذا ",null,null,null,null,null,"جزيري وليد"]
[142,1100310000000000,"جغدي","فاطمة الزهراء","أنثى","2003-04-08","مغنية","3أ ف01","ثالثة","آداب وفلسفة",1,143,"D2",null,null,"قرية البخاتة مغنية ","إلى يومنا هذا ",null,null,null,null,null,"جغدي فاطمة الزهراء"]
[143,1100210000000000,"جملي","آسية خولة","أنثى","2002-09-01","مغنية","3أ ف01","ثالثة","آداب وفلسفة",1,144,"D2",null,null,"قرية البخاتة مغنية ","إلى يومنا هذا ",null,null,null,null,null,"جملي آسية خولة"]
[144,1000210000000000,"حواسة","يوسف","ذكر","2002-01-27","مغنية","3أ ف01","ثالثة","آداب وفلسفة",1,145,"D1",null,null,"ص ب 523 مغنية ","إلى يومنا هذا ",null,null,null,null,null,"حواسة يوسف"]
[145,1100010000000000,"خيري","فاطمة الزهراء","أنثى","2000-01-20","مغنية","3أ ف01","ثالثة","آداب وفلسفة",1,146,"D2",null,null,"قرية المصامدة مغنية ","إلى يومنا هذا ",null,null,null,null,null,"خيري فاطمة الزهراء"]
[146,1100210000000000,"دحماني","دنيا","أنثى","2002-09-29","ندرومة","3أ ف01","ثالثة","آداب وفلسفة",1,147,"E1",null,null,"شارع تندوف قرية البخاتة مغنية ","إلى يومنا هذا ",null,null,null,null,null,"دحماني دنيا"]
[147,1000110000000000,"دراوي","زكرياء","ذكر","2001-02-05","مغنية","3أ ف01","ثالثة","آداب وفلسفة",1,148,"E1",null,null,"قرية المصامدة ","إلى يومنا هذا ",null,null,null,null,null,"دراوي زكرياء"]
[148,1000210000000000,"دفو","عبد الجليل","ذكر","2002-06-16","مغنية","3أ ف01","ثالثة","آداب وفلسفة",1,149,"E1",null,null,"وادي العباس مغنية ","إلى يومنا هذا ",null,null,null,null,null,"دفو عبد الجليل"]
[149,1100210000000000,"راس الواد","زينب","أنثى","2002-06-02","مغنية","3أ ف01","ثالثة","آداب وفلسفة",1,150,"D1",null,null,"- مغنية - 73 شارع العربي التبسي ","إلى يومنا هذا ",null,null,null,null,null,"راس الواد زينب"]
[150,1100210000000000,"زروالي","يامنة","أنثى","2002-06-10","مغنية","3أ ف01","ثالثة","آداب وفلسفة",1,151,"D1",null,null,"مزرعة جابر مغنية ","إلى يومنا هذا ",null,null,null,null,null,"زروالي يامنة"]
[151,1100210000000000,"سلهامي","فاطمة الزهراء","أنثى","2002-10-05","مغنية","3أ ف01","ثالثة","آداب وفلسفة",1,152,"D2",null,null,"قرية البخاتة مغنية ","إلى يومنا هذا ",null,null,null,null,null,"سلهامي فاطمة الزهراء"]
[152,1100210000000000,"شارف","نور الهدى","أنثى","2002-12-30","مغنية","3أ ف01","ثالثة","آداب وفلسفة",1,153,"D1",null,null,"قرية المصادة ","إلى يومنا هذا ",null,null,null,null,null,"شارف نور الهدى"]
[153,1100010000000000,"عاون","نسرين ليلى","أنثى","2000-10-21","مغنية","3أ ف02","ثالثة","آداب وفلسفة",1,154,"D1",null,null,"قرية البطيم ","إلى يومنا هذا ",null,null,null,null,null,"عاون نسرين ليلى"]
[154,1199910000000000,"عبد المالك","نور الهدى","أنثى","1999-12-29","تلمسان","3أ ف02","ثالثة","آداب وفلسفة",1,155,"D2",null,null,"أولاد الشارف مغنية ","إلى يومنا هذا ",null,null,null,null,null,"عبد المالك نور الهدى"]
[155,1099810000000000,"عبدالمالك","واسيني","ذكر","1998-05-09","مغنية","3أ ف02","ثالثة","آداب وفلسفة",1,156,"D1",null,null,"رقم 03 طريق محطة القطار ","إلى يومنا هذا ",null,null,null,null,null,"عبدالمالك واسيني"]
[156,1000210000000000,"عيساني","إبراهيم","ذكر","2002-06-04","مغنية","3أ ف02","ثالثة","آداب وفلسفة",1,157,"E2",null,null,"قرية البخاتة ","إلى يومنا هذا ",null,null,null,null,null,"عيساني إبراهيم"]
[157,1000010000000000,"غريب","يونس","ذكر","2000-04-10","مغنية","3أ ف02","ثالثة","آداب وفلسفة",1,158,"E1",null,null,"قرية البخاتة مغنية ","إلى يومنا هذا ",null,null,null,null,null,"غريب يونس"]
[158,1000110000000000,"قيطوني","عبد الحق","ذكر","2001-10-16","مغنية","3أ ف02","ثالثة","آداب وفلسفة",1,159,"E2",null,null,"قرية البخاتة مغنية ","إلى يومنا هذا ",null,null,null,null,"MAGHNIA","قيطوني عبد الحق"]
[159,1099910000000000,"كرومي","رانيا","أنثى","1999-06-05","مغنية","3أ ف02","ثالثة","آداب وفلسفة",1,160,"E1",null,null,"قرية العقيد لطفي مغنية ","إلى يومنا هذا ",null,null,null,null,null,"كرومي رانيا"]
[160,1100010000000000,"لامي","فاطمة","أنثى","2000-05-03","مغنية","3أ ف02","ثالثة","آداب وفلسفة",1,161,"E1",null,null,"قرية البطيم  ","إلى يومنا هذا ",null,null,null,null,null,"لامي فاطمة"]
[161,1199910000000000,"مقدم","جميلة","أنثى","1999-07-15","مغنية","3أ ف02","ثالثة","آداب وفلسفة",1,162,"E1",null,null,"قرية البخاتة ","إلى يومنا هذا ",null,null,null,null,null,"مقدم جميلة"]
[162,1000210000000000,"مهديد","خليل بشير","ذكر","2002-06-28","مغنية","3أ ف02","ثالثة","آداب وفلسفة",1,163,"D1",null,null,"54 شارع المحطة- حي بلال ","إلى يومنا هذا ",null,null,null,null,null,"مهديد خليل بشير"]
[163,1100110000000000,"البهلول","سناء","أنثى","2001-09-20","مغنية","3أ ف02","ثالثة","آداب وفلسفة",1,164,"D1",null,null,"قرية العقيد عباس  أولاد قدور الكبارمغنية ","إلى يومنا هذا ",null,null,null,null,null,"البهلول سناء"]
[164,1199810000000000,"بن يعقوب","شيماء","أنثى","1998-12-28","مغنية","3أ ف02","ثالثة","آداب وفلسفة",1,165,"D2",null,null,"قرية عقيد لطفي مغنية ","إلى يومنا هذا ",null,null,null,null,null,"بن يعقوب شيماء"]
[165,1100010000000000,"بوعزة","صابرينة","أنثى","2000-03-08","مغنية","3أ ف02","ثالثة","آداب وفلسفة",1,166,"D1",null,null,"حي الشهداء مغنية ","إلى يومنا هذا ",null,null,null,null,null,"بوعزة صابرينة"]
[166,1000210000000000,"تيسوراسي","عبد الله","ذكر","2002-07-02","مغنية","3أ ف02","ثالثة","آداب وفلسفة",1,167,"D1",null,null,"حي بلال ","إلى يومنا هذا ",null,null,null,null,null,"تيسوراسي عبد الله"]
[167,1100110000000000,"ديب","آمنة","أنثى","2001-08-08","مغنية","3أ ف02","ثالثة","آداب وفلسفة",1,168,"D2",null,null,"قرية المصامدة مغنية ","إلى يومنا هذا ",null,null,null,null,null,"ديب آمنة"]
[168,1100010000000000,"زناقي","إسمهان","أنثى","2000-07-10","مغنية","3أ ف02","ثالثة","آداب وفلسفة",1,169,"D1",null,null,"حي بن عيسى رقم3 / حي المحطة مغنية ","إلى يومنا هذا ",null,null,null,null,null,"زناقي إسمهان"]
[169,1100110000000000,"مرغاد","شيماء رابحة","أنثى","2001-01-21","مغنية","3أ ف02","ثالثة","آداب وفلسفة",1,170,"E2",null,null,"اولاد الشارف مغنية ","إلى يومنا هذا ",null,null,null,null,null,"مرغاد شيماء رابحة"]
[170,1199910000000000,"مزيان","سمية","أنثى","1999-09-25","مغنية","3أ ف02","ثالثة","آداب وفلسفة",1,172,"E1",null,null,"حي الشهداء مغنية ","إلى يومنا هذا ",null,null,null,null,null,"مزيان سمية"]
[171,1000210000000000,"مليوي","عبد العزيز","ذكر","2002-02-13","مغنية","3أ ف02","ثالثة","آداب وفلسفة",1,173,"E2",null,null,"أولاد الشارف مغنية ","إلى يومنا هذا ",null,null,null,null,null,"مليوي عبد العزيز"]
[172,1000010000000000,"يبدري","بلخير","ذكر","2000-08-28","مغنية","3أ ف02","ثالثة","آداب وفلسفة",1,174,"E1",null,null,"حي الشهداء مغنية ","إلى يومنا هذا ",null,null,null,null,null,"يبدري بلخير"]
[173,1100210000000000,"أورابح","منال","أنثى","2002-03-16","مغنية","3لغات أ01","ثالثة","لغات أجنبية",1,175,"E1",null,null,"تعاونية الحواسرقم 28 حي الشهداء مغنية ","إلى يومنا هذا ",null,null,null,null,null,"أورابح منال"]
[174,1100010000000000,"امحمدي","فاطنة","أنثى","2000-01-26","مغنية","3لغات أ01","ثالثة","لغات أجنبية",1,177,"D1",null,null,"روبان مغنية ","إلى يومنا هذا ",null,null,null,null,null,"امحمدي فاطنة"]
[175,1000210000000000,"برياح","أحمد","ذكر","2002-11-18","مغنية","3لغات أ01","ثالثة","لغات أجنبية",1,178,"D2",null,null,"قرية العقيد عباس ","إلى يومنا هذا ",null,null,null,null,null,"برياح أحمد"]
[176,1000010000000000,"بن شقرة","عمرو","ذكر","2000-03-26","مغنية","3لغات أ01","ثالثة","لغات أجنبية",1,179,"D2",null,null,"ص.ب551 عزوني مغنية ","إلى يومنا هذا ",null,null,null,null,null,"بن شقرة عمرو"]
[177,1100210000000000,"بورجي","فاطمة","أنثى","2002-07-28","مغنية","3لغات أ01","ثالثة","لغات أجنبية",1,180,"D1",null,null,"حمام بوغرارة تلمسان ","إلى يومنا هذا ",null,null,null,null,null,"بورجي فاطمة"]
[178,1000110000000000,"حجيوي","عماد الدين","ذكر","2001-08-01","مغنية","3لغات أ01","ثالثة","لغات أجنبية",1,181,"D2",null,null," قرية اولاد قدور الكبار ","إلى يومنا هذا ",null,null,null,null,null,"حجيوي عماد الدين"]
[179,1100210000000000,"رحو","إيمان","أنثى","2002-07-06","الحراش","3لغات أ01","ثالثة","لغات أجنبية",1,182,"E1",null,null,"اولاد الشارف مغنية ","إلى يومنا هذا ",null,null,null,null,null,"رحو إيمان"]
[180,1100210000000000,"شارف","مريم","أنثى","2002-09-26","مغنية","3لغات أ01","ثالثة","لغات أجنبية",1,183,"E1",null,null,"قرية المصامدة ","إلى يومنا هذا ",null,null,null,null,null,"شارف مريم"]
[181,1100110000000000,"طوالة","سهيلة","أنثى","2001-02-02","مغنية","3لغات أ01","ثالثة","لغات أجنبية",1,184,"E1",null,null,"ثانوية الخوارزمي حي الشهداء مغنية ","إلى يومنا هذا ",null,null,null,null,null,"طوالة سهيلة"]
[182,1100110000000000,"عثمان شريف","عمارة","أنثى","2001-12-18","مغنية","3لغات أ01","ثالثة","لغات أجنبية",1,185,"D1",null,null,"قرية البخاتة ","إلى يومنا هذا ",null,null,null,null,null,"عثمان شريف عمارة"]
[183,1100110000000000,"كروم","فريال أمال","أنثى","2001-10-10","مغنية","3لغات أ01","ثالثة","لغات أجنبية",1,186,"D1",null,null,"حي الشهداء الدرب رقم 04  المنزل 03 ","إلى يومنا هذا ",null,null,null,null,null,"كروم فريال أمال"]
[184,1100210000000000,"لكحل","ميمونة","أنثى","2002-05-17","مغنية","3لغات أ01","ثالثة","لغات أجنبية",1,187,"D2",null,null,"حي ياسوال قويدر رقم 130 زرالدة ","إلى يومنا هذا ",null,null,null,null,null,"لكحل ميمونة"]
[185,1100210000000000,"مقداد","مريم","أنثى","2002-10-30","مغنية","3لغات أ01","ثالثة","لغات أجنبية",1,188,"D1",null,null,"حي داري الواسيني   مغنية ","إلى يومنا هذا ",null,null,null,null,null,"مقداد مريم"]
[186,1100210000000000,"مقدم","آمنة","أنثى","2002-02-11","مغنية","3لغات أ01","ثالثة","لغات أجنبية",1,189,"D1",null,null,"قرية العقيد لطفي  ","إلى يومنا هذا ",null,null,null,null,null,"مقدم آمنة"]
[187,1100010000000000,"مقدم","خلود","أنثى","2000-10-18","تلمسان","3لغات أ01","ثالثة","لغات أجنبية",1,190,"D2",null,null,"قرية العقيد عباس مغنية ","إلى يومنا هذا ",null,null,null,null,null,"مقدم خلود"]
[188,1100210000000000,"ميري","دلال","أنثى","2002-01-13","مغنية","3لغات أ01","ثالثة","لغات أجنبية",1,191,"D1",null,null,"قرية المصامدة مغنية ","إلى يومنا هذا ",null,null,null,null,null,"ميري دلال"]
[189,1100210000000000,"ميلود","أسماء","أنثى","2002-08-22","مغنية","3لغات أ01","ثالثة","لغات أجنبية",1,192,"E2",null,null,"قرية المصادة ","إلى يومنا هذا ",null,null,null,null,null,"ميلود أسماء"]
[190,1100210000000000,"هاشمي","مريم","أنثى","2002-09-02","مغنية","3لغات أ01","ثالثة","لغات أجنبية",1,193,"E1",null,null,"قرية اولاد قدور الكبار مغنية ","إلى يومنا هذا ",null,null,null,null,null,"هاشمي مريم"]
[191,1199910000000000,"هواري","رانيا","أنثى","1999-06-22","مغنية","3لغات أ01","ثالثة","لغات أجنبية",1,194,"D1",null,null,"البطيم مغنية ","إلى يومنا هذا ",null,null,null,null,null,"هواري رانيا"]
[192,1000010000000000,"العابد","سيدي محمد","ذكر","2000-05-13","مغنية","3لغات أ01","ثالثة","لغات أجنبية",1,195,"D1",null,null,"حي الركيزة حمام بوغرارة تلمسان ","إلى يومنا هذا ",null,null,null,null,null,"العابد سيدي محمد"]
[193,1199910000000000,"حواسة","هبة","أنثى","1999-08-25","مغنية","3لغات أ01","ثالثة","لغات أجنبية",1,196,"D2",null,null,"حي الركيزة حمام بوغرارة تلمسان ","إلى يومنا هذا ",null,null,null,null,null,{"$f":"C194 & \" \" & D194","v":"حواسة هبة"}]
[194,1100010000000000,"زواري","أنيسة","أنثى","2000-07-10","مغنية","3لغات أ01","ثالثة","لغات أجنبية",1,197,"D1",null,null,"حمام بوغرارة تلمسان ","إلى يومنا هذا ",null,null,null,null,null,"زواري أنيسة"]
[195,1199910000000000,"زيتوني","رحيمة","أنثى","1999-10-30","مغنية","3لغات أ01","ثالثة","لغات أجنبية",1,198,"E2",null,null,"درب 24 منزل 04 حي المقراني ","إلى يومنا هذا ",null,null,null,null,null,"زيتوني رحيمة"]
[196,1000210000000000,"عبد المالك","حسام الدين أحمد","ذكر","2002-06-06","مغنية","3لغات أ01","ثالثة","لغات أجنبية",1,199,"E1",null,null,"حي بلال مغنية ","إلى يومنا هذا ",null,null,null,null,null,"عبد المالك حسام الدين أحمد"]
[197,1000310000000000,"العابد","نور الدين","ذكر","2003-03-20","مغنية","2ت ر/هم","ثانية","تقني رياضي",1,200,"E2",null,null,"حي الشهداء مغنية ","إلى يومنا هذا ",null,null,null,null,null,"العابد نور الدين"]
[198,1099950000000000,"بن سالم","عبد الله","ذكر","1999-11-13","مشرية","2ت ر/هم","ثانية","تقني رياضي",1,201,"E1",null,null,"حي الشهداء رقم22 مغنية ","إلى يومنا هذا ",null,null,null,null,null,"بن سالم عبد الله"]
[199,1000310000000000,"بن عابد","عبد الوهاب","ذكر","2003-08-15","مغنية","2ت ر/هم","ثانية","تقني رياضي",1,202,"E1",null,null,"حي بلال ","إلى يومنا هذا ",null,null,null,null,null,"بن عابد عبد الوهاب"]
[200,1100210000000000,"بوعجاجة","فاطنة","أنثى","2002-09-11","مغنية","2ت ر/هم","ثانية","تقني رياضي",1,203,"D1",null,null,"قرية اولاد الشارف مغنية ","إلى يومنا هذا ",null,null,null,null,null,"بوعجاجة فاطنة"]
[201,1000310000000000,"قوريري","سيد احمد","ذكر","2003-12-26","مغنية","2ت ر/هم","ثانية","تقني رياضي",1,204,"D2",null,null,"قرية البطيم مغنية ","إلى يومنا هذا ",null,null,null,null,null,"قوريري سيد احمد"]
[202,1000310000000000,"منور","حمزة","ذكر","2003-09-13","مغنية","2ت ر/هم","ثانية","تقني رياضي",1,205,"D2",null,null,"قرية العقيد لطفي مغنية ","إلى يومنا هذا ",null,null,null,null,null,"منور حمزة"]
[203,1100310000000000,"موساوي","احلام","أنثى","2003-01-01","مغنية","2ت ر/هم","ثانية","تقني رياضي",1,206,"D1",null,null,"أولاد الشارف مغنية ","إلى يومنا هذا ",null,null,null,null,null,"موساوي احلام"]
[204,1000410000000000,"هواري","عبد المغيث","ذكر","2004-03-16","مغنية","2ت ر/هم","ثانية","تقني رياضي",1,207,"D2",null,null,"قرية المرازقة المصامدة ","إلى يومنا هذا ",null,null,null,null,null,"هواري عبد المغيث"]
[205,1100310000000000,"بوزي","عبير","أنثى","2003-11-27","مغنية","2ت ر/هم","ثانية","تقني رياضي",1,208,"E1",null,null,"قرية العقيد لطفي مغنية ","إلى يومنا هذا ",null,null,null,null,null,"بوزي عبير"]
[206,1100310000000000,"دلهم","خديجة صفاء","أنثى","2003-02-16","مغنية","2ت ر/هم","ثانية","تقني رياضي",1,209,"E1",null,null,"قرية العقيد لطفي مغنية  ","إلى يومنا هذا ",null,null,null,null,null,"دلهم خديجة صفاء"]
[207,1000100000000000,"سالم","شمس الدين","ذكر","2001-10-05","الصبحة","2ت ر/هم","ثانية","تقني رياضي",1,210,"E1",null,null,"قرية العقيد عباس مغنية ","إلى يومنا هذا ",null,null,null,null,null,"سالم شمس الدين"]
[208,1100310000000000,"غرفاتي","سلاف","أنثى","2003-04-23","مغنية","2ت ر/هم","ثانية","تقني رياضي",1,211,"D1",null,null,"قرية المصامدة مغنية ","إلى يومنا هذا ",null,null,null,null,null,"غرفاتي سلاف"]
[209,1000210000000000,"الحامدي","محمد أمين","ذكر","2002-11-26","مغنية","2ت ر/هك","ثانية","تقني رياضي",1,212,"D1",null,null,"عمارة 01 رقم 05 اقامة النور مغنية ","إلى يومنا هذا ",null,null,null,null,null,"الحامدي محمد أمين"]
[210,1100310000000000,"بن يوبي","مغنية امينة","أنثى","2003-05-27","مغنية","2ت ر/هك","ثانية","تقني رياضي",1,213,"D2",null,null,"شارع 10 منزل 19 حي المقراني ","إلى يومنا هذا ",null,null,null,null,null,"بن يوبي مغنية امينة"]
[211,1100310000000000,"بوبكر","يسرى","أنثى","2003-03-30","مغنية","2ت ر/هك","ثانية","تقني رياضي",1,214,"D1",null,null,"حي العربي تبسي مغنية ","إلى يومنا هذا ",null,null,null,null,null,"بوبكر يسرى"]
[212,1100310000000000,"بوزيان","مريم","أنثى","2003-02-11","مغنية","2ت ر/هك","ثانية","تقني رياضي",1,215,"D1",null,null,"حي الشهداء مغنية ","إلى يومنا هذا ",null,null,null,null,null,"بوزيان مريم"]
[213,1000410000000000,"دردار","ندير","ذكر","2004-02-06","مغنية","2ت ر/هك","ثانية","تقني رياضي",1,216,"D2",null,null,"دوار شرقاوي العيد64شارع ابن رشد مغنية ","إلى يومنا هذا ",null,null,null,null,null,"دردار ندير"]
[214,1100410000000000,"مزاري","ربيعة","أنثى","2004-03-27","مغنية","2ت ر/هك","ثانية","تقني رياضي",1,217,"D1",null,null,"قرية اولاد الشارف مغنية ","إلى يومنا هذا ",null,null,null,null,null,"مزاري ربيعة"]
[215,1000310000000000,"زرعي","سعيد","ذكر","2003-06-01","مغنية","2ت ر/هك","ثانية","تقني رياضي",1,218,"E2",null,null,"مزرعة شعبان حمدون مغنية ","إلى يومنا هذا ",null,null,null,null,null,"زرعي سعيد"]
[216,1000210000000000,"قنشي","علاء الدين","ذكر","2002-12-25","مغنية","2ت ر/هك","ثانية","تقني رياضي",1,219,"E1",null,null,"قرية البخاتة مغنية ","إلى يومنا هذا ",null,null,null,null,null,"قنشي علاء الدين"]
[217,1000110000000000,"لعراجي","محمد الامين","ذكر","2001-11-23","مغنية","2ت ر/هك","ثانية","تقني رياضي",1,220,"E2",null,null,"قرية البطيم مغنية ","إلى يومنا هذا ",null,null,null,null,null,"لعراجي محمد الامين"]
[218,1100310000000000,"أمبارك","سارة","أنثى","2003-06-01","مغنية","2ت إ01","ثانية","تسيير واقتصاد",1,221,"E1",null,null,"قرية البخاتة مغنية ","إلى يومنا هذا ",null,null,null,null,null,"أمبارك سارة"]
[219,1000310000000000,"بلعباس","رفيق","ذكر","2003-06-12","مغنية","2ت إ01","ثانية","تسيير واقتصاد",1,222,"E1",null,null,"حي بلال مغنية ","إلى يومنا هذا ",null,null,null,null,null,"بلعباس رفيق"]
[220,1100310000000000,"بلميمون","أمينة","أنثى","2003-12-28","مغنية","2ت إ01","ثانية","تسيير واقتصاد",1,223,"D1",null,null,"حي الشهداء ","إلى يومنا هذا ",null,null,null,null,null,"بلميمون أمينة"]
[221,1100310000000000,"بلميمون","نبية","أنثى","2003-04-21","مغنية","2ت إ01","ثانية","تسيير واقتصاد",1,224,"D2",null,null,"عمارة 25 حمام بوغرارة ","إلى يومنا هذا ",null,null,null,null,null,"بلميمون نبية"]
[222,1100110000000000,"بن زاير","اميمة","أنثى","2001-07-18","مغنية","2ت إ01","ثانية","تسيير واقتصاد",1,225,"D2",null,null,"قرية البطيم مغنية ","إلى يومنا هذا ",null,null,null,null,null,"بن زاير اميمة"]
[223,1100310000000000,"بن قرين","اسماء","أنثى","2003-04-03","مغنية","2ت إ01","ثانية","تسيير واقتصاد",1,226,"D1",null,null,"أولاد الشارف مغنية ","إلى يومنا هذا ",null,null,null,null,null,"بن قرين اسماء"]
[224,1000210000000000,"بورديم","إلياس","ذكر","2002-03-10","مغنية","2ت إ02","ثانية","تسيير واقتصاد",1,227,"D2",null,null,"أولاد الشارف مغنية ","إلى يومنا هذا ",null,null,null,null,null,"بورديم إلياس"]
[225,1100310000000000,"جرارفاوي","سارة","أنثى","2003-10-05","مغنية","2ت إ02","ثانية","تسيير واقتصاد",1,228,"E1",null,null,"شارع 03 رقم المنزل 27 حي الشهداء ","إلى يومنا هذا ",null,null,null,null,null,"جرارفاوي سارة"]
[226,1000310000000000,"دخيسي","بلال","ذكر","2003-07-03","مغنية","2ت إ02","ثانية","تسيير واقتصاد",1,229,"E1",null,null,"قرية المصادة ","إلى يومنا هذا ",null,null,null,null,null,"دخيسي بلال"]
[227,1000210000000000,"دخيسي","سيدي محمد","ذكر","2002-06-06","مغنية","2ت إ02","ثانية","تسيير واقتصاد",1,230,"E1",null,null,"حي الحمري مغنية ","إلى يومنا هذا ",null,null,null,null,null,"دخيسي سيدي محمد"]
[228,1100310000000000,"زياني الأول","ابتسام","أنثى","2003-07-19","مغنية","2ت إ02","ثانية","تسيير واقتصاد",1,231,"D1",null,null,"قرية البطيم ","إلى يومنا هذا ",null,null,null,null,null,"زياني الأول ابتسام"]
[229,1100310000000000,"زياني الأول","مريم","أنثى","2003-04-08","مغنية","2ت إ02","ثانية","تسيير واقتصاد",1,232,"D1",null,null,"قرية البخاتة مغنية ","إلى يومنا هذا ",null,null,null,null,null,"زياني الأول مريم"]
[230,1000040000000000,"سكاك","حاج عبد الله","ذكر","2000-12-20","خميس مليانة","2ت إ02","ثانية","تسيير واقتصاد",1,233,"D2",null,null,"قرية اولاد الشارف مغنية ","إلى يومنا هذا ",null,null,null,null,null,"سكاك حاج عبد الله"]
[231,1000310000000000,"سلومي","عماد الدين","ذكر","2003-06-30","مغنية","2ت إ02","ثانية","تسيير واقتصاد",1,234,"D1",null,null,"اولاد الشارف ","إلى يومنا هذا ",null,null,null,null,null,"سلومي عماد الدين"]
[232,1100310000000000,"عمراني","زواوية عتاوية","أنثى","2003-07-08","مغنية","2ت إ02","ثانية","تسيير واقتصاد",1,235,"D1",null,null,"قرية العقيد لطفي مغنية ","إلى يومنا هذا ",null,null,null,null,null,"عمراني زواوية عتاوية"]
[233,1100310000000000,"عمراوي","مواهب","أنثى","2003-10-21","مغنية","2ت إ02","ثانية","تسيير واقتصاد",1,236,"D2",null,null,"قرية العقيد لطفي مغنية ","إلى يومنا هذا ",null,null,null,null,null,"عمراوي مواهب"]
[234,1100310000000000,"غربي","خديجة","أنثى","2003-09-28","مغنية","2ت إ02","ثانية","تسيير واقتصاد",1,237,"D1",null,null,"مزرعة سيب الطيب مغنية ","إلى يومنا هذا ",null,null,null,null,null,"غربي خديجة"]
[235,1000010000000000,"قطي","محمد","ذكر","2000-04-18","مغنية","2ت إ02","ثانية","تسيير واقتصاد",1,238,"E2",null,null,"قرية البطيم مغنية ","إلى يومنا هذا ",null,null,null,null,null,"قطي محمد"]
[236,1000310000000000,"قوري","الهواري","ذكر","2003-05-29","مغنية","2ت إ02","ثانية","تسيير واقتصاد",1,239,"E1",null,null,"قرية الكفاف مغنية ","إلى يومنا هذا ",null,null,null,null,null,"قوري الهواري"]
[237,1100210000000000,"كوليلي","مريم نور الهدى","أنثى","2002-11-29","مغنية","2ت إ02","ثانية","تسيير واقتصاد",1,240,"E2",null,null,"قرية اولاد الشارف شارع 10 رقم 61 مغنية ","إلى يومنا هذا ",null,null,null,null,null,"كوليلي مريم نور الهدى"]
[238,1100410000000000,"مزاري","أميرة","أنثى","2004-02-22","مغنية","2ت إ02","ثانية","تسيير واقتصاد",1,241,"E1",null,null,"قرية البطيم مغنية ","إلى يومنا هذا ",null,null,null,null,null,"مزاري أميرة"]
[239,1000310000000000,"بختي","ريان","ذكر","2003-06-28","مغنية","2ت إ02","ثانية","تسيير واقتصاد",1,242,"E1",null,null,"قرية العقيد عباس مغنية ","إلى يومنا هذا ",null,null,null,null,null,"بختي ريان"]
[240,1000310000000000,"بن سالم","سيدي محمد","ذكر","2003-07-13","مغنية","2ت إ02","ثانية","تسيير واقتصاد",1,243,"D1",null,null,"قرية العقيد عباس مغنية ","إلى يومنا هذا ",null,null,null,null,null,"بن سالم سيدي محمد"]
[241,1000210000000000,"بوسكين","رابح محمد","ذكر","2002-08-04","مغنية","2ت إ02","ثانية","تسيير واقتصاد",1,244,"D2",null,null,"قرية اولاد الشارف مغنية ","إلى يومنا هذا ",null,null,null,null,null,"بوسكين رابح محمد"]
[242,1000210000000000,"جزيري","ابراهيم","ذكر","2002-11-16","مغنية","2رياضي01","ثانية","تسيير واقتصاد",1,245,"D2",null,null,"قرية البخاتة مغنية ","إلى يومنا هذا ",null,null,null,null,null,"جزيري ابراهيم"]
[243,1000310000000000,"صدار","عبد العزيز","ذكر","2003-02-02","مغنية","2رياضي01","ثانية","تسيير واقتصاد",1,246,"D1",null,null,"حي بلال محطة القطار مغنية ","إلى يومنا هذا ",null,null,null,null,null,"صدار عبد العزيز"]
[244,1000210000000000,"عبوين","أيمن","ذكر","2002-01-23","مغنية","2رياضي01","ثانية","تسيير واقتصاد",1,247,"D2",null,null,"حي الشهداء مغنية ","إلى يومنا هذا ",null,null,null,null,null,"عبوين أيمن"]
[245,1100310000000000,"بلهادي","نور الهدى","أنثى","2003-11-12","مغنية","2رياضي01","ثانية","علوم تجريبية",1,248,"E1",null,null,"حي الشهداء رقم المنزل 02 مغنية ","إلى يومنا هذا ",null,null,null,null,null,"بلهادي نور الهدى"]
[246,1000310000000000,"بن براهيم","زكرياء","ذكر","2003-06-01","الشبلي","2رياضي01","ثانية","علوم تجريبية",1,249,"E1",null,null,"حي الغابات - مغنية  ","إلى يومنا هذا ",null,null,null,null,null,"بن براهيم زكرياء"]
[247,1000310000000000,"بن عبد الرحمن","سيد أحمد","ذكر","2003-04-25","مغنية","2رياضي01","ثانية","علوم تجريبية",1,250,"E1",null,null,"نهج 2 رقم 12 حي الشهداء مغنية ","إلى يومنا هذا ",null,null,null,null,null,"بن عبد الرحمن سيد أحمد"]
[248,1100310000000000,"بورديم","آية","أنثى","2003-10-30","مغنية","2رياضي01","ثانية","علوم تجريبية",1,251,"D1",null,null,"أولاد موسى بني بوسعيد ","2019-04-07",null,null,null,null,null,"بورديم آية"]
[249,1100210000000000,"بوعربي","هديل وصال","أنثى","2002-07-02","مغنية","2رياضي01","ثانية","علوم تجريبية",1,252,"D1",null,null,"درب 29 منزل 22 حي الأمير عبد القادر ","إلى يومنا هذا ",null,null,null,null,null,"بوعربي هديل وصال"]
[250,1100110000000000,"بومدين","أمال","أنثى","2001-08-22","مغنية","2رياضي01","ثانية","علوم تجريبية",1,253,"D2",null,null,"رقم 2 عمارة 5 حي 106 مسكن الشبلي ","إلى يومنا هذا ",null,null,null,null,null,"بومدين أمال"]
[251,1000210000000000,"تاجوري","سيدي محمد","ذكر","2002-09-19","مغنية","2رياضي01","ثانية","علوم تجريبية",1,254,"D1",null,null,"قرية البطيم مغنية ","إلى يومنا هذا ",null,null,null,null,null,"تاجوري سيدي محمد"]
[252,1100310000000000,"تليسي","هناء","أنثى","2003-11-17","مغنية","2رياضي01","ثانية","علوم تجريبية",1,255,"D1",null,null,"قرية البطيم مغنية ","إلى يومنا هذا ",null,null,null,null,null,"تليسي هناء"]
[253,1100310000000000,"دخيسي","وصال","أنثى","2003-07-05","مغنية","2رياضي01","ثانية","علوم تجريبية",1,256,"D2",null,null,"قربة البطيم مغنية ","إلى يومنا هذا ",null,null,null,null,null,"دخيسي وصال"]
[254,1000010000000000,"ديب","اسماعيل اية الله","ذكر","2000-09-14","تلمسان","2ع ت01","ثانية","علوم تجريبية",1,257,"D1",null,null,"أولاد قدور مغنية ","إلى يومنا هذا ",null,null,null,null,null,"ديب اسماعيل اية الله"]
[255,1100310000000000,"راجعي","منال","أنثى","2003-11-27","مغنية","2ع ت01","ثانية","علوم تجريبية",1,258,"E2",null,null,"قرية البطيم مغنية ","إلى يومنا هذا ",null,null,null,null,null,"راجعي منال"]
[256,1100310000000000,"زحوط","ملاك","أنثى","2003-01-11","مغنية","2ع ت01","ثانية","علوم تجريبية",1,259,"E1",null,null,"قرية البطيم مغنية ","إلى يومنا هذا ",null,null,null,null,null,"زحوط ملاك"]
[257,1100010000000000,"زمور","أصالة","أنثى","2000-06-06","مغنية","2ع ت01","ثانية","علوم تجريبية",1,260,"E2",null,null,"أولاد الشارف ","إلى يومنا هذا ",null,null,null,null,null,{"$f":"C258 & \" \" & D258","v":"زمور أصالة"}]
[258,1000110000000000,"زيني","محمد الامين","ذكر","2001-12-02","مغنية","2ع ت02","ثانية","علوم تجريبية",1,261,"E1",null,null,"اولاد الشارف ","إلى يومنا هذا ",null,null,null,null,null,"زيني محمد الامين"]
[259,1100310000000000,"ساعد","حسناء","أنثى","2003-09-09","مغنية","2ع ت02","ثانية","علوم تجريبية",1,262,"E1",null,null,"أولاد الشارف ","إلى يومنا هذا ",null,null,null,null,null,"ساعد حسناء"]
[260,1100310000000000,"شارف","مروة","أنثى","2003-06-19","مغنية","2ع ت02","ثانية","علوم تجريبية",1,263,"E1",null,null,"قرية المرازقة ","إلى يومنا هذا ",null,null,null,null,null,"شارف مروة"]
[261,1100310000000000,"طرشون","إكرام","أنثى","2003-07-16","مغنية","2ع ت02","ثانية","علوم تجريبية",1,264,"D1",null,null,"حي الركيزة حمام بوغرارة تلمسان ","إلى يومنا هذا ",null,null,null,null,null,"طرشون إكرام"]
[262,1100310000000000,"عبد المالك","نجمة","أنثى","2003-04-29","مغنية","2ع ت02","ثانية","علوم تجريبية",1,265,"D1",null,null,"درب17 رقم15 حي المقراني مغنية ","إلى يومنا هذا ",null,null,null,null,null,"عبد المالك نجمة"]
[263,1100210000000000,"عمراوي","دنيا","أنثى","2002-04-28","مغنية","2ع ت02","ثانية","علوم تجريبية",1,266,"D2",null,null,"شارع 04 منزل 08 حي المقراني ","إلى يومنا هذا ",null,null,null,null,null,"عمراوي دنيا"]
[264,1100310000000000,"مجاطي","زينب","أنثى","2003-07-14","مغنية","2ع ت02","ثانية","علوم تجريبية",1,267,"D1",null,null,"قرية اولاد الشارف مغنية ","إلى يومنا هذا ",null,null,null,null,null,"مجاطي زينب"]
[265,1100310000000000,"مساعدي","مغنية","أنثى","2003-04-02","مغنية","2ع ت02","ثانية","علوم تجريبية",1,268,"D1",null,null,"قرية البطيم مغنية ","إلى يومنا هذا ",null,null,null,null,null,"مساعدي مغنية"]
[266,1000120000000000,"مكي","عبد المؤمن","ذكر","2001-11-20","أولاد ابراهيم","2ع ت02","ثانية","علوم تجريبية",1,269,"D2",null,null,"قرية البطيم مغنية ","إلى يومنا هذا ",null,null,null,null,null,"مكي عبد المؤمن"]
[267,1100210000000000,"ناير","مروة","أنثى","2002-11-22","مغنية","2ع ت02","ثانية","علوم تجريبية",1,270,"D1",null,null,"قرية العقيد لطفي  ","إلى يومنا هذا ",null,null,null,null,null,"ناير مروة"]
[268,1000210000000000,"نواوي","وائل","ذكر","2002-11-01","مغنية","2ع ت02","ثانية","علوم تجريبية",1,271,"E2",null,null,"قرية العقيد عباس مغنية ","إلى يومنا هذا ",null,null,null,null,null,"نواوي وائل"]
[269,1100310000000000,"أمريق","سميرة","أنثى","2003-03-06","مغنية","2ع ت02","ثانية","علوم تجريبية",1,272,"E1",null,null,"قرية البطيم مغنية ","إلى يومنا هذا ",null,null,null,null,null,"أمريق سميرة"]
[270,1100210000000000,"بن منصور","حليمة سارة","أنثى","2002-03-29","مغنية","2ع ت02","ثانية","علوم تجريبية",1,273,"E2",null,null,"حي 75 سكن بالول ","إلى يومنا هذا ",null,null,null,null,null,"بن منصور حليمة سارة"]
[271,1100350000000000,"بو الكرطوس","سلاف","أنثى","2003-11-16","عين تيموشنت","2ع ت02","ثانية","علوم تجريبية",1,274,"E1",null,null,"قرية البطيم ","إلى يومنا هذا ",null,null,null,null,null,"بو الكرطوس سلاف"]
[272,1000310000000000,"بوحفص","محمد ياسين","ذكر","2003-02-01","مغنية","2ع ت02","ثانية","علوم تجريبية",1,275,"E1",null,null,"قرية البطيم مغنية ","إلى يومنا هذا ",null,null,null,null,null,"بوحفص محمد ياسين"]
[273,1100310000000000,"بوحلواس","مريم","أنثى","2003-12-27","مغنية","2ع ت02","ثانية","علوم تجريبية",1,276,"D1",null,null,"شارع 15 منزل 01 حي العربي بن مهيدي ","إلى يومنا هذا ",null,null,null,null,null,"بوحلواس مريم"]
[274,1100310000000000,"دريسي","حفصة","أنثى","2003-03-24","مغنية","2ع ت02","ثانية","علوم تجريبية",1,277,"D2",null,null,"منزل 5 شارع 24 حي الشهداء مغنية ","إلى يومنا هذا ",null,null,null,null,null,"دريسي حفصة"]
[275,1000310000000000,"رجالة","علاء الدين","ذكر","2003-06-22","الغزوات","2ع ت02","ثانية","علوم تجريبية",1,278,"D2",null,null,"حي الشهداء مغنية ","إلى يومنا هذا ",null,null,null,null,null,"رجالة علاء الدين"]
[276,1000310000000000,"سحنون","ياسين","ذكر","2003-10-05","مغنية","2ع ت02","ثانية","علوم تجريبية",1,279,"D1",null,null,"شارع 07 منزل 07 حي الشهداء ","إلى يومنا هذا ",null,null,null,null,null,"سحنون ياسين"]
[277,1000310000000000,"شهبي","عبد البر ابو همام","ذكر","2003-10-22","مغنية","2ع ت02","ثانية","علوم تجريبية",1,280,"D2",null,null,"درب 01 رقم 08 حي بلال مغنية ","إلى يومنا هذا ",null,null,null,null,null,"شهبي عبد البر ابو همام"]
[278,1100410000000000,"طاهي","لينة جولينار","أنثى","2004-01-28","مغنية","2ع ت02","ثانية","علوم تجريبية",1,281,"E1",null,null,"شارع شعبان حمدون حي الشهداء مغنية ","إلى يومنا هذا ",null,null,null,null,null,"طاهي لينة جولينار"]
[279,1100310000000000,"عبد المالك","مريم","أنثى","2003-09-17","مغنية","2ع ت02","ثانية","علوم تجريبية",1,282,"E1",null,null,"الحي السكني لمنطقة الذرة- قرية اولاد الشارف - مغنية ","إلى يومنا هذا ",null,null,null,null,null,"عبد المالك مريم"]
[280,1100410000000000,"فدوحة","دنيا رانيا","أنثى","2004-01-11","مغنية","2ع ت02","ثانية","علوم تجريبية",1,283,"E1",null,null,"حي الشهداء مغنية ","إلى يومنا هذا ",null,null,null,null,null,"فدوحة دنيا رانيا"]
[281,1100310000000000,"قليلة","سهيلة","أنثى","2003-09-22","مغنية","2ع ت02","ثانية","علوم تجريبية",1,284,"D1",null,null,"حي الشهداء مغنية ","إلى يومنا هذا ",null,null,null,null,null,"قليلة سهيلة"]
[282,1100310000000000,"لحسايني","سناء","أنثى","2003-11-27","مغنية","2ع ت03","ثانية","علوم تجريبية",1,285,"D1",null,null,"حي بلال مغنية ","إلى يومنا هذا ",null,null,null,null,null,"لحسايني سناء"]
[283,1100310000000000,"واسطي","عبير","أنثى","2003-09-25","مغنية","2ع ت03","ثانية","علوم تجريبية",1,286,"D2",null,null,"قرية البخاتة مغنية ","إلى يومنا هذا ",null,null,null,null,null,"واسطي عبير"]
[284,1000310000000000,"أوشريف","محمد نوفل","ذكر","2003-03-16","مغنية","2ع ت03","ثانية","علوم تجريبية",2,287,"D1",null,null,"تعاونية الحواس الشهداء مغنية ","إلى يومنا هذا ",null,null,null,null,null,"أوشريف محمد نوفل"]
[285,1000410000000000,"اوراغي","علاء الدين","ذكر","2004-01-01","مغنية","2ع ت03","ثانية","علوم تجريبية",2,288,"D1",null,null,"رقم 28 حي الشهداء مغنية ","إلى يومنا هذا ",null,null,null,null,null,"اوراغي علاء الدين"]
[286,1100410000000000,"بلعباسي","شهناز","أنثى","2004-01-29","مغنية","2ع ت03","ثانية","علوم تجريبية",2,289,"D2",null,null,"حي الشهداء مغنية ","إلى يومنا هذا ",null,null,null,null,null,"بلعباسي شهناز"]
[287,1100310000000000,"بن ديدة","أسماء","أنثى","2003-01-06","مغنية","2ع ت03","ثانية","علوم تجريبية",2,290,"D1",null,null,"رقم المنزل 04 حي الشهداء مغنية ","إلى يومنا هذا ",null,null,null,null,null,"بن ديدة أسماء"]
[288,1100310000000000,"بن صغير","أميمة سناء","أنثى","2003-01-11","مغنية","2ع ت03","ثانية","علوم تجريبية",2,291,"E2",null,null,"حي بلال مغنية ","إلى يومنا هذا ",null,null,null,null,null,"بن صغير أميمة سناء"]
[289,1100310000000000,"بن عزوز","شهيناز","أنثى","2003-05-31","مغنية","2ع ت03","ثانية","علوم تجريبية",2,292,"E1",null,null,"اربوز-بلدية مسيردة الفواقة ","إلى يومنا هذا ",null,null,null,null,null,"بن عزوز شهيناز"]
[290,1100310000000000,"بن عمارة","أصالة","أنثى","2003-09-01","مغنية","2ع ت03","ثانية","علوم تجريبية",2,293,"D1",null,null,"اولاد الشارف مغنية ","إلى يومنا هذا ",null,null,null,null,null,"بن عمارة أصالة"]
[291,1100330000000000,"بواب","كريمة","أنثى","2003-04-29","وهران","2ع ت03","ثانية","علوم تجريبية",2,294,"D1",null,null,null,"إلى يومنا هذا ",null,null,null,null,null,"بواب كريمة"]
[292,1100310000000000,"بوتيتل","فاطمة","أنثى","2003-03-23","مغنية","2ع ت03","ثانية","علوم تجريبية",2,295,"D2",null,null,"اولاد الشارف مغنية ","إلى يومنا هذا ",null,null,null,null,null,"بوتيتل فاطمة"]
[293,1100310000000000,"بوجلولي","فاطمة الزهراء","أنثى","2003-04-27","مغنية","2ع ت03","ثانية","علوم تجريبية",2,296,"D1",null,null,"قرية البطيم مغنية ","إلى يومنا هذا ",null,null,null,null,null,"بوجلولي فاطمة الزهراء"]
[294,1100310000000000,"بوحفص","يمينة","أنثى","2003-03-21","مغنية","2ع ت03","ثانية","علوم تجريبية",2,297,"E2",null,null,"قرية البطيم مغنية ","إلى يومنا هذا ",null,null,null,null,null,"بوحفص يمينة"]
[295,1100310000000000,"تاوريت","هاجر","أنثى","2003-09-29","مغنية","2ع ت03","ثانية","علوم تجريبية",2,298,"E1",null,null,"قرية العقيد عباس مغنية ","إلى يومنا هذا ",null,null,null,null,null,"تاوريت هاجر"]
[296,1000310000000000,"جدودي","محمد اسامة","ذكر","2003-09-30","مغنية","2ع ت03","ثانية","علوم تجريبية",2,299,"E2",null,null,"قرية البطيم مغنية ","إلى يومنا هذا ",null,null,null,null,null,"جدودي محمد اسامة"]
[297,1100310000000000,"جرودي","نرمين فاطمة الزهراء","أنثى","2003-06-17","مغنية","2ع ت03","ثانية","علوم تجريبية",2,300,"E1",null,null,"قرية البطيم مغنية ","إلى يومنا هذا ",null,null,null,null,null,"جرودي نرمين فاطمة الزهراء"]
[298,1100310000000000,"حرايق","وفاء","أنثى","2003-06-14","مغنية","2ع ت03","ثانية","علوم تجريبية",2,301,"E1",null,null,"قرية البطيم مغنية ","إلى يومنا هذا ",null,null,null,null,null,"حرايق وفاء"]
[299,1199910000000000,"حقاوي","إيمان","أنثى","1999-12-09","مغنية","2ع ت03","ثانية","علوم تجريبية",2,302,"D1",null,null,"قرية اولاد الشارف مغنية ","إلى يومنا هذا ",null,null,null,null,null,"حقاوي إيمان"]
[300,1100310000000000,"خاليد","إيناس","أنثى","2003-04-27","مغنية","2ع ت03","ثانية","علوم تجريبية",2,303,"D2",null,null,"قرية اولاد الشارف مغنية ","إلى يومنا هذا ",null,null,null,null,null,"خاليد إيناس"]
[301,1100110000000000,"رحماني","دعاء","أنثى","2001-05-07","مغنية","2ع ت03","ثانية","علوم تجريبية",2,304,"D2",null,null,"قرية اولاد الشارف مغنية ","إلى يومنا هذا ",null,null,null,null,null,"رحماني دعاء"]
[302,1100410000000000,"رفوفي","الهام","أنثى","2004-08-03","مغنية","2ع ت04","ثانية","علوم تجريبية",2,305,"D1",null,null,"حي الغابات مغنية ","إلى يومنا هذا ",null,null,null,null,null,"رفوفي الهام"]
[303,1100210000000000,"رقاد","دعاء","أنثى","2002-02-12","مغنية","2ع ت04","ثانية","علوم تجريبية",2,306,"D2",null,null,"قرية البخاتة مغنية ","إلى يومنا هذا ",null,null,null,null,null,"رقاد دعاء"]
[304,1100110000000000,"زحزوح","فاطمة الزهراء","أنثى","2001-03-23","مغنية","2ع ت04","ثانية","علوم تجريبية",2,307,"E1",null,null,"عقيد عباس مغنية ","إلى يومنا هذا ",null,null,null,null,null,"زحزوح فاطمة الزهراء"]
[305,1100310000000000,"زماني","نهاد","أنثى","2003-08-15","مغنية","2ع ت04","ثانية","علوم تجريبية",2,308,"E1",null,null,"اولاد الشارف ","إلى يومنا هذا ",null,null,null,null,null,"زماني نهاد"]
[306,1100310000000000,"عبابدي","ايمان","أنثى","2003-02-28","مغنية","2ع ت04","ثانية","علوم تجريبية",2,309,"E1",null,null,"قرية اولاد الشارف مغنية ","2019-02-06",null,null,null,null,null,"عبابدي ايمان"]
[307,1100310000000000,"عباسي","فاطمة الزهراء","أنثى","2003-09-26","مغنية","2ع ت04","ثانية","علوم تجريبية",2,310,"D1",null,null,"رقم 23 شارع 17 حي المقراني ","إلى يومنا هذا ",null,null,null,null,null,"عباسي فاطمة الزهراء"]
[308,1100310000000000,"عبد اللي","فاطمة الزهراء","أنثى","2003-10-07","مغنية","2ع ت04","ثانية","علوم تجريبية",2,311,"D1",null,null,"قرية المصامدة مغنية ","إلى يومنا هذا ",null,null,null,null,null,"عبد اللي فاطمة الزهراء"]
[309,1000310000000000,"عبوين","عماد الدين","ذكر","2003-07-31","مغنية","2ع ت04","ثانية","علوم تجريبية",2,312,"D2",null,null,"قرية البطيم مغنية ","إلى يومنا هذا ",null,null,null,null,null,"عبوين عماد الدين"]
[310,1100410000000000,"علي بوتبان","كوثر حبيبة","أنثى","2004-02-03","مغنية","2ع ت04","ثانية","علوم تجريبية",2,313,"D1",null,null,"قرية البطيم مغنية ","إلى يومنا هذا ",null,null,null,null,null,"علي بوتبان كوثر حبيبة"]
[311,1100310000000000,"قرقور","نور الهدى","أنثى","2003-12-09","مغنية","2ع ت04","ثانية","علوم تجريبية",2,314,"D1",null,null,"قرية العقيد عباس مغنية ","إلى يومنا هذا ",null,null,null,null,null,"قرقور نور الهدى"]
[312,1100310000000000,"قطاية","مروة","أنثى","2003-12-14","مغنية","2ع ت04","ثانية","علوم تجريبية",2,315,"D2",null,null,"قرية البطيم مغنية ","إلى يومنا هذا ",null,null,null,null,null,"قطاية مروة"]
[313,1000210000000000,"مقداد","وئيل","ذكر","2002-02-20","مغنية","2ع ت04","ثانية","علوم تجريبية",2,316,"D1",null,null,"1050 مسكن رقم 112 تيليلان ","إلى يومنا هذا ",null,null,null,null,null,"مقداد وئيل"]
[314,1000310000000000,"مهنان","قصي","ذكر","2003-09-09","مغنية","2ع ت04","ثانية","علوم تجريبية",2,317,"E2",null,null,"حي اولاد بن دامو ","إلى يومنا هذا ",null,null,null,null,null,"مهنان قصي"]
[315,1000410000000000,"ابراهيم","محمد ياسين","ذكر","2004-07-24","تلمسان","2ع ت04","ثانية","علوم تجريبية",2,318,"E1",null,null,"قرية العقيد عباس مغنية ","إلى يومنا هذا ",null,null,null,null,null,"ابراهيم محمد ياسين"]
[316,1100210000000000,"العربي","فاطمة الزهراء","أنثى","2002-03-31","مغنية","2ع ت04","ثانية","علوم تجريبية",2,319,"E2",null,null,"قرية البطيم مغنية ","إلى يومنا هذا ",null,null,null,null,null,"العربي فاطمة الزهراء"]
[317,1100310000000000,"بلال","شيماء","أنثى","2003-09-09","مغنية","2ع ت04","ثانية","علوم تجريبية",2,320,"E1",null,null,"قرية العقيد عباس مغنية ","إلى يومنا هذا ",null,null,null,null,null,"بلال شيماء"]
[318,1000410000000000,"بلخير","عبد القادر","ذكر","2004-01-18","مغنية","2ع ت04","ثانية","علوم تجريبية",2,321,"E1",null,null,"قرية البطيم مغنية ","إلى يومنا هذا ",null,null,null,null,null,"بلخير عبد القادر"]
[319,1100310000000000,"بوسكين","مروة","أنثى","2003-02-13","مغنية","2ع ت04","ثانية","علوم تجريبية",2,322,"D1",null,null,"ثانوية الخوارزمي حي الشهداء مغنية ","إلى يومنا هذا ",null,null,null,null,null,"بوسكين مروة"]
[320,1100310000000000,"حامدي","خديجة","أنثى","2003-09-04","مغنية","2ع ت04","ثانية","علوم تجريبية",2,323,"D2",null,null,"أولاد قدور مغنية ","إلى يومنا هذا ",null,null,null,null,null,"حامدي خديجة"]
[321,1000310000000000,"صحراوي","وليد","ذكر","2003-09-23","مغنية","2ع ت04","ثانية","علوم تجريبية",2,324,"D2",null,null,"حي الشهداء مغنية ","إلى يومنا هذا ",null,null,null,null,null,{"$f":"C322 & \" \" & D322","v":"صحراوي وليد"}]
[322,1000410000000000,"معطى الله","ضياء الحق","ذكر","2004-02-11","مغنية","2ع ت04","ثانية","علوم تجريبية",2,325,"D1",null,null,"55 حي الشهداء مغنية ","إلى يومنا هذا ",null,null,null,null,null,"معطى الله ضياء الحق"]
[323,1000310000000000,"أحمودي","ياسين","ذكر","2003-09-09","تلمسان","2أ ف01","ثانية","آداب وفلسفة",1,326,"D2",null,null,"حي الشهداء شارع 33 المنزل رقم 01 مغنية ","إلى يومنا هذا ",null,null,null,null,null,"أحمودي ياسين"]
[324,1100310000000000,"أمبارك","سهام","أنثى","2003-07-09","مغنية","2أ ف01","ثانية","آداب وفلسفة",1,327,"E1",null,null,"حي الشهداء درب 27  رقم المنزل 03  مغنية ","إلى يومنا هذا ",null,null,null,null,null,"أمبارك سهام"]
[325,1000010000000000,"أمبارك","عزيز","ذكر","2000-12-06","مغنية","2أ ف01","ثانية","آداب وفلسفة",1,328,"E1",null,null,"21 شارع محطة القطار حي بلال مغنية ","إلى يومنا هذا ",null,null,null,null,null,"أمبارك عزيز"]
[326,1000110000000000,"الحاجي","عماد الدين","ذكر","2001-06-30","مغنية","2أ ف01","ثانية","آداب وفلسفة",1,329,"E1",null,null,"حي جابر الشهداء مغنية ","إلى يومنا هذا ",null,null,null,null,null,"الحاجي عماد الدين"]
[327,1000310000000000,"الشيخ","عبد الجواد","ذكر","2003-11-01","مغنية","2أ ف01","ثانية","آداب وفلسفة",1,330,"D1",null,null,"قرية البطيم مغنية ","إلى يومنا هذا ",null,null,null,null,null,"الشيخ عبد الجواد"]
[328,1000010000000000,"العابد","محمد كمال","ذكر","2000-07-01","مغنية","2أ ف01","ثانية","آداب وفلسفة",1,331,"D1",null,null,"قرية البطيم مغنية ","إلى يومنا هذا ",null,null,null,null,null,"العابد محمد كمال"]
[329,1000210000000000,"بارودي","محمد شكيب","ذكر","2002-09-29","مغنية","2أ ف01","ثانية","آداب وفلسفة",1,332,"D2",null,null,"قرية البطيم مغنية ","إلى يومنا هذا ",null,null,null,null,null,"بارودي محمد شكيب"]
[330,1000110000000000,"بشير","أشرف","ذكر","2001-01-16","مغنية","2أ ف01","ثانية","آداب وفلسفة",1,333,"D1",null,null,"دوار لكفاف طريق 35  مغنية ","إلى يومنا هذا ",null,null,null,null,null,"بشير أشرف"]
[331,1000310000000000,"بوشارب","أحمد","ذكر","2003-06-22","مغنية","2أ ف01","ثانية","آداب وفلسفة",1,334,"D1",null,null,"قرية اولاد قدور الكبار مغنية ","إلى يومنا هذا ",null,null,null,null,null,"بوشارب أحمد"]
[332,1000210000000000,"بوشيبة","بارودي","ذكر","2002-04-21","مغنية","2أ ف01","ثانية","آداب وفلسفة",1,335,"D2",null,null,"قرية البطيم مغنية ","إلى يومنا هذا ",null,null,null,null,null,"بوشيبة بارودي"]
[333,1100310000000000,"بومدين","نور الإيمان","أنثى","2003-10-27","مغنية","2أ ف01","ثانية","آداب وفلسفة",1,336,"D1",null,null,"قرية بوسدرة - البخاتة ","إلى يومنا هذا ",null,null,null,null,null,"بومدين نور الإيمان"]
[334,1100410000000000,"جديد","هاجر","أنثى","2004-02-11","مغنية","2أ ف01","ثانية","آداب وفلسفة",1,337,"E2",null,null,"قرية العقيد لطفي  ","إلى يومنا هذا ",null,null,null,null,null,"جديد هاجر"]
[335,1100210000000000,"دخيسي","امال","أنثى","2002-03-24","مغنية","2أ ف01","ثانية","آداب وفلسفة",1,338,"E1",null,null,"قرية البطيم مغنية ","إلى يومنا هذا ",null,null,null,null,null,"دخيسي امال"]
[336,1100310000000000,"دودوح","الهام","أنثى","2003-09-03","مغنية","2أ ف01","ثانية","آداب وفلسفة",1,339,"E2",null,null,"قرية المصامدة مغنية ","إلى يومنا هذا ",null,null,null,null,null,"دودوح الهام"]
[337,1100310000000000,"ديدي","كريمة","أنثى","2003-07-28","مغنية","2أ ف01","ثانية","آداب وفلسفة",1,340,"E1",null,null,"أولاد قدور مغنية ","إلى يومنا هذا ",null,null,null,null,null,"ديدي كريمة"]
[338,1100310000000000,"راجعي","احلام","أنثى","2003-01-24","مغنية","2أ ف01","ثانية","آداب وفلسفة",1,341,"E1",null,null,"قرية البطيم مغنية ","إلى يومنا هذا ",null,null,null,null,null,"راجعي احلام"]
[339,1099910000000000,"زروالي","فريال","أنثى","1999-06-01","مغنية","2أ ف01","ثانية","آداب وفلسفة",1,342,"D1",null,null,"قرية اولاد الشارف مغنية ","إلى يومنا هذا ",null,null,null,null,null,"زروالي فريال"]
[340,1100210000000000,"سايح","رانيا","أنثى","2002-08-18","مغنية","2أ ف01","ثانية","آداب وفلسفة",1,343,"D2",null,null,"حي اولاد بن صابر مغنية ","إلى يومنا هذا ",null,null,null,null,null,"سايح رانيا"]
[341,1000110000000000,"عايشي","سامية","أنثى","2001-07-07","مغنية","2أ ف01","ثانية","آداب وفلسفة",1,344,"D2",null,null,"حي مصالي الحاج - مغنية ","إلى يومنا هذا ",null,null,null,null,null,"عايشي سامية"]
[342,1000010000000000,"قبلي","يوسف","ذكر","2000-01-24","مغنية","2أ ف01","ثانية","آداب وفلسفة",1,345,"D1",null,null,"قرية المصامدة ","إلى يومنا هذا ",null,null,null,null,null,"قبلي يوسف"]
[343,1000310000000000,"لحلو","لحسن","ذكر","2003-02-20","غزوات","2أ ف02","ثانية","آداب وفلسفة",1,346,"D2",null,null,"قرية المصامدة ","إلى يومنا هذا ",null,null,null,null,null,"لحلو لحسن"]
[344,1100310000000000,"لعموري","فاطمة الزهراء","أنثى","2003-06-25","مغنية","2أ ف02","ثانية","آداب وفلسفة",1,347,"E1",null,null,"قرية البطيم  ","إلى يومنا هذا ",null,null,null,null,null,"لعموري فاطمة الزهراء"]
[345,1000210000000000,"مكاحلي","عماد الدين","ذكر","2002-10-27","مغنية","2أ ف02","ثانية","آداب وفلسفة",1,348,"E1",null,null,"قرية راس العصفور المصامدة  مغنية ","إلى يومنا هذا ",null,null,null,null,null,"مكاحلي عماد الدين"]
[346,1000110000000000,"نوالي","سفيان","ذكر","2001-12-09","مغنية","2أ ف02","ثانية","آداب وفلسفة",1,349,"E1",null,null,"رقم71 حي الشهداء مغنية ","إلى يومنا هذا ",null,null,null,null,null,"نوالي سفيان"]
[347,1001210000000000,"نوضاري","يوسف","ذكر","2003-01-09","السوقر","2أ ف02","ثانية","آداب وفلسفة",1,350,"D1",null,null,"قرية العقيد عباس مغنية ","إلى يومنا هذا ",null,null,null,null,null,"نوضاري يوسف"]
[348,1100210000000000,"اوحسين","حليمة","أنثى","2002-06-23","مغنية","2أ ف02","ثانية","آداب وفلسفة",1,351,"D1",null,null,"قرية اولاد الشارف مغنية ","إلى يومنا هذا ",null,null,null,null,null,"اوحسين حليمة"]
[349,1000310000000000,"بن عبد الله","منور","ذكر","2003-07-16","مغنية","2أ ف02","ثانية","آداب وفلسفة",1,352,"D2",null,null,"قرية البطيم ","إلى يومنا هذا ",null,null,null,null,null,"بن عبد الله منور"]
[350,1100410000000000,"القناوي","رحمة","أنثى","2004-03-20","مغنية","2أ ف02","ثانية","آداب وفلسفة",2,353,"D1",null,null,"قرية البطيم  ","إلى يومنا هذا ",null,null,null,null,null,"القناوي رحمة"]
[351,1100310000000000,"امبارك","اسماء","أنثى","2003-06-25","مغنية","2أ ف02","ثانية","آداب وفلسفة",2,354,"D1",null,null,"قرية العقيد عباس مغنية ","إلى يومنا هذا ",null,null,null,null,null,"امبارك اسماء"]
[352,1100210000000000,"بن عبد الرحمن","رانيا","أنثى","2002-04-09","مغنية","2أ ف02","ثانية","آداب وفلسفة",2,355,"D2",null,null,"شارع 11 رقم المنزل 82 حي الشهداء ","إلى يومنا هذا ",null,null,null,null,null,"بن عبد الرحمن رانيا"]
[353,1000410000000000,"بن عبد الله","عبد الرحيم","ذكر","2004-02-07","مغنية","2أ ف02","ثانية","آداب وفلسفة",2,356,"D1",null,null,"قرية المصامدة مغنية ","إلى يومنا هذا ",null,null,null,null,null,"بن عبد الله عبد الرحيم"]
[354,1000110000000000,"بن عراج","إلياس","ذكر","2001-02-04","مغنية","2أ ف02","ثانية","آداب وفلسفة",2,357,"E2",null,null,"أولاد الشارف مغنية ","إلى يومنا هذا ",null,null,null,null,null,"بن عراج إلياس"]
[355,1100310000000000,"بن عيش","آمنة","أنثى","2003-11-09","مغنية","2أ ف02","ثانية","آداب وفلسفة",2,358,"E1",null,null,"قرية العقيد عباس - قرية اولاد قدولر - مغنية ","إلى يومنا هذا ",null,null,null,null,null,"بن عيش آمنة"]
[356,1000010000000000,"بومدين","محمد","ذكر","2000-07-13","مغنية","2أ ف02","ثانية","آداب وفلسفة",2,359,"E2",null,null,"قرية البطيم ","إلى يومنا هذا ",null,null,null,null,null,"بومدين محمد"]
[357,1100310000000000,"جزيري","نورة","أنثى","2003-03-18","مغنية","2أ ف02","ثانية","آداب وفلسفة",2,360,"E1",null,null,"قرية راس العصفور المصامدة  مغنية ","إلى يومنا هذا ",null,null,null,null,null,"جزيري نورة"]
[358,1000410000000000,"حمادي","محمدأمين","ذكر","2004-01-28","مغنية","2أ ف02","ثانية","آداب وفلسفة",2,361,"E1",null,null,"قرية البخاتة مغنية ","إلى يومنا هذا ",null,null,null,null,null,"حمادي محمدأمين"]
[359,1000110000000000,"دواني","بن عبد القادر","ذكر","2001-06-01","مغنية","2أ ف03","ثانية","آداب وفلسفة",2,362,"E1",null,null,"قرية البخاتة مغنية ","إلى يومنا هذا ",null,null,null,null,null,"دواني بن عبد القادر"]
[360,1100210000000000,"شباني","ايمان","أنثى","2002-10-24","مغنية","2أ ف03","ثانية","آداب وفلسفة",2,363,"D1",null,null,"قرية العقيد عباس - قرية اولاد قدولر الصغار- مغنية ","إلى يومنا هذا ",null,null,null,null,null,"شباني ايمان"]
[361,1100110000000000,"فتوحي","سهيلة","أنثى","2001-10-17","مغنية","2أ ف03","ثانية","آداب وفلسفة",2,364,"D1",null,null,"قرية اولاد الشارف مغنية ","إلى يومنا هذا ",null,null,null,null,null,"فتوحي سهيلة"]
[362,1100110000000000,"لعرج","أمال","أنثى","2001-12-31","مغنية","2أ ف03","ثانية","آداب وفلسفة",2,365,"D2",null,null,"البخاتة مغنية ","إلى يومنا هذا ",null,null,null,null,null,"لعرج أمال"]
[363,1100410000000000,"لكحل","شهرزاد","أنثى","2004-01-11","مغنية","2أ ف03","ثانية","آداب وفلسفة",2,366,"D1",null,null,"قرية البخاتة مغنية ","إلى يومنا هذا ",null,null,null,null,null,"لكحل شهرزاد"]
[364,1100310000000000,"مالكي","وسيلة","أنثى","2003-02-09","مغنية","2أ ف03","ثانية","آداب وفلسفة",2,367,"D1",null,null,"قرية العقيد عباس ","إلى يومنا هذا ",null,null,null,null,null,"مالكي وسيلة"]
[365,1100310000000000,"مجاهد","يسرى","أنثى","2003-10-04","مغنية","2أ ف03","ثانية","آداب وفلسفة",2,368,"D2",null,null,"قرية ابطيم -مغنية- ","إلى يومنا هذا ",null,null,null,null,null,"مجاهد يسرى"]
[366,1100310000000000,"محياوي","أميمة","أنثى","2003-12-25","مغنية","2أ ف03","ثانية","آداب وفلسفة",2,369,"D1",null,null,"قرية العقيد عباس مغنية ","إلى يومنا هذا ",null,null,null,null,null,"محياوي أميمة"]
[367,1100310000000000,"مزيان","هاجر","أنثى","2002-08-31","مغنية","2أ ف03","ثانية","آداب وفلسفة",2,370,"E2",null,null,"قرية المصامدة مغنية ","إلى يومنا هذا ",null,null,null,null,null,"مزيان هاجر"]
[368,1100310000000000,"مصنف زلاط","هاجر","أنثى","2003-06-12","مغنية","2أ ف03","ثانية","آداب وفلسفة",2,371,"E1",null,null,"أولاد معيدر- قرية البطيم - مغنية ","إلى يومنا هذا ",null,null,null,null,null,"مصنف زلاط هاجر"]
[369,1000110000000000,"مقدم","محمد أيمن","ذكر","2001-06-25","مغنية","2أ ف03","ثانية","آداب وفلسفة",2,372,"E2",null,null,"قرية البطيم مغنية ","إلى يومنا هذا ",null,null,null,null,null,"مقدم محمد أيمن"]
[370,1100210000000000,"ميلود عبيد","سارة","أنثى","2002-07-01","مغنية","2أ ف03","ثانية","آداب وفلسفة",2,373,"E1",null,null,"قرية بوسدرة مغنية ","إلى يومنا هذا ",null,null,null,null,null,"ميلود عبيد سارة"]
[371,1100410000000000,"نوار","مروة","أنثى","2004-01-31","مغنية","2أ ف03","ثانية","آداب وفلسفة",2,374,"E1",null,null,"قرية العقيد عباس ","إلى يومنا هذا ",null,null,null,null,null,"نوار مروة"]
[372,1100010000000000,"وزاني","شيماء","أنثى","2000-03-18","مرسى بن مهيدي","2أ ف03","ثانية","آداب وفلسفة",2,375,"D1",null,null,"أولاد الشارف مغنية ","إلى يومنا هذا ",null,null,null,null,null,"وزاني شيماء"]
[373,8400110000000000,"الدباس","حسين","ذكر","2001-01-01","سوريا","2أ ف03","ثانية","آداب وفلسفة",2,376,"D2",null,null,"أولاد قدور لكبار مغنية ","2019-06-30",null,null,null,null,null,"الدباس حسين"]
[374,1100210000000000,"بن سبع","حنان","أنثى","2002-08-26","مغنية","2أ ف03","ثانية","آداب وفلسفة",2,377,"D2",null,null,"قرية المصامدة مغنية ","إلى يومنا هذا ",null,null,null,null,null,"بن سبع حنان"]
[375,1100310000000000,"حواسة","نور الهدى","أنثى","2003-07-01","مغنية","2أ ف03","ثانية","آداب وفلسفة",2,378,"D1",null,null,"قرية البخاتة مغنية ","إلى يومنا هذا ",null,null,null,null,null,"حواسة نور الهدى"]
[376,1100210000000000,"العرباوي","آيات","أنثى","2002-10-04","مغنية","2لغات أ01","ثانية","لغات أجنبية",1,379,"D2",null,null,"قرية العقيد لطفي مغنية ","إلى يومنا هذا ",null,null,null,null,null,"العرباوي آيات"]
[377,1000110000000000,"الهلالي","جمال","ذكر","2001-11-20","مغنية","2لغات أ01","ثانية","لغات أجنبية",1,380,"E1",null,null,"حي الشهداء مغنية ","إلى يومنا هذا ",null,null,null,null,null,"الهلالي جمال"]
[378,1100310000000000,"بضياف","مروة","أنثى","2003-11-14","مغنية","2لغات أ01","ثانية","لغات أجنبية",1,381,"E1",null,null,"تعاونية الحبوب الجافة حي الشهداء مغنية ","إلى يومنا هذا ",null,null,null,null,null,"بضياف مروة"]
[379,1100310000000000,"بن حمو","منال ملاك","أنثى","2003-06-26","مغنية","2لغات أ01","ثانية","لغات أجنبية",1,382,"E1",null,null,"حي الشهداء  رقم 15 مغنية ","إلى يومنا هذا ",null,null,null,null,null,"بن حمو منال ملاك"]
[380,1000310000000000,"بن عبد الرحمان","محمد أيوب","ذكر","2003-09-18","مغنية","2لغات أ01","ثانية","لغات أجنبية",1,383,"D1",null,null,"105 الحي السكني مغنية ","إلى يومنا هذا ",null,null,null,null,null,"بن عبد الرحمان محمد أيوب"]
[381,1000110000000000,"بن عمارة","أيوب محمد","ذكر","2001-09-17","مغنية","2لغات أ01","ثانية","لغات أجنبية",1,384,"D1",null,null,"أولاد الشارف مغنية ","إلى يومنا هذا ",null,null,null,null,null,"بن عمارة أيوب محمد"]
[382,1100310000000000,"بورديم","نور الإيمان","أنثى","2003-09-09","تلمسان","2لغات أ01","ثانية","لغات أجنبية",1,385,"D2",null,null,"حمام بوغرارة تلمسان ","إلى يومنا هذا ",null,null,null,null,null,"بورديم نور الإيمان"]
[383,1100310000000000,"بوزيان","هجيرة","أنثى","2003-03-05","مغنية","2لغات أ01","ثانية","لغات أجنبية",1,386,"D1",null,null,"شارع 24 منزل 3 حي المقراني ","إلى يومنا هذا ",null,null,null,null,null,"بوزيان هجيرة"]
[384,1100310000000000,"بوعرفة","مروة","أنثى","2003-05-18","مغنية","2لغات أ01","ثانية","لغات أجنبية",1,387,"D1",null,null,"حمام بوغرارة تلمسان ","إلى يومنا هذا ",null,null,null,null,null,"بوعرفة مروة"]
[385,1100210000000000,"بومدين","حورية","أنثى","2002-05-27","مغنية","2لغات أ01","ثانية","لغات أجنبية",1,388,"D2",null,null,"قرية البطيم مغنية ","إلى يومنا هذا ",null,null,null,null,null,{"$f":"C386 & \" \" & D386","v":"بومدين حورية"}]
[386,1000110000000000,"بومدين","زياد","ذكر","2001-03-12","مغنية","2لغات أ01","ثانية","لغات أجنبية",1,389,"D1",null,null,"قرية البطيم مغنية ","إلى يومنا هذا ",null,null,null,null,null,"بومدين زياد"]
[387,1100410000000000,"حدبي","الزهرة","أنثى","2004-01-18","مغنية","2لغات أ01","ثانية","لغات أجنبية",1,390,"E2",null,null,"قرية البطيم مغنية ","إلى يومنا هذا ",null,null,null,null,null,"حدبي الزهرة"]
[388,1100310000000000,"حمادي","نور الهدى","أنثى","2003-09-03","مغنية","2لغات أ01","ثانية","لغات أجنبية",1,391,"E1",null,null,"حمام بوغرارة تلمسان ","إلى يومنا هذا ",null,null,null,null,null,"حمادي نور الهدى"]
[389,1000110000000000,"خش","سيد أحمد","ذكر","2001-07-24","مغنية","2لغات أ01","ثانية","لغات أجنبية",1,392,"D1",null,null,"قرية العقيد لطفي  ","إلى يومنا هذا ",null,null,null,null,null,"خش سيد أحمد"]
[390,1000310000000000,"دف","رحمة","أنثى","2003-09-06","مغنية","2لغات أ01","ثانية","لغات أجنبية",1,393,"D1",null,null,"حمام بوغرارة تلمسان ","إلى يومنا هذا ",null,null,null,null,null,"دف رحمة"]
[391,1100310000000000,"شهراوي","آسية","أنثى","2003-06-27","مغنية","2لغات أ01","ثانية","لغات أجنبية",1,394,"D2",null,null,"حي الركيزة حمام بوغرارة تلمسان ","إلى يومنا هذا ",null,null,null,null,null,"شهراوي آسية"]
[392,1100310000000000,"صباحي","عبير","أنثى","2003-02-26","مغنية","2لغات أ01","ثانية","لغات أجنبية",1,395,"D1",null,null,"قرية البخاتة مغنية ","إلى يومنا هذا ",null,null,null,null,null,"صباحي عبير"]
[393,1100110000000000,"صحراوي","اكرام","أنثى","2001-10-30","مغنية","2لغات أ01","ثانية","لغات أجنبية",1,396,"E2",null,null,"حمام بوغرارة تلمسان ","إلى يومنا هذا ",null,null,null,null,null,"صحراوي اكرام"]
[394,1000020000000000,"طاهري","كمال الدين","ذكر","2000-01-08","بن باديس","2لغات أ01","ثانية","لغات أجنبية",1,397,"E1",null,null,"قرية الكفاف مغنية ","إلى يومنا هذا ",null,null,null,null,null,"طاهري كمال الدين"]
[395,1000310000000000,"طواع","أيوب","ذكر","2003-06-15","مغنية","2لغات أ01","ثانية","لغات أجنبية",1,398,"E2",null,null,"حي المرازقة  مغنية ","إلى يومنا هذا ",null,null,null,null,null,"طواع أيوب"]
[396,1100310000000000,"قاشور","شيماء","أنثى","2003-04-14","مغنية","2لغات أ01","ثانية","لغات أجنبية",1,399,"E1",null,null,"حي الركيزة حمام بوغرارة تلمسان ","إلى يومنا هذا ",null,null,null,null,null,"قاشور شيماء"]
[397,1000210000000000,"مزاري","مزاري","ذكر","2002-01-05","مغنية","2لغات أ01","ثانية","لغات أجنبية",1,400,"E1",null,null,"قرية البخاتة ","إلى يومنا هذا ",null,null,null,null,null,"مزاري مزاري"]
[398,1100310000000000,"أوشريف","قمر فاطمة الزهراء","أنثى","2003-05-22","مغنية","2لغات أ01","ثانية","لغات أجنبية",1,401,"D1",null,null,"حي أولاد بن دامو مغنية ","إلى يومنا هذا ",null,null,null,null,null,"أوشريف قمر فاطمة الزهراء"]
[399,1100210000000000,"ايلاس","كوثر","أنثى","2002-09-19","مغنية","2لغات أ01","ثانية","لغات أجنبية",1,402,"D2",null,null,"أولاد الشارف مغنية ","إلى يومنا هذا ",null,null,null,null,null,"ايلاس كوثر"]
[400,1100410000000000,"بلعباس","نهال","أنثى","2004-06-19","مغنية","2لغات أ01","ثانية","لغات أجنبية",1,403,"D2",null,null," ","إلى يومنا هذا ",null,null,null,null,null,"بلعباس نهال"]
[401,1100310000000000,"بوزيان","شيماء","أنثى","2003-02-24","مغنية","2لغات أ01","ثانية","لغات أجنبية",1,404,"D1",null,null,"قرية البخاتة مغنية ","إلى يومنا هذا ",null,null,null,null,null,"بوزيان شيماء"]
[402,1100310000000000,"شارف","ضحى إنشراح","أنثى","2003-12-03","مغنية","2لغات أ01","ثانية","لغات أجنبية",1,405,"D2",null,null,"إقامة تافنة عمارة 4 أ  ","إلى يومنا هذا ",null,null,null,null,null,"شارف ضحى إنشراح"]
[403,1100210000000000,"شارف","ملاك","أنثى","2002-03-08","مغنية","2لغات أ01","ثانية","لغات أجنبية",1,406,"E1",null,null,"شارع 27رقم 04 حي الشهداء ","إلى يومنا هذا ",null,null,null,null,null,"شارف ملاك"]
[404,1100350000000000,"عجاج","بشرى","أنثى","2003-08-31","عين تموشنت","2لغات أ01","ثانية","لغات أجنبية",1,407,"E1",null,null,"فرقة الدرك الوطني ","إلى يومنا هذا ",null,null,null,null,null,"عجاج بشرى"]
[405,1100310000000000,"مبيتيل","وفاء","أنثى","2003-09-29","مغنية","2لغات أ01","ثانية","لغات أجنبية",1,408,"E1",null,null,"حي الشهداء مغنية ","إلى يومنا هذا ",null,null,null,null,null,"مبيتيل وفاء"]
[406,1100410000000000,"العرابي","نادية","أنثى","2004-07-31","مغنية","ج م ع تك01","أولى","جدع مشترك علوم وتكنولوجيا",1,409,"D1",null,null,"حي الباطوار ","إلى يومنا هذا ",null,null,null,null,null,"العرابي نادية"]
[407,1100510000000000,"العربي","مريم","أنثى","2005-02-28","مغنية","ج م ع تك01","أولى","جدع مشترك علوم وتكنولوجيا",1,410,"D1",null,null,"حي الباطوار ","إلى يومنا هذا ",null,null,null,null,null,"العربي مريم"]
[408,1100410000000000,"الفضيل","ريم","أنثى","2004-03-23","مغنية","ج م ع تك01","أولى","جدع مشترك علوم وتكنولوجيا",1,411,"D2",null,null,"حي اولاد بن دامو ","إلى يومنا هذا ",null,null,null,null,null,"الفضيل ريم"]
[409,1100410000000000,"امبارك","إيمان","أنثى","2004-08-14","مغنية","ج م ع تك01","أولى","جدع مشترك علوم وتكنولوجيا",1,412,"D1",null,null,"درب 24 رقم 21 حي المقراني مغنية ","إلى يومنا هذا ",null,null,null,null,null,"امبارك إيمان"]
[410,1000110000000000,"اير","محمد","ذكر","2001-06-05","مغنية","ج م ع تك01","أولى","جدع مشترك علوم وتكنولوجيا",1,413,"D1",null,null,"اولاد الشارف ","إلى يومنا هذا ",null,null,null,null,null,"اير محمد"]
[411,1100410000000000,"بطيب","إكرام","أنثى","2004-06-23","مغنية","ج م ع تك01","أولى","جدع مشترك علوم وتكنولوجيا",1,414,"D2",null,null,"أولاد الشارف مغنية ","إلى يومنا هذا ",null,null,null,null,null,"بطيب إكرام"]
[412,1100410000000000,"بن دلاع","جهيدة","أنثى","2004-04-06","مغنية","ج م ع تك01","أولى","جدع مشترك علوم وتكنولوجيا",1,415,"D1",null,null,"أولاد قدور الكبار ","إلى يومنا هذا ",null,null,null,null,null,"بن دلاع جهيدة"]
[413,5000400000000000,"بوشام","زكرياء عبد الرحمن","ذكر","2004-09-30","سان دني","ج م ع تك01","أولى","جدع مشترك علوم وتكنولوجيا",1,416,"E2",null,null,"قرية البطيم مغنية ","إلى يومنا هذا ",null,null,null,null,null,"بوشام زكرياء عبد الرحمن"]
[414,1000210000000000,"جبارة","عبدالله","ذكر","2002-05-05","مغنية","ج م ع تك01","أولى","جدع مشترك علوم وتكنولوجيا",1,417,"E1",null,null,"قرية العقيد لطفي مغنية ","إلى يومنا هذا ",null,null,null,null,null,"جبارة عبدالله"]
[415,1100310000000000,"خلادي","شيماء","أنثى","2003-04-12","مغنية","ج م ع تك01","أولى","جدع مشترك علوم وتكنولوجيا",1,418,"E2",null,null,"أولا ","إلى يومنا هذا ",null,null,null,null,null,"خلادي شيماء"]
[416,1100410000000000,"خواني","مريم","أنثى","2004-09-14","مغنية","ج م ع تك01","أولى","جدع مشترك علوم وتكنولوجيا",1,419,"E1",null,null,"قرية المصامدة مغنية ","إلى يومنا هذا ",null,null,null,null,null,"خواني مريم"]
[417,1100410000000000,"راجعي","دعاء","أنثى","2004-10-22","مغنية","ج م ع تك01","أولى","جدع مشترك علوم وتكنولوجيا",1,420,"E1",null,null,"شارع 04 منزل 29 حي القاضي ","إلى يومنا هذا ",null,null,null,null,null,"راجعي دعاء"]
[418,1000410000000000,"زحزوح","فارس رياض","ذكر","2004-05-27","مغنية","ج م ع تك01","أولى","جدع مشترك علوم وتكنولوجيا",1,421,"D1",null,null,"قرية البخاتة مغنية ","إلى يومنا هذا ",null,null,null,null,null,"زحزوح فارس رياض"]
[419,1100310000000000,"سلومي","فتيحة","أنثى","2003-09-03","مغنية","ج م ع تك01","أولى","جدع مشترك علوم وتكنولوجيا",1,422,"D2",null,null,"حي المدرجات ","إلى يومنا هذا ",null,null,null,null,null,"سلومي فتيحة"]
[420,1100410000000000,"شارف","شيماء","أنثى","2004-01-05","مغنية","ج م ع تك02","أولى","جدع مشترك علوم وتكنولوجيا",1,423,"D2",null,null,"قرية بوسدرة - البخاتة ","إلى يومنا هذا ",null,null,null,null,null,"شارف شيماء"]
[421,1100430000000000,"شبيب","دعاء نورهان","أنثى","2004-09-18","وهران","ج م ع تك02","أولى","جدع مشترك علوم وتكنولوجيا",1,424,"D1",null,null,"اولاد الشارف ","إلى يومنا هذا ",null,null,null,null,null,"شبيب دعاء نورهان"]
[422,1000410000000000,"عيساني","اسماعيل","ذكر","2004-09-20","مغنية","ج م ع تك02","أولى","جدع مشترك علوم وتكنولوجيا",1,425,"D2",null,null,"قرية المصامدة مغنية ","إلى يومنا هذا ",null,null,null,null,null,"عيساني اسماعيل"]
[423,1000410000000000,"قرد","محمد","ذكر","2004-07-17","مغنية","ج م ع تك02","أولى","جدع مشترك علوم وتكنولوجيا",1,426,"E1",null,null,"قرية البطيم مغنية ","إلى يومنا هذا ",null,null,null,null,null,"قرد محمد"]
[424,1100410000000000,"لحمر","شيماء","أنثى","2004-04-18","تلمسان","ج م ع تك02","أولى","جدع مشترك علوم وتكنولوجيا",1,427,"E1",null,null,"أولاد الشارف مغنية ","إلى يومنا هذا ",null,null,null,null,null,"لحمر شيماء"]
[425,1000410000000000,"مبرك","محمد أمين فارس","ذكر","2004-05-22","مغنية","ج م ع تك02","أولى","جدع مشترك علوم وتكنولوجيا",1,428,"E1",null,null,"اولاد الشارف مغنية ","إلى يومنا هذا ",null,null,null,null,null,"مبرك محمد أمين فارس"]
[426,1000410000000000,"هواري","سيدي محمد","ذكر","2004-07-22","مغنية","ج م ع تك02","أولى","جدع مشترك علوم وتكنولوجيا",1,429,"D1",null,null,"قرية البخاتة مغنية ","إلى يومنا هذا ",null,null,null,null,null,"هواري سيدي محمد"]
[427,1000410000000000,"أجد","اسلام","ذكر","2004-10-23","مغنية","ج م ع تك02","أولى","جدع مشترك علوم وتكنولوجيا",1,430,"D1",null,null,"قرية البطيم مغنية ","إلى يومنا هذا ",null,null,null,null,null,"أجد اسلام"]
[428,1000220000000000,"بوجمعة","رابح","ذكر","2002-06-27","حسين داي","ج م ع تك02","أولى","جدع مشترك علوم وتكنولوجيا",1,431,"D2",null,null,"أولاد الشارف مغنية ","إلى يومنا هذا ",null,null,null,null,null,"بوجمعة رابح"]
[429,1000510000000000,"حمادي","أنس","ذكر","2005-03-16","مغنية","ج م ع تك02","أولى","جدع مشترك علوم وتكنولوجيا",1,432,"D1",null,null,"أولاد الشارف مغنية ","إلى يومنا هذا ",null,null,null,null,null,"حمادي أنس"]
[430,1100410000000000,"زياني الأول","سكينة","أنثى","2004-04-04","مغنية","ج م ع تك02","أولى","جدع مشترك علوم وتكنولوجيا",1,433,"D1",null,null,"قرية البطيم مغنية ","إلى يومنا هذا ",null,null,null,null,null,"زياني الأول سكينة"]
[431,1100410000000000,"سايح","كوثر فاطنة","أنثى","2004-05-21","مغنية","ج م ع تك02","أولى","جدع مشترك علوم وتكنولوجيا",1,434,"D2",null,null,"منزل 07 شارع 07 حي الشهداء مغنية ","إلى يومنا هذا ",null,null,null,null,null,"سايح كوثر فاطنة"]
[432,1100410000000000,"كرعي","هاجر","أنثى","2004-05-27","مغنية","ج م ع تك02","أولى","جدع مشترك علوم وتكنولوجيا",1,435,"D1",null,null,"رقم 06 حي الشهداء مغنية ","إلى يومنا هذا ",null,null,null,null,null,"كرعي هاجر"]
[433,1000310000000000,"منصوري","واسيني","ذكر","2003-12-14","مغنية","ج م ع تك02","أولى","جدع مشترك علوم وتكنولوجيا",1,436,"E2",null,null,"حي الشهداء مغنية ","إلى يومنا هذا ",null,null,null,null,null,"منصوري واسيني"]
[434,1000410000000000,"منيري","عبد المالك","ذكر","2004-11-09","مغنية","ج م ع تك02","أولى","جدع مشترك علوم وتكنولوجيا",1,437,"E1",null,null,"حي الشهداء مغنية ","إلى يومنا هذا ",null,null,null,null,null,"منيري عبد المالك"]
[435,1000410000000000,"موقاس","الطيب","ذكر","2004-05-17","مغنية","ج م ع تك02","أولى","جدع مشترك علوم وتكنولوجيا",1,438,"E2",null,null,"رقم 35 درب 8 حي المقراني مغنية ","إلى يومنا هذا ",null,null,null,null,null,"موقاس الطيب"]
[436,1100310000000000,"العابد","وداد","أنثى","2003-06-17","مغنية","ج م ع تك02","أولى","جدع مشترك علوم وتكنولوجيا",2,439,"E1",null,null,"ثانوية الخوارزمي مغنية ","إلى يومنا هذا ",null,null,null,null,null,"العابد وداد"]
[437,1000110000000000,"برازي","عمر","ذكر","2001-09-30","مغنية","ج م ع تك02","أولى","جدع مشترك علوم وتكنولوجيا",2,441,"E1",null,null,"طريق تلمسان رقم 16 حي بلال مغنية ","إلى يومنا هذا ",null,null,null,null,null,"برازي عمر"]
[438,1100410000000000,"بلطرش","سعاد رانية","أنثى","2004-06-22","مغنية","ج م ع تك03","أولى","جدع مشترك علوم وتكنولوجيا",2,442,"D1",null,null,"إقامة تافنة حي بلال عمارة أ 5 طابق 4 مغنية ","إلى يومنا هذا ",null,null,null,null,null,"بلطرش سعاد رانية"]
[439,1000210000000000,"بن سالم","عبد الرحمان","ذكر","2002-07-17","مغنية","ج م ع تك03","أولى","جدع مشترك علوم وتكنولوجيا",2,443,"D2",null,null,"حي بلال مغنية ","إلى يومنا هذا ",null,null,null,null,null,"بن سالم عبد الرحمان"]
[440,1000410000000000,"بن طيب","ياسين","ذكر","2004-12-04","مغنية","ج م ع تك03","أولى","جدع مشترك علوم وتكنولوجيا",2,444,"D2",null,null,"قرية البطيم مغنية ","إلى يومنا هذا ",null,null,null,"خ1",null,"بن طيب ياسين"]
[441,1000310000000000,"بورديم","فيصل","ذكر","2003-05-18","مغنية","ج م ع تك03","أولى","جدع مشترك علوم وتكنولوجيا",2,445,"D1",null,null,"قرية البطيم مغنية ","إلى يومنا هذا ",null,null,null,null,null,"بورديم فيصل"]
[442,1000310000000000,"بوزيان","عبد المولى","ذكر","2003-07-20","مغنية","ج م ع تك03","أولى","جدع مشترك علوم وتكنولوجيا",2,446,"D2",null,null,"قريةالبطيم ","إلى يومنا هذا ",null,null,null,null,null,"بوزيان عبد المولى"]
[443,1100410000000000,"بومدين","زكية","أنثى","2004-12-08","مغنية","ج م ع تك03","أولى","جدع مشترك علوم وتكنولوجيا",2,447,"E1",null,null,"أولاد الشارف مغنية ","إلى يومنا هذا ",null,null,null,null,null,"بومدين زكية"]
[444,1100210000000000,"حمادي","دعاء","أنثى","2002-08-08","مغنية","ج م ع تك03","أولى","جدع مشترك علوم وتكنولوجيا",2,449,"E1",null,null,"قرية العقيد عباس مغنية ","إلى يومنا هذا ",null,null,null,null,null,"حمادي دعاء"]
[445,1100210000000000,"داري","أميرة","أنثى","2004-08-22","مغنية","ج م ع تك03","أولى","جدع مشترك علوم وتكنولوجيا",2,450,"E1",null,null,"03 شارع العقيد لطفي مغنية ","إلى يومنا هذا ",null,null,null,null,null,"داري أميرة"]
[446,1000310000000000,"رحال","عبد الجليل","ذكر","2003-11-08","مغنية","ج م ع تك03","أولى","جدع مشترك علوم وتكنولوجيا",2,451,"D1",null,null,"قرية البطيم مغنية ","إلى يومنا هذا ",null,null,null,null,null,"رحال عبد الجليل"]
[447,1000310000000000,"زاوي","ابراهيم","ذكر","2003-02-06","مغنية","ج م ع تك03","أولى","جدع مشترك علوم وتكنولوجيا",2,452,"D1",null,null,"قرية البطيم مغنية ","إلى يومنا هذا ",null,null,null,null,null,"زاوي ابراهيم"]
[448,1100410000000000,"شواو","أمينة","أنثى","2004-04-20","مغنية","ج م ع تك03","أولى","جدع مشترك علوم وتكنولوجيا",2,453,"D2",null,null,"البخاتة القديمة مغنية ","إلى يومنا هذا ",null,null,null,null,null,"شواو أمينة"]
[449,1000250000000000,"شيخ عبد الكريم","اسماعيل","ذكر","2002-01-12","عين تيموشنت","ج م ع تك03","أولى","جدع مشترك علوم وتكنولوجيا",2,454,"D1",null,null,"أولاد الشارف مغنية ","إلى يومنا هذا ",null,null,null,null,null,{"$f":"C450 & \" \" & D450","v":"شيخ عبد الكريم اسماعيل"}]
[450,1000410000000000,"عفاني","أيمن","ذكر","2004-08-30","مغنية","ج م ع تك03","أولى","جدع مشترك علوم وتكنولوجيا",2,455,"D1",null,null,"قرية البطيم مغنية ","إلى يومنا هذا ",null,null,null,null,null,"عفاني أيمن"]
[451,1000510000000000,"علواني","يوسف","ذكر","2005-03-05","مغنية","ج م ع تك03","أولى","جدع مشترك علوم وتكنولوجيا",2,456,"D2",null,null,"قرية البخاتة مغنية ","إلى يومنا هذا ",null,null,null,null,null,"علواني يوسف"]
[452,1100310000000000,"قرد","آية","أنثى","2003-05-08","مغنية","ج م ع تك03","أولى","جدع مشترك علوم وتكنولوجيا",2,457,"D1",null,null,"قرية البطيم مغنية ","إلى يومنا هذا ",null,null,null,null,null,"قرد آية"]
[453,1000410000000000,"كبيب","محمد أمين","ذكر","2004-09-25","مغنية","ج م ع تك03","أولى","جدع مشترك علوم وتكنولوجيا",2,458,"E2",null,null,"قرية البطيم مغنية ","إلى يومنا هذا ",null,null,null,null,null,"كبيب محمد أمين"]
[454,1100410000000000,"مصار","إناس","أنثى","2004-07-24","مغنية","ج م ع تك03","أولى","جدع مشترك علوم وتكنولوجيا",2,459,"E1",null,null,"قرية البخاتة مغنية ","إلى يومنا هذا ",null,null,null,null,null,"مصار إناس"]
[455,1000410000000000,"مصمودي","العيد","ذكر","2004-07-24","مغنية","ج م ع تك03","أولى","جدع مشترك علوم وتكنولوجيا",2,460,"E2",null,null,"قرية المصامدة مغنية ","إلى يومنا هذا ",null,null,null,null,null,"مصمودي العيد"]
[456,1100410000000000,"مقدم","موسى","أنثى","2004-12-07","مغنية","ج م ع تك04","أولى","جدع مشترك علوم وتكنولوجيا",2,461,"E1",null,null,"قرية البخاتة مغنية ","إلى يومنا هذا ",null,null,null,null,null,"مقدم موسى"]
[457,1100410000000000,"مواليد","شيماء","أنثى","2004-11-17","مغنية","ج م ع تك04","أولى","جدع مشترك علوم وتكنولوجيا",2,462,"E1",null,null,"أولاد الشارف مغنية ","إلى يومنا هذا ",null,null,null,null,null,"مواليد شيماء"]
[458,1100410000000000,"نوالي","ارشاد","أنثى","2004-02-25","مغنية","ج م ع تك04","أولى","جدع مشترك علوم وتكنولوجيا",2,463,"E1",null,null,"قرية البطيم مغنية ","إلى يومنا هذا ",null,null,null,null,null,"نوالي ارشاد"]
[459,1000310000000000,"بلهادي","عبد الرزاق","ذكر","2003-09-15","مغنية","ج م ع تك04","أولى","جدع مشترك علوم وتكنولوجيا",2,464,"D1",null,null,"أولاد الشارف مغنية ","إلى يومنا هذا ",null,null,null,null,null,"بلهادي عبد الرزاق"]
[460,1100410000000000,"رحال","سارة","أنثى","2004-07-22","مغنية","ج م ع تك04","أولى","جدع مشترك علوم وتكنولوجيا",2,465,"D1",null,null,"أولاد الشارف مغنية ","إلى يومنا هذا ",null,null,null,null,null,"رحال سارة"]
[461,1000310000000000,"مخفي","أحمد عبد المؤمن","ذكر","2003-09-02","مغنية","ج م ع تك04","أولى","جدع مشترك علوم وتكنولوجيا",2,466,"D2",null,null,"المصامدة مغنية ","إلى يومنا هذا ",null,null,null,null,null,"مخفي أحمد عبد المؤمن"]
[462,1100310000000000,"مرحوم","دعاء","أنثى","2003-12-21","مغنية","ج م ع تك04","أولى","جدع مشترك علوم وتكنولوجيا",2,467,"D1",null,null,"أولاد قدور الكبار مغنية ","إلى يومنا هذا ",null,null,null,null,null,"مرحوم دعاء"]
[463,1100510000000000,"هواري","سلسبيل","أنثى","2005-02-20","مغنية","ج م ع تك04","أولى","جدع مشترك علوم وتكنولوجيا",2,468,"D1",null,null,"قرية البطيم مغنية ","إلى يومنا هذا ",null,null,null,null,null,"هواري سلسبيل"]
[464,1100410000000000,"بختاوي","آمنة","أنثى","2004-02-02","مغنية","ج م ع تك04","أولى","جدع مشترك علوم وتكنولوجيا",3,469,"D2",null,null,"اولاد الشارف ","إلى يومنا هذا ",null,null,null,null,null,"بختاوي آمنة"]
[465,1100330000000000,"بطاهر","خالدة","أنثى","2003-04-22","عشعاشة","ج م ع تك04","أولى","جدع مشترك علوم وتكنولوجيا",3,470,"D1",null,null,"حي الشهداء مغنية ","إلى يومنا هذا ",null,null,null,null,null,"بطاهر خالدة"]
[466,1400410000000000,"بن زغادي","أحمد ياسين","ذكر","2004-09-08","مغنية","ج م ع تك04","أولى","جدع مشترك علوم وتكنولوجيا",3,471,"E2",null,null,"حي بلال مغنية ","إلى يومنا هذا ",null,null,null,null,null,"بن زغادي أحمد ياسين"]
[467,1100410000000000,"بن شقرة","نسرين","أنثى","2004-06-26","مغنية","ج م ع تك04","أولى","جدع مشترك علوم وتكنولوجيا",3,472,"E1",null,null,"اولاد الشارف مغنية ","إلى يومنا هذا ",null,null,null,null,null,"بن شقرة نسرين"]
[468,1100410000000000,"بن عيش","ليلى","أنثى","2004-10-23","مغنية","ج م ع تك04","أولى","جدع مشترك علوم وتكنولوجيا",3,473,"E2",null,null,"حي المقراني شارع 17 ","إلى يومنا هذا ",null,null,null,null,null,"بن عيش ليلى"]
[469,1100410000000000,"بوزار","شهيناز","أنثى","2004-10-24","مغنية","ج م ع تك04","أولى","جدع مشترك علوم وتكنولوجيا",3,474,"E1",null,null,"رقم 2  حي الشهداء مغنية ","إلى يومنا هذا ",null,null,null,null,null,"بوزار شهيناز"]
[470,1100510000000000,"بوزيان","مروة","أنثى","2005-01-18","مغنية","ج م ع تك04","أولى","جدع مشترك علوم وتكنولوجيا",3,475,"E1",null,null,"قرية البطيم ","إلى يومنا هذا ",null,null,null,null,null,"بوزيان مروة"]
[471,1100410000000000,"بوعلي","أميمة","أنثى","2004-05-30","مغنية","ج م ع تك04","أولى","جدع مشترك علوم وتكنولوجيا",3,476,"D1",null,null,"قرية البطيم مغنية ","إلى يومنا هذا ",null,null,null,null,null,"بوعلي أميمة"]
[472,1100410000000000,"بوعيشة","فاطمة الزهراء","أنثى","2004-06-13","مغنية","ج م ع تك05","أولى","جدع مشترك علوم وتكنولوجيا",3,477,"D2",null,null,"اولاد الشارف مغنية ","إلى يومنا هذا ",null,null,null,null,null,"بوعيشة فاطمة الزهراء"]
[473,1100410000000000,"تاسرة","رانيا","أنثى","2004-08-24","مغنية","ج م ع تك05","أولى","جدع مشترك علوم وتكنولوجيا",3,478,"D2",null,null,"قرية المصامدة مغنية ","إلى يومنا هذا ",null,null,null,null,null,"تاسرة رانيا"]
[474,1100210000000000,"تواتي","فوزية","أنثى","2002-04-20","مغنية","ج م ع تك05","أولى","جدع مشترك علوم وتكنولوجيا",3,479,"D1",null,null,"قرية بوسدرة البخاتة مغنية ","إلى يومنا هذا ",null,null,null,null,null,"تواتي فوزية"]
[475,1000410000000000,"حوحو","محفوظ عبد الرحيم","ذكر","2004-02-21","مغنية","ج م ع تك05","أولى","جدع مشترك علوم وتكنولوجيا",3,480,"D2",null,null,"أولاد الشارف مغنية ","إلى يومنا هذا ",null,null,null,null,null,"حوحو محفوظ عبد الرحيم"]
[476,1100310000000000,"راجعي","شمسة","أنثى","2003-01-11","مغنية","ج م ع تك05","أولى","جدع مشترك علوم وتكنولوجيا",3,481,"E1",null,null,"قرية البطيم مغنية ","إلى يومنا هذا ",null,null,null,null,null,"راجعي شمسة"]
[477,1000310000000000,"رمضاني","يحي","ذكر","2003-03-05","مغنية","ج م ع تك05","أولى","جدع مشترك علوم وتكنولوجيا",3,482,"E1",null,null,"قرية العقيد عباس مغنية تلمسان ","إلى يومنا هذا ",null,null,null,null,null,"رمضاني يحي"]
[478,1000310000000000,"زحزوح","محمد الصادق","ذكر","2003-12-27","مغنية","ج م ع تك05","أولى","جدع مشترك علوم وتكنولوجيا",3,483,"E1",null,null,"قرية المصامدة مغنية ","إلى يومنا هذا ",null,null,null,null,null,"زحزوح محمد الصادق"]
[479,1100410000000000,"زرقاني","هديل","أنثى","2004-10-23","مغنية","ج م ع تك05","أولى","جدع مشترك علوم وتكنولوجيا",3,484,"D1",null,null,"بني بوسعيد مغنية ","إلى يومنا هذا ",null,null,null,null,null,"زرقاني هديل"]
[480,1100410000000000,"شارف","فاطمة الزهراء","أنثى","2004-11-08","مغنية","ج م ع تك05","أولى","جدع مشترك علوم وتكنولوجيا",3,485,"D1",null,null,"أولاد الشارف مغنية ","إلى يومنا هذا ",null,null,null,null,null,"شارف فاطمة الزهراء"]
[481,1000310000000000,"شريفي","شريف","ذكر","2003-05-28","سبدو","ج م ع تك05","أولى","جدع مشترك علوم وتكنولوجيا",3,486,"D2",null,null,"أولاد الشارف المربع7 مغنية ","إلى يومنا هذا ",null,null,null,null,null,"شريفي شريف"]
[482,1000310000000000,"شيباني","سمير","ذكر","2003-03-13","مغنية","ج م ع تك05","أولى","جدع مشترك علوم وتكنولوجيا",3,487,"D1",null,null,"أولاد الشارف مغنية ","إلى يومنا هذا ",null,null,null,null,null,"شيباني سمير"]
[483,1000310000000000,"فاطمي","فاتح زكرياء","ذكر","2003-05-29","تلمسان","ج م ع تك05","أولى","جدع مشترك علوم وتكنولوجيا",3,488,"D1",null,null,"قرية البطيم مغنية ","إلى يومنا هذا ",null,null,null,null,null,"فاطمي فاتح زكرياء"]
[484,1000520000000000,"فايد","معاذ","ذكر","2004-02-07","سيدي بلعباس","ج م ع تك05","أولى","جدع مشترك علوم وتكنولوجيا",3,490,"D2",null,null,"قرية المصامدة مغنية ","إلى يومنا هذا ",null,null,null,null,null,"فايد معاذ"]
[485,1100310000000000,"مراس","أمال","أنثى","2003-03-19","مغنية","ج م ع تك05","أولى","جدع مشترك علوم وتكنولوجيا",3,491,"D1",null,null,"أولاد الشارف مغنية ","إلى يومنا هذا ",null,null,null,null,null,"مراس أمال"]
[486,1100410000000000,"مفيتح","مريم","أنثى","2004-12-06","مغنية","ج م ع تك05","أولى","جدع مشترك علوم وتكنولوجيا",3,492,"E2",null,null,"أولاد الشارف مغنية ","إلى يومنا هذا ",null,null,null,null,null,"مفيتح مريم"]
[487,1000210000000000,"بومدين","مراد","ذكر","2002-11-27","مغنية","ج م ع تك05","أولى","جدع مشترك علوم وتكنولوجيا",3,493,"E1",null,null,"أولاد الشارف ","إلى يومنا هذا ",null,null,null,null,null,"بومدين مراد"]
[488,1000410000000000,"حمادي","أيوب","ذكر","2004-10-20","مغنية","ج م ع تك05","أولى","جدع مشترك علوم وتكنولوجيا",3,494,"D1",null,null,"قرية البطيم مغنية ","إلى يومنا هذا ",null,null,null,null,null,"حمادي أيوب"]
[489,1100410000000000,"خاليد","سارة","أنثى","2004-05-17","مغنية","ج م ع تك05","أولى","جدع مشترك علوم وتكنولوجيا",3,495,"D1",null,null,"حي الزيتون بن سكران تلمسان ","إلى يومنا هذا ",null,null,null,null,null,"خاليد سارة"]
[490,1000410000000000,"دريسي","عبد الجليل","ذكر","2004-06-27","مغنية","ج م ع تك05","أولى","جدع مشترك علوم وتكنولوجيا",3,496,"D2",null,null,"حي بلال مغنية ","إلى يومنا هذا ",null,null,null,null,null,"دريسي عبد الجليل"]
[491,1000410000000000,"راشدي","عبدالله","ذكر","2004-03-09","مغنية","ج م ع تك05","أولى","جدع مشترك علوم وتكنولوجيا",3,497,"D1",null,null,"قرية البطيم مغنية ","إلى يومنا هذا ",null,null,null,null,null,"راشدي عبدالله"]
[492,1000410000000000,"قريشي","محمد","ذكر","2004-08-04","مغنية","ج م ع تك06","أولى","جدع مشترك علوم وتكنولوجيا",3,498,"E2",null,null,"قرية البطيم مغنية ","إلى يومنا هذا ",null,null,null,null,null,"قريشي محمد"]
[493,1100310000000000,"أمبارك","نور الهدى","أنثى","2003-11-07","مغنية","ج م ع تك06","أولى","جدع مشترك علوم وتكنولوجيا",4,499,"E1",null,null,"قرية المصامدة مغنية ","إلى يومنا هذا ",null,null,null,null,null,"أمبارك نور الهدى"]
[494,1100410000000000,"أمحمدي","آسية","أنثى","2004-01-12","مغنية","ج م ع تك06","أولى","جدع مشترك علوم وتكنولوجيا",4,500,"E2",null,null,"قرية اولاد قدور الكبار مغنية ","إلى يومنا هذا ",null,null,null,null,null,"أمحمدي آسية"]
[495,1100310000000000,"أورياشت","آية","أنثى","2003-05-07","مغنية","ج م ع تك06","أولى","جدع مشترك علوم وتكنولوجيا",4,501,"E1",null,null,"شارع المسبح البلدي حي الشهداء -مغنية- ","إلى يومنا هذا ",null,null,null,null,null,"أورياشت آية"]
[496,1000310000000000,"بوستين","محمد اسلام","ذكر","2003-11-29","مغنية","ج م ع تك06","أولى","جدع مشترك علوم وتكنولوجيا",4,502,"E1",null,null,"شارع محطة القطار حي بلال مغنية ","إلى يومنا هذا ",null,null,null,null,null,"بوستين محمد اسلام"]
[497,1100510000000000,"بوطاقة","مريم","أنثى","2005-03-15","مغنية","ج م ع تك06","أولى","جدع مشترك علوم وتكنولوجيا",4,504,"D1",null,null,"شارع شعبان حمدون حي الشهداء ","إلى يومنا هذا ",null,null,null,null,null,"بوطاقة مريم"]
[498,1100310000000000,"بوعيشة","مروة رميسة","أنثى","2003-11-17","مغنية","ج م ع تك06","أولى","جدع مشترك علوم وتكنولوجيا",4,505,"D2",null,null,"أولاد الشارف مغنية ","إلى يومنا هذا ",null,null,null,null,null,"بوعيشة مروة رميسة"]
[499,1100410000000000,"جدودي","إكرام","أنثى","2004-09-12","مغنية","ج م ع تك06","أولى","جدع مشترك علوم وتكنولوجيا",4,506,"D2",null,null,"منطقة 55 شارع 24 منزل 25 مغنية ","إلى يومنا هذا ",null,null,null,null,null,"جدودي إكرام"]
[500,1100310000000000,"حمادي","سارة","أنثى","2003-11-15","مغنية","ج م ع تك06","أولى","جدع مشترك علوم وتكنولوجيا",4,507,"D1",null,null," ","إلى يومنا هذا ",null,null,null,null,null,"حمادي سارة"]
[501,1100410000000000,"حنيفي","دعاء","أنثى","2004-11-20","مغنية","ج م ع تك06","أولى","جدع مشترك علوم وتكنولوجيا",4,508,"D2",null,null,"قرية العقيد عباس أولاد قدور  ","إلى يومنا هذا ",null,null,null,null,null,"حنيفي دعاء"]
[502,1000310000000000,"دمامن","عبد القادر","ذكر","2003-05-25","مغنية","ج م ع تك06","أولى","جدع مشترك علوم وتكنولوجيا",4,509,"E1",null,null,"قرية العقيد لطفي مغنية ","إلى يومنا هذا ",null,null,null,null,null,"دمامن عبد القادر"]
[503,1100410000000000,"زرقاني","أمال خليدة","أنثى","2004-03-13","مغنية","ج م ع تك06","أولى","جدع مشترك علوم وتكنولوجيا",4,510,"E1",null,null,"قرية البخاتة مغنية ","إلى يومنا هذا ",null,null,null,null,null,"زرقاني أمال خليدة"]
[504,1000310000000000,"سايحي","علي","ذكر","2003-01-26","مغنية","ج م ع تك06","أولى","جدع مشترك علوم وتكنولوجيا",4,511,"E1",null,null,"قرية اولاد الشارف مغنية ","إلى يومنا هذا ",null,null,null,null,null,"سايحي علي"]
[505,1000410000000000,"ستاوي","عبد الهادي رضا","ذكر","2004-09-06","مغنية","ج م ع تك06","أولى","جدع مشترك علوم وتكنولوجيا",4,512,"D1",null,null,"أولاد الشارف مغنية ","إلى يومنا هذا ",null,null,null,null,null,"ستاوي عبد الهادي رضا"]
[506,1000110000000000,"سدراوي","محمد","ذكر","2001-06-28","مغنية","ج م ع تك06","أولى","جدع مشترك علوم وتكنولوجيا",4,513,"D1",null,null,"قرية المصامدة مغنية ","إلى يومنا هذا ",null,null,null,null,null,"سدراوي محمد"]
[507,1000310000000000,"عياد","محمد ياسين","ذكر","2003-12-20","مغنية","ج م ع تك06","أولى","جدع مشترك علوم وتكنولوجيا",4,514,"D2",null,null,"أولاد الشارف مغنية ","إلى يومنا هذا ",null,null,null,null,null,"عياد محمد ياسين"]
[508,1000210000000000,"فلاح","عبد القادر","ذكر","2002-11-03","مغنية","ج م ع تك06","أولى","جدع مشترك علوم وتكنولوجيا",4,515,"D1",null,null,"قري ال ","إلى يومنا هذا ",null,null,null,null,null,"فلاح عبد القادر"]
[509,1000410000000000,"قرواو","محمد الأمين","ذكر","2004-02-11","مغنية","ج م ع تك06","أولى","جدع مشترك علوم وتكنولوجيا",4,516,"D1",null,null,"قرية البطيم مغنية ","إلى يومنا هذا ",null,null,null,null,null,"قرواو محمد الأمين"]
[510,1000110000000000,"كرد","توفيق","ذكر","2001-08-17","مغنية","ج م ع تك06","أولى","جدع مشترك علوم وتكنولوجيا",4,517,"D2",null,null,"قرية الكفاف مغنية ","إلى يومنا هذا ",null,null,null,null,null,"كرد توفيق"]
[511,1100410000000000,"لكحل","ياسمين","أنثى","2004-02-14","مغنية","ج م ع تك07","أولى","جدع مشترك علوم وتكنولوجيا",4,518,"D1",null,null,"أولاد الشارف مغنية ","إلى يومنا هذا ",null,null,null,null,null,"لكحل ياسمين"]
[512,1100410000000000,"مصمودي","نجية","أنثى","2004-07-22","مغنية","ج م ع تك07","أولى","جدع مشترك علوم وتكنولوجيا",4,519,"E2",null,null," ","إلى يومنا هذا ",null,null,null,null,null,"مصمودي نجية"]
[513,1100410000000000,"مولاي بودخيلي","شيماء","أنثى","2004-06-01","مغنية","ج م ع تك07","أولى","جدع مشترك علوم وتكنولوجيا",4,520,"E1",null,null,"قرية العقيد عباس مغنية تلمسان ","إلى يومنا هذا ",null,null,null,null,null,{"$f":"C514 & \" \" & D514","v":"مولاي بودخيلي شيماء"}]
[514,1100310000000000,"بختاوي","مغنية","أنثى","2003-02-15","مغنية","ج م ع تك07","أولى","جدع مشترك علوم وتكنولوجيا",4,521,"E2",null,null,"قرية ولاد قدور مغنية ","إلى يومنا هذا ",null,null,null,null,null,"بختاوي مغنية"]
[515,1100310000000000,"برواين","حورية","أنثى","2003-10-19","مغنية","ج م ع تك07","أولى","جدع مشترك علوم وتكنولوجيا",4,522,"E1",null,null,"عياد محمد أولاد الشارف مغنية ","إلى يومنا هذا ",null,null,null,null,null,"برواين حورية"]
[516,1100510000000000,"بن هدي","إناس","أنثى","2005-01-01","مغنية","ج م ع تك07","أولى","جدع مشترك علوم وتكنولوجيا",4,523,"E1",null,null,"درب 90 رقم 24 تجزئة مصالي الحاج مغنية ","إلى يومنا هذا ",null,null,null,null,null,"بن هدي إناس"]
[517,1000410000000000,"بوحفص","عبد الرحيم","ذكر","2004-12-23","مغنية","ج م ع تك07","أولى","جدع مشترك علوم وتكنولوجيا",4,524,"D1",null,null,"قرية البطيم مغنية ","إلى يومنا هذا ",null,null,null,null,null,"بوحفص عبد الرحيم"]
[518,1000410000000000,"حواسة","عبد الرحمن","ذكر","2004-07-06","مغنية","ج م ع تك07","أولى","جدع مشترك علوم وتكنولوجيا",4,525,"D2",null,null,"قرية العقيد لطفي مغنية ","إلى يومنا هذا ",null,null,null,null,null,"حواسة عبد الرحمن"]
[519,1100510000000000,"دمامن","شيماء","أنثى","2005-02-08","مغنية","ج م ع تك07","أولى","جدع مشترك علوم وتكنولوجيا",4,526,"D2",null,null,"قرية المصامدة مغنية ","إلى يومنا هذا ",null,null,null,null,null,"دمامن شيماء"]
[520,1100210000000000,"رحموني","حنان","أنثى","2002-08-27","مغنية","ج م ع تك07","أولى","جدع مشترك علوم وتكنولوجيا",4,527,"D1",null,null,"قرية المصامدة مغنية ","إلى يومنا هذا ",null,null,null,null,null,"رحموني حنان"]
[521,1000410000000000,"أمحمدي","وليد","ذكر","2004-10-06","مغنية","ج م ع تك07","أولى","جدع مشترك علوم وتكنولوجيا",5,528,"D2",null,null,"المصامدة ","إلى يومنا هذا ",null,null,null,null,null,"أمحمدي وليد"]
[522,1100410000000000,"بختاوي","آية","أنثى","2004-04-25","مغنية","ج م ع تك07","أولى","جدع مشترك علوم وتكنولوجيا",5,529,"E1",null,null,"حي الشهداء مغنية ","إلى يومنا هذا ",null,null,null,null,null,"بختاوي آية"]
[523,1100510000000000,"بن حلي","ياسمينة فادية","أنثى","2005-02-08","مغنية","ج م ع تك07","أولى","جدع مشترك علوم وتكنولوجيا",5,530,"E1",null,null,"حي الشهداء مغنية ","إلى يومنا هذا ",null,null,null,null,null,"بن حلي ياسمينة فادية"]
[524,1000410000000000,"بوبندير","أحمد","ذكر","2004-11-13","مغنية","ج م ع تك07","أولى","جدع مشترك علوم وتكنولوجيا",5,531,"E1",null,null,"حي الشهداء ","إلى يومنا هذا ",null,null,null,null,null,"بوبندير أحمد"]
[525,1100310000000000,"بوبندير","ميساء","أنثى","2003-08-05","مغنية","ج م ع تك07","أولى","جدع مشترك علوم وتكنولوجيا",5,532,"D1",null,null,"شارع 7 منزل7 حي الشهداء مغنية ","إلى يومنا هذا ",null,null,null,null,null,"بوبندير ميساء"]
[526,1000210000000000,"بوجمعة","زواوي","ذكر","2002-04-11","مغنية","ج م ع تك07","أولى","جدع مشترك علوم وتكنولوجيا",5,533,"D1",null,null,"درب 4 منزل 16 حي الشهداء ","إلى يومنا هذا ",null,null,null,null,null,"بوجمعة زواوي"]
[527,1100410000000000,"بودرقة","أميمة","أنثى","2004-07-23","مغنية","ج م ع تك08","أولى","جدع مشترك علوم وتكنولوجيا",5,534,"D2",null,null,"المنزل رقم 12 حي الشهداء مغنية ","إلى يومنا هذا ",null,null,null,null,null,"بودرقة أميمة"]
[528,1100410000000000,"بوزاهري","شيماء","أنثى","2004-07-19","مغنية","ج م ع تك08","أولى","جدع مشترك علوم وتكنولوجيا",5,535,"D1",null,null,"حي بلال المذبح البلدي الجديد مغنية ","إلى يومنا هذا ",null,null,null,null,null,"بوزاهري شيماء"]
[529,1000510000000000,"بوستين","أسامة","ذكر","2005-02-20","مغنية","ج م ع تك08","أولى","جدع مشترك علوم وتكنولوجيا",5,536,"D1",null,null,"أولاد قدور لكبار مغنية ","إلى يومنا هذا ",null,null,null,null,null,"بوستين أسامة"]
[530,1000210000000000,"زحزوح","يحي","ذكر","2002-12-25","مغنية","ج م ع تك08","أولى","جدع مشترك علوم وتكنولوجيا",5,537,"D2",null,null,"قرية البطيم مغنية ","إلى يومنا هذا ",null,null,null,null,null,"زحزوح يحي"]
[531,1100410000000000,"زياني الأول","خديجة","أنثى","2004-10-20","مغنية","ج م ع تك08","أولى","جدع مشترك علوم وتكنولوجيا",5,538,"D1",null,null,"أولاد الشارف مغنية ","إلى يومنا هذا ",null,null,null,null,null,"زياني الأول خديجة"]
[532,1100410000000000,"شاوش","هند","أنثى","2004-01-19","تلمسان","ج م ع تك08","أولى","جدع مشترك علوم وتكنولوجيا",5,539,"E2",null,null,"قرية البطيم مغنية ","إلى يومنا هذا ",null,null,null,null,null,"شاوش هند"]
[533,1100310000000000,"شياخ","شيماء","أنثى","2003-06-10","مغنية","ج م ع تك08","أولى","جدع مشترك علوم وتكنولوجيا",5,540,"E1",null,null,"قرية البطيم مغنية ","إلى يومنا هذا ",null,null,null,null,null,"شياخ شيماء"]
[534,1100310000000000,"صافي","شيماء","أنثى","2003-11-06","مغنية","ج م ع تك08","أولى","جدع مشترك علوم وتكنولوجيا",5,541,"E2",null,null,"اولاد الشارف طريق صبرة مغنية ","إلى يومنا هذا ",null,null,null,null,null,"صافي شيماء"]
[535,1000110000000000,"طيبي","ايوب","ذكر","2001-01-09","بني وارسوس","ج م ع تك08","أولى","جدع مشترك علوم وتكنولوجيا",5,542,"E1",null,null,"اولاد الشارف مغنية ","إلى يومنا هذا ",null,null,null,null,null,"طيبي ايوب"]
[536,1100410000000000,"عبد اللي","سلمى","أنثى","2004-11-30","مغنية","ج م ع تك08","أولى","جدع مشترك علوم وتكنولوجيا",5,543,"E1",null,null,"قرية البخاتة ","إلى يومنا هذا ",null,null,null,null,null,"عبد اللي سلمى"]
[537,1100410000000000,"قوراري","ليندة","أنثى","2004-04-30","مغنية","ج م ع تك08","أولى","جدع مشترك علوم وتكنولوجيا",5,544,"D1",null,null,"أولاد الشارف مغنية ","إلى يومنا هذا ",null,null,null,null,null,"قوراري ليندة"]
[538,1000110000000000,"قيطوني","محمد حسام الدّين","ذكر","2001-05-20","مغنية","ج م ع تك08","أولى","جدع مشترك علوم وتكنولوجيا",5,545,"D2",null,null,"قرية راس العصفور المصامدة  مغنية ","إلى يومنا هذا ",null,null,null,null,null,"قيطوني محمد حسام الدّين"]
[539,1100410000000000,"كوشير","فاطمة الزهراء","أنثى","2004-08-23","مغنية","ج م ع تك08","أولى","جدع مشترك علوم وتكنولوجيا",5,546,"D2",null,null,"قرية العقيد لطفي مغنية ","إلى يومنا هذا ",null,null,null,null,null,"كوشير فاطمة الزهراء"]
[540,1000310000000000,"لباد","أيوب","ذكر","2003-01-07","مغنية","ج م ع تك08","أولى","جدع مشترك علوم وتكنولوجيا",5,547,"D1",null,null,"قرية بوسدرة البخاتة مغنية ","إلى يومنا هذا ",null,null,null,null,null,"لباد أيوب"]
[541,1100410000000000,"لحسايني","فاطمة الزهراء","أنثى","2004-09-16","مغنية","ج م ع تك08","أولى","جدع مشترك علوم وتكنولوجيا",5,548,"D2",null,null,"قرية المصامدة مغنية ","إلى يومنا هذا ",null,null,null,null,null,"لحسايني فاطمة الزهراء"]
[542,1100410000000000,"لزعر","شيماء","أنثى","2004-09-10","مغنية","ج م ع تك08","أولى","جدع مشترك علوم وتكنولوجيا",5,549,"E1",null,null,"اولاد الشارف مغنية ","إلى يومنا هذا ",null,null,null,null,null,"لزعر شيماء"]
[543,1100410000000000,"لعروسي","فرح","أنثى","2004-01-12","مغنية","ج م ع تك08","أولى","جدع مشترك علوم وتكنولوجيا",5,550,"E1",null,null,"قرية المصامدة مغنية ","إلى يومنا هذا ",null,null,null,null,null,"لعروسي فرح"]
[544,1100310000000000,"مرجع","هاجر","أنثى","2003-02-23","مغنية","ج م ع تك08","أولى","جدع مشترك علوم وتكنولوجيا",5,551,"E1",null,null,"قرية البطيم ","إلى يومنا هذا ",null,null,null,null,null,"مرجع هاجر"]
[545,1000110000000000,"منور","أحمد","ذكر","2001-12-28","مغنية","ج م ع تك08","أولى","جدع مشترك علوم وتكنولوجيا",5,552,"D1",null,null,"قرية البخاتة مغنية ","إلى يومنا هذا ",null,null,null,null,null,"منور أحمد"]
[546,1100410000000000,"نوالي","لبنى","أنثى","2004-06-21","مغنية","ج م ع تك08","أولى","جدع مشترك علوم وتكنولوجيا",5,553,"D1",null,null,"قرية البطيم ","إلى يومنا هذا ",null,null,null,null,null,"نوالي لبنى"]
[547,1000310000000000,"يخلف","لحسن","ذكر","2003-09-28","مغنية","ج م ع تك08","أولى","جدع مشترك علوم وتكنولوجيا",5,554,"D2",null,null,"قرية البخاتة مغنية ","إلى يومنا هذا ",null,null,null,null,null,"يخلف لحسن"]
[548,1000110000000000,"بلحرفي","حبيب الرحمان","ذكر","2001-06-29","مغنية","ج م ع تك08","أولى","جدع مشترك علوم وتكنولوجيا",5,555,"D1",null,null,"قرية البطيم ","إلى يومنا هذا ",null,null,null,null,null,"بلحرفي حبيب الرحمان"]
[549,1000310000000000,"راجعي","اسماعيل","ذكر","2003-06-16","مغنية","ج م ع تك08","أولى","جدع مشترك علوم وتكنولوجيا",5,556,"D1",null,null,"قرية المصامدة مغنية ","إلى يومنا هذا ",null,null,null,null,null,"راجعي اسماعيل"]
[550,1100410000000000,"صهباتو","جيهان نورهان","أنثى","2004-07-06","مغنية","ج م ع تك08","أولى","جدع مشترك علوم وتكنولوجيا",5,557,"D2",null,null,"قرية العقيد عباس مغنية ","إلى يومنا هذا ",null,null,null,null,null,"صهباتو جيهان نورهان"]
[551,1100410000000000,"أمبارك","سعدية","أنثى","2004-08-14","مغنية","ج م أ01","أولى","جدع مشترك آداب",1,558,"D1",null,null,"قرية البطيم ","إلى يومنا هذا ",null,null,null,null,null,"أمبارك سعدية"]
[552,1100410000000000,"أوزليفي","عائشة","أنثى","2004-05-25","مغنية","ج م أ01","أولى","جدع مشترك آداب",1,559,"E2",null,null,"قرية البطيم مغنية ","إلى يومنا هذا ",null,null,null,null,null,"أوزليفي عائشة"]
[553,1100410000000000,"امبارك","آية دعاء","أنثى","2004-01-06","مغنية","ج م أ01","أولى","جدع مشترك آداب",1,560,"E1",null,null,"قرية العقيد عباس مغنية تلمسان ","إلى يومنا هذا ",null,null,null,null,null,"امبارك آية دعاء"]
[554,1100310000000000,"امحمدي","أمينة","أنثى","2003-07-12","مغنية","ج م أ01","أولى","جدع مشترك آداب",1,561,"E2",null,null,"قرية البطيم مغنية ","إلى يومنا هذا ",null,null,null,null,null,"امحمدي أمينة"]
[555,1000210000000000,"بلخياطي","مصطفى","ذكر","2002-11-10","مغنية","ج م أ01","أولى","جدع مشترك آداب",1,562,"E1",null,null,"شارع رقم 04 حي السكني مغنية ","إلى يومنا هذا ",null,null,null,null,null,"بلخياطي مصطفى"]
[556,1100310000000000,"بن اعمر","اكرام","أنثى","2003-07-06","مغنية","ج م أ01","أولى","جدع مشترك آداب",1,563,"E1",null,null,"قرية اولاد الشارف مغنية ","إلى يومنا هذا ",null,null,null,null,null,"بن اعمر اكرام"]
[557,1100410000000000,"بن جيلالي","منال","أنثى","2004-06-27","مغنية","ج م أ01","أولى","جدع مشترك آداب",1,564,"E1",null,null,"حي بلال مغنية ","إلى يومنا هذا ",null,null,null,null,null,"بن جيلالي منال"]
[558,1100410000000000,"بن عزوز","شهيناز","أنثى","2004-04-07","مغنية","ج م أ01","أولى","جدع مشترك آداب",1,565,"D1",null,null,"قرية العقيد لطفي مغنية ","إلى يومنا هذا ",null,null,null,null,null,"بن عزوز شهيناز"]
[559,1100410000000000,"بن عيش","أمال","أنثى","2004-03-20","مغنية","ج م أ01","أولى","جدع مشترك آداب",1,566,"D1",null,null,"قرية البطيم مغنية ","إلى يومنا هذا ",null,null,null,null,null,"بن عيش أمال"]
[560,1100110000000000,"بن يحي","أحلام","أنثى","2001-01-17","مغنية","ج م أ01","أولى","جدع مشترك آداب",1,567,"D2",null,null,"قرية العقيد عباس مغنية تلمسان ","إلى يومنا هذا ",null,null,null,null,null,"بن يحي أحلام"]
[561,1000510000000000,"حساين","محمد امين","ذكر","2005-03-28","مغنية","ج م أ01","أولى","جدع مشترك آداب",1,568,"D1",null,null,"اولاد قدور الكبار ","إلى يومنا هذا ",null,null,null,null,null,"حساين محمد امين"]
[562,1100310000000000,"دردار","شهيناز","أنثى","2003-01-24","مغنية","ج م أ01","أولى","جدع مشترك آداب",1,569,"D1",null,null,"قرية العقيد عباس ","إلى يومنا هذا ",null,null,null,null,null,"دردار شهيناز"]
[563,1000510000000000,"زحزوح","وليد","ذكر","2005-02-17","مغنية","ج م أ01","أولى","جدع مشترك آداب",1,570,"D2",null,null,"قرية اولاد الشارف مغنية ","إلى يومنا هذا ",null,null,null,null,null,"زحزوح وليد"]
[564,1000310000000000,"زمري","سيد علي","ذكر","2003-11-08","تمنراست","ج م أ01","أولى","جدع مشترك آداب",1,572,"D1",null,null,"قرية المرازقة مغنية ","إلى يومنا هذا ",null,null,null,null,null,"زمري سيد علي"]
[565,1000310000000000,"سعادنة","محمد أيمن","ذكر","2003-03-15","مغنية","ج م أ01","أولى","جدع مشترك آداب",1,573,"E2",null,null,"الجرابعة ","إلى يومنا هذا ",null,null,null,null,null,"سعادنة محمد أيمن"]
[566,1000210000000000,"عبابدي","عبد الرحمن","ذكر","2002-05-24","مغنية","ج م أ01","أولى","جدع مشترك آداب",1,574,"E1",null,null,"قرية البخاتة مغنية ","إلى يومنا هذا ",null,null,null,null,null,"عبابدي عبد الرحمن"]
[567,1000310000000000,"علوان","عماد الدين","ذكر","2003-03-09","مغنية","ج م أ02","أولى","جدع مشترك آداب",1,575,"E2",null,null,"قرية البطيم مغنية ","إلى يومنا هذا ",null,null,null,null,null,"علوان عماد الدين"]
[568,1100210000000000,"فارس","زهيرة","أنثى","2002-05-12","مغنية","ج م أ02","أولى","جدع مشترك آداب",1,576,"E1",null,null,"قرية بوسدرة - البخاتة مغنية ","إلى يومنا هذا ",null,null,null,null,null,"فارس زهيرة"]
[569,1100410000000000,"مزاري","سناء","أنثى","2004-09-11","مغنية","ج م أ02","أولى","جدع مشترك آداب",1,577,"E1",null,null,"قرية البطيم مغنية ","إلى يومنا هذا ",null,null,null,null,null,"مزاري سناء"]
[570,1000210000000000,"معايسة","ياسين","ذكر","2002-02-07","مغنية","ج م أ02","أولى","جدع مشترك آداب",1,578,"D1",null,null,"قرية البطيم مغنية ","إلى يومنا هذا ",null,null,null,null,null,"معايسة ياسين"]
[571,1000310000000000,"معموري","علاء الدين","ذكر","2003-12-18","مغنية","ج م أ02","أولى","جدع مشترك آداب",1,579,"D2",null,null,"قرية المصامدة مغنية ","إلى يومنا هذا ",null,null,null,null,null,"معموري علاء الدين"]
[572,1100410000000000,"معيذري","نورية","أنثى","2004-02-23","مغنية","ج م أ02","أولى","جدع مشترك آداب",1,580,"D2",null,null,"حي تافسيت تمنراست ","إلى يومنا هذا ",null,null,null,null,null,"معيذري نورية"]
[573,1100210000000000,"أيلاس","أنفال","أنثى","2002-10-29","مغنية","ج م أ02","أولى","جدع مشترك آداب",1,581,"D1",null,null,"قرية العقيد عباس مغنية ","إلى يومنا هذا ",null,null,null,null,null,"أيلاس أنفال"]
[574,1100210000000000,"بوعزاوي","صفاء","أنثى","2002-01-29","مغنية","ج م أ02","أولى","جدع مشترك آداب",1,583,"D2",null,null,"قرية البطيم ","إلى يومنا هذا ",null,null,null,null,null,"بوعزاوي صفاء"]
[575,1100310000000000,"دقي","أمال","أنثى","2003-05-24","مغنية","ج م أ02","أولى","جدع مشترك آداب",1,584,"E1",null,null,"قرية البخاتة مغنية ","إلى يومنا هذا ",null,null,null,null,null,"دقي أمال"]
[576,1100310000000000,"رحال","مغنية","أنثى","2003-12-13","مغنية","ج م أ02","أولى","جدع مشترك آداب",1,585,"E1",null,null,"قرية البطيم مغنية ","إلى يومنا هذا ",null,null,null,null,null,"رحال مغنية"]
[577,1100510000000000,"زغودي","أمينة شيماء","أنثى","2005-01-28","مغنية","ج م أ02","أولى","جدع مشترك آداب",1,586,"E1",null,null,"قرية البخاتة مغنية ","إلى يومنا هذا ",null,null,null,null,null,{"$f":"C578 & \" \" & D578","v":"زغودي أمينة شيماء"}]
[578,1000510000000000,"صدار","معاد","ذكر","2005-02-21","مغنية","ج م أ02","أولى","جدع مشترك آداب",1,587,"D1",null,null,"حي اولاد الشارف مغنية ","إلى يومنا هذا ",null,null,null,null,null,"صدار معاد"]
[579,1000110000000000,"كوليلي","عبد العزيز","ذكر","2001-08-06","مغنية","ج م أ02","أولى","جدع مشترك آداب",1,588,"D1",null,null,"قرية البطيم مغنية ","إلى يومنا هذا ",null,null,null,null,null,"كوليلي عبد العزيز"]
[580,1100410000000000,"العابد","صفاء","أنثى","2004-09-15","مغنية","ج م أ02","أولى","جدع مشترك آداب",2,589,"D2",null,null,"قرية البطيم مغنية ","إلى يومنا هذا ",null,null,null,null,null,"العابد صفاء"]
[581,1000210000000000,"براهمي","بوفلجة","ذكر","2002-05-26","مغنية","ج م أ02","أولى","جدع مشترك آداب",2,590,"D1",null,null,"قرية البطيم مغنية ","إلى يومنا هذا ",null,null,null,"ن د2",null,"براهمي بوفلجة"]
[582,1100310000000000,"بلقاسم","مريم","أنثى","2003-01-03","مغنية","ج م أ02","أولى","جدع مشترك آداب",2,591,"D1",null,null,"درب 28 رقم 16 حي الشهداء مغنية ","إلى يومنا هذا ",null,null,null,null,null,"بلقاسم مريم"]
[583,1100210000000000,"بن أعمر","فاطمة الزهراء","أنثى","2002-12-01","مغنية","ج م أ02","أولى","جدع مشترك آداب",2,592,"D2",null,null,"حي الشهداء مغنية ","إلى يومنا هذا ",null,null,null,null,null,"بن أعمر فاطمة الزهراء"]
[584,1000010000000000,"بن بوعزي","مصطفى","ذكر","2000-08-22","مغنية","ج م أ02","أولى","جدع مشترك آداب",2,593,"D1",null,null,"حي الشهداء مغنية ","إلى يومنا هذا ",null,null,null,null,null,"بن بوعزي مصطفى"]
[585,1100510000000000,"بن سالم","نهاد","أنثى","2005-01-05","مغنية","ج م أ03","أولى","جدع مشترك آداب",2,594,"E2",null,null,"رقم 1 منزل 19 حي بلال مغنية ","إلى يومنا هذا ",null,null,null,null,null,"بن سالم نهاد"]
[586,1100210000000000,"بن سعد","شيماء","أنثى","2002-09-07","مغنية","ج م أ03","أولى","جدع مشترك آداب",2,595,"E1",null,null,"حي الشهداء مغنية ","إلى يومنا هذا ",null,null,null,null,null,"بن سعد شيماء"]
[587,1000410000000000,"بن عراج","محمد نور الاسلام","ذكر","2004-05-02","سبدو","ج م أ03","أولى","جدع مشترك آداب",2,596,"D1",null,null,"شارع 2 رقم 12 حي الشهداء مغنية ","إلى يومنا هذا ",null,null,null,null,null,"بن عراج محمد نور الاسلام"]
[588,1000210000000000,"بن عزوز","صلاح الدين","ذكر","2002-08-06","مغنية","ج م أ03","أولى","جدع مشترك آداب",2,597,"D1",null,null,"شارع الرئيسي لتلمسان رقم40 مغنية ","إلى يومنا هذا ",null,null,null,null,null,"بن عزوز صلاح الدين"]
[589,1100410000000000,"بن عزوز","منار نور الهدى","أنثى","2004-03-10","مغنية","ج م أ03","أولى","جدع مشترك آداب",2,598,"D2",null,null,"قرية البطيم مغنية ",null,null,null,null,null,null,"بن عزوز منار نور الهدى"]
[590,1100410000000000,"بن عزيزة","دعاء","أنثى","2004-06-27","تلمسان","ج م أ03","أولى","جدع مشترك آداب",2,599,"D1",null,null,"قرية البطيم مغنية ","إلى يومنا هذا ",null,null,null,null,null,"بن عزيزة دعاء"]
[591,1000110000000000,"بومدين","احمد","ذكر","2001-07-06","مغنية","ج م أ03","أولى","جدع مشترك آداب",2,600,"E2",null,null,"قرية البطيم مغنية ","إلى يومنا هذا ",null,null,null,null,null,"بومدين احمد"]
[592,1100310000000000,"حاج علي","أمينة","أنثى","2003-09-28","مغنية","ج م أ03","أولى","جدع مشترك آداب",2,601,"E1",null,null,"قرية البطيم مغنية ","إلى يومنا هذا ",null,null,null,null,null,"حاج علي أمينة"]
[593,1100310000000000,"زقاي","اسية","أنثى","2003-01-07","مغنية","ج م أ03","أولى","جدع مشترك آداب",2,602,"E2",null,null,"قرية العقيد لطفي  ",null,null,null,null,null,null,"زقاي اسية"]
[594,1000310000000000,"زياني الأول","محمد","ذكر","2003-04-13","مغنية","ج م أ03","أولى","جدع مشترك آداب",2,603,"E1",null,null,"قرية العقيد عباس ","إلى يومنا هذا ",null,null,null,null,null,"زياني الأول محمد"]
[595,1000210000000000,"عباسي","بلال","ذكر","2002-09-20","مغنية","ج م أ03","أولى","جدع مشترك آداب",2,604,"E1",null,null,"قرية البخاتة مغنية ","إلى يومنا هذا ",null,null,null,null,null,"عباسي بلال"]
[596,1000410000000000,"عبد المالك","محمد أمين","ذكر","2004-09-13","مغنية","ج م أ03","أولى","جدع مشترك آداب",2,605,"D1",null,null,"قرية المصامدة مغنية ","إلى يومنا هذا ",null,null,null,null,null,"عبد المالك محمد أمين"]
[597,1100210000000000,"عبد المالك","منال","أنثى","2002-03-31","مغنية","ج م أ03","أولى","جدع مشترك آداب",2,606,"D2",null,null,"اولاد بن صابر مغنية ","إلى يومنا هذا ",null,null,null,null,null,"عبد المالك منال"]
[598,1100410000000000,"عريبي","صورية","أنثى","2004-08-08","بشار","ج م أ03","أولى","جدع مشترك آداب",2,607,"D2",null,null,"قرية العقيد عباس مغنية ","إلى يومنا هذا ",null,null,null,null,null,"عريبي صورية"]
[599,1100310000000000,"عشراوي","مروة","أنثى","2003-10-19","مغنية","ج م أ03","أولى","جدع مشترك آداب",2,608,"D1",null,null,"قرية البطيم مغنية ","إلى يومنا هذا ",null,null,null,null,null,"عشراوي مروة"]
[600,1000310000000000,"قطي","أيوب","ذكر","2003-11-15","مغنية","ج م أ03","أولى","جدع مشترك آداب",2,609,"D2",null,null,"قرية البطيم مغنية ","إلى يومنا هذا ",null,null,null,null,null,"قطي أيوب"]
[601,1100410000000000,"مزاري","لمياء","أنثى","2004-11-24","البخاتة","ج م أ03","أولى","جدع مشترك آداب",2,610,"E1",null,null,"اولاد قدور الصغار ","إلى يومنا هذا ",null,null,null,null,null,"مزاري لمياء"]
[602,1100410000000000,"منور","آية","أنثى","2004-11-19","مغنية","ج م أ03","أولى","جدع مشترك آداب",2,611,"E1",null,null,"قرية المصامدة مغنية ","2019-01-12",null,null,null,null,null,"منور آية"]
[603,1100410000000000,"بلعمري","منال","أنثى","2004-06-30","مغنية","ج م أ03","أولى","جدع مشترك آداب",2,612,"E1",null,null,"قرية اولاد الشارف مغنية ","إلى يومنا هذا ",null,null,null,null,null,"بلعمري منال"]
[604,1100310000000000,"بوجورفة","كوثر","أنثى","2003-10-05","مغنية","ج م أ03","أولى","جدع مشترك آداب",2,613,"D1",null,null,"قرية البطيم مغنية ","إلى يومنا هذا ",null,null,null,null,null,"بوجورفة كوثر"]
[605,1000210000000000,"رحال","سامية","أنثى","2002-02-24","مغنية","ج م أ03","أولى","جدع مشترك آداب",2,614,"D1",null,null,"قرية العقيد عباس مغنية ","إلى يومنا هذا ",null,null,null,null,null,"رحال سامية"]
[606,1100210000000000,"شياخ","فاطمة","أنثى","2002-09-19","مغنية","ج م أ03","أولى","جدع مشترك آداب",2,615,"D2",null,null,"قرية البخاتة مغنية ","إلى يومنا هذا ",null,null,null,null,null,"شياخ فاطمة"]
[607,1000310000000000,"عزوز","عبد الله","ذكر","2003-07-31","مغنية","ج م أ03","أولى","جدع مشترك آداب",2,616,"D1",null,null,"قرية البخاتة مغنية ","إلى يومنا هذا ",null,null,null,null,null,"عزوز عبد الله"]
[608,1000410000000000,"لحسايني","فاروق","ذكر","2004-12-14","مغنية","ج م أ03","أولى","جدع مشترك آداب",2,617,"D1",null,null,"قرية العقيد لطفي مغنية ","إلى يومنا هذا ",null,null,null,null,null,"لحسايني فاروق"]
[609,1100410000000000,"مبيتيل","حواء","أنثى","2004-08-14","تلمسان","ج م أ03","أولى","جدع مشترك آداب",2,618,"D2",null,null,"شارع 9 منزل 24 حي المقراني ","إلى يومنا هذا ",null,null,null,null,null,"مبيتيل حواء"]
[610,1000210000000000,"أوزليفي","أسامة","ذكر","2002-01-29","مغنية","ج م أ03","أولى","جدع مشترك آداب",3,619,"D1",null,null,"قرية العقيد عباس مغنية ","إلى يومنا هذا ",null,null,null,null,null,"أوزليفي أسامة"]
[611,1100410000000000,"العياطي","فاطمة","أنثى","2004-07-29","مغنية","ج م أ03","أولى","جدع مشترك آداب",3,620,"E2",null,null,"البخاتة مغنية ","إلى يومنا هذا ",null,null,null,null,null,"العياطي فاطمة"]
[612,1000110000000000,"امبارك","اسماعيل","ذكر","2001-06-06","مغنية","ج م أ03","أولى","جدع مشترك آداب",3,621,"E1",null,null,"قرية العقيد لطفي مغنية ","إلى يومنا هذا ",null,null,null,null,null,"امبارك اسماعيل"]
[613,1000310000000000,"بلجيلالي","أحمد بلقاسم","ذكر","2003-05-22","مغنية","ج م أ04","أولى","جدع مشترك آداب",3,622,"E2",null,null,"حي الشهداء مغنية ","إلى يومنا هذا ",null,null,null,null,null,"بلجيلالي أحمد بلقاسم"]
[614,1100410000000000,"بلجيلالي","دعاء","أنثى","2004-07-30","مغنية","ج م أ04","أولى","جدع مشترك آداب",3,623,"E1",null,null,"درب 11 رقم 05 حي الشهداء مغنية ","إلى يومنا هذا ",null,null,null,null,null,"بلجيلالي دعاء"]
[615,1100410000000000,"بلخير","مريم","أنثى","2004-06-22","مغنية","ج م أ04","أولى","جدع مشترك آداب",3,624,"E1",null,null,"شارع حي بلال رقم 19 مغنية ","إلى يومنا هذا ",null,null,null,null,null,"بلخير مريم"]
[616,1000210000000000,"بن عبد الله","محمد اسامة","ذكر","2002-11-28","مغنية","ج م أ04","أولى","جدع مشترك آداب",3,625,"D1",null,null,"درب 01 رقم 23 حي بلال  مغنية ","إلى يومنا هذا ",null,null,null,null,null,"بن عبد الله محمد اسامة"]
[617,1100410000000000,"بورديم","بشرى","أنثى","2004-09-28","مغنية","ج م أ04","أولى","جدع مشترك آداب",3,626,"D2",null,null,"شارع 13 منزل 16 حي المقراني ","إلى يومنا هذا ",null,null,null,null,null,"بورديم بشرى"]
[618,1100410000000000,"بوطاقة","خديجة","أنثى","2004-11-18","مغنية","ج م أ04","أولى","جدع مشترك آداب",3,627,"D2",null,null,"14 حي الشهداء مغنية ","إلى يومنا هذا ",null,null,null,null,null,"بوطاقة خديجة"]
[619,1000210000000000,"بومنجل","نبيل","ذكر","2002-01-21","مغنية","ج م أ04","أولى","جدع مشترك آداب",3,628,"D1",null,null,"منزل 05 حي المذبحة ","إلى يومنا هذا ",null,null,null,null,null,"بومنجل نبيل"]
[620,1100210000000000,"تاجوري","رابحة","أنثى","2002-11-28","مغنية","ج م أ04","أولى","جدع مشترك آداب",3,629,"D2",null,null,"قرية البطيم ","إلى يومنا هذا ",null,null,null,null,null,"تاجوري رابحة"]
[621,1100510000000000,"تادلي","أمال","أنثى","2005-01-29","مغنية","ج م أ04","أولى","جدع مشترك آداب",3,630,"E1",null,null,"حي الشهداء مغنية ","إلى يومنا هذا ",null,null,null,null,null,"تادلي أمال"]
[622,1100410000000000,"تادلي","هدى شيماء","أنثى","2004-12-23","مغنية","ج م أ04","أولى","جدع مشترك آداب",3,631,"E1",null,null,"قرية العقيد لطفي ","إلى يومنا هذا ",null,null,null,null,null,"تادلي هدى شيماء"]
[623,1100310000000000,"حمو","حنان","أنثى","2003-02-26","مغنية","ج م أ04","أولى","جدع مشترك آداب",3,632,"E1",null,null,"مرازقة مغنية ","إلى يومنا هذا ",null,null,null,null,null,"حمو حنان"]
[624,1100410000000000,"سلهامي","رانيا","أنثى","2004-01-11","مغنية","ج م أ04","أولى","جدع مشترك آداب",3,633,"D1",null,null,"قرية البطيم مغنية ","إلى يومنا هذا ",null,null,null,null,null,"سلهامي رانيا"]
[625,1100310000000000,"شهراوي","فاطمة الزهراء","أنثى","2003-10-08","مغنية","ج م أ04","أولى","جدع مشترك آداب",3,634,"D1",null,null,"قرية العقيد عباس مغنية تلمسان ","إلى يومنا هذا ",null,null,null,null,null,"شهراوي فاطمة الزهراء"]
[626,1000210000000000,"عياد","ايوب","ذكر","2002-08-11","مغنية","ج م أ04","أولى","جدع مشترك آداب",3,635,"D2",null,null,"قرية المصامدة مغنية ","إلى يومنا هذا ",null,null,null,null,null,"عياد ايوب"]
[627,1100410000000000,"غربي","فاطمة سناء","أنثى","2004-09-06","مغنية","ج م أ04","أولى","جدع مشترك آداب",3,636,"D1",null,null,"قرية البطيم مغنية ","إلى يومنا هذا ",null,null,null,null,null,"غربي فاطمة سناء"]
[628,1000310000000000,"قاطع","زكرياء","ذكر","2003-11-09","مغنية","ج م أ04","أولى","جدع مشترك آداب",3,637,"D1",null,null,"أولاد الشارف مغنية ","إلى يومنا هذا ",null,null,null,null,null,"قاطع زكرياء"]
[629,1100410000000000,"قديم","أسماء","أنثى","2004-04-03","مغنية","ج م أ04","أولى","جدع مشترك آداب",3,638,"D2",null,null,"قرية البخاتة مغنية ","إلى يومنا هذا ",null,null,null,null,null,"قديم أسماء"]
[630,1000410000000000,"مرزوقي","ادم","ذكر","2004-06-16","مغنية","ج م أ04","أولى","جدع مشترك آداب",3,639,"D1",null,null,"قرية العقيد لطفي  ","إلى يومنا هذا ",null,null,null,null,null,"مرزوقي ادم"]
[631,1100310000000000,"مزاري","زينب","أنثى","2003-04-28","مغنية","ج م أ04","أولى","جدع مشترك آداب",3,640,"E2",null,null,"قرية البخاتة بوسدرة مغنية ","إلى يومنا هذا ",null,null,null,null,null,"مزاري زينب"]
[632,1000210000000000,"مكاحلي","بلال","ذكر","2002-10-18","مغنية","ج م أ04","أولى","جدع مشترك آداب",3,641,"E1",null,null,"مزعة شرقاوي العيد ","إلى يومنا هذا ",null,null,null,null,null,"مكاحلي بلال"]
[633,1000410000000000,"منور","عبد الحسيب","ذكر","2004-09-25","مغنية","ج م أ04","أولى","جدع مشترك آداب",3,642,"E2",null,null,"قرية البطيم مغنية ","إلى يومنا هذا ",null,null,null,null,null,"منور عبد الحسيب"]
[634,1000410000000000,"نواوي","صهيب","ذكر","2004-02-24","مغنية","ج م أ04","أولى","جدع مشترك آداب",3,643,"E1",null,null,"قرية البطيم مغنية ","إلى يومنا هذا ",null,null,null,null,null,"نواوي صهيب"]
[635,1000210000000000,"بن رمضان","عبد المجيد","ذكر","2002-05-27","مغنية","ج م أ04","أولى","جدع مشترك آداب",3,644,"E1",null,null,"مرازقة مغنية ","إلى يومنا هذا ",null,null,null,null,null,"بن رمضان عبد المجيد"]
[636,1100310000000000,"زرقاني","أسماء","أنثى","2003-08-15","مغنية","ج م أ04","أولى","جدع مشترك آداب",3,645,"D1",null,null,"دوار اولاد الشارف مغنية ","إلى يومنا هذا ",null,null,null,null,null,"زرقاني أسماء"]
[637,1000430000000000,"سابق","زكرياء","ذكر","2004-02-16","وهران","ج م أ04","أولى","جدع مشترك آداب",3,646,"D2",null,null,"رقم 57 حي الشهداء مغنية ","إلى يومنا هذا ",null,null,null,null,null,"سابق زكرياء"]
[638,1000410000000000,"مخوخي","علاء الدين","ذكر","2004-08-03","مغنية","ج م أ04","أولى","جدع مشترك آداب",3,647,"D2",null,null,"قرية البطيم مغنية ","إلى يومنا هذا ",null,null,null,null,null,"مخوخي علاء الدين"]
[639,1199510000000000,"مفتاح","سمية","أنثى","1995-04-29","عين تالوت","ج م أ04","أولى","جدع مشترك آداب",1,648,"D1",null,null,"قرية البخاتة مغنية ","إلى يومنا هذا ",null,null,null,null,null,"مفتاح سمية"]
[null,null,null,null,null,null,null,null,null,null,null,null,null,null,null,"دوار المرازقة ","إلى يومنا هذا ",null,null,null,null,null," "]
[null,null,null,null,null,null,null,null,null,null,null,null,null,null,null,"قرية البخاتة بوسدرة  مغنية ","إلى يومنا هذا ",null,null,null,null,null,{"$f":"C642 & \" \" & D642","v":" "}]
[null,null,null,null,null,null,null,null,null,null,null,null,null,null,null,"قرية البطيم مغنية ","إلى يومنا هذا ",null,null,null,null,null," "]
[null,null,null,null,null,null,null,null,null,null,null,null,null,null,null,"قرية العقيد عباس مغنية ","إلى يومنا هذا ",null,null,null,null,null," "]
[null,null,null,null,null,null,null,null,null,null,null,null,null,null,null,"قرية البطيم مغنية ","إلى يومنا هذا ",null,null,null,null,null," "]
[null,null,null,null,null,null,null,null,null,null,null,null,null,null,null,"قرية المصامدة مغنية ","إلى يومنا هذا ",null,null,null,null,null," "]
[null,null,null,null,null,null,null,null,null,null,null,null,null,null,null,"حي بلال مغنية ","إلى يومنا هذا ",null,null,null,null,null," "]
[null,null,null,null,null,null,null,null,null,null,null,null,null,null,null,"رقم 11 حي 08 حي الشهداء مغنية ","إلى يومنا هذا ",null,null,null,null,null," "]
[null,null,null,null,null,null,null,null,null,null,null,null,null,null,null,"سيدي مجاهد 13044 ","إلى يومنا هذا ",null,null,null,null,null," "]
[null,null,null,null,null,null,null,null,null,null,null,null,null,null,null,"قرية العقيد لطفي مغنية ","إلى يومنا هذا ",null,null,null,null,null," "]
[null,null,null,null,null,null,null,null,null,null,null,null,null,null,null,null,"إلى يومنا هذا ",null,null,null,null,null," "]
[null,null,null,null,null,null,null,null,null,null,null,null,null,null,null,null,"إلى يومنا هذا ",null,null,null,null,null," "]
[null,null,null,null,null,null,null,null,null,null,null,null,null,null,null,null,"إلى يومنا هذا ",null,null,null,null,null," "]
[null,null,null,null,null,null,null,null,null,null,null,null,null,null,null,null,"إلى يومنا هذا ",null,null,null,null,null," "]
[null,null,null,null,null,null,null,null,null,null,null,null,null,null,null,null,"إلى يومنا هذا ",null,null,null,null,null," "]
[null,null,null,null,null,null,null,null,null,null,null,null,null,null,null,null,"إلى يومنا هذا ",null,null,null,null,null," "]
[null,null,null,null,null,null,null,null,null,null,null,null,null,null,null,null,"إلى يومنا هذا ",null,null,null,null,null," "]
[null,null,null,null,null,null,null,null,null,null,null,null,null,null,null,null,"إلى يومنا هذا ",null,null,null,null,null," "]
[null,null,null,null,null,null,null,null,null,null,null,null,null,null,null,null,"إلى يومنا هذا ",null,null,null,null,null," "]
[null,null,null,null,null,null,null,null,null,null,null,null,null,null,null,null,"إلى يومنا هذا ",null,null,null,null,null," "]
[null,null,null,null,null,null,null,null,null,null,null,null,null,null,null,null,"إلى يومنا هذا ",null,null,null,null,null," "]
[null,null,null,null,null,null,null,null,null,null,null,null,null,null,null,null,"إلى يومنا هذا ",null,null,null,null,null," "]
[null,null,null,null,null,null,null,null,null,null,null,null,null,null,null,null,"إلى يومنا هذا ",null,null,null,null,null," "]
[null,null,null,null,null,null,null,null,null,null,null,null,null,null,null,null,"إلى يومنا هذا ",null,null,null,null,null," "]
[null,null,null,null,null,null,null,null,null,null,null,null,null,null,null,null,"إلى يومنا هذا ",null,null,null,null,null," "]
[null,null,null,null,null,null,null,null,null,null,null,null,null,null,null,null,"إلى يومنا هذا ",null,null,null,null,null," "]
[null,null,null,null,null,null,null,null,null,null,null,null,null,null,null,null,"إلى يومنا هذا ",null,null,null,null,null," "]
[null,null,null,null,null,null,null,null,null,null,null,null,null,null,null,null,"إلى يومنا هذا ",null,null,null,null,null," "]
[null,null,null,null,null,null,null,null,null,null,null,null,null,null,null,null,"إلى يومنا هذا ",null,null,null,null,null," "]
[null,null,null,null,null,null,null,null,null,null,null,null,null,null,null,null,"إلى يومنا هذا ",null,null,null,null,null," "]
[null,null,null,null,null,null,null,null,null,null,null,null,null,null,null,null,"إلى يومنا هذا ",null,null,null,null,null," "]
[null,null,null,null,null,null,null,null,null,null,null,null,null,null,null,null,"إلى يومنا هذا ",null,null,null,null,null," "]
[null,null,null,null,null,null,null,null,null,null,null,null,null,null,null,null,"إلى يومنا هذا ",null,null,null,null,null," "]
[null,null,null,null,null,null,null,null,null,null,null,null,null,null,null,null,"إلى يومنا هذا ",null,null,null,null,null," "]
[null,null,null,null,null,null,null,null,null,null,null,null,null,null,null,null,"إلى يومنا هذا ",null,null,null,null,null," "]
[null,null,null,null,null,null,null,null,null,null,null,null,null,null,null,null,"إلى يومنا هذا ",null,null,null,null,null," "]
[null,null,null,null,null,null,null,null,null,null,null,null,null,null,null,null,"إلى يومنا هذا ",null,null,null,null,null," "]
[null,null,null,null,null,null,null,null,null,null,null,null,null,null,null,null,"إلى يومنا هذا ",null,null,null,null,null," "]
[null,null,null,null,null,null,null,null,null,null,null,null,null,null,null,null,"إلى يومنا هذا ",null,null,null,null,null," "]
[null,null,null,null,null,null,null,null,null,null,null,null,null,null,null,null,"إلى يومنا هذا ",null,null,null,null,null," "]
[null,null,null,null,null,null,null,null,null,null,null,null,null,null,null,null,"إلى يومنا هذا ",null,null,null,null,null," "]
[null,null,null,null,null,null,null,null,null,null,null,null,null,null,null,null,"إلى يومنا هذا ",null,null,null,null,null," "]
[null,null,null,null,null,null,null,null,null,null,null,null,null,null,null,null,"إلى يومنا هذا ",null,null,null,null,null," "]
[null,null,null,null,null,null,null,null,null,null,null,null,null,null,null,null,"إلى يومنا هذا ",null,null,null,null,null," "]
[null,null,null,null,null,null,null,null,null,null,null,null,null,null,null,null,"إلى يومنا هذا ",null,null,null,null,null," "]
[null,null,null,null,null,null,null,null,null,null,null,null,null,null,null,null,"إلى يومنا هذا ",null,null,null,null,null," "]
[null,null,null,null,null,null,null,null,null,null,null,null,null,null,null,null,"إلى يومنا هذا ",null,null,null,null,null," "]
[null,null,null,null,null,null,null,null,null,null,null,null,null,null,null,null,"إلى يومنا هذا ",null,null,null,null,null," "]
[null,null,null,null,null,null,null,null,null,null,null,null,null,null,null,null,"إلى يومنا هذا ",null,null,null,null,null," "]
[null,null,null,null,null,null,null,null,null,null,null,null,null,null,null,null,"إلى يومنا هذا ",null,null,null,null,null," "]
[null,null,null,null,null,null,null,null,null,null,null,null,null,null,null,null,"إلى يومنا هذا ",null,null,null,null,null," "]
[null,null,null,null,null,null,null,null,null,null,null,null,null,null,null,null,"إلى يومنا هذا ",null,null,null,null,null," "]
[null,null,null,null,null,null,null,null,null,null,null,null,null,null,null,null,"إلى يومنا هذا ",null,null,null,null,null," "]
[null,null,null,null,null,null,null,null,null,null,null,null,null,null,null,null,"إلى يومنا هذا ",null,null,null,null,null," "]
[null,null,null,null,null,null,null,null,null,null,null,null,null,null,null,null,"إلى يومنا هذا ",null,null,null,null,null," "]
[null,null,null,null,null,null,null,null,null,null,null,null,null,null,null,null,"إلى يومنا هذا ",null,null,null,null,null," "]
[null,null,null,null,null,null,null,null,null,null,null,null,null,null,null,null,"إلى يومنا هذا ",null,null,null,null,null," "]
[null,null,null,null,null,null,null,null,null,null,null,null,null,null,null,null,"إلى يومنا هذا ",null,null,null,null,null," "]
[null,null,null,null,null,null,null,null,null,null,null,null,null,null,null,null,"إلى يومنا هذا ",null,null,null,null,null," "]
[null,null,null,null,null,null,null,null,null,null,null,null,null,null,null,null,"إلى يومنا هذا ",null,null,null,null,null," "]
[null,null,null,null,null,null,null,null,null,null,null,null,null,null,null,null,"إلى يومنا هذا ",null,null,null,null,null," "]
[null,null,null,null,null,null,null,null,null,null,null,null,null,null,null,null,"إلى يومنا هذا ",null,null,null,null,null," "]
[null,null,null,null,null,null,null,null,null,null,null,null,null,null,null,null,"إلى يومنا هذا ",null,null,null,null,null," "]
[null,null,null,null,null,null,null,null,null,null,null,null,null,null,null,null,"إلى يومنا هذا ",null,null,null,null,null," "]
[null,null,null,null,null,null,null,null,null,null,null,null,null,null,null,null,"إلى يومنا هذا ",null,null,null,null,null," "]
[null,null,null,null,null,null,null,null,null,null,null,null,null,null,null,null,"إلى يومنا هذا ",null,null,null,null,null,{"$f":"C706 & \" \" & D706","v":" "}]
[null,null,null,null,null,null,null,null,null,null,null,null,null,null,null,null,null,null,null,null,null,null," "]
[null,null,null,null,null,null,null,null,null,null,null,null,null,null,null,null,null,null,null,null,null,null," "]
[null,null,null,null,null,null,null,null,null,null,null,null,null,null,null,null,null,null,null,null,null,null," "]
[null,null,null,null,null,null,null,null,null,null,null,null,null,null,null,null,null,null,null,null,null,null," "]
[null,null,null,null,null,null,null,null,null,null,null,null,null,null,null,null,null,null,null,null,null,null," "]
[null,null,null,null,null,null,null,null,null,null,null,null,null,null,null,null,null,null,null,null,null,null," "]
[null,null,null,null,null,null,null,null,null,null,null,null,null,null,null,null,null,null,null,null,null,null," "]
[null,null,null,null,null,null,null,null,null,null,null,null,null,null,null,null,null,null,null,null,null,null," "]
[null,null,null,null,null,null,null,null,null,null,null,null,null,null,null,null,null,null,null,null,null,null," "]
[null,null,null,null,null,null,null,null,null,null,null,null,null,null,null,null,null,null,null,null,null,null," "]
[null,null,null,null,null,null,null,null,null,null,null,null,null,null,null,null,null,null,null,null,null,null," "]
[null,null,null,null,null,null,null,null,null,null,null,null,null,null,null,null,null,null,null,null,null,null," "]
[null,null,null,null,null,null,null,null,null,null,null,null,null,null,null,null,null,null,null,null,null,null," "]
[null,null,null,null,null,null,null,null,null,null,null,null,null,null,null,null,null,null,null,null,null,null," "]
[null,null,null,null,null,null,null,null,null,null,null,null,null,null,null,null,null,null,null,null,null,null," "]
[null,null,null,null,null,null,null,null,null,null,null,null,null,null,null,null,null,null,null,null,null,null," "]
[null,null,null,null,null,null,null,null,null,null,null,null,null,null,null,null,null,null,null,null,null,null," "]
[null,null,null,null,null,null,null,null,null,null,null,null,null,null,null,null,null,null,null,null,null,null," "]
[null,null,null,null,null,null,null,null,null,null,null,null,null,null,null,null,null,null,null,null,null,null," "]
[null,null,null,null,null,null,null,null,null,null,null,null,null,null,null,null,null,null,null,null,null,null," "]
[null,null,null,null,null,null,null,null,null,null,null,null,null,null,null,null,null,null,null,null,null,null," "]
[null,null,null,null,null,null,null,null,null,null,null,null,null,null,null,null,null,null,null,null,null,null," "]
[null,null,null,null,null,null,null,null,null,null,null,null,null,null,null,null,null,null,null,null,null,null," "]
[null,null,null,null,null,null,null,null,null,null,null,null,null,null,null,null,null,null,null,null,null,null," "]
[null,null,null,null,null,null,null,null,null,null,null,null,null,null,null,null,null,null,null,null,null,null," "]
[null,null,null,null,null,null,null,null,null,null,null,null,null,null,null,null,null,null,null,null,null,null," "]
[null,null,null,null,null,null,null,null,null,null,null,null,null,null,null,null,null,null,null,null,null,null," "]
[null,null,null,null,null,null,null,null,null,null,null,null,null,null,null,null,null,null,null,null,null,null," "]
[null,null,null,null,null,null,null,null,null,null,null,null,null,null,null,null,null,null,null,null,null,null," "]
[null,null,null,null,null,null,null,null,null,null,null,null,null,null,null,null,null,null,null,null,null,null," "]
[null,null,null,null,null,null,null,null,null,null,null,null,null,null,null,null,null,null,null,null,null,null," "]
[null,null,null,null,null,null,null,null,null,null,null,null,null,null,null,null,null,null,null,null,null,null," "]
[null,null,null,null,null,null,null,null,null,null,null,null,null,null,null,null,null,null,null,null,null,null," "]
[null,null,null,null,null,null,null,null,null,null,null,null,null,null,null,null,null,null,null,null,null,null," "]
[null,null,null,null,null,null,null,null,null,null,null,null,null,null,null,null,null,null,null,null,null,null," "]
[null,null,null,null,null,null,null,null,null,null,null,null,null,null,null,null,null,null,null,null,null,null," "]
[null,null,null,null,null,null,null,null,null,null,null,null,null,null,null,null,null,null,null,null,null,null," "]
[null,null,null,null,null,null,null,null,null,null,null,null,null,null,null,null,null,null,null,null,null,null," "]
[null,null,null,null,null,null,null,null,null,null,null,null,null,null,null,null,null,null,null,null,null,null," "]
[null,null,null,null,null,null,null,null,null,null,null,null,null,null,null,null,null,null,null,null,null,null," "]
[null,null,null,null,null,null,null,null,null,null,null,null,null,null,null,null,null,null,null,null,null,null," "]
[null,null,null,null,null,null,null,null,null,null,null,null,null,null,null,null,null,null,null,null,null,null," "]
[null,null,null,null,null,null,null,null,null,null,null,null,null,null,null,null,null,null,null,null,null,null," "]
[null,null,null,null,null,null,null,null,null,null,null,null,null,null,null,null,null,null,null,null,null,null," "]
[null,null,null,null,null,null,null,null,null,null,null,null,null,null,null,null,null,null,null,null,null,null," "]
[null,null,null,null,null,null,null,null,null,null,null,null,null,null,null,null,null,null,null,null,null,null," "]
[null,null,null,null,null,null,null,null,null,null,null,null,null,null,null,null,null,null,null,null,null,null," "]
[null,null,null,null,null,null,null,null,null,null,null,null,null,null,null,null,null,null,null,null,null,null," "]
[null,null,null,null,null,null,null,null,null,null,null,null,null,null,null,null,null,null,null,null,null,null," "]
[null,null,null,null,null,null,null,null,null,null,null,null,null,null,null,null,null,null,null,null,null,null," "]
[null,null,null,null,null,null,null,null,null,null,null,null,null,null,null,null,null,null,null,null,null,null," "]
[null,null,null,null,null,null,null,null,null,null,null,null,null,null,null,null,null,null,null,null,null,null," "]
[null,null,null,null,null,null,null,null,null,null,null,null,null,null,null,null,null,null,null,null,null,null," "]
[null,null,null,null,null,null,null,null,null,null,null,null,null,null,null,null,null,null,null,null,null,null," "]
[null,null,null,null,null,null,null,null,null,null,null,null,null,null,null,null,null,null,null,null,null,null," "]
[null,null,null,null,null,null,null,null,null,null,null,null,null,null,null,null,null,null,null,null,null,null," "]
[null,null,null,null,null,null,null,null,null,null,null,null,null,null,null,null,null,null,null,null,null,null," "]
[null,null,null,null,null,null,null,null,null,null,null,null,null,null,null,null,null,null,null,null,null,null," "]
[null,null,null,null,null,null,null,null,null,null,null,null,null,null,null,null,null,null,null,null,null,null," "]
[null,null,null,null,null,null,null,null,null,null,null,null,null,null,null,null,null,null,null,null,null,null," "]
[null,null,null,null,null,null,null,null,null,null,null,null,null,null,null,null,null,null,null,null,null,null," "]
[null,null,null,null,null,null,null,null,null,null,null,null,null,null,null,null,null,null,null,null,null,null," "]
[null,null,null,null,null,null,null,null,null,null,null,null,null,null,null,null,null,null,null,null,null,null," "]
[null,null,null,null,null,null,null,null,null,null,null,null,null,null,null,null,null,null,null,null,null,null,{"$f":"C770 & \" \" & D770","v":" "}]
[null,null,null,null,null,null,null,null,null,null,null,null,null,null,null,null,null,null,null,null,null,null," "]
[null,null,null,null,null,null,null,null,null,null,null,null,null,null,null,null,null,null,null,null,null,null," "]
[null,null,null,null,null,null,null,null,null,null,null,null,null,null,null,null,null,null,null,null,null,null," "]
[null,null,null,null,null,null,null,null,null,null,null,null,null,null,null,null,null,null,null,null,null,null," "]
[null,null,null,null,null,null,null,null,null,null,null,null,null,null,null,null,null,null,null,null,null,null," "]
[null,null,null,null,null,null,null,null,null,null,null,null,null,null,null,null,null,null,null,null,null,null," "]
[null,null,null,null,null,null,null,null,null,null,null,null,null,null,null,null,null,null,null,null,null,null," "]
[null,null,null,null,null,null,null,null,null,null,null,null,null,null,null,null,null,null,null,null,null,null," "]
[null,null,null,null,null,null,null,null,null,null,null,null,null,null,null,null,null,null,null,null,null,null," "]
[null,null,null,null,null,null,null,null,null,null,null,null,null,null,null,null,null,null,null,null,null,null," "]
[null,null,null,null,null,null,null,null,null,null,null,null,null,null,null,null,null,null,null,null,null,null," "]
[null,null,null,null,null,null,null,null,null,null,null,null,null,null,null,null,null,null,null,null,null,null," "]
[null,null,null,null,null,null,null,null,null,null,null,null,null,null,null,null,null,null,null,null,null,null," "]
[null,null,null,null,null,null,null,null,null,null,null,null,null,null,null,null,null,null,null,null,null,null," "]
[null,null,null,null,null,null,null,null,null,null,null,null,null,null,null,null,null,null,null,null,null,null," "]
[null,null,null,null,null,null,null,null,null,null,null,null,null,null,null,null,null,null,null,null,null,null," "]
[null,null,null,null,null,null,null,null,null,null,null,null,null,null,null,null,null,null,null,null,null,null," "]
[null,null,null,null,null,null,null,null,null,null,null,null,null,null,null,null,null,null,null,null,null,null," "]
[null,null,null,null,null,null,null,null,null,null,null,null,null,null,null,null,null,null,null,null,null,null," "]
[null,null,null,null,null,null,null,null,null,null,null,null,null,null,null,null,null,null,null,null,null,null," "]
[null,null,null,null,null,null,null,null,null,null,null,null,null,null,null,null,null,null,null,null,null,null," "]
[null,null,null,null,null,null,null,null,null,null,null,null,null,null,null,null,null,null,null,null,null,null," "]
[null,null,null,null,null,null,null,null,null,null,null,null,null,null,null,null,null,null,null,null,null,null," "]
[null,null,null,null,null,null,null,null,null,null,null,null,null,null,null,null,null,null,null,null,null,null," "]
[null,null,null,null,null,null,null,null,null,null,null,null,null,null,null,null,null,null,null,null,null,null," "]
[null,null,null,null,null,null,null,null,null,null,null,null,null,null,null,null,null,null,null,null,null,null," "]
[null,null,null,null,null,null,null,null,null,null,null,null,null,null,null,null,null,null,null,null,null,null," "]
[null,null,null,null,null,null,null,null,null,null,null,null,null,null,null,null,null,null,null,null,null,null," "]
[null,null,null,null,null,null,null,null,null,null,null,null,null,null,null,null,null,null,null,null,null,null," "]
[null,null,null,null,null,null,null,null,null,null,null,null,null,null,null,null,null,null,null,null,null,null," "]
[null,null,null,null,null,null,null,null,null,null,null,null,null,null,null,null,null,null,null,null,null,null," "]
[null,null,null,null,null,null,null,null,null,null,null,null,null,null,null,null,null,null,null,null,null,null," "]
[null,null,null,null,null,null,null,null,null,null,null,null,null,null,null,null,null,null,null,null,null,null," "]
[null,null,null,null,null,null,null,null,null,null,null,null,null,null,null,null,null,null,null,null,null,null," "]
[null,null,null,null,null,null,null,null,null,null,null,null,null,null,null,null,null,null,null,null,null,null," "]
[null,null,null,null,null,null,null,null,null,null,null,null,null,null,null,null,null,null,null,null,null,null," "]
[null,null,null,null,null,null,null,null,null,null,null,null,null,null,null,null,null,null,null,null,null,null," "]
[null,null,null,null,null,null,null,null,null,null,null,null,null,null,null,null,null,null,null,null,null,null," "]
[null,null,null,null,null,null,null,null,null,null,null,null,null,null,null,null,null,null,null,null,null,null," "]
[null,null,null,null,null,null,null,null,null,null,null,null,null,null,null,null,null,null,null,null,null,null," "]
[null,null,null,null,null,null,null,null,null,null,null,null,null,null,null,null,null,null,null,null,null,null," "]
[null,null,null,null,null,null,null,null,null,null,null,null,null,null,null,null,null,null,null,null,null,null," "]
[null,null,null,null,null,null,null,null,null,null,null,null,null,null,null,null,null,null,null,null,null,null," "]
[null,null,null,null,null,null,null,null,null,null,null,null,null,null,null,null,null,null,null,null,null,null," "]
[null,null,null,null,null,null,null,null,null,null,null,null,null,null,null,null,null,null,null,null,null,null," "]
[null,null,null,null,null,null,null,null,null,null,null,null,null,null,null,null,null,null,null,null,null,null," "]
[null,null,null,null,null,null,null,null,null,null,null,null,null,null,null,null,null,null,null,null,null,null," "]
[null,null,null,null,null,null,null,null,null,null,null,null,null,null,null,null,null,null,null,null,null,null," "]
[null,null,null,null,null,null,null,null,null,null,null,null,null,null,null,null,null,null,null,null,null,null," "]
[null,null,null,null,null,null,null,null,null,null,null,null,null,null,null,null,null,null,null,null,null,null," "]
[null,null,null,null,null,null,null,null,null,null,null,null,null,null,null,null,null,null,null,null,null,null," "]
[null,null,null,null,null,null,null,null,null,null,null,null,null,null,null,null,null,null,null,null,null,null," "]
[null,null,null,null,null,null,null,null,null,null,null,null,null,null,null,null,null,null,null,null,null,null," "]
[null,null,null,null,null,null,null,null,null,null,null,null,null,null,null,null,null,null,null,null,null,null," "]
[null,null,null,null,null,null,null,null,null,null,null,null,null,null,null,null,null,null,null,null,null,null," "]
[null,null,null,null,null,null,null,null,null,null,null,null,null,null,null,null,null,null,null,null,null,null," "]
[null,null,null,null,null,null,null,null,null,null,null,null,null,null,null,null,null,null,null,null,null,null," "]
[null,null,null,null,null,null,null,null,null,null,null,null,null,null,null,null,null,null,null,null,null,null," "]
[null,null,null,null,null,null,null,null,null,null,null,null,null,null,null,null,null,null,null,null,null,null," "]
[null,null,null,null,null,null,null,null,null,null,null,null,null,null,null,null,null,null,null,null,null,null," "]
[null,null,null,null,null,null,null,null,null,null,null,null,null,null,null,null,null,null,null,null,null,null," "]
[null,null,null,null,null,null,null,null,null,null,null,null,null,null,null,null,null,null,null,null,null,null," "]
[null,null,null,null,null,null,null,null,null,null,null,null,null,null,null,null,null,null,null,null,null,null," "]
[null,null,null,null,null,null,null,null,null,null,null,null,null,null,null,null,null,null,null,null,null,null,{"$f":"C834 & \" \" & D834","v":" "}]
[null,null,null,null,null,null,null,null,null,null,null,null,null,null,null,null,null,null,null,null,null,null," "]
[null,null,null,null,null,null,null,null,null,null,null,null,null,null,null,null,null,null,null,null,null,null," "]
[null,null,null,null,null,null,null,null,null,null,null,null,null,null,null,null,null,null,null,null,null,null," "]
[null,null,null,null,null,null,null,null,null,null,null,null,null,null,null,null,null,null,null,null,null,null," "]
[null,null,null,null,null,null,null,null,null,null,null,null,null,null,null,null,null,null,null,null,null,null," "]
[null,null,null,null,null,null,null,null,null,null,null,null,null,null,null,null,null,null,null,null,null,null," "]
[null,null,null,null,null,null,null,null,null,null,null,null,null,null,null,null,null,null,null,null,null,null," "]
[null,null,null,null,null,null,null,null,null,null,null,null,null,null,null,null,null,null,null,null,null,null," "]
[null,null,null,null,null,null,null,null,null,null,null,null,null,null,null,null,null,null,null,null,null,null," "]
[null,null,null,null,null,null,null,null,null,null,null,null,null,null,null,null,null,null,null,null,null,null," "]
[null,null,null,null,null,null,null,null,null,null,null,null,null,null,null,null,null,null,null,null,null,null," "]
[null,null,null,null,null,null,null,null,null,null,null,null,null,null,null,null,null,null,null,null,null,null," "]
[null,null,null,null,null,null,null,null,null,null,null,null,null,null,null,null,null,null,null,null,null,null," "]
[null,null,null,null,null,null,null,null,null,null,null,null,null,null,null,null,null,null,null,null,null,null," "]
[null,null,null,null,null,null,null,null,null,null,null,null,null,null,null,null,null,null,null,null,null,null," "]
[null,null,null,null,null,null,null,null,null,null,null,null,null,null,null,null,null,null,null,null,null,null," "]
[null,null,null,null,null,null,null,null,null,null,null,null,null,null,null,null,null,null,null,null,null,null," "]
[null,null,null,null,null,null,null,null,null,null,null,null,null,null,null,null,null,null,null,null,null,null," "]
[null,null,null,null,null,null,null,null,null,null,null,null,null,null,null,null,null,null,null,null,null,null," "]
[null,null,null,null,null,null,null,null,null,null,null,null,null,null,null,null,null,null,null,null,null,null," "]
[null,null,null,null,null,null,null,null,null,null,null,null,null,null,null,null,null,null,null,null,null,null," "]
[null,null,null,null,null,null,null,null,null,null,null,null,null,null,null,null,null,null,null,null,null,null," "]
[null,null,null,null,null,null,null,null,null,null,null,null,null,null,null,null,null,null,null,null,null,null," "]
[null,null,null,null,null,null,null,null,null,null,null,null,null,null,null,null,null,null,null,null,null,null," "]
[null,null,null,null,null,null,null,null,null,null,null,null,null,null,null,null,null,null,null,null,null,null," "]
[null,null,null,null,null,null,null,null,null,null,null,null,null,null,null,null,null,null,null,null,null,null," "]
[null,null,null,null,null,null,null,null,null,null,null,null,null,null,null,null,null,null,null,null,null,null," "]
[null,null,null,null,null,null,null,null,null,null,null,null,null,null,null,null,null,null,null,null,null,null," "]
[null,null,null,null,null,null,null,null,null,null,null,null,null,null,null,null,null,null,null,null,null,null," "]
[null,null,null,null,null,null,null,null,null,null,null,null,null,null,null,null,null,null,null,null,null,null," "]
[null,null,null,null,null,null,null,null,null,null,null,null,null,null,null,null,null,null,null,null,null,null," "]
[null,null,null,null,null,null,null,null,null,null,null,null,null,null,null,null,null,null,null,null,null,null," "]
[null,null,null,null,null,null,null,null,null,null,null,null,null,null,null,null,null,null,null,null,null,null," "]
[null,null,null,null,null,null,null,null,null,null,null,null,null,null,null,null,null,null,null,null,null,null," "]
[null,null,null,null,null,null,null,null,null,null,null,null,null,null,null,null,null,null,null,null,null,null," "]
[null,null,null,null,null,null,null,null,null,null,null,null,null,null,null,null,null,null,null,null,null,null," "]
[null,null,null,null,null,null,null,null,null,null,null,null,null,null,null,null,null,null,null,null,null,null," "]
[null,null,null,null,null,null,null,null,null,null,null,null,null,null,null,null,null,null,null,null,null,null," "]
[null,null,null,null,null,null,null,null,null,null,null,null,null,null,null,null,null,null,null,null,null,null," "]
[null,null,null,null,null,null,null,null,null,null,null,null,null,null,null,null,null,null,null,null,null,null," "]
[null,null,null,null,null,null,null,null,null,null,null,null,null,null,null,null,null,null,null,null,null,null," "]
[null,null,null,null,null,null,null,null,null,null,null,null,null,null,null,null,null,null,null,null,null,null," "]
[null,null,null,null,null,null,null,null,null,null,null,null,null,null,null,null,null,null,null,null,null,null," "]
[null,null,null,null,null,null,null,null,null,null,null,null,null,null,null,null,null,null,null,null,null,null," "]
[null,null,null,null,null,null,null,null,null,null,null,null,null,null,null,null,null,null,null,null,null,null," "]
[null,null,null,null,null,null,null,null,null,null,null,null,null,null,null,null,null,null,null,null,null,null," "]
[null,null,null,null,null,null,null,null,null,null,null,null,null,null,null,null,null,null,null,null,null,null," "]
[null,null,null,null,null,null,null,null,null,null,null,null,null,null,null,null,null,null,null,null,null,null," "]
[null,null,null,null,null,null,null,null,null,null,null,null,null,null,null,null,null,null,null,null,null,null," "]
[null,null,null,null,null,null,null,null,null,null,null,null,null,null,null,null,null,null,null,null,null,null," "]
[null,null,null,null,null,null,null,null,null,null,null,null,null,null,null,null,null,null,null,null,null,null," "]
[null,null,null,null,null,null,null,null,null,null,null,null,null,null,null,null,null,null,null,null,null,null," "]
[null,null,null,null,null,null,null,null,null,null,null,null,null,null,null,null,null,null,null,null,null,null," "]
[null,null,null,null,null,null,null,null,null,null,null,null,null,null,null,null,null,null,null,null,null,null," "]
[null,null,null,null,null,null,null,null,null,null,null,null,null,null,null,null,null,null,null,null,null,null," "]
[null,null,null,null,null,null,null,null,null,null,null,null,null,null,null,null,null,null,null,null,null,null," "]
[null,null,null,null,null,null,null,null,null,null,null,null,null,null,null,null,null,null,null,null,null,null," "]
[null,null,null,null,null,null,null,null,null,null,null,null,null,null,null,null,null,null,null,null,null,null," "]
[null,null,null,null,null,null,null,null,null,null,null,null,null,null,null,null,null,null,null,null,null,null," "]
[null,null,null,null,null,null,null,null,null,null,null,null,null,null,null,null,null,null,null,null,null,null," "]
[null,null,null,null,null,null,null,null,null,null,null,null,null,null,null,null,null,null,null,null,null,null," "]
[null,null,null,null,null,null,null,null,null,null,null,null,null,null,null,null,null,null,null,null,null,null," "]
[null,null,null,null,null,null,null,null,null,null,null,null,null,null,null,null,null,null,null,null,null,null," "]
[null,null,null,null,null,null,null,null,null,null,null,null,null,null,null,null,null,null,null,null,null,null,{"$f":"C898 & \" \" & D898","v":" "}]
[null,null,null,null,null,null,null,null,null,null,null,null,null,null,null,null,null,null,null,null,null,null," "]
[null,null,null,null,null,null,null,null,null,null,null,null,null,null,null,null,null,null,null,null,null,null," "]
[null,null,null,null,null,null,null,null,null,null,null,null,null,null,null,null,null,null,null,null,null,null," "]
[null,null,null,null,null,null,null,null,null,null,null,null,null,null,null,null,null,null,null,null,null,null," "]
[null,null,null,null,null,null,null,null,null,null,null,null,null,null,null,null,null,null,null,null,null,null," "]
[null,null,null,null,null,null,null,null,null,null,null,null,null,null,null,null,null,null,null,null,null,null," "]
[null,null,null,null,null,null,null,null,null,null,null,null,null,null,null,null,null,null,null,null,null,null," "]
[null,null,null,null,null,null,null,null,null,null,null,null,null,null,null,null,null,null,null,null,null,null," "]
[null,null,null,null,null,null,null,null,null,null,null,null,null,null,null,null,null,null,null,null,null,null," "]
[null,null,null,null,null,null,null,null,null,null,null,null,null,null,null,null,null,null,null,null,null,null," "]
[null,null,null,null,null,null,null,null,null,null,null,null,null,null,null,null,null,null,null,null,null,null," "]
[null,null,null,null,null,null,null,null,null,null,null,null,null,null,null,null,null,null,null,null,null,null," "]
[null,null,null,null,null,null,null,null,null,null,null,null,null,null,null,null,null,null,null,null,null,null," "]
[null,null,null,null,null,null,null,null,null,null,null,null,null,null,null,null,null,null,null,null,null,null," "]
[null,null,null,null,null,null,null,null,null,null,null,null,null,null,null,null,null,null,null,null,null,null," "]
[null,null,null,null,null,null,null,null,null,null,null,null,null,null,null,null,null,null,null,null,null,null," "]
[null,null,null,null,null,null,null,null,null,null,null,null,null,null,null,null,null,null,null,null,null,null," "]
[null,null,null,null,null,null,null,null,null,null,null,null,null,null,null,null,null,null,null,null,null,null," "]
[null,null,null,null,null,null,null,null,null,null,null,null,null,null,null,null,null,null,null,null,null,null," "]
[null,null,null,null,null,null,null,null,null,null,null,null,null,null,null,null,null,null,null,null,null,null," "]
[null,null,null,null,null,null,null,null,null,null,null,null,null,null,null,null,null,null,null,null,null,null," "]
[null,null,null,null,null,null,null,null,null,null,null,null,null,null,null,null,null,null,null,null,null,null," "]
[null,null,null,null,null,null,null,null,null,null,null,null,null,null,null,null,null,null,null,null,null,null," "]
[null,null,null,null,null,null,null,null,null,null,null,null,null,null,null,null,null,null,null,null,null,null," "]
[null,null,null,null,null,null,null,null,null,null,null,null,null,null,null,null,null,null,null,null,null,null," "]
[null,null,null,null,null,null,null,null,null,null,null,null,null,null,null,null,null,null,null,null,null,null," "]
[null,null,null,null,null,null,null,null,null,null,null,null,null,null,null,null,null,null,null,null,null,null," "]
[null,null,null,null,null,null,null,null,null,null,null,null,null,null,null,null,null,null,null,null,null,null," "]
[null,null,null,null,null,null,null,null,null,null,null,null,null,null,null,null,null,null,null,null,null,null," "]
[null,null,null,null,null,null,null,null,null,null,null,null,null,null,null,null,null,null,null,null,null,null," "]
[null,null,null,null,null,null,null,null,null,null,null,null,null,null,null,null,null,null,null,null,null,null," "]
[null,null,null,null,null,null,null,null,null,null,null,null,null,null,null,null,null,null,null,null,null,null," "]
[null,null,null,null,null,null,null,null,null,null,null,null,null,null,null,null,null,null,null,null,null,null," "]
[null,null,null,null,null,null,null,null,null,null,null,null,null,null,null,null,null,null,null,null,null,null," "]
[null,null,null,null,null,null,null,null,null,null,null,null,null,null,null,null,null,null,null,null,null,null," "]
[null,null,null,null,null,null,null,null,null,null,null,null,null,null,null,null,null,null,null,null,null,null," "]
[null,null,null,null,null,null,null,null,null,null,null,null,null,null,null,null,null,null,null,null,null,null," "]
[null,null,null,null,null,null,null,null,null,null,null,null,null,null,null,null,null,null,null,null,null,null," "]
[null,null,null,null,null,null,null,null,null,null,null,null,null,null,null,null,null,null,null,null,null,null," "]
[null,null,null,null,null,null,null,null,null,null,null,null,null,null,null,null,null,null,null,null,null,null," "]
[null,null,null,null,null,null,null,null,null,null,null,null,null,null,null,null,null,null,null,null,null,null," "]
[null,null,null,null,null,null,null,null,null,null,null,null,null,null,null,null,null,null,null,null,null,null," "]
[null,null,null,null,null,null,null,null,null,null,null,null,null,null,null,null,null,null,null,null,null,null," "]
[null,null,null,null,null,null,null,null,null,null,null,null,null,null,null,null,null,null,null,null,null,null," "]
[null,null,null,null,null,null,null,null,null,null,null,null,null,null,null,null,null,null,null,null,null,null," "]
[null,null,null,null,null,null,null,null,null,null,null,null,null,null,null,null,null,null,null,null,null,null," "]
[null,null,null,null,null,null,null,null,null,null,null,null,null,null,null,null,null,null,null,null,null,null," "]
[null,null,null,null,null,null,null,null,null,null,null,null,null,null,null,null,null,null,null,null,null,null," "]
[null,null,null,null,null,null,null,null,null,null,null,null,null,null,null,null,null,null,null,null,null,null," "]
[null,null,null,null,null,null,null,null,null,null,null,null,null,null,null,null,null,null,null,null,null,null," "]
[null,null,null,null,null,null,null,null,null,null,null,null,null,null,null,null,null,null,null,null,null,null," "]
[null,null,null,null,null,null,null,null,null,null,null,null,null,null,null,null,null,null,null,null,null,null," "]
[null,null,null,null,null,null,null,null,null,null,null,null,null,null,null,null,null,null,null,null,null,null," "]
[null,null,null,null,null,null,null,null,null,null,null,null,null,null,null,null,null,null,null,null,null,null," "]
[null,null,null,null,null,null,null,null,null,null,null,null,null,null,null,null,null,null,null,null,null,null," "]
[null,null,null,null,null,null,null,null,null,null,null,null,null,null,null,null,null,null,null,null,null,null," "]
[null,null,null,null,null,null,null,null,null,null,null,null,null,null,null,null,null,null,null,null,null,null," "]
[null,null,null,null,null,null,null,null,null,null,null,null,null,null,null,null,null,null,null,null,null,null," "]
[null,null,null,null,null,null,null,null,null,null,null,null,null,null,null,null,null,null,null,null,null,null," "]
[null,null,null,null,null,null,null,null,null,null,null,null,null,null,null,null,null,null,null,null,null,null," "]
[null,null,null,null,null,null,null,null,null,null,null,null,null,null,null,null,null,null,null,null,null,null," "]
[null,null,null,null,null,null,null,null,null,null,null,null,null,null,null,null,null,null,null,null,null,null," "]
[null,null,null,null,null,null,null,null,null,null,null,null,null,null,null,null,null,null,null,null,null,null," "]
[null,null,null,null,null,null,null,null,null,null,null,null,null,null,null,null,null,null,null,null,null,null,{"$f":"C962 & \" \" & D962","v":" "}]
[null,null,null,null,null,null,null,null,null,null,null,null,null,null,null,null,null,null,null,null,null,null," "]
[null,null,null,null,null,null,null,null,null,null,null,null,null,null,null,null,null,null,null,null,null,null," "]
[null,null,null,null,null,null,null,null,null,null,null,null,null,null,null,null,null,null,null,null,null,null," "]
[null,null,null,null,null,null,null,null,null,null,null,null,null,null,null,null,null,null,null,null,null,null," "]
[null,null,null,null,null,null,null,null,null,null,null,null,null,null,null,null,null,null,null,null,null,null," "]
[null,null,null,null,null,null,null,null,null,null,null,null,null,null,null,null,null,null,null,null,null,null," "]
[null,null,null,null,null,null,null,null,null,null,null,null,null,null,null,null,null,null,null,null,null,null," "]
[null,null,null,null,null,null,null,null,null,null,null,null,null,null,null,null,null,null,null,null,null,null," "]
[null,null,null,null,null,null,null,null,null,null,null,null,null,null,null,null,null,null,null,null,null,null," "]
[null,null,null,null,null,null,null,null,null,null,null,null,null,null,null,null,null,null,null,null,null,null," "]
[null,null,null,null,null,null,null,null,null,null,null,null,null,null,null,null,null,null,null,null,null,null," "]
[null,null,null,null,null,null,null,null,null,null,null,null,null,null,null,null,null,null,null,null,null,null," "]
[null,null,null,null,null,null,null,null,null,null,null,null,null,null,null,null,null,null,null,null,null,null," "]
[null,null,null,null,null,null,null,null,null,null,null,null,null,null,null,null,null,null,null,null,null,null," "]
[null,null,null,null,null,null,null,null,null,null,null,null,null,null,null,null,null,null,null,null,null,null," "]
[null,null,null,null,null,null,null,null,null,null,null,null,null,null,null,null,null,null,null,null,null,null," "]
[null,null,null,null,null,null,null,null,null,null,null,null,null,null,null,null,null,null,null,null,null,null," "]
[null,null,null,null,null,null,null,null,null,null,null,null,null,null,null,null,null,null,null,null,null,null," "]
[null,null,null,null,null,null,null,null,null,null,null,null,null,null,null,null,null,null,null,null,null,null," "]
[null,null,null,null,null,null,null,null,null,null,null,null,null,null,null,null,null,null,null,null,null,null," "]
[null,null,null,null,null,null,null,null,null,null,null,null,null,null,null,null,null,null,null,null,null,null," "]
[null,null,null,null,null,null,null,null,null,null,null,null,null,null,null,null,null,null,null,null,null,null," "]
[null,null,null,null,null,null,null,null,null,null,null,null,null,null,null,null,null,null,null,null,null,null," "]
[null,null,null,null,null,null,null,null,null,null,null,null,null,null,null,null,null,null,null,null,null,null," "]
[null,null,null,null,null,null,null,null,null,null,null,null,null,null,null,null,null,null,null,null,null,null," "]
[null,null,null,null,null,null,null,null,null,null,null,null,null,null,null,null,null,null,null,null,null,null," "]
[null,null,null,null,null,null,null,null,null,null,null,null,null,null,null,null,null,null,null,null,null,null," "]
[null,null,null,null,null,null,null,null,null,null,null,null,null,null,null,null,null,null,null,null,null,null," "]
[null,null,null,null,null,null,null,null,null,null,null,null,null,null,null,null,null,null,null,null,null,null," "]
[null,null,null,null,null,null,null,null,null,null,null,null,null,null,null,null,null,null,null,null,null,null," "]
[null,null,null,null,null,null,null,null,null,null,null,null,null,null,null,null,null,null,null,null,null,null," "]
[null,null,null,null,null,null,null,null,null,null,null,null,null,null,null,null,null,null,null,null,null,null," "]
[null,null,null,null,null,null,null,null,null,null,null,null,null,null,null,null,null,null,null,null,null,null," "]
[null,null,null,null,null,null,null,null,null,null,null,null,null,null,null,null,null,null,null,null,null,null," "]
[null,null,null,null,null,null,null,null,null,null,null,null,null,null,null,null,null,null,null,null,null,null," "]
[null,null,null,null,null,null,null,null,null,null,null,null,null,null,null,null,null,null,null,null,null,null," "]
[null,null,null,null,null,null,null,null,null,null,null,null,null,null,null,null,null,null,null,null,null,null," "]
[null,null,null,null,null,null,null,null,null,null,null,null,null,null,null,null,null,null,null,null,null,null," "]
[null,null,null,null,null,null,null,null,null,null,null,null,null,null,null,null,null,null,null,null,null,null," "]
[null,null,null,null,null,null,null,null,null,null,null,null,null,null,null,null,null,null,null,null,null,null," "]
[null,null,null,null,null,null,null,null,null,null,null,null,null,null,null,null,null,null,null,null,null,null," "]
[null,null,null,null,null,null,null,null,null,null,null,null,null,null,null,null,null,null,null,null,null,null," "]
[null,null,null,null,null,null,null,null,null,null,null,null,null,null,null,null,null,null,null,null,null,null," "]
[null,null,null,null,null,null,null,null,null,null,null,null,null,null,null,null,null,null,null,null,null,null," "]
[null,null,null,null,null,null,null,null,null,null,null,null,null,null,null,null,null,null,null,null,null,null," "]
[null,null,null,null,null,null,null,null,null,null,null,null,null,null,null,null,null,null,null,null,null,null," "]
[null,null,null,null,null,null,null,null,null,null,null,null,null,null,null,null,null,null,null,null,null,null," "]
[null,null,null,null,null,null,null,null,null,null,null,null,null,null,null,null,null,null,null,null,null,null," "]
[null,null,null,null,null,null,null,null,null,null,null,null,null,null,null,null,null,null,null,null,null,null," "]
[null,null,null,null,null,null,null,null,null,null,null,null,null,null,null,null,null,null,null,null,null,null," "]
[null,null,null,null,null,null,null,null,null,null,null,null,null,null,null,null,null,null,null,null,null,null," "]
[null,null,null,null,null,null,null,null,null,null,null,null,null,null,null,null,null,null,null,null,null,null," "]
[null,null,null,null,null,null,null,null,null,null,null,null,null,null,null,null,null,null,null,null,null,null," "]
[null,null,null,null,null,null,null,null,null,null,null,null,null,null,null,null,null,null,null,null,null,null," "]
[null,null,null,null,null,null,null,null,null,null,null,null,null,null,null,null,null,null,null,null,null,null," "]
[null,null,null,null,null,null,null,null,null,null,null,null,null,null,null,null,null,null,null,null,null,null," "]
[null,null,null,null,null,null,null,null,null,null,null,null,null,null,null,null,null,null,null,null,null,null," "]
[null,null,null,null,null,null,null,null,null,null,null,null,null,null,null,null,null,null,null,null,null,null," "]
[null,null,null,null,null,null,null,null,null,null,null,null,null,null,null,null,null,null,null,null,null,null," "]
[null,null,null,null,null,null,null,null,null,null,null,null,null,null,null,null,null,null,null,null,null,null," "]
[null,null,null,null,null,null,null,null,null,null,null,null,null,null,null,null,null,null,null,null,null,null," "]
[null,null,null,null,null,null,null,null,null,null,null,null,null,null,null,null,null,null,null,null,null,null," "]
[null,null,null,null,null,null,null,null,null,null,null,null,null,null,null,null,null,null,null,null,null,null," "]
[null,null,null,null,null,null,null,null,null,null,null,null,null,null,null,null,null,null,null,null,null,null,{"$f":"C1026 & \" \" & D1026","v":" "}]
[null,null,null,null,null,null,null,null,null,null,null,null,null,null,null,null,null,null,null,null,null,null," "]
[null,null,null,null,null,null,null,null,null,null,null,null,null,null,null,null,null,null,null,null,null,null," "]
[null,null,null,null,null,null,null,null,null,null,null,null,null,null,null,null,null,null,null,null,null,null," "]
[null,null,null,null,null,null,null,null,null,null,null,null,null,null,null,null,null,null,null,null,null,null," "]
[null,null,null,null,null,null,null,null,null,null,null,null,null,null,null,null,null,null,null,null,null,null," "]
[null,null,null,null,null,null,null,null,null,null,null,null,null,null,null,null,null,null,null,null,null,null," "]
[null,null,null,null,null,null,null,null,null,null,null,null,null,null,null,null,null,null,null,null,null,null," "]
[null,null,null,null,null,null,null,null,null,null,null,null,null,null,null,null,null,null,null,null,null,null," "]
[null,null,null,null,null,null,null,null,null,null,null,null,null,null,null,null,null,null,null,null,null,null," "]
[null,null,null,null,null,null,null,null,null,null,null,null,null,null,null,null,null,null,null,null,null,null," "]
[null,null,null,null,null,null,null,null,null,null,null,null,null,null,null,null,null,null,null,null,null,null," "]
[null,null,null,null,null,null,null,null,null,null,null,null,null,null,null,null,null,null,null,null,null,null," "]
[null,null,null,null,null,null,null,null,null,null,null,null,null,null,null,null,null,null,null,null,null,null," "]
[null,null,null,null,null,null,null,null,null,null,null,null,null,null,null,null,null,null,null,null,null,null," "]
[null,null,null,null,null,null,null,null,null,null,null,null,null,null,null,null,null,null,null,null,null,null," "]
[null,null,null,null,null,null,null,null,null,null,null,null,null,null,null,null,null,null,null,null,null,null," "]
[null,null,null,null,null,null,null,null,null,null,null,null,null,null,null,null,null,null,null,null,null,null," "]
[null,null,null,null,null,null,null,null,null,null,null,null,null,null,null,null,null,null,null,null,null,null," "]
[null,null,null,null,null,null,null,null,null,null,null,null,null,null,null,null,null,null,null,null,null,null," "]
[null,null,null,null,null,null,null,null,null,null,null,null,null,null,null,null,null,null,null,null,null,null," "]
[null,null,null,null,null,null,null,null,null,null,null,null,null,null,null,null,null,null,null,null,null,null," "]
[null,null,null,null,null,null,null,null,null,null,null,null,null,null,null,null,null,null,null,null,null,null," "]
[null,null,null,null,null,null,null,null,null,null,null,null,null,null,null,null,null,null,null,null,null,null," "]
[null,null,null,null,null,null,null,null,null,null,null,null,null,null,null,null,null,null,null,null,null,null," "]
[null,null,null,null,null,null,null,null,null,null,null,null,null,null,null,null,null,null,null,null,null,null," "]
[null,null,null,null,null,null,null,null,null,null,null,null,null,null,null,null,null,null,null,null,null,null," "]
[null,null,null,null,null,null,null,null,null,null,null,null,null,null,null,null,null,null,null,null,null,null," "]
[null,null,null,null,null,null,null,null,null,null,null,null,null,null,null,null,null,null,null,null,null,null," "]
[null,null,null,null,null,null,null,null,null,null,null,null,null,null,null,null,null,null,null,null,null,null," "]
[null,null,null,null,null,null,null,null,null,null,null,null,null,null,null,null,null,null,null,null,null,null," "]
[null,null,null,null,null,null,null,null,null,null,null,null,null,null,null,null,null,null,null,null,null,null," "]
[null,null,null,null,null,null,null,null,null,null,null,null,null,null,null,null,null,null,null,null,null,null," "]
[null,null,null,null,null,null,null,null,null,null,null,null,null,null,null,null,null,null,null,null,null,null," "]
[null,null,null,null,null,null,null,null,null,null,null,null,null,null,null,null,null,null,null,null,null,null," "]
[null,null,null,null,null,null,null,null,null,null,null,null,null,null,null,null,null,null,null,null,null,null," "]
[null,null,null,null,null,null,null,null,null,null,null,null,null,null,null,null,null,null,null,null,null,null," "]
[null,null,null,null,null,null,null,null,null,null,null,null,null,null,null,null,null,null,null,null,null,null," "]
[null,null,null,null,null,null,null,null,null,null,null,null,null,null,null,null,null,null,null,null,null,null," "]
[null,null,null,null,null,null,null,null,null,null,null,null,null,null,null,null,null,null,null,null,null,null," "]
[null,null,null,null,null,null,null,null,null,null,null,null,null,null,null,null,null,null,null,null,null,null," "]
[null,null,null,null,null,null,null,null,null,null,null,null,null,null,null,null,null,null,null,null,null,null," "]
[null,null,null,null,null,null,null,null,null,null,null,null,null,null,null,null,null,null,null,null,null,null," "]
[null,null,null,null,null,null,null,null,null,null,null,null,null,null,null,null,null,null,null,null,null,null," "]
[null,null,null,null,null,null,null,null,null,null,null,null,null,null,null,null,null,null,null,null,null,null," "]
[null,null,null,null,null,null,null,null,null,null,null,null,null,null,null,null,null,null,null,null,null,null," "]
[null,null,null,null,null,null,null,null,null,null,null,null,null,null,null,null,null,null,null,null,null,null," "]
[null,null,null,null,null,null,null,null,null,null,null,null,null,null,null,null,null,null,null,null,null,null," "]
[null,null,null,null,null,null,null,null,null,null,null,null,null,null,null,null,null,null,null,null,null,null," "]
[null,null,null,null,null,null,null,null,null,null,null,null,null,null,null,null,null,null,null,null,null,null," "]
[null,null,null,null,null,null,null,null,null,null,null,null,null,null,null,null,null,null,null,null,null,null," "]
[null,null,null,null,null,null,null,null,null,null,null,null,null,null,null,null,null,null,null,null,null,null," "]
[null,null,null,null,null,null,null,null,null,null,null,null,null,null,null,null,null,null,null,null,null,null," "]
[null,null,null,null,null,null,null,null,null,null,null,null,null,null,null,null,null,null,null,null,null,null," "]
[null,null,null,null,null,null,null,null,null,null,null,null,null,null,null,null,null,null,null,null,null,null," "]
[null,null,null,null,null,null,null,null,null,null,null,null,null,null,null,null,null,null,null,null,null,null," "]
[null,null,null,null,null,null,null,null,null,null,null,null,null,null,null,null,null,null,null,null,null,null," "]
[null,null,null,null,null,null,null,null,null,null,null,null,null,null,null,null,null,null,null,null,null,null," "]
[null,null,null,null,null,null,null,null,null,null,null,null,null,null,null,null,null,null,null,null,null,null," "]
[null,null,null,null,null,null,null,null,null,null,null,null,null,null,null,null,null,null,null,null,null,null," "]
[null,null,null,null,null,null,null,null,null,null,null,null,null,null,null,null,null,null,null,null,null,null," "]
[null,null,null,null,null,null,null,null,null,null,null,null,null,null,null,null,null,null,null,null,null,null," "]
[null,null,null,null,null,null,null,null,null,null,null,null,null,null,null,null,null,null,null,null,null,null," "]
[null,null,null,null,null,null,null,null,null,null,null,null,null,null,null,null,null,null,null,null,null,null," "]
[null,null,null,null,null,null,null,null,null,null,null,null,null,null,null,null,null,null,null,null,null,null,{"$f":"C1090 & \" \" & D1090","v":" "}]
[null,null,null,null,null,null,null,null,null,null,null,null,null,null,null,null,null,null,null,null,null,null," "]
[null,null,null,null,null,null,null,null,null,null,null,null,null,null,null,null,null,null,null,null,null,null," "]
[null,null,null,null,null,null,null,null,null,null,null,null,null,null,null,null,null,null,null,null,null,null," "]
[null,null,null,null,null,null,null,null,null,null,null,null,null,null,null,null,null,null,null,null,null,null," "]
[null,null,null,null,null,null,null,null,null,null,null,null,null,null,null,null,null,null,null,null,null,null," "]
[null,null,null,null,null,null,null,null,null,null,null,null,null,null,null,null,null,null,null,null,null,null," "]
[null,null,null,null,null,null,null,null,null,null,null,null,null,null,null,null,null,null,null,null,null,null," "]
[null,null,null,null,null,null,null,null,null,null,null,null,null,null,null,null,null,null,null,null,null,null," "]
[null,null,null,null,null,null,null,null,null,null,null,null,null,null,null,null,null,null,null,null,null,null," "]
[null,null,null,null,null,null,null,null,null,null,null,null,null,null,null,null,null,null,null,null,null,null," "]
[null,null,null,null,null,null,null,null,null,null,null,null,null,null,null,null,null,null,null,null,null,null," "]
[null,null,null,null,null,null,null,null,null,null,null,null,null,null,null,null,null,null,null,null,null,null," "]
[null,null,null,null,null,null,null,null,null,null,null,null,null,null,null,null,null,null,null,null,null,null," "]
[null,null,null,null,null,null,null,null,null,null,null,null,null,null,null,null,null,null,null,null,null,null," "]
[null,null,null,null,null,null,null,null,null,null,null,null,null,null,null,null,null,null,null,null,null,null," "]
[null,null,null,null,null,null,null,null,null,null,null,null,null,null,null,null,null,null,null,null,null,null," "]
[null,null,null,null,null,null,null,null,null,null,null,null,null,null,null,null,null,null,null,null,null,null," "]
[null,null,null,null,null,null,null,null,null,null,null,null,null,null,null,null,null,null,null,null,null,null," "]
[null,null,null,null,null,null,null,null,null,null,null,null,null,null,null,null,null,null,null,null,null,null," "]
[null,null,null,null,null,null,null,null,null,null,null,null,null,null,null,null,null,null,null,null,null,null," "]
[null,null,null,null,null,null,null,null,null,null,null,null,null,null,null,null,null,null,null,null,null,null," "]
[null,null,null,null,null,null,null,null,null,null,null,null,null,null,null,null,null,null,null,null,null,null," "]
[null,null,null,null,null,null,null,null,null,null,null,null,null,null,null,null,null,null,null,null,null,null," "]
[null,null,null,null,null,null,null,null,null,null,null,null,null,null,null,null,null,null,null,null,null,null," "]
[null,null,null,null,null,null,null,null,null,null,null,null,null,null,null,null,null,null,null,null,null,null," "]
[null,null,null,null,null,null,null,null,null,null,null,null,null,null,null,null,null,null,null,null,null,null," "]
[null,null,null,null,null,null,null,null,null,null,null,null,null,null,null,null,null,null,null,null,null,null," "]
[null,null,null,null,null,null,null,null,null,null,null,null,null,null,null,null,null,null,null,null,null,null," "]
[null,null,null,null,null,null,null,null,null,null,null,null,null,null,null,null,null,null,null,null,null,null," "]
[null,null,null,null,null,null,null,null,null,null,null,null,null,null,null,null,null,null,null,null,null,null," "]
[null,null,null,null,null,null,null,null,null,null,null,null,null,null,null,null,null,null,null,null,null,null," "]
[null,null,null,null,null,null,null,null,null,null,null,null,null,null,null,null,null,null,null,null,null,null," "]
[null,null,null,null,null,null,null,null,null,null,null,null,null,null,null,null,null,null,null,null,null,null," "]
[null,null,null,null,null,null,null,null,null,null,null,null,null,null,null,null,null,null,null,null,null,null," "]
[null,null,null,null,null,null,null,null,null,null,null,null,null,null,null,null,null,null,null,null,null,null," "]
[null,null,null,null,null,null,null,null,null,null,null,null,null,null,null,null,null,null,null,null,null,null," "]
[null,null,null,null,null,null,null,null,null,null,null,null,null,null,null,null,null,null,null,null,null,null," "]
[null,null,null,null,null,null,null,null,null,null,null,null,null,null,null,null,null,null,null,null,null,null," "]
[null,null,null,null,null,null,null,null,null,null,null,null,null,null,null,null,null,null,null,null,null,null," "]
[null,null,null,null,null,null,null,null,null,null,null,null,null,null,null,null,null,null,null,null,null,null," "]
[null,null,null,null,null,null,null,null,null,null,null,null,null,null,null,null,null,null,null,null,null,null," "]
[null,null,null,null,null,null,null,null,null,null,null,null,null,null,null,null,null,null,null,null,null,null," "]
[null,null,null,null,null,null,null,null,null,null,null,null,null,null,null,null,null,null,null,null,null,null," "]
[null,null,null,null,null,null,null,null,null,null,null,null,null,null,null,null,null,null,null,null,null,null," "]
[null,null,null,null,null,null,null,null,null,null,null,null,null,null,null,null,null,null,null,null,null,null," "]
[null,null,null,null,null,null,null,null,null,null,null,null,null,null,null,null,null,null,null,null,null,null," "]
[null,null,null,null,null,null,null,null,null,null,null,null,null,null,null,null,null,null,null,null,null,null," "]
[null,null,null,null,null,null,null,null,null,null,null,null,null,null,null,null,null,null,null,null,null,null," "]
[null,null,null,null,null,null,null,null,null,null,null,null,null,null,null,null,null,null,null,null,null,null," "]
[null,null,null,null,null,null,null,null,null,null,null,null,null,null,null,null,null,null,null,null,null,null," "]
[null,null,null,null,null,null,null,null,null,null,null,null,null,null,null,null,null,null,null,null,null,null," "]
[null,null,null,null,null,null,null,null,null,null,null,null,null,null,null,null,null,null,null,null,null,null," "]
[null,null,null,null,null,null,null,null,null,null,null,null,null,null,null,null,null,null,null,null,null,null," "]
[null,null,null,null,null,null,null,null,null,null,null,null,null,null,null,null,null,null,null,null,null,null," "]
[null,null,null,null,null,null,null,null,null,null,null,null,null,null,null,null,null,null,null,null,null,null," "]
[null,null,null,null,null,null,null,null,null,null,null,null,null,null,null,null,null,null,null,null,null,null," "]
[null,null,null,null,null,null,null,null,null,null,null,null,null,null,null,null,null,null,null,null,null,null," "]
[null,null,null,null,null,null,null,null,null,null,null,null,null,null,null,null,null,null,null,null,null,null," "]
[null,null,null,null,null,null,null,null,null,null,null,null,null,null,null,null,null,null,null,null,null,null," "]
[null,null,null,null,null,null,null,null,null,null,null,null,null,null,null,null,null,null,null,null,null,null," "]
[null,null,null,null,null,null,null,null,null,null,null,null,null,null,null,null,null,null,null,null,null,null," "]
[null,null,null,null,null,null,null,null,null,null,null,null,null,null,null,null,null,null,null,null,null,null," "]
[null,null,null,null,null,null,null,null,null,null,null,null,null,null,null,null,null,null,null,null,null,null," "]
[null,null,null,null,null,null,null,null,null,null,null,null,null,null,null,null,null,null,null,null,null,null,{"$f":"C1154 & \" \" & D1154","v":" "}]
[null,null,null,null,null,null,null,null,null,null,null,null,null,null,null,null,null,null,null,null,null,null," "]
[null,null,null,null,null,null,null,null,null,null,null,null,null,null,null,null,null,null,null,null,null,null," "]
[null,null,null,null,null,null,null,null,null,null,null,null,null,null,null,null,null,null,null,null,null,null," "]
[null,null,null,null,null,null,null,null,null,null,null,null,null,null,null,null,null,null,null,null,null,null," "]
[null,null,null,null,null,null,null,null,null,null,null,null,null,null,null,null,null,null,null,null,null,null," "]
[null,null,null,null,null,null,null,null,null,null,null,null,null,null,null,null,null,null,null,null,null,null," "]
[null,null,null,null,null,null,null,null,null,null,null,null,null,null,null,null,null,null,null,null,null,null," "]
[null,null,null,null,null,null,null,null,null,null,null,null,null,null,null,null,null,null,null,null,null,null," "]
[null,null,null,null,null,null,null,null,null,null,null,null,null,null,null,null,null,null,null,null,null,null," "]
[null,null,null,null,null,null,null,null,null,null,null,null,null,null,null,null,null,null,null,null,null,null," "]
[null,null,null,null,null,null,null,null,null,null,null,null,null,null,null,null,null,null,null,null,null,null," "]
[null,null,null,null,null,null,null,null,null,null,null,null,null,null,null,null,null,null,null,null,null,null," "]
[null,null,null,null,null,null,null,null,null,null,null,null,null,null,null,null,null,null,null,null,null,null," "]
[null,null,null,null,null,null,null,null,null,null,null,null,null,null,null,null,null,null,null,null,null,null," "]
[null,null,null,null,null,null,null,null,null,null,null,null,null,null,null,null,null,null,null,null,null,null," "]
[null,null,null,null,null,null,null,null,null,null,null,null,null,null,null,null,null,null,null,null,null,null," "]
[null,null,null,null,null,null,null,null,null,null,null,null,null,null,null,null,null,null,null,null,null,null," "]
[null,null,null,null,null,null,null,null,null,null,null,null,null,null,null,null,null,null,null,null,null,null," "]
[null,null,null,null,null,null,null,null,null,null,null,null,null,null,null,null,null,null,null,null,null,null," "]
[null,null,null,null,null,null,null,null,null,null,null,null,null,null,null,null,null,null,null,null,null,null," "]
[null,null,null,null,null,null,null,null,null,null,null,null,null,null,null,null,null,null,null,null,null,null," "]
[null,null,null,null,null,null,null,null,null,null,null,null,null,null,null,null,null,null,null,null,null,null," "]
[null,null,null,null,null,null,null,null,null,null,null,null,null,null,null,null,null,null,null,null,null,null," "]
[null,null,null,null,null,null,null,null,null,null,null,null,null,null,null,null,null,null,null,null,null,null," "]
[null,null,null,null,null,null,null,null,null,null,null,null,null,null,null,null,null,null,null,null,null,null," "]
[null,null,null,null,null,null,null,null,null,null,null,null,null,null,null,null,null,null,null,null,null,null," "]
[null,null,null,null,null,null,null,null,null,null,null,null,null,null,null,null,null,null,null,null,null,null," "]
[null,null,null,null,null,null,null,null,null,null,null,null,null,null,null,null,null,null,null,null,null,null," "]
[null,null,null,null,null,null,null,null,null,null,null,null,null,null,null,null,null,null,null,null,null,null," "]
[null,null,null,null,null,null,null,null,null,null,null,null,null,null,null,null,null,null,null,null,null,null," "]
[null,null,null,null,null,null,null,null,null,null,null,null,null,null,null,null,null,null,null,null,null,null," "]
[null,null,null,null,null,null,null,null,null,null,null,null,null,null,null,null,null,null,null,null,null,null," "]
[null,null,null,null,null,null,null,null,null,null,null,null,null,null,null,null,null,null,null,null,null,null," "]
[null,null,null,null,null,null,null,null,null,null,null,null,null,null,null,null,null,null,null,null,null,null," "]
[null,null,null,null,null,null,null,null,null,null,null,null,null,null,null,null,null,null,null,null,null,null," "]
[null,null,null,null,null,null,null,null,null,null,null,null,null,null,null,null,null,null,null,null,null,null," "]
[null,null,null,null,null,null,null,null,null,null,null,null,null,null,null,null,null,null,null,null,null,null," "]
[null,null,null,null,null,null,null,null,null,null,null,null,null,null,null,null,null,null,null,null,null,null," "]
[null,null,null,null,null,null,null,null,null,null,null,null,null,null,null,null,null,null,null,null,null,null," "]
[null,null,null,null,null,null,null,null,null,null,null,null,null,null,null,null,null,null,null,null,null,null," "]
[null,null,null,null,null,null,null,null,null,null,null,null,null,null,null,null,null,null,null,null,null,null," "]
[null,null,null,null,null,null,null,null,null,null,null,null,null,null,null,null,null,null,null,null,null,null," "]
[null,null,null,null,null,null,null,null,null,null,null,null,null,null,null,null,null,null,null,null,null,null," "]
[null,null,null,null,null,null,null,null,null,null,null,null,null,null,null,null,null,null,null,null,null,null," "]
[null,null,null,null,null,null,null,null,null,null,null,null,null,null,null,null,null,null,null,null,null,null," "]
[null,null,null,null,null,null,null,null,null,null,null,null,null,null,null,null,null,null,null,null,null,null," "]
[null,null,null,null,null,null,null,null,null,null,null,null,null,null,null,null,null,null,null,null,null,null," "]
[null,null,null,null,null,null,null,null,null,null,null,null,null,null,null,null,null,null,null,null,null,null," "]
[null,null,null,null,null,null,null,null,null,null,null,null,null,null,null,null,null,null,null,null,null,null," "]
[null,null,null,null,null,null,null,null,null,null,null,null,null,null,null,null,null,null,null,null,null,null," "]
[null,null,null,null,null,null,null,null,null,null,null,null,null,null,null,null,null,null,null,null,null,null," "]
[null,null,null,null,null,null,null,null,null,null,null,null,null,null,null,null,null,null,null,null,null,null," "]
[null,null,null,null,null,null,null,null,null,null,null,null,null,null,null,null,null,null,null,null,null,null," "]
[null,null,null,null,null,null,null,null,null,null,null,null,null,null,null,null,null,null,null,null,null,null," "]
[null,null,null,null,null,null,null,null,null,null,null,null,null,null,null,null,null,null,null,null,null,null," "]
[null,null,null,null,null,null,null,null,null,null,null,null,null,null,null,null,null,null,null,null,null,null," "]
[null,null,null,null,null,null,null,null,null,null,null,null,null,null,null,null,null,null,null,null,null,null," "]
[null,null,null,null,null,null,null,null,null,null,null,null,null,null,null,null,null,null,null,null,null,null," "]
[null,null,null,null,null,null,null,null,null,null,null,null,null,null,null,null,null,null,null,null,null,null," "]
[null,null,null,null,null,null,null,null,null,null,null,null,null,null,null,null,null,null,null,null,null,null," "]
[null,null,null,null,null,null,null,null,null,null,null,null,null,null,null,null,null,null,null,null,null,null," "]
[null,null,null,null,null,null,null,null,null,null,null,null,null,null,null,null,null,null,null,null,null,null," "]
[null,null,null,null,null,null,null,null,null,null,null,null,null,null,null,null,null,null,null,null,null,null," "]
[null,null,null,null,null,null,null,null,null,null,null,null,null,null,null,null,null,null,null,null,null,null,{"$f":"C1218 & \" \" & D1218","v":" "}]
[null,null,null,null,null,null,null,null,null,null,null,null,null,null,null,null,null,null,null,null,null,null," "]
[null,null,null,null,null,null,null,null,null,null,null,null,null,null,null,null,null,null,null,null,null,null," "]
[null,null,null,null,null,null,null,null,null,null,null,null,null,null,null,null,null,null,null,null,null,null," "]
[null,null,null,null,null,null,null,null,null,null,null,null,null,null,null,null,null,null,null,null,null,null," "]
[null,null,null,null,null,null,null,null,null,null,null,null,null,null,null,null,null,null,null,null,null,null," "]
[null,null,null,null,null,null,null,null,null,null,null,null,null,null,null,null,null,null,null,null,null,null," "]
[null,null,null,null,null,null,null,null,null,null,null,null,null,null,null,null,null,null,null,null,null,null," "]
[null,null,null,null,null,null,null,null,null,null,null,null,null,null,null,null,null,null,null,null,null,null," "]
[null,null,null,null,null,null,null,null,null,null,null,null,null,null,null,null,null,null,null,null,null,null," "]
[null,null,null,null,null,null,null,null,null,null,null,null,null,null,null,null,null,null,null,null,null,null," "]
[null,null,null,null,null,null,null,null,null,null,null,null,null,null,null,null,null,null,null,null,null,null," "]
[null,null,null,null,null,null,null,null,null,null,null,null,null,null,null,null,null,null,null,null,null,null," "]
[null,null,null,null,null,null,null,null,null,null,null,null,null,null,null,null,null,null,null,null,null,null," "]
[null,null,null,null,null,null,null,null,null,null,null,null,null,null,null,null,null,null,null,null,null,null," "]
[null,null,null,null,null,null,null,null,null,null,null,null,null,null,null,null,null,null,null,null,null,null," "]
[null,null,null,null,null,null,null,null,null,null,null,null,null,null,null,null,null,null,null,null,null,null," "]
[null,null,null,null,null,null,null,null,null,null,null,null,null,null,null,null,null,null,null,null,null,null," "]
[null,null,null,null,null,null,null,null,null,null,null,null,null,null,null,null,null,null,null,null,null,null," "]
[null,null,null,null,null,null,null,null,null,null,null,null,null,null,null,null,null,null,null,null,null,null," "]
[null,null,null,null,null,null,null,null,null,null,null,null,null,null,null,null,null,null,null,null,null,null," "]
[null,null,null,null,null,null,null,null,null,null,null,null,null,null,null,null,null,null,null,null,null,null," "]
[null,null,null,null,null,null,null,null,null,null,null,null,null,null,null,null,null,null,null,null,null,null," "]
[null,null,null,null,null,null,null,null,null,null,null,null,null,null,null,null,null,null,null,null,null,null," "]
[null,null,null,null,null,null,null,null,null,null,null,null,null,null,null,null,null,null,null,null,null,null," "]
[null,null,null,null,null,null,null,null,null,null,null,null,null,null,null,null,null,null,null,null,null,null," "]
[null,null,null,null,null,null,null,null,null,null,null,null,null,null,null,null,null,null,null,null,null,null," "]
[null,null,null,null,null,null,null,null,null,null,null,null,null,null,null,null,null,null,null,null,null,null," "]
[null,null,null,null,null,null,null,null,null,null,null,null,null,null,null,null,null,null,null,null,null,null," "]
[null,null,null,null,null,null,null,null,null,null,null,null,null,null,null,null,null,null,null,null,null,null," "]
[null,null,null,null,null,null,null,null,null,null,null,null,null,null,null,null,null,null,null,null,null,null," "]
[null,null,null,null,null,null,null,null,null,null,null,null,null,null,null,null,null,null,null,null,null,null," "]
[null,null,null,null,null,null,null,null,null,null,null,null,null,null,null,null,null,null,null,null,null,null," "]
[null,null,null,null,null,null,null,null,null,null,null,null,null,null,null,null,null,null,null,null,null,null," "]
[null,null,null,null,null,null,null,null,null,null,null,null,null,null,null,null,null,null,null,null,null,null," "]
[null,null,null,null,null,null,null,null,null,null,null,null,null,null,null,null,null,null,null,null,null,null," "]
[null,null,null,null,null,null,null,null,null,null,null,null,null,null,null,null,null,null,null,null,null,null," "]
[null,null,null,null,null,null,null,null,null,null,null,null,null,null,null,null,null,null,null,null,null,null," "]
[null,null,null,null,null,null,null,null,null,null,null,null,null,null,null,null,null,null,null,null,null,null," "]
[null,null,null,null,null,null,null,null,null,null,null,null,null,null,null,null,null,null,null,null,null,null," "]
[null,null,null,null,null,null,null,null,null,null,null,null,null,null,null,null,null,null,null,null,null,null," "]
[null,null,null,null,null,null,null,null,null,null,null,null,null,null,null,null,null,null,null,null,null,null," "]
[null,null,null,null,null,null,null,null,null,null,null,null,null,null,null,null,null,null,null,null,null,null," "]
[null,null,null,null,null,null,null,null,null,null,null,null,null,null,null,null,null,null,null,null,null,null," "]
[null,null,null,null,null,null,null,null,null,null,null,null,null,null,null,null,null,null,null,null,null,null," "]
[null,null,null,null,null,null,null,null,null,null,null,null,null,null,null,null,null,null,null,null,null,null," "]
[null,null,null,null,null,null,null,null,null,null,null,null,null,null,null,null,null,null,null,null,null,null," "]
[null,null,null,null,null,null,null,null,null,null,null,null,null,null,null,null,null,null,null,null,null,null," "]
[null,null,null,null,null,null,null,null,null,null,null,null,null,null,null,null,null,null,null,null,null,null," "]
[null,null,null,null,null,null,null,null,null,null,null,null,null,null,null,null,null,null,null,null,null,null," "]
[null,null,null,null,null,null,null,null,null,null,null,null,null,null,null,null,null,null,null,null,null,null," "]
[null,null,null,null,null,null,null,null,null,null,null,null,null,null,null,null,null,null,null,null,null,null," "]
[null,null,null,null,null,null,null,null,null,null,null,null,null,null,null,null,null,null,null,null,null,null," "]
[null,null,null,null,null,null,null,null,null,null,null,null,null,null,null,null,null,null,null,null,null,null," "]
[null,null,null,null,null,null,null,null,null,null,null,null,null,null,null,null,null,null,null,null,null,null," "]
[null,null,null,null,null,null,null,null,null,null,null,null,null,null,null,null,null,null,null,null,null,null," "]
[null,null,null,null,null,null,null,null,null,null,null,null,null,null,null,null,null,null,null,null,null,null," "]
[null,null,null,null,null,null,null,null,null,null,null,null,null,null,null,null,null,null,null,null,null,null," "]
[null,null,null,null,null,null,null,null,null,null,null,null,null,null,null,null,null,null,null,null,null,null," "]
[null,null,null,null,null,null,null,null,null,null,null,null,null,null,null,null,null,null,null,null,null,null," "]
[null,null,null,null,null,null,null,null,null,null,null,null,null,null,null,null,null,null,null,null,null,null," "]
[null,null,null,null,null,null,null,null,null,null,null,null,null,null,null,null,null,null,null,null,null,null," "]
[null,null,null,null,null,null,null,null,null,null,null,null,null,null,null,null,null,null,null,null,null,null," "]
[null,null,null,null,null,null,null,null,null,null,null,null,null,null,null,null,null,null,null,null,null,null," "]
[null,null,null,null,null,null,null,null,null,null,null,null,null,null,null,null,null,null,null,null,null,null,{"$f":"C1282 & \" \" & D1282","v":" "}]
[null,null,null,null,null,null,null,null,null,null,null,null,null,null,null,null,null,null,null,null,null,null," "]
[null,null,null,null,null,null,null,null,null,null,null,null,null,null,null,null,null,null,null,null,null,null," "]
[null,null,null,null,null,null,null,null,null,null,null,null,null,null,null,null,null,null,null,null,null,null," "]
[null,null,null,null,null,null,null,null,null,null,null,null,null,null,null,null,null,null,null,null,null,null," "]
[null,null,null,null,null,null,null,null,null,null,null,null,null,null,null,null,null,null,null,null,null,null," "]
[null,null,null,null,null,null,null,null,null,null,null,null,null,null,null,null,null,null,null,null,null,null," "]
[null,null,null,null,null,null,null,null,null,null,null,null,null,null,null,null,null,null,null,null,null,null," "]
[null,null,null,null,null,null,null,null,null,null,null,null,null,null,null,null,null,null,null,null,null,null," "]
[null,null,null,null,null,null,null,null,null,null,null,null,null,null,null,null,null,null,null,null,null,null," "]
[null,null,null,null,null,null,null,null,null,null,null,null,null,null,null,null,null,null,null,null,null,null," "]
[null,null,null,null,null,null,null,null,null,null,null,null,null,null,null,null,null,null,null,null,null,null," "]
[null,null,null,null,null,null,null,null,null,null,null,null,null,null,null,null,null,null,null,null,null,null," "]
[null,null,null,null,null,null,null,null,null,null,null,null,null,null,null,null,null,null,null,null,null,null," "]
[null,null,null,null,null,null,null,null,null,null,null,null,null,null,null,null,null,null,null,null,null,null," "]
[null,null,null,null,null,null,null,null,null,null,null,null,null,null,null,null,null,null,null,null,null,null," "]
[null,null,null,null,null,null,null,null,null,null,null,null,null,null,null,null,null,null,null,null,null,null," "]
[null,null,null,null,null,null,null,null,null,null,null,null,null,null,null,null,null,null,null,null,null,null," "]
[null,null,null,null,null,null,null,null,null,null,null,null,null,null,null,null,null,null,null,null,null,null," "]
[null,null,null,null,null,null,null,null,null,null,null,null,null,null,null,null,null,null,null,null,null,null," "]
[null,null,null,null,null,null,null,null,null,null,null,null,null,null,null,null,null,null,null,null,null,null," "]
[null,null,null,null,null,null,null,null,null,null,null,null,null,null,null,null,null,null,null,null,null,null," "]
[null,null,null,null,null,null,null,null,null,null,null,null,null,null,null,null,null,null,null,null,null,null," "]
[null,null,null,null,null,null,null,null,null,null,null,null,null,null,null,null,null,null,null,null,null,null," "]
[null,null,null,null,null,null,null,null,null,null,null,null,null,null,null,null,null,null,null,null,null,null," "]
[null,null,null,null,null,null,null,null,null,null,null,null,null,null,null,null,null,null,null,null,null,null," "]
[null,null,null,null,null,null,null,null,null,null,null,null,null,null,null,null,null,null,null,null,null,null," "]
[null,null,null,null,null,null,null,null,null,null,null,null,null,null,null,null,null,null,null,null,null,null," "]
[null,null,null,null,null,null,null,null,null,null,null,null,null,null,null,null,null,null,null,null,null,null," "]
[null,null,null,null,null,null,null,null,null,null,null,null,null,null,null,null,null,null,null,null,null,null," "]
[null,null,null,null,null,null,null,null,null,null,null,null,null,null,null,null,null,null,null,null,null,null," "]
[null,null,null,null,null,null,null,null,null,null,null,null,null,null,null,null,null,null,null,null,null,null," "]
[null,null,null,null,null,null,null,null,null,null,null,null,null,null,null,null,null,null,null,null,null,null," "]
[null,null,null,null,null,null,null,null,null,null,null,null,null,null,null,null,null,null,null,null,null,null," "]
[null,null,null,null,null,null,null,null,null,null,null,null,null,null,null,null,null,null,null,null,null,null," "]
[null,null,null,null,null,null,null,null,null,null,null,null,null,null,null,null,null,null,null,null,null,null," "]
[null,null,null,null,null,null,null,null,null,null,null,null,null,null,null,null,null,null,null,null,null,null," "]
[null,null,null,null,null,null,null,null,null,null,null,null,null,null,null,null,null,null,null,null,null,null," "]
[null,null,null,null,null,null,null,null,null,null,null,null,null,null,null,null,null,null,null,null,null,null," "]
[null,null,null,null,null,null,null,null,null,null,null,null,null,null,null,null,null,null,null,null,null,null," "]
[null,null,null,null,null,null,null,null,null,null,null,null,null,null,null,null,null,null,null,null,null,null," "]
[null,null,null,null,null,null,null,null,null,null,null,null,null,null,null,null,null,null,null,null,null,null," "]
[null,null,null,null,null,null,null,null,null,null,null,null,null,null,null,null,null,null,null,null,null,null," "]
[null,null,null,null,null,null,null,null,null,null,null,null,null,null,null,null,null,null,null,null,null,null," "]
[null,null,null,null,null,null,null,null,null,null,null,null,null,null,null,null,null,null,null,null,null,null," "]
[null,null,null,null,null,null,null,null,null,null,null,null,null,null,null,null,null,null,null,null,null,null," "]
[null,null,null,null,null,null,null,null,null,null,null,null,null,null,null,null,null,null,null,null,null,null," "]
[null,null,null,null,null,null,null,null,null,null,null,null,null,null,null,null,null,null,null,null,null,null," "]
[null,null,null,null,null,null,null,null,null,null,null,null,null,null,null,null,null,null,null,null,null,null," "]
[null,null,null,null,null,null,null,null,null,null,null,null,null,null,null,null,null,null,null,null,null,null," "]
[null,null,null,null,null,null,null,null,null,null,null,null,null,null,null,null,null,null,null,null,null,null," "]
[null,null,null,null,null,null,null,null,null,null,null,null,null,null,null,null,null,null,null,null,null,null," "]
[null,null,null,null,null,null,null,null,null,null,null,null,null,null,null,null,null,null,null,null,null,null," "]
[null,null,null,null,null,null,null,null,null,null,null,null,null,null,null,null,null,null,null,null,null,null," "]
[null,null,null,null,null,null,null,null,null,null,null,null,null,null,null,null,null,null,null,null,null,null," "]
[null,null,null,null,null,null,null,null,null,null,null,null,null,null,null,null,null,null,null,null,null,null," "]
[null,null,null,null,null,null,null,null,null,null,null,null,null,null,null,null,null,null,null,null,null,null," "]
[null,null,null,null,null,null,null,null,null,null,null,null,null,null,null,null,null,null,null,null,null,null," "]
[null,null,null,null,null,null,null,null,null,null,null,null,null,null,null,null,null,null,null,null,null,null," "]
[null,null,null,null,null,null,null,null,null,null,null,null,null,null,null,null,null,null,null,null,null,null," "]
[null,null,null,null,null,null,null,null,null,null,null,null,null,null,null,null,null,null,null,null,null,null," "]
[null,null,null,null,null,null,null,null,null,null,null,null,null,null,null,null,null,null,null,null,null,null," "]
[null,null,null,null,null,null,null,null,null,null,null,null,null,null,null,null,null,null,null,null,null,null," "]
[null,null,null,null,null,null,null,null,null,null,null,null,null,null,null,null,null,null,null,null,null,null," "]
[null,null,null,null,null,null,null,null,null,null,null,null,null,null,null,null,null,null,null,null,null,null,{"$f":"C1346 & \" \" & D1346","v":" "}]
[null,null,null,null,null,null,null,null,null,null,null,null,null,null,null,null,null,null,null,null,null,null," "]
[null,null,null,null,null,null,null,null,null,null,null,null,null,null,null,null,null,null,null,null,null,null," "]
[null,null,null,null,null,null,null,null,null,null,null,null,null,null,null,null,null,null,null,null,null,null," "]
[null,null,null,null,null,null,null,null,null,null,null,null,null,null,null,null,null,null,null,null,null,null," "]
[null,null,null,null,null,null,null,null,null,null,null,null,null,null,null,null,null,null,null,null,null,null," "]
[null,null,null,null,null,null,null,null,null,null,null,null,null,null,null,null,null,null,null,null,null,null," "]
[null,null,null,null,null,null,null,null,null,null,null,null,null,null,null,null,null,null,null,null,null,null," "]
[null,null,null,null,null,null,null,null,null,null,null,null,null,null,null,null,null,null,null,null,null,null," "]
[null,null,null,null,null,null,null,null,null,null,null,null,null,null,null,null,null,null,null,null,null,null," "]
[null,null,null,null,null,null,null,null,null,null,null,null,null,null,null,null,null,null,null,null,null,null," "]
[null,null,null,null,null,null,null,null,null,null,null,null,null,null,null,null,null,null,null,null,null,null," "]
[null,null,null,null,null,null,null,null,null,null,null,null,null,null,null,null,null,null,null,null,null,null," "]
[null,null,null,null,null,null,null,null,null,null,null,null,null,null,null,null,null,null,null,null,null,null," "]
[null,null,null,null,null,null,null,null,null,null,null,null,null,null,null,null,null,null,null,null,null,null," "]
[null,null,null,null,null,null,null,null,null,null,null,null,null,null,null,null,null,null,null,null,null,null," "]
[null,null,null,null,null,null,null,null,null,null,null,null,null,null,null,null,null,null,null,null,null,null," "]
[null,null,null,null,null,null,null,null,null,null,null,null,null,null,null,null,null,null,null,null,null,null," "]
[null,null,null,null,null,null,null,null,null,null,null,null,null,null,null,null,null,null,null,null,null,null," "]
[null,null,null,null,null,null,null,null,null,null,null,null,null,null,null,null,null,null,null,null,null,null," "]
[null,null,null,null,null,null,null,null,null,null,null,null,null,null,null,null,null,null,null,null,null,null," "]
[null,null,null,null,null,null,null,null,null,null,null,null,null,null,null,null,null,null,null,null,null,null," "]
[null,null,null,null,null,null,null,null,null,null,null,null,null,null,null,null,null,null,null,null,null,null," "]
[null,null,null,null,null,null,null,null,null,null,null,null,null,null,null,null,null,null,null,null,null,null," "]
[null,null,null,null,null,null,null,null,null,null,null,null,null,null,null,null,null,null,null,null,null,null," "]
[null,null,null,null,null,null,null,null,null,null,null,null,null,null,null,null,null,null,null,null,null,null," "]
[null,null,null,null,null,null,null,null,null,null,null,null,null,null,null,null,null,null,null,null,null,null," "]
[null,null,null,null,null,null,null,null,null,null,null,null,null,null,null,null,null,null,null,null,null,null," "]
[null,null,null,null,null,null,null,null,null,null,null,null,null,null,null,null,null,null,null,null,null,null," "]
[null,null,null,null,null,null,null,null,null,null,null,null,null,null,null,null,null,null,null,null,null,null," "]
[null,null,null,null,null,null,null,null,null,null,null,null,null,null,null,null,null,null,null,null,null,null," "]
[null,null,null,null,null,null,null,null,null,null,null,null,null,null,null,null,null,null,null,null,null,null," "]
[null,null,null,null,null,null,null,null,null,null,null,null,null,null,null,null,null,null,null,null,null,null," "]
[null,null,null,null,null,null,null,null,null,null,null,null,null,null,null,null,null,null,null,null,null,null," "]
[null,null,null,null,null,null,null,null,null,null,null,null,null,null,null,null,null,null,null,null,null,null," "]
[null,null,null,null,null,null,null,null,null,null,null,null,null,null,null,null,null,null,null,null,null,null," "]
[null,null,null,null,null,null,null,null,null,null,null,null,null,null,null,null,null,null,null,null,null,null," "]
[null,null,null,null,null,null,null,null,null,null,null,null,null,null,null,null,null,null,null,null,null,null," "]
[null,null,null,null,null,null,null,null,null,null,null,null,null,null,null,null,null,null,null,null,null,null," "]
[null,null,null,null,null,null,null,null,null,null,null,null,null,null,null,null,null,null,null,null,null,null," "]
[null,null,null,null,null,null,null,null,null,null,null,null,null,null,null,null,null,null,null,null,null,null," "]
[null,null,null,null,null,null,null,null,null,null,null,null,null,null,null,null,null,null,null,null,null,null," "]
[null,null,null,null,null,null,null,null,null,null,null,null,null,null,null,null,null,null,null,null,null,null," "]
[null,null,null,null,null,null,null,null,null,null,null,null,null,null,null,null,null,null,null,null,null,null," "]
[null,null,null,null,null,null,null,null,null,null,null,null,null,null,null,null,null,null,null,null,null,null," "]
[null,null,null,null,null,null,null,null,null,null,null,null,null,null,null,null,null,null,null,null,null,null," "]
[null,null,null,null,null,null,null,null,null,null,null,null,null,null,null,null,null,null,null,null,null,null," "]
[null,null,null,null,null,null,null,null,null,null,null,null,null,null,null,null,null,null,null,null,null,null," "]
[null,null,null,null,null,null,null,null,null,null,null,null,null,null,null,null,null,null,null,null,null,null," "]
[null,null,null,null,null,null,null,null,null,null,null,null,null,null,null,null,null,null,null,null,null,null," "]
[null,null,null,null,null,null,null,null,null,null,null,null,null,null,null,null,null,null,null,null,null,null," "]
[null,null,null,null,null,null,null,null,null,null,null,null,null,null,null,null,null,null,null,null,null,null," "]
[null,null,null,null,null,null,null,null,null,null,null,null,null,null,null,null,null,null,null,null,null,null," "]
[null,null,null,null,null,null,null,null,null,null,null,null,null,null,null,null,null,null,null,null,null,null," "]
[null,null,null,null,null,null,null,null,null,null,null,null,null,null,null,null,null,null,null,null,null,null," "]
[null,null,null,null,null,null,null,null,null,null,null,null,null,null,null,null,null,null,null,null,null,null," "]
[null,null,null,null,null,null,null,null,null,null,null,null,null,null,null,null,null,null,null,null,null,null," "]
[null,null,null,null,null,null,null,null,null,null,null,null,null,null,null,null,null,null,null,null,null,null," "]
[null,null,null,null,null,null,null,null,null,null,null,null,null,null,null,null,null,null,null,null,null,null," "]
[null,null,null,null,null,null,null,null,null,null,null,null,null,null,null,null,null,null,null,null,null,null," "]
[null,null,null,null,null,null,null,null,null,null,null,null,null,null,null,null,null,null,null,null,null,null," "]
[null,null,null,null,null,null,null,null,null,null,null,null,null,null,null,null,null,null,null,null,null,null," "]
[null,null,null,null,null,null,null,null,null,null,null,null,null,null,null,null,null,null,null,null,null,null," "]
[null,null,null,null,null,null,null,null,null,null,null,null,null,null,null,null,null,null,null,null,null,null," "]
[null,null,null,null,null,null,null,null,null,null,null,null,null,null,null,null,null,null,null,null,null,null,{"$f":"C1410 & \" \" & D1410","v":" "}]
[null,null,null,null,null,null,null,null,null,null,null,null,null,null,null,null,null,null,null,null,null,null," "]
[null,null,null,null,null,null,null,null,null,null,null,null,null,null,null,null,null,null,null,null,null,null," "]
[null,null,null,null,null,null,null,null,null,null,null,null,null,null,null,null,null,null,null,null,null,null," "]
[null,null,null,null,null,null,null,null,null,null,null,null,null,null,null,null,null,null,null,null,null,null," "]
[null,null,null,null,null,null,null,null,null,null,null,null,null,null,null,null,null,null,null,null,null,null," "]
[null,null,null,null,null,null,null,null,null,null,null,null,null,null,null,null,null,null,null,null,null,null," "]
[null,null,null,null,null,null,null,null,null,null,null,null,null,null,null,null,null,null,null,null,null,null," "]
[null,null,null,null,null,null,null,null,null,null,null,null,null,null,null,null,null,null,null,null,null,null," "]
[null,null,null,null,null,null,null,null,null,null,null,null,null,null,null,null,null,null,null,null,null,null," "]
[null,null,null,null,null,null,null,null,null,null,null,null,null,null,null,null,null,null,null,null,null,null," "]
[null,null,null,null,null,null,null,null,null,null,null,null,null,null,null,null,null,null,null,null,null,null," "]
[null,null,null,null,null,null,null,null,null,null,null,null,null,null,null,null,null,null,null,null,null,null," "]
[null,null,null,null,null,null,null,null,null,null,null,null,null,null,null,null,null,null,null,null,null,null," "]
[null,null,null,null,null,null,null,null,null,null,null,null,null,null,null,null,null,null,null,null,null,null," "]
[null,null,null,null,null,null,null,null,null,null,null,null,null,null,null,null,null,null,null,null,null,null," "]
[null,null,null,null,null,null,null,null,null,null,null,null,null,null,null,null,null,null,null,null,null,null," "]
[null,null,null,null,null,null,null,null,null,null,null,null,null,null,null,null,null,null,null,null,null,null," "]
[null,null,null,null,null,null,null,null,null,null,null,null,null,null,null,null,null,null,null,null,null,null," "]
[null,null,null,null,null,null,null,null,null,null,null,null,null,null,null,null,null,null,null,null,null,null," "]
[null,null,null,null,null,null,null,null,null,null,null,null,null,null,null,null,null,null,null,null,null,null," "]
[null,null,null,null,null,null,null,null,null,null,null,null,null,null,null,null,null,null,null,null,null,null," "]
[null,null,null,null,null,null,null,null,null,null,null,null,null,null,null,null,null,null,null,null,null,null," "]
[null,null,null,null,null,null,null,null,null,null,null,null,null,null,null,null,null,null,null,null,null,null," "]
[null,null,null,null,null,null,null,null,null,null,null,null,null,null,null,null,null,null,null,null,null,null," "]
[null,null,null,null,null,null,null,null,null,null,null,null,null,null,null,null,null,null,null,null,null,null," "]
[null,null,null,null,null,null,null,null,null,null,null,null,null,null,null,null,null,null,null,null,null,null," "]
[null,null,null,null,null,null,null,null,null,null,null,null,null,null,null,null,null,null,null,null,null,null," "]
[null,null,null,null,null,null,null,null,null,null,null,null,null,null,null,null,null,null,null,null,null,null," "]
[null,null,null,null,null,null,null,null,null,null,null,null,null,null,null,null,null,null,null,null,null,null," "]
[null,null,null,null,null,null,null,null,null,null,null,null,null,null,null,null,null,null,null,null,null,null," "]
[null,null,null,null,null,null,null,null,null,null,null,null,null,null,null,null,null,null,null,null,null,null," "]
[null,null,null,null,null,null,null,null,null,null,null,null,null,null,null,null,null,null,null,null,null,null," "]
[null,null,null,null,null,null,null,null,null,null,null,null,null,null,null,null,null,null,null,null,null,null," "]
[null,null,null,null,null,null,null,null,null,null,null,null,null,null,null,null,null,null,null,null,null,null," "]
[null,null,null,null,null,null,null,null,null,null,null,null,null,null,null,null,null,null,null,null,null,null," "]
[null,null,null,null,null,null,null,null,null,null,null,null,null,null,null,null,null,null,null,null,null,null," "]
[null,null,null,null,null,null,null,null,null,null,null,null,null,null,null,null,null,null,null,null,null,null," "]
[null,null,null,null,null,null,null,null,null,null,null,null,null,null,null,null,null,null,null,null,null,null," "]
[null,null,null,null,null,null,null,null,null,null,null,null,null,null,null,null,null,null,null,null,null,null," "]
[null,null,null,null,null,null,null,null,null,null,null,null,null,null,null,null,null,null,null,null,null,null," "]
[null,null,null,null,null,null,null,null,null,null,null,null,null,null,null,null,null,null,null,null,null,null," "]
[null,null,null,null,null,null,null,null,null,null,null,null,null,null,null,null,null,null,null,null,null,null," "]
[null,null,null,null,null,null,null,null,null,null,null,null,null,null,null,null,null,null,null,null,null,null," "]
[null,null,null,null,null,null,null,null,null,null,null,null,null,null,null,null,null,null,null,null,null,null," "]
[null,null,null,null,null,null,null,null,null,null,null,null,null,null,null,null,null,null,null,null,null,null," "]
[null,null,null,null,null,null,null,null,null,null,null,null,null,null,null,null,null,null,null,null,null,null," "]
[null,null,null,null,null,null,null,null,null,null,null,null,null,null,null,null,null,null,null,null,null,null," "]
[null,null,null,null,null,null,null,null,null,null,null,null,null,null,null,null,null,null,null,null,null,null," "]
[null,null,null,null,null,null,null,null,null,null,null,null,null,null,null,null,null,null,null,null,null,null," "]
[null,null,null,null,null,null,null,null,null,null,null,null,null,null,null,null,null,null,null,null,null,null," "]
[null,null,null,null,null,null,null,null,null,null,null,null,null,null,null,null,null,null,null,null,null,null," "]
[null,null,null,null,null,null,null,null,null,null,null,null,null,null,null,null,null,null,null,null,null,null," "]
[null,null,null,null,null,null,null,null,null,null,null,null,null,null,null,null,null,null,null,null,null,null," "]
[null,null,null,null,null,null,null,null,null,null,null,null,null,null,null,null,null,null,null,null,null,null," "]
[null,null,null,null,null,null,null,null,null,null,null,null,null,null,null,null,null,null,null,null,null,null," "]
[null,null,null,null,null,null,null,null,null,null,null,null,null,null,null,null,null,null,null,null,null,null," "]
[null,null,null,null,null,null,null,null,null,null,null,null,null,null,null,null,null,null,null,null,null,null," "]
[null,null,null,null,null,null,null,null,null,null,null,null,null,null,null,null,null,null,null,null,null,null," "]
[null,null,null,null,null,null,null,null,null,null,null,null,null,null,null,null,null,null,null,null,null,null," "]
[null,null,null,null,null,null,null,null,null,null,null,null,null,null,null,null,null,null,null,null,null,null," "]
[null,null,null,null,null,null,null,null,null,null,null,null,null,null,null,null,null,null,null,null,null,null," "]
[null,null,null,null,null,null,null,null,null,null,null,null,null,null,null,null,null,null,null,null,null,null," "]
[null,null,null,null,null,null,null,null,null,null,null,null,null,null,null,null,null,null,null,null,null,null," "]
[null,null,null,null,null,null,null,null,null,null,null,null,null,null,null,null,null,null,null,null,null,null,{"$f":"C1474 & \" \" & D1474","v":" "}]
[null,null,null,null,null,null,null,null,null,null,null,null,null,null,null,null,null,null,null,null,null,null," "]
[null,null,null,null,null,null,null,null,null,null,null,null,null,null,null,null,null,null,null,null,null,null," "]
[null,null,null,null,null,null,null,null,null,null,null,null,null,null,null,null,null,null,null,null,null,null," "]
[null,null,null,null,null,null,null,null,null,null,null,null,null,null,null,null,null,null,null,null,null,null," "]
[null,null,null,null,null,null,null,null,null,null,null,null,null,null,null,null,null,null,null,null,null,null," "]
[null,null,null,null,null,null,null,null,null,null,null,null,null,null,null,null,null,null,null,null,null,null," "]
[null,null,null,null,null,null,null,null,null,null,null,null,null,null,null,null,null,null,null,null,null,null," "]
[null,null,null,null,null,null,null,null,null,null,null,null,null,null,null,null,null,null,null,null,null,null," "]
[null,null,null,null,null,null,null,null,null,null,null,null,null,null,null,null,null,null,null,null,null,null," "]
[null,null,null,null,null,null,null,null,null,null,null,null,null,null,null,null,null,null,null,null,null,null," "]
[null,null,null,null,null,null,null,null,null,null,null,null,null,null,null,null,null,null,null,null,null,null," "]
[null,null,null,null,null,null,null,null,null,null,null,null,null,null,null,null,null,null,null,null,null,null," "]
[null,null,null,null,null,null,null,null,null,null,null,null,null,null,null,null,null,null,null,null,null,null," "]
[null,null,null,null,null,null,null,null,null,null,null,null,null,null,null,null,null,null,null,null,null,null," "]
[null,null,null,null,null,null,null,null,null,null,null,null,null,null,null,null,null,null,null,null,null,null," "]
[null,null,null,null,null,null,null,null,null,null,null,null,null,null,null,null,null,null,null,null,null,null," "]
[null,null,null,null,null,null,null,null,null,null,null,null,null,null,null,null,null,null,null,null,null,null," "]
[null,null,null,null,null,null,null,null,null,null,null,null,null,null,null,null,null,null,null,null,null,null," "]
[null,null,null,null,null,null,null,null,null,null,null,null,null,null,null,null,null,null,null,null,null,null," "]
[null,null,null,null,null,null,null,null,null,null,null,null,null,null,null,null,null,null,null,null,null,null," "]
[null,null,null,null,null,null,null,null,null,null,null,null,null,null,null,null,null,null,null,null,null,null," "]
[null,null,null,null,null,null,null,null,null,null,null,null,null,null,null,null,null,null,null,null,null,null," "]
[null,null,null,null,null,null,null,null,null,null,null,null,null,null,null,null,null,null,null,null,null,null," "]
[null,null,null,null,null,null,null,null,null,null,null,null,null,null,null,null,null,null,null,null,null,null," "]
[null,null,null,null,null,null,null,null,null,null,null,null,null,null,null,null,null,null,null,null,null,null," "]
[null,null,null,null,null,null,null,null,null,null,null,null,null,null,null,null,null,null,null,null,null,null," "]
[null,null,null,null,null,null,null,null,null,null,null,null,null,null,null,null,null,null,null,null,null,null," "]
[null,null,null,null,null,null,null,null,null,null,null,null,null,null,null,null,null,null,null,null,null,null," "]
[null,null,null,null,null,null,null,null,null,null,null,null,null,null,null,null,null,null,null,null,null,null," "]
[null,null,null,null,null,null,null,null,null,null,null,null,null,null,null,null,null,null,null,null,null,null," "]
[null,null,null,null,null,null,null,null,null,null,null,null,null,null,null,null,null,null,null,null,null,null," "]
[null,null,null,null,null,null,null,null,null,null,null,null,null,null,null,null,null,null,null,null,null,null," "]
[null,null,null,null,null,null,null,null,null,null,null,null,null,null,null,null,null,null,null,null,null,null," "]
[null,null,null,null,null,null,null,null,null,null,null,null,null,null,null,null,null,null,null,null,null,null," "]
[null,null,null,null,null,null,null,null,null,null,null,null,null,null,null,null,null,null,null,null,null,null," "]
[null,null,null,null,null,null,null,null,null,null,null,null,null,null,null,null,null,null,null,null,null,null," "]
[null,null,null,null,null,null,null,null,null,null,null,null,null,null,null,null,null,null,null,null,null,null," "]
[null,null,null,null,null,null,null,null,null,null,null,null,null,null,null,null,null,null,null,null,null,null," "]
[null,null,null,null,null,null,null,null,null,null,null,null,null,null,null,null,null,null,null,null,null,null," "]
[null,null,null,null,null,null,null,null,null,null,null,null,null,null,null,null,null,null,null,null,null,null," "]
[null,null,null,null,null,null,null,null,null,null,null,null,null,null,null,null,null,null,null,null,null,null," "]
[null,null,null,null,null,null,null,null,null,null,null,null,null,null,null,null,null,null,null,null,null,null," "]
[null,null,null,null,null,null,null,null,null,null,null,null,null,null,null,null,null,null,null,null,null,null," "]
[null,null,null,null,null,null,null,null,null,null,null,null,null,null,null,null,null,null,null,null,null,null," "]
[null,null,null,null,null,null,null,null,null,null,null,null,null,null,null,null,null,null,null,null,null,null," "]
[null,null,null,null,null,null,null,null,null,null,null,null,null,null,null,null,null,null,null,null,null,null," "]
[null,null,null,null,null,null,null,null,null,null,null,null,null,null,null,null,null,null,null,null,null,null," "]
[null,null,null,null,null,null,null,null,null,null,null,null,null,null,null,null,null,null,null,null,null,null," "]
[null,null,null,null,null,null,null,null,null,null,null,null,null,null,null,null,null,null,null,null,null,null," "]
[null,null,null,null,null,null,null,null,null,null,null,null,null,null,null,null,null,null,null,null,null,null," "]
[null,null,null,null,null,null,null,null,null,null,null,null,null,null,null,null,null,null,null,null,null,null," "]
[null,null,null,null,null,null,null,null,null,null,null,null,null,null,null,null,null,null,null,null,null,null," "]
[null,null,null,null,null,null,null,null,null,null,null,null,null,null,null,null,null,null,null,null,null,null," "]
[null,null,null,null,null,null,null,null,null,null,null,null,null,null,null,null,null,null,null,null,null,null," "]
[null,null,null,null,null,null,null,null,null,null,null,null,null,null,null,null,null,null,null,null,null,null," "]
[null,null,null,null,null,null,null,null,null,null,null,null,null,null,null,null,null,null,null,null,null,null," "]
[null,null,null,null,null,null,null,null,null,null,null,null,null,null,null,null,null,null,null,null,null,null," "]
[null,null,null,null,null,null,null,null,null,null,null,null,null,null,null,null,null,null,null,null,null,null," "]
[null,null,null,null,null,null,null,null,null,null,null,null,null,null,null,null,null,null,null,null,null,null," "]
[null,null,null,null,null,null,null,null,null,null,null,null,null,null,null,null,null,null,null,null,null,null," "]
[null,null,null,null,null,null,null,null,null,null,null,null,null,null,null,null,null,null,null,null,null,null," "]
[null,null,null,null,null,null,null,null,null,null,null,null,null,null,null,null,null,null,null,null,null,null," "]
[null,null,null,null,null,null,null,null,null,null,null,null,null,null,null,null,null,null,null,null,null,null," "]
[null,null,null,null,null,null,null,null,null,null,null,null,null,null,null,null,null,null,null,null,null,null,{"$f":"C1538 & \" \" & D1538","v":" "}]
[null,null,null,null,null,null,null,null,null,null,null,null,null,null,null,null,null,null,null,null,null,null," "]
[null,null,null,null,null,null,null,null,null,null,null,null,null,null,null,null,null,null,null,null,null,null," "]
[null,null,null,null,null,null,null,null,null,null,null,null,null,null,null,null,null,null,null,null,null,null," "]
[null,null,null,null,null,null,null,null,null,null,null,null,null,null,null,null,null,null,null,null,null,null," "]
[null,null,null,null,null,null,null,null,null,null,null,null,null,null,null,null,null,null,null,null,null,null," "]
[null,null,null,null,null,null,null,null,null,null,null,null,null,null,null,null,null,null,null,null,null,null," "]
[null,null,null,null,null,null,null,null,null,null,null,null,null,null,null,null,null,null,null,null,null,null," "]
[null,null,null,null,null,null,null,null,null,null,null,null,null,null,null,null,null,null,null,null,null,null," "]
[null,null,null,null,null,null,null,null,null,null,null,null,null,null,null,null,null,null,null,null,null,null," "]
[null,null,null,null,null,null,null,null,null,null,null,null,null,null,null,null,null,null,null,null,null,null," "]
[null,null,null,null,null,null,null,null,null,null,null,null,null,null,null,null,null,null,null,null,null,null," "]
[null,null,null,null,null,null,null,null,null,null,null,null,null,null,null,null,null,null,null,null,null,null," "]
[null,null,null,null,null,null,null,null,null,null,null,null,null,null,null,null,null,null,null,null,null,null," "]
[null,null,null,null,null,null,null,null,null,null,null,null,null,null,null,null,null,null,null,null,null,null," "]
[null,null,null,null,null,null,null,null,null,null,null,null,null,null,null,null,null,null,null,null,null,null," "]
[null,null,null,null,null,null,null,null,null,null,null,null,null,null,null,null,null,null,null,null,null,null," "]
[null,null,null,null,null,null,null,null,null,null,null,null,null,null,null,null,null,null,null,null,null,null," "]
[null,null,null,null,null,null,null,null,null,null,null,null,null,null,null,null,null,null,null,null,null,null," "]
[null,null,null,null,null,null,null,null,null,null,null,null,null,null,null,null,null,null,null,null,null,null," "]
[null,null,null,null,null,null,null,null,null,null,null,null,null,null,null,null,null,null,null,null,null,null," "]
[null,null,null,null,null,null,null,null,null,null,null,null,null,null,null,null,null,null,null,null,null,null," "]
[null,null,null,null,null,null,null,null,null,null,null,null,null,null,null,null,null,null,null,null,null,null," "]
[null,null,null,null,null,null,null,null,null,null,null,null,null,null,null,null,null,null,null,null,null,null," "]
[null,null,null,null,null,null,null,null,null,null,null,null,null,null,null,null,null,null,null,null,null,null," "]
[null,null,null,null,null,null,null,null,null,null,null,null,null,null,null,null,null,null,null,null,null,null," "]
[null,null,null,null,null,null,null,null,null,null,null,null,null,null,null,null,null,null,null,null,null,null," "]
[null,null,null,null,null,null,null,null,null,null,null,null,null,null,null,null,null,null,null,null,null,null," "]
[null,null,null,null,null,null,null,null,null,null,null,null,null,null,null,null,null,null,null,null,null,null," "]
[null,null,null,null,null,null,null,null,null,null,null,null,null,null,null,null,null,null,null,null,null,null," "]
[null,null,null,null,null,null,null,null,null,null,null,null,null,null,null,null,null,null,null,null,null,null," "]
[null,null,null,null,null,null,null,null,null,null,null,null,null,null,null,null,null,null,null,null,null,null," "]
[null,null,null,null,null,null,null,null,null,null,null,null,null,null,null,null,null,null,null,null,null,null," "]
[null,null,null,null,null,null,null,null,null,null,null,null,null,null,null,null,null,null,null,null,null,null," "]
[null,null,null,null,null,null,null,null,null,null,null,null,null,null,null,null,null,null,null,null,null,null," "]
[null,null,null,null,null,null,null,null,null,null,null,null,null,null,null,null,null,null,null,null,null,null," "]
[null,null,null,null,null,null,null,null,null,null,null,null,null,null,null,null,null,null,null,null,null,null," "]
[null,null,null,null,null,null,null,null,null,null,null,null,null,null,null,null,null,null,null,null,null,null," "]
[null,null,null,null,null,null,null,null,null,null,null,null,null,null,null,null,null,null,null,null,null,null," "]
[null,null,null,null,null,null,null,null,null,null,null,null,null,null,null,null,null,null,null,null,null,null," "]
[null,null,null,null,null,null,null,null,null,null,null,null,null,null,null,null,null,null,null,null,null,null," "]
[null,null,null,null,null,null,null,null,null,null,null,null,null,null,null,null,null,null,null,null,null,null," "]
[null,null,null,null,null,null,null,null,null,null,null,null,null,null,null,null,null,null,null,null,null,null," "]
[null,null,null,null,null,null,null,null,null,null,null,null,null,null,null,null,null,null,null,null,null,null," "]
[null,null,null,null,null,null,null,null,null,null,null,null,null,null,null,null,null,null,null,null,null,null," "]
[null,null,null,null,null,null,null,null,null,null,null,null,null,null,null,null,null,null,null,null,null,null," "]
[null,null,null,null,null,null,null,null,null,null,null,null,null,null,null,null,null,null,null,null,null,null," "]
[null,null,null,null,null,null,null,null,null,null,null,null,null,null,null,null,null,null,null,null,null,null," "]
[null,null,null,null,null,null,null,null,null,null,null,null,null,null,null,null,null,null,null,null,null,null," "]
[null,null,null,null,null,null,null,null,null,null,null,null,null,null,null,null,null,null,null,null,null,null," "]
[null,null,null,null,null,null,null,null,null,null,null,null,null,null,null,null,null,null,null,null,null,null," "]
[null,null,null,null,null,null,null,null,null,null,null,null,null,null,null,null,null,null,null,null,null,null," "]
[null,null,null,null,null,null,null,null,null,null,null,null,null,null,null,null,null,null,null,null,null,null," "]
[null,null,null,null,null,null,null,null,null,null,null,null,null,null,null,null,null,null,null,null,null,null," "]
[null,null,null,null,null,null,null,null,null,null,null,null,null,null,null,null,null,null,null,null,null,null," "]
[null,null,null,null,null,null,null,null,null,null,null,null,null,null,null,null,null,null,null,null,null,null," "]
[null,null,null,null,null,null,null,null,null,null,null,null,null,null,null,null,null,null,null,null,null,null," "]
[null,null,null,null,null,null,null,null,null,null,null,null,null,null,null,null,null,null,null,null,null,null," "]
[null,null,null,null,null,null,null,null,null,null,null,null,null,null,null,null,null,null,null,null,null,null," "]
[null,null,null,null,null,null,null,null,null,null,null,null,null,null,null,null,null,null,null,null,null,null," "]
[null,null,null,null,null,null,null,null,null,null,null,null,null,null,null,null,null,null,null,null,null,null," "]
[null,null,null,null,null,null,null,null,null,null,null,null,null,null,null,null,null,null,null,null,null,null," "]
[null,null,null,null,null,null,null,null,null,null,null,null,null,null,null,null,null,null,null,null,null,null," "]
[null,null,null,null,null,null,null,null,null,null,null,null,null,null,null,null,null,null,null,null,null,null," "]
[null,null,null,null,null,null,null,null,null,null,null,null,null,null,null,null,null,null,null,null,null,null,{"$f":"C1602 & \" \" & D1602","v":" "}]
[null,null,null,null,null,null,null,null,null,null,null,null,null,null,null,null,null,null,null,null,null,null," "]
[null,null,null,null,null,null,null,null,null,null,null,null,null,null,null,null,null,null,null,null,null,null," "]
[null,null,null,null,null,null,null,null,null,null,null,null,null,null,null,null,null,null,null,null,null,null," "]
[null,null,null,null,null,null,null,null,null,null,null,null,null,null,null,null,null,null,null,null,null,null," "]
[null,null,null,null,null,null,null,null,null,null,null,null,null,null,null,null,null,null,null,null,null,null," "]
[null,null,null,null,null,null,null,null,null,null,null,null,null,null,null,null,null,null,null,null,null,null," "]
[null,null,null,null,null,null,null,null,null,null,null,null,null,null,null,null,null,null,null,null,null,null," "]
[null,null,null,null,null,null,null,null,null,null,null,null,null,null,null,null,null,null,null,null,null,null," "]
[null,null,null,null,null,null,null,null,null,null,null,null,null,null,null,null,null,null,null,null,null,null," "]
[null,null,null,null,null,null,null,null,null,null,null,null,null,null,null,null,null,null,null,null,null,null," "]
[null,null,null,null,null,null,null,null,null,null,null,null,null,null,null,null,null,null,null,null,null,null," "]
[null,null,null,null,null,null,null,null,null,null,null,null,null,null,null,null,null,null,null,null,null,null," "]
[null,null,null,null,null,null,null,null,null,null,null,null,null,null,null,null,null,null,null,null,null,null," "]
[null,null,null,null,null,null,null,null,null,null,null,null,null,null,null,null,null,null,null,null,null,null," "]
[null,null,null,null,null,null,null,null,null,null,null,null,null,null,null,null,null,null,null,null,null,null," "]
[null,null,null,null,null,null,null,null,null,null,null,null,null,null,null,null,null,null,null,null,null,null," "]
[null,null,null,null,null,null,null,null,null,null,null,null,null,null,null,null,null,null,null,null,null,null," "]
[null,null,null,null,null,null,null,null,null,null,null,null,null,null,null,null,null,null,null,null,null,null," "]
[null,null,null,null,null,null,null,null,null,null,null,null,null,null,null,null,null,null,null,null,null,null," "]
[null,null,null,null,null,null,null,null,null,null,null,null,null,null,null,null,null,null,null,null,null,null," "]
[null,null,null,null,null,null,null,null,null,null,null,null,null,null,null,null,null,null,null,null,null,null," "]
[null,null,null,null,null,null,null,null,null,null,null,null,null,null,null,null,null,null,null,null,null,null," "]
[null,null,null,null,null,null,null,null,null,null,null,null,null,null,null,null,null,null,null,null,null,null," "]
[null,null,null,null,null,null,null,null,null,null,null,null,null,null,null,null,null,null,null,null,null,null," "]
[null,null,null,null,null,null,null,null,null,null,null,null,null,null,null,null,null,null,null,null,null,null," "]
[null,null,null,null,null,null,null,null,null,null,null,null,null,null,null,null,null,null,null,null,null,null," "]
[null,null,null,null,null,null,null,null,null,null,null,null,null,null,null,null,null,null,null,null,null,null," "]
[null,null,null,null,null,null,null,null,null,null,null,null,null,null,null,null,null,null,null,null,null,null," "]
[null,null,null,null,null,null,null,null,null,null,null,null,null,null,null,null,null,null,null,null,null,null," "]
[null,null,null,null,null,null,null,null,null,null,null,null,null,null,null,null,null,null,null,null,null,null," "]
[null,null,null,null,null,null,null,null,null,null,null,null,null,null,null,null,null,null,null,null,null,null," "]
[null,null,null,null,null,null,null,null,null,null,null,null,null,null,null,null,null,null,null,null,null,null," "]
[null,null,null,null,null,null,null,null,null,null,null,null,null,null,null,null,null,null,null,null,null,null," "]
[null,null,null,null,null,null,null,null,null,null,null,null,null,null,null,null,null,null,null,null,null,null," "]
[null,null,null,null,null,null,null,null,null,null,null,null,null,null,null,null,null,null,null,null,null,null," "]
[null,null,null,null,null,null,null,null,null,null,null,null,null,null,null,null,null,null,null,null,null,null," "]
[null,null,null,null,null,null,null,null,null,null,null,null,null,null,null,null,null,null,null,null,null,null," "]
[null,null,null,null,null,null,null,null,null,null,null,null,null,null,null,null,null,null,null,null,null,null," "]
[null,null,null,null,null,null,null,null,null,null,null,null,null,null,null,null,null,null,null,null,null,null," "]
[null,null,null,null,null,null,null,null,null,null,null,null,null,null,null,null,null,null,null,null,null,null," "]
[null,null,null,null,null,null,null,null,null,null,null,null,null,null,null,null,null,null,null,null,null,null," "]
[null,null,null,null,null,null,null,null,null,null,null,null,null,null,null,null,null,null,null,null,null,null," "]
[null,null,null,null,null,null,null,null,null,null,null,null,null,null,null,null,null,null,null,null,null,null," "]
[null,null,null,null,null,null,null,null,null,null,null,null,null,null,null,null,null,null,null,null,null,null," "]
[null,null,null,null,null,null,null,null,null,null,null,null,null,null,null,null,null,null,null,null,null,null," "]
[null,null,null,null,null,null,null,null,null,null,null,null,null,null,null,null,null,null,null,null,null,null," "]
[null,null,null,null,null,null,null,null,null,null,null,null,null,null,null,null,null,null,null,null,null,null," "]
[null,null,null,null,null,null,null,null,null,null,null,null,null,null,null,null,null,null,null,null,null,null," "]
[null,null,null,null,null,null,null,null,null,null,null,null,null,null,null,null,null,null,null,null,null,null," "]
[null,null,null,null,null,null,null,null,null,null,null,null,null,null,null,null,null,null,null,null,null,null," "]
[null,null,null,null,null,null,null,null,null,null,null,null,null,null,null,null,null,null,null,null,null,null," "]
[null,null,null,null,null,null,null,null,null,null,null,null,null,null,null,null,null,null,null,null,null,null," "]
[null,null,null,null,null,null,null,null,null,null,null,null,null,null,null,null,null,null,null,null,null,null," "]
[null,null,null,null,null,null,null,null,null,null,null,null,null,null,null,null,null,null,null,null,null,null," "]
[null,null,null,null,null,null,null,null,null,null,null,null,null,null,null,null,null,null,null,null,null,null," "]
[null,null,null,null,null,null,null,null,null,null,null,null,null,null,null,null,null,null,null,null,null,null," "]
[null,null,null,null,null,null,null,null,null,null,null,null,null,null,null,null,null,null,null,null,null,null," "]
[null,null,null,null,null,null,null,null,null,null,null,null,null,null,null,null,null,null,null,null,null,null," "]
[null,null,null,null,null,null,null,null,null,null,null,null,null,null,null,null,null,null,null,null,null,null," "]
[null,null,null,null,null,null,null,null,null,null,null,null,null,null,null,null,null,null,null,null,null,null," "]
[null,null,null,null,null,null,null,null,null,null,null,null,null,null,null,null,null,null,null,null,null,null," "]
[null,null,null,null,null,null,null,null,null,null,null,null,null,null,null,null,null,null,null,null,null,null," "]
[null,null,null,null,null,null,null,null,null,null,null,null,null,null,null,null,null,null,null,null,null,null," "]
[null,null,null,null,null,null,null,null,null,null,null,null,null,null,null,null,null,null,null,null,null,null,{"$f":"C1666 & \" \" & D1666","v":" "}]
[null,null,null,null,null,null,null,null,null,null,null,null,null,null,null,null,null,null,null,null,null,null," "]
[null,null,null,null,null,null,null,null,null,null,null,null,null,null,null,null,null,null,null,null,null,null," "]
[null,null,null,null,null,null,null,null,null,null,null,null,null,null,null,null,null,null,null,null,null,null," "]
[null,null,null,null,null,null,null,null,null,null,null,null,null,null,null,null,null,null,null,null,null,null," "]
[null,null,null,null,null,null,null,null,null,null,null,null,null,null,null,null,null,null,null,null,null,null," "]
[null,null,null,null,null,null,null,null,null,null,null,null,null,null,null,null,null,null,null,null,null,null," "]
[null,null,null,null,null,null,null,null,null,null,null,null,null,null,null,null,null,null,null,null,null,null," "]
[null,null,null,null,null,null,null,null,null,null,null,null,null,null,null,null,null,null,null,null,null,null," "]
[null,null,null,null,null,null,null,null,null,null,null,null,null,null,null,null,null,null,null,null,null,null," "]
[null,null,null,null,null,null,null,null,null,null,null,null,null,null,null,null,null,null,null,null,null,null," "]
[null,null,null,null,null,null,null,null,null,null,null,null,null,null,null,null,null,null,null,null,null,null," "]
[null,null,null,null,null,null,null,null,null,null,null,null,null,null,null,null,null,null,null,null,null,null," "]
[null,null,null,null,null,null,null,null,null,null,null,null,null,null,null,null,null,null,null,null,null,null," "]
[null,null,null,null,null,null,null,null,null,null,null,null,null,null,null,null,null,null,null,null,null,null," "]
[null,null,null,null,null,null,null,null,null,null,null,null,null,null,null,null,null,null,null,null,null,null," "]
[null,null,null,null,null,null,null,null,null,null,null,null,null,null,null,null,null,null,null,null,null,null," "]
[null,null,null,null,null,null,null,null,null,null,null,null,null,null,null,null,null,null,null,null,null,null," "]
[null,null,null,null,null,null,null,null,null,null,null,null,null,null,null,null,null,null,null,null,null,null," "]
[null,null,null,null,null,null,null,null,null,null,null,null,null,null,null,null,null,null,null,null,null,null," "]
[null,null,null,null,null,null,null,null,null,null,null,null,null,null,null,null,null,null,null,null,null,null," "]
[null,null,null,null,null,null,null,null,null,null,null,null,null,null,null,null,null,null,null,null,null,null," "]
[null,null,null,null,null,null,null,null,null,null,null,null,null,null,null,null,null,null,null,null,null,null," "]
[null,null,null,null,null,null,null,null,null,null,null,null,null,null,null,null,null,null,null,null,null,null," "]
[null,null,null,null,null,null,null,null,null,null,null,null,null,null,null,null,null,null,null,null,null,null," "]
[null,null,null,null,null,null,null,null,null,null,null,null,null,null,null,null,null,null,null,null,null,null," "]
[null,null,null,null,null,null,null,null,null,null,null,null,null,null,null,null,null,null,null,null,null,null," "]
[null,null,null,null,null,null,null,null,null,null,null,null,null,null,null,null,null,null,null,null,null,null," "]
[null,null,null,null,null,null,null,null,null,null,null,null,null,null,null,null,null,null,null,null,null,null," "]
[null,null,null,null,null,null,null,null,null,null,null,null,null,null,null,null,null,null,null,null,null,null," "]
[null,null,null,null,null,null,null,null,null,null,null,null,null,null,null,null,null,null,null,null,null,null," "]
[null,null,null,null,null,null,null,null,null,null,null,null,null,null,null,null,null,null,null,null,null,null," "]
[null,null,null,null,null,null,null,null,null,null,null,null,null,null,null,null,null,null,null,null,null,null," "]
[null,null,null,null,null,null,null,null,null,null,null,null,null,null,null,null,null,null,null,null,null,null," "]
[null,null,null,null,null,null,null,null,null,null,null,null,null,null,null,null,null,null,null,null,null,null," "]
[null,null,null,null,null,null,null,null,null,null,null,null,null,null,null,null,null,null,null,null,null,null," "]
[null,null,null,null,null,null,null,null,null,null,null,null,null,null,null,null,null,null,null,null,null,null," "]
[null,null,null,null,null,null,null,null,null,null,null,null,null,null,null,null,null,null,null,null,null,null," "]
[null,null,null,null,null,null,null,null,null,null,null,null,null,null,null,null,null,null,null,null,null,null," "]
[null,null,null,null,null,null,null,null,null,null,null,null,null,null,null,null,null,null,null,null,null,null," "]
[null,null,null,null,null,null,null,null,null,null,null,null,null,null,null,null,null,null,null,null,null,null," "]
[null,null,null,null,null,null,null,null,null,null,null,null,null,null,null,null,null,null,null,null,null,null," "]
[null,null,null,null,null,null,null,null,null,null,null,null,null,null,null,null,null,null,null,null,null,null," "]
[null,null,null,null,null,null,null,null,null,null,null,null,null,null,null,null,null,null,null,null,null,null," "]
[null,null,null,null,null,null,null,null,null,null,null,null,null,null,null,null,null,null,null,null,null,null," "]
[null,null,null,null,null,null,null,null,null,null,null,null,null,null,null,null,null,null,null,null,null,null," "]
[null,null,null,null,null,null,null,null,null,null,null,null,null,null,null,null,null,null,null,null,null,null," "]
[null,null,null,null,null,null,null,null,null,null,null,null,null,null,null,null,null,null,null,null,null,null," "]
[null,null,null,null,null,null,null,null,null,null,null,null,null,null,null,null,null,null,null,null,null,null," "]
[null,null,null,null,null,null,null,null,null,null,null,null,null,null,null,null,null,null,null,null,null,null," "]
[null,null,null,null,null,null,null,null,null,null,null,null,null,null,null,null,null,null,null,null,null,null," "]
[null,null,null,null,null,null,null,null,null,null,null,null,null,null,null,null,null,null,null,null,null,null," "]
[null,null,null,null,null,null,null,null,null,null,null,null,null,null,null,null,null,null,null,null,null,null," "]
[null,null,null,null,null,null,null,null,null,null,null,null,null,null,null,null,null,null,null,null,null,null," "]
[null,null,null,null,null,null,null,null,null,null,null,null,null,null,null,null,null,null,null,null,null,null," "]
[null,null,null,null,null,null,null,null,null,null,null,null,null,null,null,null,null,null,null,null,null,null," "]
[null,null,null,null,null,null,null,null,null,null,null,null,null,null,null,null,null,null,null,null,null,null," "]
[null,null,null,null,null,null,null,null,null,null,null,null,null,null,null,null,null,null,null,null,null,null," "]
[null,null,null,null,null,null,null,null,null,null,null,null,null,null,null,null,null,null,null,null,null,null," "]
[null,null,null,null,null,null,null,null,null,null,null,null,null,null,null,null,null,null,null,null,null,null," "]
[null,null,null,null,null,null,null,null,null,null,null,null,null,null,null,null,null,null,null,null,null,null," "]
[null,null,null,null,null,null,null,null,null,null,null,null,null,null,null,null,null,null,null,null,null,null," "]
[null,null,null,null,null,null,null,null,null,null,null,null,null,null,null,null,null,null,null,null,null,null," "]
[null,null,null,null,null,null,null,null,null,null,null,null,null,null,null,null,null,null,null,null,null,null," "]
[null,null,null,null,null,null,null,null,null,null,null,null,null,null,null,null,null,null,null,null,null,null,{"$f":"C1730 & \" \" & D1730","v":" "}]
[null,null,null,null,null,null,null,null,null,null,null,null,null,null,null,null,null,null,null,null,null,null," "]
[null,null,null,null,null,null,null,null,null,null,null,null,null,null,null,null,null,null,null,null,null,null," "]
[null,null,null,null,null,null,null,null,null,null,null,null,null,null,null,null,null,null,null,null,null,null," "]
[null,null,null,null,null,null,null,null,null,null,null,null,null,null,null,null,null,null,null,null,null,null," "]
[null,null,null,null,null,null,null,null,null,null,null,null,null,null,null,null,null,null,null,null,null,null," "]
[null,null,null,null,null,null,null,null,null,null,null,null,null,null,null,null,null,null,null,null,null,null," "]
[null,null,null,null,null,null,null,null,null,null,null,null,null,null,null,null,null,null,null,null,null,null," "]
[null,null,null,null,null,null,null,null,null,null,null,null,null,null,null,null,null,null,null,null,null,null," "]
[null,null,null,null,null,null,null,null,null,null,null,null,null,null,null,null,null,null,null,null,null,null," "]
[null,null,null,null,null,null,null,null,null,null,null,null,null,null,null,null,null,null,null,null,null,null," "]
[null,null,null,null,null,null,null,null,null,null,null,null,null,null,null,null,null,null,null,null,null,null," "]
[null,null,null,null,null,null,null,null,null,null,null,null,null,null,null,null,null,null,null,null,null,null," "]
[null,null,null,null,null,null,null,null,null,null,null,null,null,null,null,null,null,null,null,null,null,null," "]
[null,null,null,null,null,null,null,null,null,null,null,null,null,null,null,null,null,null,null,null,null,null," "]
[null,null,null,null,null,null,null,null,null,null,null,null,null,null,null,null,null,null,null,null,null,null," "]
[null,null,null,null,null,null,null,null,null,null,null,null,null,null,null,null,null,null,null,null,null,null," "]
[null,null,null,null,null,null,null,null,null,null,null,null,null,null,null,null,null,null,null,null,null,null," "]
[null,null,null,null,null,null,null,null,null,null,null,null,null,null,null,null,null,null,null,null,null,null," "]
[null,null,null,null,null,null,null,null,null,null,null,null,null,null,null,null,null,null,null,null,null,null," "]
[null,null,null,null,null,null,null,null,null,null,null,null,null,null,null,null,null,null,null,null,null,null," "]
[null,null,null,null,null,null,null,null,null,null,null,null,null,null,null,null,null,null,null,null,null,null," "]
[null,null,null,null,null,null,null,null,null,null,null,null,null,null,null,null,null,null,null,null,null,null," "]
[null,null,null,null,null,null,null,null,null,null,null,null,null,null,null,null,null,null,null,null,null,null," "]
[null,null,null,null,null,null,null,null,null,null,null,null,null,null,null,null,null,null,null,null,null,null," "]
[null,null,null,null,null,null,null,null,null,null,null,null,null,null,null,null,null,null,null,null,null,null," "]
[null,null,null,null,null,null,null,null,null,null,null,null,null,null,null,null,null,null,null,null,null,null," "]
[null,null,null,null,null,null,null,null,null,null,null,null,null,null,null,null,null,null,null,null,null,null," "]
[null,null,null,null,null,null,null,null,null,null,null,null,null,null,null,null,null,null,null,null,null,null," "]
[null,null,null,null,null,null,null,null,null,null,null,null,null,null,null,null,null,null,null,null,null,null," "]
[null,null,null,null,null,null,null,null,null,null,null,null,null,null,null,null,null,null,null,null,null,null," "]
[null,null,null,null,null,null,null,null,null,null,null,null,null,null,null,null,null,null,null,null,null,null," "]
[null,null,null,null,null,null,null,null,null,null,null,null,null,null,null,null,null,null,null,null,null,null," "]
[null,null,null,null,null,null,null,null,null,null,null,null,null,null,null,null,null,null,null,null,null,null," "]
[null,null,null,null,null,null,null,null,null,null,null,null,null,null,null,null,null,null,null,null,null,null," "]
[null,null,null,null,null,null,null,null,null,null,null,null,null,null,null,null,null,null,null,null,null,null," "]
[null,null,null,null,null,null,null,null,null,null,null,null,null,null,null,null,null,null,null,null,null,null," "]
[null,null,null,null,null,null,null,null,null,null,null,null,null,null,null,null,null,null,null,null,null,null," "]
[null,null,null,null,null,null,null,null,null,null,null,null,null,null,null,null,null,null,null,null,null,null," "]
[null,null,null,null,null,null,null,null,null,null,null,null,null,null,null,null,null,null,null,null,null,null," "]
[null,null,null,null,null,null,null,null,null,null,null,null,null,null,null,null,null,null,null,null,null,null," "]
[null,null,null,null,null,null,null,null,null,null,null,null,null,null,null,null,null,null,null,null,null,null," "]
[null,null,null,null,null,null,null,null,null,null,null,null,null,null,null,null,null,null,null,null,null,null," "]
[null,null,null,null,null,null,null,null,null,null,null,null,null,null,null,null,null,null,null,null,null,null," "]
[null,null,null,null,null,null,null,null,null,null,null,null,null,null,null,null,null,null,null,null,null,null," "]
[null,null,null,null,null,null,null,null,null,null,null,null,null,null,null,null,null,null,null,null,null,null," "]
[null,null,null,null,null,null,null,null,null,null,null,null,null,null,null,null,null,null,null,null,null,null," "]
[null,null,null,null,null,null,null,null,null,null,null,null,null,null,null,null,null,null,null,null,null,null," "]
[null,null,null,null,null,null,null,null,null,null,null,null,null,null,null,null,null,null,null,null,null,null," "]
[null,null,null,null,null,null,null,null,null,null,null,null,null,null,null,null,null,null,null,null,null,null," "]
[null,null,null,null,null,null,null,null,null,null,null,null,null,null,null,null,null,null,null,null,null,null," "]
[null,null,null,null,null,null,null,null,null,null,null,null,null,null,null,null,null,null,null,null,null,null," "]
[null,null,null,null,null,null,null,null,null,null,null,null,null,null,null,null,null,null,null,null,null,null," "]
[null,null,null,null,null,null,null,null,null,null,null,null,null,null,null,null,null,null,null,null,null,null," "]
[null,null,null,null,null,null,null,null,null,null,null,null,null,null,null,null,null,null,null,null,null,null," "]
[null,null,null,null,null,null,null,null,null,null,null,null,null,null,null,null,null,null,null,null,null,null," "]
[null,null,null,null,null,null,null,null,null,null,null,null,null,null,null,null,null,null,null,null,null,null," "]
[null,null,null,null,null,null,null,null,null,null,null,null,null,null,null,null,null,null,null,null,null,null," "]
[null,null,null,null,null,null,null,null,null,null,null,null,null,null,null,null,null,null,null,null,null,null," "]
[null,null,null,null,null,null,null,null,null,null,null,null,null,null,null,null,null,null,null,null,null,null," "]
[null,null,null,null,null,null,null,null,null,null,null,null,null,null,null,null,null,null,null,null,null,null," "]
[null,null,null,null,null,null,null,null,null,null,null,null,null,null,null,null,null,null,null,null,null,null," "]
[null,null,null,null,null,null,null,null,null,null,null,null,null,null,null,null,null,null,null,null,null,null," "]
[null,null,null,null,null,null,null,null,null,null,null,null,null,null,null,null,null,null,null,null,null,null," "]
[null,null,null,null,null,null,null,null,null,null,null,null,null,null,null,null,null,null,null,null,null,null,{"$f":"C1794 & \" \" & D1794","v":" "}]
[null,null,null,null,null,null,null,null,null,null,null,null,null,null,null,null,null,null,null,null,null,null," "]
[null,null,null,null,null,null,null,null,null,null,null,null,null,null,null,null,null,null,null,null,null,null," "]
[null,null,null,null,null,null,null,null,null,null,null,null,null,null,null,null,null,null,null,null,null,null," "]
[null,null,null,null,null,null,null,null,null,null,null,null,null,null,null,null,null,null,null,null,null,null," "]
[null,null,null,null,null,null,null,null,null,null,null,null,null,null,null,null,null,null,null,null,null,null," "]
[null,null,null,null,null,null,null,null,null,null,null,null,null,null,null,null,null,null,null,null,null,null," "]
[null,null,null,null,null,null,null,null,null,null,null,null,null,null,null,null,null,null,null,null,null,null," "]
[null,null,null,null,null,null,null,null,null,null,null,null,null,null,null,null,null,null,null,null,null,null," "]
[null,null,null,null,null,null,null,null,null,null,null,null,null,null,null,null,null,null,null,null,null,null," "]
[null,null,null,null,null,null,null,null,null,null,null,null,null,null,null,null,null,null,null,null,null,null," "]
[null,null,null,null,null,null,null,null,null,null,null,null,null,null,null,null,null,null,null,null,null,null," "]
[null,null,null,null,null,null,null,null,null,null,null,null,null,null,null,null,null,null,null,null,null,null," "]
[null,null,null,null,null,null,null,null,null,null,null,null,null,null,null,null,null,null,null,null,null,null," "]
[null,null,null,null,null,null,null,null,null,null,null,null,null,null,null,null,null,null,null,null,null,null," "]
[null,null,null,null,null,null,null,null,null,null,null,null,null,null,null,null,null,null,null,null,null,null," "]
[null,null,null,null,null,null,null,null,null,null,null,null,null,null,null,null,null,null,null,null,null,null," "]
[null,null,null,null,null,null,null,null,null,null,null,null,null,null,null,null,null,null,null,null,null,null," "]
[null,null,null,null,null,null,null,null,null,null,null,null,null,null,null,null,null,null,null,null,null,null," "]
[null,null,null,null,null,null,null,null,null,null,null,null,null,null,null,null,null,null,null,null,null,null," "]
[null,null,null,null,null,null,null,null,null,null,null,null,null,null,null,null,null,null,null,null,null,null," "]
[null,null,null,null,null,null,null,null,null,null,null,null,null,null,null,null,null,null,null,null,null,null," "]
[null,null,null,null,null,null,null,null,null,null,null,null,null,null,null,null,null,null,null,null,null,null," "]
[null,null,null,null,null,null,null,null,null,null,null,null,null,null,null,null,null,null,null,null,null,null," "]
[null,null,null,null,null,null,null,null,null,null,null,null,null,null,null,null,null,null,null,null,null,null," "]
[null,null,null,null,null,null,null,null,null,null,null,null,null,null,null,null,null,null,null,null,null,null," "]
[null,null,null,null,null,null,null,null,null,null,null,null,null,null,null,null,null,null,null,null,null,null," "]
[null,null,null,null,null,null,null,null,null,null,null,null,null,null,null,null,null,null,null,null,null,null," "]
[null,null,null,null,null,null,null,null,null,null,null,null,null,null,null,null,null,null,null,null,null,null," "]
[null,null,null,null,null,null,null,null,null,null,null,null,null,null,null,null,null,null,null,null,null,null," "]
[null,null,null,null,null,null,null,null,null,null,null,null,null,null,null,null,null,null,null,null,null,null," "]
[null,null,null,null,null,null,null,null,null,null,null,null,null,null,null,null,null,null,null,null,null,null," "]
[null,null,null,null,null,null,null,null,null,null,null,null,null,null,null,null,null,null,null,null,null,null," "]
[null,null,null,null,null,null,null,null,null,null,null,null,null,null,null,null,null,null,null,null,null,null," "]
[null,null,null,null,null,null,null,null,null,null,null,null,null,null,null,null,null,null,null,null,null,null," "]
[null,null,null,null,null,null,null,null,null,null,null,null,null,null,null,null,null,null,null,null,null,null," "]
[null,null,null,null,null,null,null,null,null,null,null,null,null,null,null,null,null,null,null,null,null,null," "]
[null,null,null,null,null,null,null,null,null,null,null,null,null,null,null,null,null,null,null,null,null,null," "]
[null,null,null,null,null,null,null,null,null,null,null,null,null,null,null,null,null,null,null,null,null,null," "]
[null,null,null,null,null,null,null,null,null,null,null,null,null,null,null,null,null,null,null,null,null,null," "]
[null,null,null,null,null,null,null,null,null,null,null,null,null,null,null,null,null,null,null,null,null,null," "]
[null,null,null,null,null,null,null,null,null,null,null,null,null,null,null,null,null,null,null,null,null,null," "]
[null,null,null,null,null,null,null,null,null,null,null,null,null,null,null,null,null,null,null,null,null,null," "]
[null,null,null,null,null,null,null,null,null,null,null,null,null,null,null,null,null,null,null,null,null,null," "]
[null,null,null,null,null,null,null,null,null,null,null,null,null,null,null,null,null,null,null,null,null,null," "]
[null,null,null,null,null,null,null,null,null,null,null,null,null,null,null,null,null,null,null,null,null,null," "]
[null,null,null,null,null,null,null,null,null,null,null,null,null,null,null,null,null,null,null,null,null,null," "]
[null,null,null,null,null,null,null,null,null,null,null,null,null,null,null,null,null,null,null,null,null,null," "]
[null,null,null,null,null,null,null,null,null,null,null,null,null,null,null,null,null,null,null,null,null,null," "]
[null,null,null,null,null,null,null,null,null,null,null,null,null,null,null,null,null,null,null,null,null,null," "]
[null,null,null,null,null,null,null,null,null,null,null,null,null,null,null,null,null,null,null,null,null,null," "]
[null,null,null,null,null,null,null,null,null,null,null,null,null,null,null,null,null,null,null,null,null,null," "]
[null,null,null,null,null,null,null,null,null,null,null,null,null,null,null,null,null,null,null,null,null,null," "]
[null,null,null,null,null,null,null,null,null,null,null,null,null,null,null,null,null,null,null,null,null,null," "]
[null,null,null,null,null,null,null,null,null,null,null,null,null,null,null,null,null,null,null,null,null,null," "]
[null,null,null,null,null,null,null,null,null,null,null,null,null,null,null,null,null,null,null,null,null,null," "]
[null,null,null,null,null,null,null,null,null,null,null,null,null,null,null,null,null,null,null,null,null,null," "]
[null,null,null,null,null,null,null,null,null,null,null,null,null,null,null,null,null,null,null,null,null,null," "]
[null,null,null,null,null,null,null,null,null,null,null,null,null,null,null,null,null,null,null,null,null,null," "]
[null,null,null,null,null,null,null,null,null,null,null,null,null,null,null,null,null,null,null,null,null,null," "]
[null,null,null,null,null,null,null,null,null,null,null,null,null,null,null,null,null,null,null,null,null,null," "]
[null,null,null,null,null,null,null,null,null,null,null,null,null,null,null,null,null,null,null,null,null,null," "]
[null,null,null,null,null,null,null,null,null,null,null,null,null,null,null,null,null,null,null,null,null,null," "]
[null,null,null,null,null,null,null,null,null,null,null,null,null,null,null,null,null,null,null,null,null,null," "]
[null,null,null,null,null,null,null,null,null,null,null,null,null,null,null,null,null,null,null,null,null,null,{"$f":"C1858 & \" \" & D1858","v":" "}]
[null,null,null,null,null,null,null,null,null,null,null,null,null,null,null,null,null,null,null,null,null,null," "]
[null,null,null,null,null,null,null,null,null,null,null,null,null,null,null,null,null,null,null,null,null,null," "]
[null,null,null,null,null,null,null,null,null,null,null,null,null,null,null,null,null,null,null,null,null,null," "]
[null,null,null,null,null,null,null,null,null,null,null,null,null,null,null,null,null,null,null,null,null,null," "]
[null,null,null,null,null,null,null,null,null,null,null,null,null,null,null,null,null,null,null,null,null,null," "]
[null,null,null,null,null,null,null,null,null,null,null,null,null,null,null,null,null,null,null,null,null,null," "]
[null,null,null,null,null,null,null,null,null,null,null,null,null,null,null,null,null,null,null,null,null,null," "]
[null,null,null,null,null,null,null,null,null,null,null,null,null,null,null,null,null,null,null,null,null,null," "]
[null,null,null,null,null,null,null,null,null,null,null,null,null,null,null,null,null,null,null,null,null,null," "]
[null,null,null,null,null,null,null,null,null,null,null,null,null,null,null,null,null,null,null,null,null,null," "]
[null,null,null,null,null,null,null,null,null,null,null,null,null,null,null,null,null,null,null,null,null,null," "]
[null,null,null,null,null,null,null,null,null,null,null,null,null,null,null,null,null,null,null,null,null,null," "]
[null,null,null,null,null,null,null,null,null,null,null,null,null,null,null,null,null,null,null,null,null,null," "]
[null,null,null,null,null,null,null,null,null,null,null,null,null,null,null,null,null,null,null,null,null,null," "]
[null,null,null,null,null,null,null,null,null,null,null,null,null,null,null,null,null,null,null,null,null,null," "]
[null,null,null,null,null,null,null,null,null,null,null,null,null,null,null,null,null,null,null,null,null,null," "]
[null,null,null,null,null,null,null,null,null,null,null,null,null,null,null,null,null,null,null,null,null,null," "]
[null,null,null,null,null,null,null,null,null,null,null,null,null,null,null,null,null,null,null,null,null,null," "]
[null,null,null,null,null,null,null,null,null,null,null,null,null,null,null,null,null,null,null,null,null,null," "]
[null,null,null,null,null,null,null,null,null,null,null,null,null,null,null,null,null,null,null,null,null,null," "]
[null,null,null,null,null,null,null,null,null,null,null,null,null,null,null,null,null,null,null,null,null,null," "]
[null,null,null,null,null,null,null,null,null,null,null,null,null,null,null,null,null,null,null,null,null,null," "]
[null,null,null,null,null,null,null,null,null,null,null,null,null,null,null,null,null,null,null,null,null,null," "]
[null,null,null,null,null,null,null,null,null,null,null,null,null,null,null,null,null,null,null,null,null,null," "]
[null,null,null,null,null,null,null,null,null,null,null,null,null,null,null,null,null,null,null,null,null,null," "]
[null,null,null,null,null,null,null,null,null,null,null,null,null,null,null,null,null,null,null,null,null,null," "]
[null,null,null,null,null,null,null,null,null,null,null,null,null,null,null,null,null,null,null,null,null,null," "]
[null,null,null,null,null,null,null,null,null,null,null,null,null,null,null,null,null,null,null,null,null,null," "]
[null,null,null,null,null,null,null,null,null,null,null,null,null,null,null,null,null,null,null,null,null,null," "]
[null,null,null,null,null,null,null,null,null,null,null,null,null,null,null,null,null,null,null,null,null,null," "]
[null,null,null,null,null,null,null,null,null,null,null,null,null,null,null,null,null,null,null,null,null,null," "]
[null,null,null,null,null,null,null,null,null,null,null,null,null,null,null,null,null,null,null,null,null,null," "]
[null,null,null,null,null,null,null,null,null,null,null,null,null,null,null,null,null,null,null,null,null,null," "]
[null,null,null,null,null,null,null,null,null,null,null,null,null,null,null,null,null,null,null,null,null,null," "]
[null,null,null,null,null,null,null,null,null,null,null,null,null,null,null,null,null,null,null,null,null,null," "]
[null,null,null,null,null,null,null,null,null,null,null,null,null,null,null,null,null,null,null,null,null,null," "]
[null,null,null,null,null,null,null,null,null,null,null,null,null,null,null,null,null,null,null,null,null,null," "]
[null,null,null,null,null,null,null,null,null,null,null,null,null,null,null,null,null,null,null,null,null,null," "]
[null,null,null,null,null,null,null,null,null,null,null,null,null,null,null,null,null,null,null,null,null,null," "]
[null,null,null,null,null,null,null,null,null,null,null,null,null,null,null,null,null,null,null,null,null,null," "]
[null,null,null,null,null,null,null,null,null,null,null,null,null,null,null,null,null,null,null,null,null,null," "]
[null,null,null,null,null,null,null,null,null,null,null,null,null,null,null,null,null,null,null,null,null,null," "]
[null,null,null,null,null,null,null,null,null,null,null,null,null,null,null,null,null,null,null,null,null,null," "]
[null,null,null,null,null,null,null,null,null,null,null,null,null,null,null,null,null,null,null,null,null,null," "]
[null,null,null,null,null,null,null,null,null,null,null,null,null,null,null,null,null,null,null,null,null,null," "]
[null,null,null,null,null,null,null,null,null,null,null,null,null,null,null,null,null,null,null,null,null,null," "]
[null,null,null,null,null,null,null,null,null,null,null,null,null,null,null,null,null,null,null,null,null,null," "]
[null,null,null,null,null,null,null,null,null,null,null,null,null,null,null,null,null,null,null,null,null,null," "]
[null,null,null,null,null,null,null,null,null,null,null,null,null,null,null,null,null,null,null,null,null,null," "]
[null,null,null,null,null,null,null,null,null,null,null,null,null,null,null,null,null,null,null,null,null,null," "]
[null,null,null,null,null,null,null,null,null,null,null,null,null,null,null,null,null,null,null,null,null,null," "]
[null,null,null,null,null,null,null,null,null,null,null,null,null,null,null,null,null,null,null,null,null,null," "]
[null,null,null,null,null,null,null,null,null,null,null,null,null,null,null,null,null,null,null,null,null,null," "]
[null,null,null,null,null,null,null,null,null,null,null,null,null,null,null,null,null,null,null,null,null,null," "]
[null,null,null,null,null,null,null,null,null,null,null,null,null,null,null,null,null,null,null,null,null,null," "]
[null,null,null,null,null,null,null,null,null,null,null,null,null,null,null,null,null,null,null,null,null,null," "]
[null,null,null,null,null,null,null,null,null,null,null,null,null,null,null,null,null,null,null,null,null,null," "]
[null,null,null,null,null,null,null,null,null,null,null,null,null,null,null,null,null,null,null,null,null,null," "]
[null,null,null,null,null,null,null,null,null,null,null,null,null,null,null,null,null,null,null,null,null,null," "]
[null,null,null,null,null,null,null,null,null,null,null,null,null,null,null,null,null,null,null,null,null,null," "]
[null,null,null,null,null,null,null,null,null,null,null,null,null,null,null,null,null,null,null,null,null,null," "]
[null,null,null,null,null,null,null,null,null,null,null,null,null,null,null,null,null,null,null,null,null,null," "]
[null,null,null,null,null,null,null,null,null,null,null,null,null,null,null,null,null,null,null,null,null,null," "]
[null,null,null,null,null,null,null,null,null,null,null,null,null,null,null,null,null,null,null,null,null,null,{"$f":"C1922 & \" \" & D1922","v":" "}]
[null,null,null,null,null,null,null,null,null,null,null,null,null,null,null,null,null,null,null,null,null,null," "]
[null,null,null,null,null,null,null,null,null,null,null,null,null,null,null,null,null,null,null,null,null,null," "]
[null,null,null,null,null,null,null,null,null,null,null,null,null,null,null,null,null,null,null,null,null,null," "]
[null,null,null,null,null,null,null,null,null,null,null,null,null,null,null,null,null,null,null,null,null,null," "]
[null,null,null,null,null,null,null,null,null,null,null,null,null,null,null,null,null,null,null,null,null,null," "]
[null,null,null,null,null,null,null,null,null,null,null,null,null,null,null,null,null,null,null,null,null,null," "]
[null,null,null,null,null,null,null,null,null,null,null,null,null,null,null,null,null,null,null,null,null,null," "]
[null,null,null,null,null,null,null,null,null,null,null,null,null,null,null,null,null,null,null,null,null,null," "]
[null,null,null,null,null,null,null,null,null,null,null,null,null,null,null,null,null,null,null,null,null,null," "]
[null,null,null,null,null,null,null,null,null,null,null,null,null,null,null,null,null,null,null,null,null,null," "]
[null,null,null,null,null,null,null,null,null,null,null,null,null,null,null,null,null,null,null,null,null,null," "]
[null,null,null,null,null,null,null,null,null,null,null,null,null,null,null,null,null,null,null,null,null,null," "]
[null,null,null,null,null,null,null,null,null,null,null,null,null,null,null,null,null,null,null,null,null,null," "]
[null,null,null,null,null,null,null,null,null,null,null,null,null,null,null,null,null,null,null,null,null,null," "]
[null,null,null,null,null,null,null,null,null,null,null,null,null,null,null,null,null,null,null,null,null,null," "]
[null,null,null,null,null,null,null,null,null,null,null,null,null,null,null,null,null,null,null,null,null,null," "]
[null,null,null,null,null,null,null,null,null,null,null,null,null,null,null,null,null,null,null,null,null,null," "]
[null,null,null,null,null,null,null,null,null,null,null,null,null,null,null,null,null,null,null,null,null,null," "]
[null,null,null,null,null,null,null,null,null,null,null,null,null,null,null,null,null,null,null,null,null,null," "]
[null,null,null,null,null,null,null,null,null,null,null,null,null,null,null,null,null,null,null,null,null,null," "]
[null,null,null,null,null,null,null,null,null,null,null,null,null,null,null,null,null,null,null,null,null,null," "]
[null,null,null,null,null,null,null,null,null,null,null,null,null,null,null,null,null,null,null,null,null,null," "]
[null,null,null,null,null,null,null,null,null,null,null,null,null,null,null,null,null,null,null,null,null,null," "]
[null,null,null,null,null,null,null,null,null,null,null,null,null,null,null,null,null,null,null,null,null,null," "]
[null,null,null,null,null,null,null,null,null,null,null,null,null,null,null,null,null,null,null,null,null,null," "]
[null,null,null,null,null,null,null,null,null,null,null,null,null,null,null,null,null,null,null,null,null,null," "]
[null,null,null,null,null,null,null,null,null,null,null,null,null,null,null,null,null,null,null,null,null,null," "]
[null,null,null,null,null,null,null,null,null,null,null,null,null,null,null,null,null,null,null,null,null,null," "]
[null,null,null,null,null,null,null,null,null,null,null,null,null,null,null,null,null,null,null,null,null,null," "]
[null,null,null,null,null,null,null,null,null,null,null,null,null,null,null,null,null,null,null,null,null,null," "]
[null,null,null,null,null,null,null,null,null,null,null,null,null,null,null,null,null,null,null,null,null,null," "]
[null,null,null,null,null,null,null,null,null,null,null,null,null,null,null,null,null,null,null,null,null,null," "]
[null,null,null,null,null,null,null,null,null,null,null,null,null,null,null,null,null,null,null,null,null,null," "]
[null,null,null,null,null,null,null,null,null,null,null,null,null,null,null,null,null,null,null,null,null,null," "]
[null,null,null,null,null,null,null,null,null,null,null,null,null,null,null,null,null,null,null,null,null,null," "]
[null,null,null,null,null,null,null,null,null,null,null,null,null,null,null,null,null,null,null,null,null,null," "]
[null,null,null,null,null,null,null,null,null,null,null,null,null,null,null,null,null,null,null,null,null,null," "]
[null,null,null,null,null,null,null,null,null,null,null,null,null,null,null,null,null,null,null,null,null,null," "]
[null,null,null,null,null,null,null,null,null,null,null,null,null,null,null,null,null,null,null,null,null,null," "]
[null,null,null,null,null,null,null,null,null,null,null,null,null,null,null,null,null,null,null,null,null,null," "]
[null,null,null,null,null,null,null,null,null,null,null,null,null,null,null,null,null,null,null,null,null,null," "]
[null,null,null,null,null,null,null,null,null,null,null,null,null,null,null,null,null,null,null,null,null,null," "]
[null,null,null,null,null,null,null,null,null,null,null,null,null,null,null,null,null,null,null,null,null,null," "]
[null,null,null,null,null,null,null,null,null,null,null,null,null,null,null,null,null,null,null,null,null,null," "]
[null,null,null,null,null,null,null,null,null,null,null,null,null,null,null,null,null,null,null,null,null,null," "]
[null,null,null,null,null,null,null,null,null,null,null,null,null,null,null,null,null,null,null,null,null,null," "]
[null,null,null,null,null,null,null,null,null,null,null,null,null,null,null,null,null,null,null,null,null,null," "]
[null,null,null,null,null,null,null,null,null,null,null,null,null,null,null,null,null,null,null,null,null,null," "]
[null,null,null,null,null,null,null,null,null,null,null,null,null,null,null,null,null,null,null,null,null,null," "]
[null,null,null,null,null,null,null,null,null,null,null,null,null,null,null,null,null,null,null,null,null,null," "]
[null,null,null,null,null,null,null,null,null,null,null,null,null,null,null,null,null,null,null,null,null,null," "]
[null,null,null,null,null,null,null,null,null,null,null,null,null,null,null,null,null,null,null,null,null,null," "]
[null,null,null,null,null,null,null,null,null,null,null,null,null,null,null,null,null,null,null,null,null,null," "]
[null,null,null,null,null,null,null,null,null,null,null,null,null,null,null,null,null,null,null,null,null,null," "]
[null,null,null,null,null,null,null,null,null,null,null,null,null,null,null,null,null,null,null,null,null,null," "]
[null,null,null,null,null,null,null,null,null,null,null,null,null,null,null,null,null,null,null,null,null,null," "]
[null,null,null,null,null,null,null,null,null,null,null,null,null,null,null,null,null,null,null,null,null,null," "]
[null,null,null,null,null,null,null,null,null,null,null,null,null,null,null,null,null,null,null,null,null,null," "]
[null,null,null,null,null,null,null,null,null,null,null,null,null,null,null,null,null,null,null,null,null,null," "]
[null,null,null,null,null,null,null,null,null,null,null,null,null,null,null,null,null,null,null,null,null,null," "]
[null,null,null,null,null,null,null,null,null,null,null,null,null,null,null,null,null,null,null,null,null,null," "]
[null,null,null,null,null,null,null,null,null,null,null,null,null,null,null,null,null,null,null,null,null,null," "]
[null,null,null,null,null,null,null,null,null,null,null,null,null,null,null,null,null,null,null,null,null,null," "]
[null,null,null,null,null,null,null,null,null,null,null,null,null,null,null,null,null,null,null,null,null,null,{"$f":"C1986 & \" \" & D1986","v":" "}]
[null,null,null,null,null,null,null,null,null,null,null,null,null,null,null,null,null,null,null,null,null,null," "]
[null,null,null,null,null,null,null,null,null,null,null,null,null,null,null,null,null,null,null,null,null,null," "]
[null,null,null,null,null,null,null,null,null,null,null,null,null,null,null,null,null,null,null,null,null,null," "]
[null,null,null,null,null,null,null,null,null,null,null,null,null,null,null,null,null,null,null,null,null,null," "]
[null,null,null,null,null,null,null,null,null,null,null,null,null,null,null,null,null,null,null,null,null,null," "]
[null,null,null,null,null,null,null,null,null,null,null,null,null,null,null,null,null,null,null,null,null,null," "]
[null,null,null,null,null,null,null,null,null,null,null,null,null,null,null,null,null,null,null,null,null,null," "]
[null,null,null,null,null,null,null,null,null,null,null,null,null,null,null,null,null,null,null,null,null,null," "]
[null,null,null,null,null,null,null,null,null,null,null,null,null,null,null,null,null,null,null,null,null,null," "]
[null,null,null,null,null,null,null,null,null,null,null,null,null,null,null,null,null,null,null,null,null,null," "]
[null,null,null,null,null,null,null,null,null,null,null,null,null,null,null,null,null,null,null,null,null,null," "]
[null,null,null,null,null,null,null,null,null,null,null,null,null,null,null,null,null,null,null,null,null,null," "]
[null,null,null,null,null,null,null,null,null,null,null,null,null,null,null,null,null,null,null,null,null,null," "]
[null,null,null,null,null,null,null,null,null,null,null,null,null,null,null,null,null,null,null,null,null,null," "]
[null,null,null,null,null,null,null,null,null,null,null,null,null,null,null,null,null,null,null,null,null,null," "]
[null,null,null,null,null,null,null,null,null,null,null,null,null,null,null,null,null,null,null,null,null,null," "]
[null,null,null,null,null,null,null,null,null,null,null,null,null,null,null,null,null,null,null,null,null,null," "]
[null,null,null,null,null,null,null,null,null,null,null,null,null,null,null,null,null,null,null,null,null,null," "]
[null,null,null,null,null,null,null,null,null,null,null,null,null,null,null,null,null,null,null,null,null,null," "]
[null,null,null,null,null,null,null,null,null,null,null,null,null,null,null,null,null,null,null,null,null,null," "]
[null,null,null,null,null,null,null,null,null,null,null,null,null,null,null,null,null,null,null,null,null,null," "]
[null,null,null,null,null,null,null,null,null,null,null,null,null,null,null,null,null,null,null,null,null,null," "]
[null,null,null,null,null,null,null,null,null,null,null,null,null,null,null,null,null,null,null,null,null,null," "]
[null,null,null,null,null,null,null,null,null,null,null,null,null,null,null,null,null,null,null,null,null,null," "]
[null,null,null,null,null,null,null,null,null,null,null,null,null,null,null,null,null,null,null,null,null,null," "]
[null,null,null,null,null,null,null,null,null,null,null,null,null,null,null,null,null,null,null,null,null,null," "]
[null,null,null,null,null,null,null,null,null,null,null,null,null,null,null,null,null,null,null,null,null,null," "]
[null,null,null,null,null,null,null,null,null,null,null,null,null,null,null,null,null,null,null,null,null,null," "]
[null,null,null,null,null,null,null,null,null,null,null,null,null,null,null,null,null,null,null,null,null,null," "]
[null,null,null,null,null,null,null,null,null,null,null,null,null,null,null,null,null,null,null,null,null,null," "]
[null,null,null,null,null,null,null,null,null,null,null,null,null,null,null,null,null,null,null,null,null,null," "]
[null,null,null,null,null,null,null,null,null,null,null,null,null,null,null,null,null,null,null,null,null,null," "]
[null,null,null,null,null,null,null,null,null,null,null,null,null,null,null,null,null,null,null,null,null,null," "]
[null,null,null,null,null,null,null,null,null,null,null,null,null,null,null,null,null,null,null,null,null,null," "]
[null,null,null,null,null,null,null,null,null,null,null,null,null,null,null,null,null,null,null,null,null,null," "]
[null,null,null,null,null,null,null,null,null,null,null,null,null,null,null,null,null,null,null,null,null,null," "]
[null,null,null,null,null,null,null,null,null,null,null,null,null,null,null,null,null,null,null,null,null,null," "]
[null,null,null,null,null,null,null,null,null,null,null,null,null,null,null,null,null,null,null,null,null,null," "]
[null,null,null,null,null,null,null,null,null,null,null,null,null,null,null,null,null,null,null,null,null,null," "]
[null,null,null,null,null,null,null,null,null,null,null,null,null,null,null,null,null,null,null,null,null,null," "]
[null,null,null,null,null,null,null,null,null,null,null,null,null,null,null,null,null,null,null,null,null,null," "]
[null,null,null,null,null,null,null,null,null,null,null,null,null,null,null,null,null,null,null,null,null,null," "]
[null,null,null,null,null,null,null,null,null,null,null,null,null,null,null,null,null,null,null,null,null,null," "]
[null,null,null,null,null,null,null,null,null,null,null,null,null,null,null,null,null,null,null,null,null,null," "]
[null,null,null,null,null,null,null,null,null,null,null,null,null,null,null,null,null,null,null,null,null,null," "]
[null,null,null,null,null,null,null,null,null,null,null,null,null,null,null,null,null,null,null,null,null,null," "]
[null,null,null,null,null,null,null,null,null,null,null,null,null,null,null,null,null,null,null,null,null,null," "]
[null,null,null,null,null,null,null,null,null,null,null,null,null,null,null,null,null,null,null,null,null,null," "]
[null,null,null,null,null,null,null,null,null,null,null,null,null,null,null,null,null,null,null,null,null,null," "]
[null,null,null,null,null,null,null,null,null,null,null,null,null,null,null,null,null,null,null,null,null,null," "]
[null,null,null,null,null,null,null,null,null,null,null,null,null,null,null,null,null,null,null,null,null,null," "]
[null,null,null,null,null,null,null,null,null,null,null,null,null,null,null,null,null,null,null,null,null,null," "]
[null,null,null,null,null,null,null,null,null,null,null,null,null,null,null,null,null,null,null,null,null,null," "]
[null,null,null,null,null,null,null,null,null,null,null,null,null,null,null,null,null,null,null,null,null,null," "]
[null,null,null,null,null,null,null,null,null,null,null,null,null,null,null,null,null,null,null,null,null,null," "]
[null,null,null,null,null,null,null,null,null,null,null,null,null,null,null,null,null,null,null,null,null,null," "]
[null,null,null,null,null,null,null,null,null,null,null,null,null,null,null,null,null,null,null,null,null,null," "]
[null,null,null,null,null,null,null,null,null,null,null,null,null,null,null,null,null,null,null,null,null,null," "]
[null,null,null,null,null,null,null,null,null,null,null,null,null,null,null,null,null,null,null,null,null,null," "]
[null,null,null,null,null,null,null,null,null,null,null,null,null,null,null,null,null,null,null,null,null,null," "]
[null,null,null,null,null,null,null,null,null,null,null,null,null,null,null,null,null,null,null,null,null,null," "]
[null,null,null,null,null,null,null,null,null,null,null,null,null,null,null,null,null,null,null,null,null,null," "]
[null,null,null,null,null,null,null,null,null,null,null,null,null,null,null,null,null,null,null,null,null,null," "]
[null,null,null,null,null,null,null,null,null,null,null,null,null,null,null,null,null,null,null,null,null,null,{"$f":"C2050 & \" \" & D2050","v":" "}]
[null,null,null,null,null,null,null,null,null,null,null,null,null,null,null,null,null,null,null,null,null,null," "]
[null,null,null,null,null,null,null,null,null,null,null,null,null,null,null,null,null,null,null,null,null,null," "]
[null,null,null,null,null,null,null,null,null,null,null,null,null,null,null,null,null,null,null,null,null,null," "]
[null,null,null,null,null,null,null,null,null,null,null,null,null,null,null,null,null,null,null,null,null,null," "]
[null,null,null,null,null,null,null,null,null,null,null,null,null,null,null,null,null,null,null,null,null,null," "]
[null,null,null,null,null,null,null,null,null,null,null,null,null,null,null,null,null,null,null,null,null,null," "]
[null,null,null,null,null,null,null,null,null,null,null,null,null,null,null,null,null,null,null,null,null,null," "]
[null,null,null,null,null,null,null,null,null,null,null,null,null,null,null,null,null,null,null,null,null,null," "]
[null,null,null,null,null,null,null,null,null,null,null,null,null,null,null,null,null,null,null,null,null,null," "]
[null,null,null,null,null,null,null,null,null,null,null,null,null,null,null,null,null,null,null,null,null,null," "]
[null,null,null,null,null,null,null,null,null,null,null,null,null,null,null,null,null,null,null,null,null,null," "]
[null,null,null,null,null,null,null,null,null,null,null,null,null,null,null,null,null,null,null,null,null,null," "]
[null,null,null,null,null,null,null,null,null,null,null,null,null,null,null,null,null,null,null,null,null,null," "]
[null,null,null,null,null,null,null,null,null,null,null,null,null,null,null,null,null,null,null,null,null,null," "]
[null,null,null,null,null,null,null,null,null,null,null,null,null,null,null,null,null,null,null,null,null,null," "]
[null,null,null,null,null,null,null,null,null,null,null,null,null,null,null,null,null,null,null,null,null,null," "]
[null,null,null,null,null,null,null,null,null,null,null,null,null,null,null,null,null,null,null,null,null,null," "]
[null,null,null,null,null,null,null,null,null,null,null,null,null,null,null,null,null,null,null,null,null,null," "]
[null,null,null,null,null,null,null,null,null,null,null,null,null,null,null,null,null,null,null,null,null,null," "]
[null,null,null,null,null,null,null,null,null,null,null,null,null,null,null,null,null,null,null,null,null,null," "]
[null,null,null,null,null,null,null,null,null,null,null,null,null,null,null,null,null,null,null,null,null,null," "]
[null,null,null,null,null,null,null,null,null,null,null,null,null,null,null,null,null,null,null,null,null,null," "]
[null,null,null,null,null,null,null,null,null,null,null,null,null,null,null,null,null,null,null,null,null,null," "]
[null,null,null,null,null,null,null,null,null,null,null,null,null,null,null,null,null,null,null,null,null,null," "]
[null,null,null,null,null,null,null,null,null,null,null,null,null,null,null,null,null,null,null,null,null,null," "]
[null,null,null,null,null,null,null,null,null,null,null,null,null,null,null,null,null,null,null,null,null,null," "]
[null,null,null,null,null,null,null,null,null,null,null,null,null,null,null,null,null,null,null,null,null,null," "]
[null,null,null,null,null,null,null,null,null,null,null,null,null,null,null,null,null,null,null,null,null,null," "]
[null,null,null,null,null,null,null,null,null,null,null,null,null,null,null,null,null,null,null,null,null,null," "]
[null,null,null,null,null,null,null,null,null,null,null,null,null,null,null,null,null,null,null,null,null,null," "]
[null,null,null,null,null,null,null,null,null,null,null,null,null,null,null,null,null,null,null,null,null,null," "]
[null,null,null,null,null,null,null,null,null,null,null,null,null,null,null,null,null,null,null,null,null,null," "]
[null,null,null,null,null,null,null,null,null,null,null,null,null,null,null,null,null,null,null,null,null,null," "]
[null,null,null,null,null,null,null,null,null,null,null,null,null,null,null,null,null,null,null,null,null,null," "]
[null,null,null,null,null,null,null,null,null,null,null,null,null,null,null,null,null,null,null,null,null,null," "]
[null,null,null,null,null,null,null,null,null,null,null,null,null,null,null,null,null,null,null,null,null,null," "]
[null,null,null,null,null,null,null,null,null,null,null,null,null,null,null,null,null,null,null,null,null,null," "]
[null,null,null,null,null,null,null,null,null,null,null,null,null,null,null,null,null,null,null,null,null,null," "]
[null,null,null,null,null,null,null,null,null,null,null,null,null,null,null,null,null,null,null,null,null,null," "]
[null,null,null,null,null,null,null,null,null,null,null,null,null,null,null,null,null,null,null,null,null,null," "]
[null,null,null,null,null,null,null,null,null,null,null,null,null,null,null,null,null,null,null,null,null,null," "]
[null,null,null,null,null,null,null,null,null,null,null,null,null,null,null,null,null,null,null,null,null,null," "]
[null,null,null,null,null,null,null,null,null,null,null,null,null,null,null,null,null,null,null,null,null,null," "]
[null,null,null,null,null,null,null,null,null,null,null,null,null,null,null,null,null,null,null,null,null,null," "]
[null,null,null,null,null,null,null,null,null,null,null,null,null,null,null,null,null,null,null,null,null,null," "]
[null,null,null,null,null,null,null,null,null,null,null,null,null,null,null,null,null,null,null,null,null,null," "]
[null,null,null,null,null,null,null,null,null,null,null,null,null,null,null,null,null,null,null,null,null,null," "]
[null,null,null,null,null,null,null,null,null,null,null,null,null,null,null,null,null,null,null,null,null,null," "]
[null,null,null,null,null,null,null,null,null,null,null,null,null,null,null,null,null,null,null,null,null,null," "]
[null,null,null,null,null,null,null,null,null,null,null,null,null,null,null,null,null,null,null,null,null,null," "]
[null,null,null,null,null,null,null,null,null,null,null,null,null,null,null,null,null,null,null,null,null,null," "]
[null,null,null,null,null,null,null,null,null,null,null,null,null,null,null,null,null,null,null,null,null,null," "]
[null,null,null,null,null,null,null,null,null,null,null,null,null,null,null,null,null,null,null,null,null,null," "]
[null,null,null,null,null,null,null,null,null,null,null,null,null,null,null,null,null,null,null,null,null,null," "]
[null,null,null,null,null,null,null,null,null,null,null,null,null,null,null,null,null,null,null,null,null,null," "]
[null,null,null,null,null,null,null,null,null,null,null,null,null,null,null,null,null,null,null,null,null,null," "]
[null,null,null,null,null,null,null,null,null,null,null,null,null,null,null,null,null,null,null,null,null,null," "]
[null,null,null,null,null,null,null,null,null,null,null,null,null,null,null,null,null,null,null,null,null,null," "]
[null,null,null,null,null,null,null,null,null,null,null,null,null,null,null,null,null,null,null,null,null,null," "]
[null,null,null,null,null,null,null,null,null,null,null,null,null,null,null,null,null,null,null,null,null,null," "]
[null,null,null,null,null,null,null,null,null,null,null,null,null,null,null,null,null,null,null,null,null,null," "]
[null,null,null,null,null,null,null,null,null,null,null,null,null,null,null,null,null,null,null,null,null,null," "]
[null,null,null,null,null,null,null,null,null,null,null,null,null,null,null,null,null,null,null,null,null,null," "]
[null,null,null,null,null,null,null,null,null,null,null,null,null,null,null,null,null,null,null,null,null,null,{"$f":"C2114 & \" \" & D2114","v":" "}]
[null,null,null,null,null,null,null,null,null,null,null,null,null,null,null,null,null,null,null,null,null,null," "]
[null,null,null,null,null,null,null,null,null,null,null,null,null,null,null,null,null,null,null,null,null,null," "]
[null,null,null,null,null,null,null,null,null,null,null,null,null,null,null,null,null,null,null,null,null,null," "]
[null,null,null,null,null,null,null,null,null,null,null,null,null,null,null,null,null,null,null,null,null,null," "]
[null,null,null,null,null,null,null,null,null,null,null,null,null,null,null,null,null,null,null,null,null,null," "]
[null,null,null,null,null,null,null,null,null,null,null,null,null,null,null,null,null,null,null,null,null,null," "]
[null,null,null,null,null,null,null,null,null,null,null,null,null,null,null,null,null,null,null,null,null,null," "]
[null,null,null,null,null,null,null,null,null,null,null,null,null,null,null,null,null,null,null,null,null,null," "]
[null,null,null,null,null,null,null,null,null,null,null,null,null,null,null,null,null,null,null,null,null,null," "]
[null,null,null,null,null,null,null,null,null,null,null,null,null,null,null,null,null,null,null,null,null,null," "]
[null,null,null,null,null,null,null,null,null,null,null,null,null,null,null,null,null,null,null,null,null,null," "]
[null,null,null,null,null,null,null,null,null,null,null,null,null,null,null,null,null,null,null,null,null,null," "]
[null,null,null,null,null,null,null,null,null,null,null,null,null,null,null,null,null,null,null,null,null,null," "]
[null,null,null,null,null,null,null,null,null,null,null,null,null,null,null,null,null,null,null,null,null,null," "]
[null,null,null,null,null,null,null,null,null,null,null,null,null,null,null,null,null,null,null,null,null,null," "]
[null,null,null,null,null,null,null,null,null,null,null,null,null,null,null,null,null,null,null,null,null,null," "]
[null,null,null,null,null,null,null,null,null,null,null,null,null,null,null,null,null,null,null,null,null,null," "]
[null,null,null,null,null,null,null,null,null,null,null,null,null,null,null,null,null,null,null,null,null,null," "]
[null,null,null,null,null,null,null,null,null,null,null,null,null,null,null,null,null,null,null,null,null,null," "]
[null,null,null,null,null,null,null,null,null,null,null,null,null,null,null,null,null,null,null,null,null,null," "]
[null,null,null,null,null,null,null,null,null,null,null,null,null,null,null,null,null,null,null,null,null,null," "]
[null,null,null,null,null,null,null,null,null,null,null,null,null,null,null,null,null,null,null,null,null,null," "]
[null,null,null,null,null,null,null,null,null,null,null,null,null,null,null,null,null,null,null,null,null,null," "]
[null,null,null,null,null,null,null,null,null,null,null,null,null,null,null,null,null,null,null,null,null,null," "]
[null,null,null,null,null,null,null,null,null,null,null,null,null,null,null,null,null,null,null,null,null,null," "]
[null,null,null,null,null,null,null,null,null,null,null,null,null,null,null,null,null,null,null,null,null,null," "]
[null,null,null,null,null,null,null,null,null,null,null,null,null,null,null,null,null,null,null,null,null,null," "]
[null,null,null,null,null,null,null,null,null,null,null,null,null,null,null,null,null,null,null,null,null,null," "]
[null,null,null,null,null,null,null,null,null,null,null,null,null,null,null,null,null,null,null,null,null,null," "]
[null,null,null,null,null,null,null,null,null,null,null,null,null,null,null,null,null,null,null,null,null,null," "]
[null,null,null,null,null,null,null,null,null,null,null,null,null,null,null,null,null,null,null,null,null,null," "]
[null,null,null,null,null,null,null,null,null,null,null,null,null,null,null,null,null,null,null,null,null,null," "]
[null,null,null,null,null,null,null,null,null,null,null,null,null,null,null,null,null,null,null,null,null,null," "]
[null,null,null,null,null,null,null,null,null,null,null,null,null,null,null,null,null,null,null,null,null,null," "]
[null,null,null,null,null,null,null,null,null,null,null,null,null,null,null,null,null,null,null,null,null,null," "]
[null,null,null,null,null,null,null,null,null,null,null,null,null,null,null,null,null,null,null,null,null,null," "]
[null,null,null,null,null,null,null,null,null,null,null,null,null,null,null,null,null,null,null,null,null,null," "]
[null,null,null,null,null,null,null,null,null,null,null,null,null,null,null,null,null,null,null,null,null,null," "]
[null,null,null,null,null,null,null,null,null,null,null,null,null,null,null,null,null,null,null,null,null,null," "]
[null,null,null,null,null,null,null,null,null,null,null,null,null,null,null,null,null,null,null,null,null,null," "]
[null,null,null,null,null,null,null,null,null,null,null,null,null,null,null,null,null,null,null,null,null,null," "]
[null,null,null,null,null,null,null,null,null,null,null,null,null,null,null,null,null,null,null,null,null,null," "]
[null,null,null,null,null,null,null,null,null,null,null,null,null,null,null,null,null,null,null,null,null,null," "]
[null,null,null,null,null,null,null,null,null,null,null,null,null,null,null,null,null,null,null,null,null,null," "]
[null,null,null,null,null,null,null,null,null,null,null,null,null,null,null,null,null,null,null,null,null,null," "]
[null,null,null,null,null,null,null,null,null,null,null,null,null,null,null,null,null,null,null,null,null,null," "]
[null,null,null,null,null,null,null,null,null,null,null,null,null,null,null,null,null,null,null,null,null,null," "]
[null,null,null,null,null,null,null,null,null,null,null,null,null,null,null,null,null,null,null,null,null,null," "]
[null,null,null,null,null,null,null,null,null,null,null,null,null,null,null,null,null,null,null,null,null,null," "]
[null,null,null,null,null,null,null,null,null,null,null,null,null,null,null,null,null,null,null,null,null,null," "]
[null,null,null,null,null,null,null,null,null,null,null,null,null,null,null,null,null,null,null,null,null,null," "]
[null,null,null,null,null,null,null,null,null,null,null,null,null,null,null,null,null,null,null,null,null,null," "]
[null,null,null,null,null,null,null,null,null,null,null,null,null,null,null,null,null,null,null,null,null,null," "]
[null,null,null,null,null,null,null,null,null,null,null,null,null,null,null,null,null,null,null,null,null,null," "]
[null,null,null,null,null,null,null,null,null,null,null,null,null,null,null,null,null,null,null,null,null,null," "]
[null,null,null,null,null,null,null,null,null,null,null,null,null,null,null,null,null,null,null,null,null,null," "]
[null,null,null,null,null,null,null,null,null,null,null,null,null,null,null,null,null,null,null,null,null,null," "]
[null,null,null,null,null,null,null,null,null,null,null,null,null,null,null,null,null,null,null,null,null,null," "]
[null,null,null,null,null,null,null,null,null,null,null,null,null,null,null,null,null,null,null,null,null,null," "]
[null,null,null,null,null,null,null,null,null,null,null,null,null,null,null,null,null,null,null,null,null,null," "]
[null,null,null,null,null,null,null,null,null,null,null,null,null,null,null,null,null,null,null,null,null,null," "]
[null,null,null,null,null,null,null,null,null,null,null,null,null,null,null,null,null,null,null,null,null,null," "]
[null,null,null,null,null,null,null,null,null,null,null,null,null,null,null,null,null,null,null,null,null,null," "]
[null,null,null,null,null,null,null,null,null,null,null,null,null,null,null,null,null,null,null,null,null,null,{"$f":"C2178 & \" \" & D2178","v":" "}]
[null,null,null,null,null,null,null,null,null,null,null,null,null,null,null,null,null,null,null,null,null,null," "]
[null,null,null,null,null,null,null,null,null,null,null,null,null,null,null,null,null,null,null,null,null,null," "]
[null,null,null,null,null,null,null,null,null,null,null,null,null,null,null,null,null,null,null,null,null,null," "]
[null,null,null,null,null,null,null,null,null,null,null,null,null,null,null,null,null,null,null,null,null,null," "]
[null,null,null,null,null,null,null,null,null,null,null,null,null,null,null,null,null,null,null,null,null,null," "]
[null,null,null,null,null,null,null,null,null,null,null,null,null,null,null,null,null,null,null,null,null,null," "]
[null,null,null,null,null,null,null,null,null,null,null,null,null,null,null,null,null,null,null,null,null,null," "]
[null,null,null,null,null,null,null,null,null,null,null,null,null,null,null,null,null,null,null,null,null,null," "]
[null,null,null,null,null,null,null,null,null,null,null,null,null,null,null,null,null,null,null,null,null,null," "]
[null,null,null,null,null,null,null,null,null,null,null,null,null,null,null,null,null,null,null,null,null,null," "]
[null,null,null,null,null,null,null,null,null,null,null,null,null,null,null,null,null,null,null,null,null,null," "]
[null,null,null,null,null,null,null,null,null,null,null,null,null,null,null,null,null,null,null,null,null,null," "]
[null,null,null,null,null,null,null,null,null,null,null,null,null,null,null,null,null,null,null,null,null,null," "]
[null,null,null,null,null,null,null,null,null,null,null,null,null,null,null,null,null,null,null,null,null,null," "]
[null,null,null,null,null,null,null,null,null,null,null,null,null,null,null,null,null,null,null,null,null,null," "]
[null,null,null,null,null,null,null,null,null,null,null,null,null,null,null,null,null,null,null,null,null,null," "]
[null,null,null,null,null,null,null,null,null,null,null,null,null,null,null,null,null,null,null,null,null,null," "]
[null,null,null,null,null,null,null,null,null,null,null,null,null,null,null,null,null,null,null,null,null,null," "]
[null,null,null,null,null,null,null,null,null,null,null,null,null,null,null,null,null,null,null,null,null,null," "]
[null,null,null,null,null,null,null,null,null,null,null,null,null,null,null,null,null,null,null,null,null,null," "]
[null,null,null,null,null,null,null,null,null,null,null,null,null,null,null,null,null,null,null,null,null,null," "]
[null,null,null,null,null,null,null,null,null,null,null,null,null,null,null,null,null,null,null,null,null,null," "]
[null,null,null,null,null,null,null,null,null,null,null,null,null,null,null,null,null,null,null,null,null,null," "]
[null,null,null,null,null,null,null,null,null,null,null,null,null,null,null,null,null,null,null,null,null,null," "]
[null,null,null,null,null,null,null,null,null,null,null,null,null,null,null,null,null,null,null,null,null,null," "]
[null,null,null,null,null,null,null,null,null,null,null,null,null,null,null,null,null,null,null,null,null,null," "]
[null,null,null,null,null,null,null,null,null,null,null,null,null,null,null,null,null,null,null,null,null,null," "]
[null,null,null,null,null,null,null,null,null,null,null,null,null,null,null,null,null,null,null,null,null,null," "]
[null,null,null,null,null,null,null,null,null,null,null,null,null,null,null,null,null,null,null,null,null,null," "]
[null,null,null,null,null,null,null,null,null,null,null,null,null,null,null,null,null,null,null,null,null,null," "]
[null,null,null,null,null,null,null,null,null,null,null,null,null,null,null,null,null,null,null,null,null,null," "]
[null,null,null,null,null,null,null,null,null,null,null,null,null,null,null,null,null,null,null,null,null,null," "]
[null,null,null,null,null,null,null,null,null,null,null,null,null,null,null,null,null,null,null,null,null,null," "]
[null,null,null,null,null,null,null,null,null,null,null,null,null,null,null,null,null,null,null,null,null,null," "]
[null,null,null,null,null,null,null,null,null,null,null,null,null,null,null,null,null,null,null,null,null,null," "]
[null,null,null,null,null,null,null,null,null,null,null,null,null,null,null,null,null,null,null,null,null,null," "]
[null,null,null,null,null,null,null,null,null,null,null,null,null,null,null,null,null,null,null,null,null,null," "]
[null,null,null,null,null,null,null,null,null,null,null,null,null,null,null,null,null,null,null,null,null,null," "]
[null,null,null,null,null,null,null,null,null,null,null,null,null,null,null,null,null,null,null,null,null,null," "]
[null,null,null,null,null,null,null,null,null,null,null,null,null,null,null,null,null,null,null,null,null,null," "]
[null,null,null,null,null,null,null,null,null,null,null,null,null,null,null,null,null,null,null,null,null,null," "]
[null,null,null,null,null,null,null,null,null,null,null,null,null,null,null,null,null,null,null,null,null,null," "]
[null,null,null,null,null,null,null,null,null,null,null,null,null,null,null,null,null,null,null,null,null,null," "]
[null,null,null,null,null,null,null,null,null,null,null,null,null,null,null,null,null,null,null,null,null,null," "]
[null,null,null,null,null,null,null,null,null,null,null,null,null,null,null,null,null,null,null,null,null,null," "]
[null,null,null,null,null,null,null,null,null,null,null,null,null,null,null,null,null,null,null,null,null,null," "]
[null,null,null,null,null,null,null,null,null,null,null,null,null,null,null,null,null,null,null,null,null,null," "]
[null,null,null,null,null,null,null,null,null,null,null,null,null,null,null,null,null,null,null,null,null,null," "]
[null,null,null,null,null,null,null,null,null,null,null,null,null,null,null,null,null,null,null,null,null,null," "]
[null,null,null,null,null,null,null,null,null,null,null,null,null,null,null,null,null,null,null,null,null,null," "]
[null,null,null,null,null,null,null,null,null,null,null,null,null,null,null,null,null,null,null,null,null,null," "]
[null,null,null,null,null,null,null,null,null,null,null,null,null,null,null,null,null,null,null,null,null,null," "]
[null,null,null,null,null,null,null,null,null,null,null,null,null,null,null,null,null,null,null,null,null,null," "]
[null,null,null,null,null,null,null,null,null,null,null,null,null,null,null,null,null,null,null,null,null,null," "]
[null,null,null,null,null,null,null,null,null,null,null,null,null,null,null,null,null,null,null,null,null,null," "]
[null,null,null,null,null,null,null,null,null,null,null,null,null,null,null,null,null,null,null,null,null,null," "]
[null,null,null,null,null,null,null,null,null,null,null,null,null,null,null,null,null,null,null,null,null,null," "]
[null,null,null,null,null,null,null,null,null,null,null,null,null,null,null,null,null,null,null,null,null,null," "]
[null,null,null,null,null,null,null,null,null,null,null,null,null,null,null,null,null,null,null,null,null,null," "]
[null,null,null,null,null,null,null,null,null,null,null,null,null,null,null,null,null,null,null,null,null,null," "]
[null,null,null,null,null,null,null,null,null,null,null,null,null,null,null,null,null,null,null,null,null,null," "]
[null,null,null,null,null,null,null,null,null,null,null,null,null,null,null,null,null,null,null,null,null,null," "]
[null,null,null,null,null,null,null,null,null,null,null,null,null,null,null,null,null,null,null,null,null,null," "]
[null,null,null,null,null,null,null,null,null,null,null,null,null,null,null,null,null,null,null,null,null,null,{"$f":"C2242 & \" \" & D2242","v":" "}]
[null,null,null,null,null,null,null,null,null,null,null,null,null,null,null,null,null,null,null,null,null,null," "]
[null,null,null,null,null,null,null,null,null,null,null,null,null,null,null,null,null,null,null,null,null,null," "]
[null,null,null,null,null,null,null,null,null,null,null,null,null,null,null,null,null,null,null,null,null,null," "]
[null,null,null,null,null,null,null,null,null,null,null,null,null,null,null,null,null,null,null,null,null,null," "]
[null,null,null,null,null,null,null,null,null,null,null,null,null,null,null,null,null,null,null,null,null,null," "]
[null,null,null,null,null,null,null,null,null,null,null,null,null,null,null,null,null,null,null,null,null,null," "]
[null,null,null,null,null,null,null,null,null,null,null,null,null,null,null,null,null,null,null,null,null,null," "]
[null,null,null,null,null,null,null,null,null,null,null,null,null,null,null,null,null,null,null,null,null,null," "]
[null,null,null,null,null,null,null,null,null,null,null,null,null,null,null,null,null,null,null,null,null,null," "]
[null,null,null,null,null,null,null,null,null,null,null,null,null,null,null,null,null,null,null,null,null,null," "]
[null,null,null,null,null,null,null,null,null,null,null,null,null,null,null,null,null,null,null,null,null,null," "]
[null,null,null,null,null,null,null,null,null,null,null,null,null,null,null,null,null,null,null,null,null,null," "]
[null,null,null,null,null,null,null,null,null,null,null,null,null,null,null,null,null,null,null,null,null,null," "]
[null,null,null,null,null,null,null,null,null,null,null,null,null,null,null,null,null,null,null,null,null,null," "]
[null,null,null,null,null,null,null,null,null,null,null,null,null,null,null,null,null,null,null,null,null,null," "]
[null,null,null,null,null,null,null,null,null,null,null,null,null,null,null,null,null,null,null,null,null,null," "]
[null,null,null,null,null,null,null,null,null,null,null,null,null,null,null,null,null,null,null,null,null,null," "]
[null,null,null,null,null,null,null,null,null,null,null,null,null,null,null,null,null,null,null,null,null,null," "]
[null,null,null,null,null,null,null,null,null,null,null,null,null,null,null,null,null,null,null,null,null,null," "]
[null,null,null,null,null,null,null,null,null,null,null,null,null,null,null,null,null,null,null,null,null,null," "]
[null,null,null,null,null,null,null,null,null,null,null,null,null,null,null,null,null,null,null,null,null,null," "]
[null,null,null,null,null,null,null,null,null,null,null,null,null,null,null,null,null,null,null,null,null,null," "]
[null,null,null,null,null,null,null,null,null,null,null,null,null,null,null,null,null,null,null,null,null,null," "]
[null,null,null,null,null,null,null,null,null,null,null,null,null,null,null,null,null,null,null,null,null,null," "]
[null,null,null,null,null,null,null,null,null,null,null,null,null,null,null,null,null,null,null,null,null,null," "]
[null,null,null,null,null,null,null,null,null,null,null,null,null,null,null,null,null,null,null,null,null,null," "]
[null,null,null,null,null,null,null,null,null,null,null,null,null,null,null,null,null,null,null,null,null,null," "]
[null,null,null,null,null,null,null,null,null,null,null,null,null,null,null,null,null,null,null,null,null,null," "]
[null,null,null,null,null,null,null,null,null,null,null,null,null,null,null,null,null,null,null,null,null,null," "]
[null,null,null,null,null,null,null,null,null,null,null,null,null,null,null,null,null,null,null,null,null,null," "]
[null,null,null,null,null,null,null,null,null,null,null,null,null,null,null,null,null,null,null,null,null,null," "]
[null,null,null,null,null,null,null,null,null,null,null,null,null,null,null,null,null,null,null,null,null,null," "]
[null,null,null,null,null,null,null,null,null,null,null,null,null,null,null,null,null,null,null,null,null,null," "]
[null,null,null,null,null,null,null,null,null,null,null,null,null,null,null,null,null,null,null,null,null,null," "]
[null,null,null,null,null,null,null,null,null,null,null,null,null,null,null,null,null,null,null,null,null,null," "]
[null,null,null,null,null,null,null,null,null,null,null,null,null,null,null,null,null,null,null,null,null,null," "]
[null,null,null,null,null,null,null,null,null,null,null,null,null,null,null,null,null,null,null,null,null,null," "]
[null,null,null,null,null,null,null,null,null,null,null,null,null,null,null,null,null,null,null,null,null,null," "]
[null,null,null,null,null,null,null,null,null,null,null,null,null,null,null,null,null,null,null,null,null,null," "]
[null,null,null,null,null,null,null,null,null,null,null,null,null,null,null,null,null,null,null,null,null,null," "]
[null,null,null,null,null,null,null,null,null,null,null,null,null,null,null,null,null,null,null,null,null,null," "]
[null,null,null,null,null,null,null,null,null,null,null,null,null,null,null,null,null,null,null,null,null,null," "]
[null,null,null,null,null,null,null,null,null,null,null,null,null,null,null,null,null,null,null,null,null,null," "]
[null,null,null,null,null,null,null,null,null,null,null,null,null,null,null,null,null,null,null,null,null,null," "]
[null,null,null,null,null,null,null,null,null,null,null,null,null,null,null,null,null,null,null,null,null,null," "]
[null,null,null,null,null,null,null,null,null,null,null,null,null,null,null,null,null,null,null,null,null,null," "]
[null,null,null,null,null,null,null,null,null,null,null,null,null,null,null,null,null,null,null,null,null,null," "]
[null,null,null,null,null,null,null,null,null,null,null,null,null,null,null,null,null,null,null,null,null,null," "]
[null,null,null,null,null,null,null,null,null,null,null,null,null,null,null,null,null,null,null,null,null,null," "]
[null,null,null,null,null,null,null,null,null,null,null,null,null,null,null,null,null,null,null,null,null,null," "]
[null,null,null,null,null,null,null,null,null,null,null,null,null,null,null,null,null,null,null,null,null,null," "]
[null,null,null,null,null,null,null,null,null,null,null,null,null,null,null,null,null,null,null,null,null,null," "]
[null,null,null,null,null,null,null,null,null,null,null,null,null,null,null,null,null,null,null,null,null,null," "]
[null,null,null,null,null,null,null,null,null,null,null,null,null,null,null,null,null,null,null,null,null,null," "]
[null,null,null,null,null,null,null,null,null,null,null,null,null,null,null,null,null,null,null,null,null,null," "]
[null,null,null,null,null,null,null,null,null,null,null,null,null,null,null,null,null,null,null,null,null,null," "]
[null,null,null,null,null,null,null,null,null,null,null,null,null,null,null,null,null,null,null,null,null,null," "]
[null,null,null,null,null,null,null,null,null,null,null,null,null,null,null,null,null,null,null,null,null,null," "]
[null,null,null,null,null,null,null,null,null,null,null,null,null,null,null,null,null,null,null,null,null,null," "]
[null,null,null,null,null,null,null,null,null,null,null,null,null,null,null,null,null,null,null,null,null,null," "]
[null,null,null,null,null,null,null,null,null,null,null,null,null,null,null,null,null,null,null,null,null,null," "]
[null,null,null,null,null,null,null,null,null,null,null,null,null,null,null,null,null,null,null,null,null,null," "]
[null,null,null,null,null,null,null,null,null,null,null,null,null,null,null,null,null,null,null,null,null,null," "]
[null,null,null,null,null,null,null,null,null,null,null,null,null,null,null,null,null,null,null,null,null,null,{"$f":"C2306 & \" \" & D2306","v":" "}]
[null,null,null,null,null,null,null,null,null,null,null,null,null,null,null,null,null,null,null,null,null,null," "]
[null,null,null,null,null,null,null,null,null,null,null,null,null,null,null,null,null,null,null,null,null,null," "]
[null,null,null,null,null,null,null,null,null,null,null,null,null,null,null,null,null,null,null,null,null,null," "]
[null,null,null,null,null,null,null,null,null,null,null,null,null,null,null,null,null,null,null,null,null,null," "]
[null,null,null,null,null,null,null,null,null,null,null,null,null,null,null,null,null,null,null,null,null,null," "]
[null,null,null,null,null,null,null,null,null,null,null,null,null,null,null,null,null,null,null,null,null,null," "]
[null,null,null,null,null,null,null,null,null,null,null,null,null,null,null,null,null,null,null,null,null,null," "]
[null,null,null,null,null,null,null,null,null,null,null,null,null,null,null,null,null,null,null,null,null,null," "]
[null,null,null,null,null,null,null,null,null,null,null,null,null,null,null,null,null,null,null,null,null,null," "]
[null,null,null,null,null,null,null,null,null,null,null,null,null,null,null,null,null,null,null,null,null,null," "]
[null,null,null,null,null,null,null,null,null,null,null,null,null,null,null,null,null,null,null,null,null,null," "]
[null,null,null,null,null,null,null,null,null,null,null,null,null,null,null,null,null,null,null,null,null,null," "]
[null,null,null,null,null,null,null,null,null,null,null,null,null,null,null,null,null,null,null,null,null,null," "]
[null,null,null,null,null,null,null,null,null,null,null,null,null,null,null,null,null,null,null,null,null,null," "]
[null,null,null,null,null,null,null,null,null,null,null,null,null,null,null,null,null,null,null,null,null,null," "]
[null,null,null,null,null,null,null,null,null,null,null,null,null,null,null,null,null,null,null,null,null,null," "]
[null,null,null,null,null,null,null,null,null,null,null,null,null,null,null,null,null,null,null,null,null,null," "]
[null,null,null,null,null,null,null,null,null,null,null,null,null,null,null,null,null,null,null,null,null,null," "]
[null,null,null,null,null,null,null,null,null,null,null,null,null,null,null,null,null,null,null,null,null,null," "]
[null,null,null,null,null,null,null,null,null,null,null,null,null,null,null,null,null,null,null,null,null,null," "]
[null,null,null,null,null,null,null,null,null,null,null,null,null,null,null,null,null,null,null,null,null,null," "]
[null,null,null,null,null,null,null,null,null,null,null,null,null,null,null,null,null,null,null,null,null,null," "]
[null,null,null,null,null,null,null,null,null,null,null,null,null,null,null,null,null,null,null,null,null,null," "]
[null,null,null,null,null,null,null,null,null,null,null,null,null,null,null,null,null,null,null,null,null,null," "]
[null,null,null,null,null,null,null,null,null,null,null,null,null,null,null,null,null,null,null,null,null,null," "]
[null,null,null,null,null,null,null,null,null,null,null,null,null,null,null,null,null,null,null,null,null,null," "]
[null,null,null,null,null,null,null,null,null,null,null,null,null,null,null,null,null,null,null,null,null,null," "]
[null,null,null,null,null,null,null,null,null,null,null,null,null,null,null,null,null,null,null,null,null,null," "]
[null,null,null,null,null,null,null,null,null,null,null,null,null,null,null,null,null,null,null,null,null,null," "]
[null,null,null,null,null,null,null,null,null,null,null,null,null,null,null,null,null,null,null,null,null,null," "]
[null,null,null,null,null,null,null,null,null,null,null,null,null,null,null,null,null,null,null,null,null,null," "]
[null,null,null,null,null,null,null,null,null,null,null,null,null,null,null,null,null,null,null,null,null,null," "]
[null,null,null,null,null,null,null,null,null,null,null,null,null,null,null,null,null,null,null,null,null,null," "]
[null,null,null,null,null,null,null,null,null,null,null,null,null,null,null,null,null,null,null,null,null,null," "]
[null,null,null,null,null,null,null,null,null,null,null,null,null,null,null,null,null,null,null,null,null,null," "]
[null,null,null,null,null,null,null,null,null,null,null,null,null,null,null,null,null,null,null,null,null,null," "]
[null,null,null,null,null,null,null,null,null,null,null,null,null,null,null,null,null,null,null,null,null,null," "]
[null,null,null,null,null,null,null,null,null,null,null,null,null,null,null,null,null,null,null,null,null,null," "]
[null,null,null,null,null,null,null,null,null,null,null,null,null,null,null,null,null,null,null,null,null,null," "]
[null,null,null,null,null,null,null,null,null,null,null,null,null,null,null,null,null,null,null,null,null,null," "]
[null,null,null,null,null,null,null,null,null,null,null,null,null,null,null,null,null,null,null,null,null,null," "]
[null,null,null,null,null,null,null,null,null,null,null,null,null,null,null,null,null,null,null,null,null,null," "]
[null,null,null,null,null,null,null,null,null,null,null,null,null,null,null,null,null,null,null,null,null,null," "]
[null,null,null,null,null,null,null,null,null,null,null,null,null,null,null,null,null,null,null,null,null,null," "]
[null,null,null,null,null,null,null,null,null,null,null,null,null,null,null,null,null,null,null,null,null,null," "]
[null,null,null,null,null,null,null,null,null,null,null,null,null,null,null,null,null,null,null,null,null,null," "]
[null,null,null,null,null,null,null,null,null,null,null,null,null,null,null,null,null,null,null,null,null,null," "]
[null,null,null,null,null,null,null,null,null,null,null,null,null,null,null,null,null,null,null,null,null,null," "]
[null,null,null,null,null,null,null,null,null,null,null,null,null,null,null,null,null,null,null,null,null,null," "]
[null,null,null,null,null,null,null,null,null,null,null,null,null,null,null,null,null,null,null,null,null,null," "]
[null,null,null,null,null,null,null,null,null,null,null,null,null,null,null,null,null,null,null,null,null,null," "]
[null,null,null,null,null,null,null,null,null,null,null,null,null,null,null,null,null,null,null,null,null,null," "]
[null,null,null,null,null,null,null,null,null,null,null,null,null,null,null,null,null,null,null,null,null,null," "]
[null,null,null,null,null,null,null,null,null,null,null,null,null,null,null,null,null,null,null,null,null,null," "]
[null,null,null,null,null,null,null,null,null,null,null,null,null,null,null,null,null,null,null,null,null,null," "]
[null,null,null,null,null,null,null,null,null,null,null,null,null,null,null,null,null,null,null,null,null,null," "]
[null,null,null,null,null,null,null,null,null,null,null,null,null,null,null,null,null,null,null,null,null,null," "]
[null,null,null,null,null,null,null,null,null,null,null,null,null,null,null,null,null,null,null,null,null,null," "]
[null,null,null,null,null,null,null,null,null,null,null,null,null,null,null,null,null,null,null,null,null,null," "]
[null,null,null,null,null,null,null,null,null,null,null,null,null,null,null,null,null,null,null,null,null,null," "]
[null,null,null,null,null,null,null,null,null,null,null,null,null,null,null,null,null,null,null,null,null,null," "]
[null,null,null,null,null,null,null,null,null,null,null,null,null,null,null,null,null,null,null,null,null,null," "]
[null,null,null,null,null,null,null,null,null,null,null,null,null,null,null,null,null,null,null,null,null,null," "]
[null,null,null,null,null,null,null,null,null,null,null,null,null,null,null,null,null,null,null,null,null,null,{"$f":"C2370 & \" \" & D2370","v":" "}]
[null,null,null,null,null,null,null,null,null,null,null,null,null,null,null,null,null,null,null,null,null,null," "]
[null,null,null,null,null,null,null,null,null,null,null,null,null,null,null,null,null,null,null,null,null,null," "]
[null,null,null,null,null,null,null,null,null,null,null,null,null,null,null,null,null,null,null,null,null,null," "]
[null,null,null,null,null,null,null,null,null,null,null,null,null,null,null,null,null,null,null,null,null,null," "]
[null,null,null,null,null,null,null,null,null,null,null,null,null,null,null,null,null,null,null,null,null,null," "]
[null,null,null,null,null,null,null,null,null,null,null,null,null,null,null,null,null,null,null,null,null,null," "]
[null,null,null,null,null,null,null,null,null,null,null,null,null,null,null,null,null,null,null,null,null,null," "]
[null,null,null,null,null,null,null,null,null,null,null,null,null,null,null,null,null,null,null,null,null,null," "]
[null,null,null,null,null,null,null,null,null,null,null,null,null,null,null,null,null,null,null,null,null,null," "]
[null,null,null,null,null,null,null,null,null,null,null,null,null,null,null,null,null,null,null,null,null,null," "]
[null,null,null,null,null,null,null,null,null,null,null,null,null,null,null,null,null,null,null,null,null,null," "]
[null,null,null,null,null,null,null,null,null,null,null,null,null,null,null,null,null,null,null,null,null,null," "]
[null,null,null,null,null,null,null,null,null,null,null,null,null,null,null,null,null,null,null,null,null,null," "]
[null,null,null,null,null,null,null,null,null,null,null,null,null,null,null,null,null,null,null,null,null,null," "]
[null,null,null,null,null,null,null,null,null,null,null,null,null,null,null,null,null,null,null,null,null,null," "]
[null,null,null,null,null,null,null,null,null,null,null,null,null,null,null,null,null,null,null,null,null,null," "]
[null,null,null,null,null,null,null,null,null,null,null,null,null,null,null,null,null,null,null,null,null,null," "]
[null,null,null,null,null,null,null,null,null,null,null,null,null,null,null,null,null,null,null,null,null,null," "]
[null,null,null,null,null,null,null,null,null,null,null,null,null,null,null,null,null,null,null,null,null,null," "]
[null,null,null,null,null,null,null,null,null,null,null,null,null,null,null,null,null,null,null,null,null,null," "]
[null,null,null,null,null,null,null,null,null,null,null,null,null,null,null,null,null,null,null,null,null,null," "]
[null,null,null,null,null,null,null,null,null,null,null,null,null,null,null,null,null,null,null,null,null,null," "]
[null,null,null,null,null,null,null,null,null,null,null,null,null,null,null,null,null,null,null,null,null,null," "]
[null,null,null,null,null,null,null,null,null,null,null,null,null,null,null,null,null,null,null,null,null,null," "]
[null,null,null,null,null,null,null,null,null,null,null,null,null,null,null,null,null,null,null,null,null,null," "]
[null,null,null,null,null,null,null,null,null,null,null,null,null,null,null,null,null,null,null,null,null,null," "]
[null,null,null,null,null,null,null,null,null,null,null,null,null,null,null,null,null,null,null,null,null,null," "]
[null,null,null,null,null,null,null,null,null,null,null,null,null,null,null,null,null,null,null,null,null,null," "]
[null,null,null,null,null,null,null,null,null,null,null,null,null,null,null,null,null,null,null,null,null,null," "]
[null,null,null,null,null,null,null,null,null,null,null,null,null,null,null,null,null,null,null,null,null,null," "]
[null,null,null,null,null,null,null,null,null,null,null,null,null,null,null,null,null,null,null,null,null,null," "]
[null,null,null,null,null,null,null,null,null,null,null,null,null,null,null,null,null,null,null,null,null,null," "]
[null,null,null,null,null,null,null,null,null,null,null,null,null,null,null,null,null,null,null,null,null,null," "]
[null,null,null,null,null,null,null,null,null,null,null,null,null,null,null,null,null,null,null,null,null,null," "]
[null,null,null,null,null,null,null,null,null,null,null,null,null,null,null,null,null,null,null,null,null,null," "]
[null,null,null,null,null,null,null,null,null,null,null,null,null,null,null,null,null,null,null,null,null,null," "]
[null,null,null,null,null,null,null,null,null,null,null,null,null,null,null,null,null,null,null,null,null,null," "]
[null,null,null,null,null,null,null,null,null,null,null,null,null,null,null,null,null,null,null,null,null,null," "]
[null,null,null,null,null,null,null,null,null,null,null,null,null,null,null,null,null,null,null,null,null,null," "]
[null,null,null,null,null,null,null,null,null,null,null,null,null,null,null,null,null,null,null,null,null,null," "]
[null,null,null,null,null,null,null,null,null,null,null,null,null,null,null,null,null,null,null,null,null,null," "]
[null,null,null,null,null,null,null,null,null,null,null,null,null,null,null,null,null,null,null,null,null,null," "]
[null,null,null,null,null,null,null,null,null,null,null,null,null,null,null,null,null,null,null,null,null,null," "]
[null,null,null,null,null,null,null,null,null,null,null,null,null,null,null,null,null,null,null,null,null,null," "]
[null,null,null,null,null,null,null,null,null,null,null,null,null,null,null,null,null,null,null,null,null,null," "]
[null,null,null,null,null,null,null,null,null,null,null,null,null,null,null,null,null,null,null,null,null,null," "]
[null,null,null,null,null,null,null,null,null,null,null,null,null,null,null,null,null,null,null,null,null,null," "]
[null,null,null,null,null,null,null,null,null,null,null,null,null,null,null,null,null,null,null,null,null,null," "]
[null,null,null,null,null,null,null,null,null,null,null,null,null,null,null,null,null,null,null,null,null,null," "]
[null,null,null,null,null,null,null,null,null,null,null,null,null,null,null,null,null,null,null,null,null,null," "]
[null,null,null,null,null,null,null,null,null,null,null,null,null,null,null,null,null,null,null,null,null,null," "]
[null,null,null,null,null,null,null,null,null,null,null,null,null,null,null,null,null,null,null,null,null,null," "]
[null,null,null,null,null,null,null,null,null,null,null,null,null,null,null,null,null,null,null,null,null,null," "]
[null,null,null,null,null,null,null,null,null,null,null,null,null,null,null,null,null,null,null,null,null,null," "]
[null,null,null,null,null,null,null,null,null,null,null,null,null,null,null,null,null,null,null,null,null,null," "]
[null,null,null,null,null,null,null,null,null,null,null,null,null,null,null,null,null,null,null,null,null,null," "]
[null,null,null,null,null,null,null,null,null,null,null,null,null,null,null,null,null,null,null,null,null,null," "]
[null,null,null,null,null,null,null,null,null,null,null,null,null,null,null,null,null,null,null,null,null,null," "]
[null,null,null,null,null,null,null,null,null,null,null,null,null,null,null,null,null,null,null,null,null,null," "]
[null,null,null,null,null,null,null,null,null,null,null,null,null,null,null,null,null,null,null,null,null,null," "]
[null,null,null,null,null,null,null,null,null,null,null,null,null,null,null,null,null,null,null,null,null,null," "]
[null,null,null,null,null,null,null,null,null,null,null,null,null,null,null,null,null,null,null,null,null,null," "]
[null,null,null,null,null,null,null,null,null,null,null,null,null,null,null,null,null,null,null,null,null,null," "]
[null,null,null,null,null,null,null,null,null,null,null,null,null,null,null,null,null,null,null,null,null,null,{"$f":"C2434 & \" \" & D2434","v":" "}]
[null,null,null,null,null,null,null,null,null,null,null,null,null,null,null,null,null,null,null,null,null,null," "]
[null,null,null,null,null,null,null,null,null,null,null,null,null,null,null,null,null,null,null,null,null,null," "]
[null,null,null,null,null,null,null,null,null,null,null,null,null,null,null,null,null,null,null,null,null,null," "]
[null,null,null,null,null,null,null,null,null,null,null,null,null,null,null,null,null,null,null,null,null,null," "]
[null,null,null,null,null,null,null,null,null,null,null,null,null,null,null,null,null,null,null,null,null,null," "]
[null,null,null,null,null,null,null,null,null,null,null,null,null,null,null,null,null,null,null,null,null,null," "]
[null,null,null,null,null,null,null,null,null,null,null,null,null,null,null,null,null,null,null,null,null,null," "]
[null,null,null,null,null,null,null,null,null,null,null,null,null,null,null,null,null,null,null,null,null,null," "]
[null,null,null,null,null,null,null,null,null,null,null,null,null,null,null,null,null,null,null,null,null,null," "]
[null,null,null,null,null,null,null,null,null,null,null,null,null,null,null,null,null,null,null,null,null,null," "]
[null,null,null,null,null,null,null,null,null,null,null,null,null,null,null,null,null,null,null,null,null,null," "]
[null,null,null,null,null,null,null,null,null,null,null,null,null,null,null,null,null,null,null,null,null,null," "]
[null,null,null,null,null,null,null,null,null,null,null,null,null,null,null,null,null,null,null,null,null,null," "]
[null,null,null,null,null,null,null,null,null,null,null,null,null,null,null,null,null,null,null,null,null,null," "]
[null,null,null,null,null,null,null,null,null,null,null,null,null,null,null,null,null,null,null,null,null,null," "]
[null,null,null,null,null,null,null,null,null,null,null,null,null,null,null,null,null,null,null,null,null,null," "]
[null,null,null,null,null,null,null,null,null,null,null,null,null,null,null,null,null,null,null,null,null,null," "]
[null,null,null,null,null,null,null,null,null,null,null,null,null,null,null,null,null,null,null,null,null,null," "]
[null,null,null,null,null,null,null,null,null,null,null,null,null,null,null,null,null,null,null,null,null,null," "]
[null,null,null,null,null,null,null,null,null,null,null,null,null,null,null,null,null,null,null,null,null,null," "]
[null,null,null,null,null,null,null,null,null,null,null,null,null,null,null,null,null,null,null,null,null,null," "]
[null,null,null,null,null,null,null,null,null,null,null,null,null,null,null,null,null,null,null,null,null,null," "]
[null,null,null,null,null,null,null,null,null,null,null,null,null,null,null,null,null,null,null,null,null,null," "]
[null,null,null,null,null,null,null,null,null,null,null,null,null,null,null,null,null,null,null,null,null,null," "]
[null,null,null,null,null,null,null,null,null,null,null,null,null,null,null,null,null,null,null,null,null,null," "]
[null,null,null,null,null,null,null,null,null,null,null,null,null,null,null,null,null,null,null,null,null,null," "]
[null,null,null,null,null,null,null,null,null,null,null,null,null,null,null,null,null,null,null,null,null,null," "]
[null,null,null,null,null,null,null,null,null,null,null,null,null,null,null,null,null,null,null,null,null,null," "]
[null,null,null,null,null,null,null,null,null,null,null,null,null,null,null,null,null,null,null,null,null,null," "]
[null,null,null,null,null,null,null,null,null,null,null,null,null,null,null,null,null,null,null,null,null,null," "]
[null,null,null,null,null,null,null,null,null,null,null,null,null,null,null,null,null,null,null,null,null,null," "]
[null,null,null,null,null,null,null,null,null,null,null,null,null,null,null,null,null,null,null,null,null,null," "]
[null,null,null,null,null,null,null,null,null,null,null,null,null,null,null,null,null,null,null,null,null,null," "]
[null,null,null,null,null,null,null,null,null,null,null,null,null,null,null,null,null,null,null,null,null,null," "]
[null,null,null,null,null,null,null,null,null,null,null,null,null,null,null,null,null,null,null,null,null,null," "]
[null,null,null,null,null,null,null,null,null,null,null,null,null,null,null,null,null,null,null,null,null,null," "]
[null,null,null,null,null,null,null,null,null,null,null,null,null,null,null,null,null,null,null,null,null,null," "]
[null,null,null,null,null,null,null,null,null,null,null,null,null,null,null,null,null,null,null,null,null,null," "]
[null,null,null,null,null,null,null,null,null,null,null,null,null,null,null,null,null,null,null,null,null,null," "]
[null,null,null,null,null,null,null,null,null,null,null,null,null,null,null,null,null,null,null,null,null,null," "]
[null,null,null,null,null,null,null,null,null,null,null,null,null,null,null,null,null,null,null,null,null,null," "]
[null,null,null,null,null,null,null,null,null,null,null,null,null,null,null,null,null,null,null,null,null,null," "]
[null,null,null,null,null,null,null,null,null,null,null,null,null,null,null,null,null,null,null,null,null,null," "]
[null,null,null,null,null,null,null,null,null,null,null,null,null,null,null,null,null,null,null,null,null,null," "]
[null,null,null,null,null,null,null,null,null,null,null,null,null,null,null,null,null,null,null,null,null,null," "]
[null,null,null,null,null,null,null,null,null,null,null,null,null,null,null,null,null,null,null,null,null,null," "]
[null,null,null,null,null,null,null,null,null,null,null,null,null,null,null,null,null,null,null,null,null,null," "]
[null,null,null,null,null,null,null,null,null,null,null,null,null,null,null,null,null,null,null,null,null,null," "]
[null,null,null,null,null,null,null,null,null,null,null,null,null,null,null,null,null,null,null,null,null,null," "]
[null,null,null,null,null,null,null,null,null,null,null,null,null,null,null,null,null,null,null,null,null,null," "]
[null,null,null,null,null,null,null,null,null,null,null,null,null,null,null,null,null,null,null,null,null,null," "]
[null,null,null,null,null,null,null,null,null,null,null,null,null,null,null,null,null,null,null,null,null,null," "]
[null,null,null,null,null,null,null,null,null,null,null,null,null,null,null,null,null,null,null,null,null,null," "]
[null,null,null,null,null,null,null,null,null,null,null,null,null,null,null,null,null,null,null,null,null,null," "]
[null,null,null,null,null,null,null,null,null,null,null,null,null,null,null,null,null,null,null,null,null,null," "]
[null,null,null,null,null,null,null,null,null,null,null,null,null,null,null,null,null,null,null,null,null,null," "]
[null,null,null,null,null,null,null,null,null,null,null,null,null,null,null,null,null,null,null,null,null,null," "]
[null,null,null,null,null,null,null,null,null,null,null,null,null,null,null,null,null,null,null,null,null,null," "]
[null,null,null,null,null,null,null,null,null,null,null,null,null,null,null,null,null,null,null,null,null,null," "]
[null,null,null,null,null,null,null,null,null,null,null,null,null,null,null,null,null,null,null,null,null,null," "]
[null,null,null,null,null,null,null,null,null,null,null,null,null,null,null,null,null,null,null,null,null,null," "]
[null,null,null,null,null,null,null,null,null,null,null,null,null,null,null,null,null,null,null,null,null,null," "]
[null,null,null,null,null,null,null,null,null,null,null,null,null,null,null,null,null,null,null,null,null,null," "]
[null,null,null,null,null,null,null,null,null,null,null,null,null,null,null,null,null,null,null,null,null,null," "]
[null,null,null,null,null,null,null,null,null,null,null,null,null,null,null,null,null,null,null,null,null,null," "]
[null,null,null,null,null,null,null,null,null,null,null,null,null,null,null,null,null,null,null,null,null,null," "]
[null,null,null,null,null,null,null,null,null,null,null,null,null,null,null,null,null,null,null,null,null,null," "]

{"sheet":"Liste","index":1,"n_rows":20,"n_cols":18,"rows_kept":20,"cut":false,"hidden":false,"merged":[[6,4,6,5]]}
["الجمهورية الجزائرية الديمقراطية الشعبية "]
["وزارة التربية الوطنية ",null,null,null,null,null,null,"أنثى",null,null,null,null,null,null,null,null,null,"3ت ر/هم"]
[null,null,null,null,null,null,null,null,null,null,null,null,null,null,null,null,null,"3ت ر/هك"]
[null,null,null,null,null,null,null,null,null,"ذكر",null,null,null,null,null,null,null,"3ت إ01"]
[null,null,null,null,null,null,null,null,null,"أنثى",null,null,null,null,null,null,null,"3ع ت02"]
[null,null,null,null,null,null,null,null,null,null,null,null,null,null,null,null,null,"3أ ف01"]
[null,null,"ALL",null,"القائمة الاسمية لتلاميذ قسم : ",null,"3ت ر/هك",null,null,null,null,null,null,null,null,null,null,"2ت ر/هم"]
["عدد التلاميذ :",null,{"$f":"SUM(G8,E8)","v":13},"ذكــور: ",{"$f":"SUMPRODUCT((data!$H$2:$H$1000=$G$7)*(data!$E$2:$E$1000=\"ذكر\"))","v":9},"إنــاث : ",{"$f":"SUMPRODUCT((data!$H$2:$H$1000=$G$7)*(data!$E$2:$E$1000=\"أنثى\"))","v":4},null,null,null,null,null,null,null,null,null,null,"2ت ر/هك"]
[null,null,null,null,null,null,null,null,null,null,null,null,null,null,null,null,null,"2ت إ01"]
["رقم التعريف","رقم القيد ","اللقب","الاسم","تاريخ الميلاد","مكان الميلاد","ملاحظات",null,null,null,null,null,null,null,null,null,null,"2ت إ01"]
[1000210000000000,1,"سامري","يوسف","2002-10-09","مغنية",null,null,null,null,null,null,null,null,null,null,null,"2ع ت01"]
[1000210000000000,9,"العباس","بومدين","2002-06-13","مغنية",null,null,null,null,null,null,null,null,null,null,null,"2ع ت02"]
[1000210000000000,10,"بلعجل","محمد","2002-03-09","مغنية",null,null,null,null,null,null,null,null,null,null,null,"3أ ف01"]
[1100210000000000,11,"بن عبد الله","فريال","2002-09-25","مغنية"]
[1000310000000000,12,"بن عبد الله","مصطفى","2003-07-30","مغنية"]
[1000210000000000,13,"بوعزة","حسام","2002-02-24","مغنية"]
[1000210000000000,15,"لحلاح","أسامة","2002-06-01","مغنية"]
[1000210000000000,17,"بن هدي","سيدي محمد","2002-10-31","تلمسان"]
[1000210000000000,19,"صباحي","ابراهيم","2002-10-16","مغنية"]
[1000310000000000,20,"محلة","عبدالرحمن","2003-02-14","مغنية"]